Workbook

Sheet Home
B11: Home
B13: Performance Metrics
B15: Raw Data
B17: Administration
F23: July Performance Metrics

Sheet Manager Performance
J3: Start Date: 07/01/2024, End Date: 07/29/2024
K4: Score | L4: # NPS WO's | M4: # Failures | N4: NPS | O4: SMS Promoter Count | P4: SMS Count | Q4: SMS tNPS | R4: Total Repeatable WO | S4: Total Repeats | T4: Repeats | U4: Total Repeatable WO | V4: Repeat IN | W4: IN Repeat % | X4: Total Repeatable WO | Y4: Repeat TC | Z4: Repeat TC % | AA4: Jobs | AB4: Pass | AC4: SQT Compliance | AD4: Parameters Tested | AE4: Parameters Passing | AF4: SQT Pass | AG4: Ingress Test Run | AH4: Test Passed | AI4: Ingress Test Pass | AJ4: FCR WO | AK4: FCR Failures | AL4: FCR | AM4: Jobs | AN4: Jobs Late | AO4: OTA | AP4: Jobs | AQ4: Completed Jobs | AR4: Completion % | AS4: Total Jobs | AT4: Total Valid | AU4: Drop Validation
F6: Macon (1) | G6: Middle Georgia | I6: Macon | J6: Macon | K6: =IF(AC6="","",IFERROR(IF(N6>=68.26%,1.25,0)+IF(T6<=5.04%,2.5,0)+IF(AC6>=90%,2.5,0)+IF(AO6>=97%,1.25,0)+IF(Q6>=90%,2.5,0),"")) -> 5 | L6: =L20 -> 64 | M6: 21.0002 | N6: =IFERROR(_xlfn.XLOOKUP($I6,'Company Summary'!$H$6:$H$13,'Company Summary'!$I$6:$I$13),"")/100 -> 0.6719 | O6: =COUNTIFS('SMS tNPS'!L:L,F6,'SMS tNPS'!HB:HB,"Yes") -> 212 | P6: =COUNTIFS('SMS tNPS'!L:L,F6,'SMS tNPS'!HB:HB,"Yes")+COUNTIFS('SMS tNPS'!L:L,F6,'SMS tNPS'!HB:HB,"No") -> 233 | Q6: =IFERROR(SUM(O6/P6),"") -> 0.9099 | R6: =R20 -> 1126 | S6: 32 | T6: =IFERROR(_xlfn.XLOOKUP($I6,'Company Summary'!$H$6:$H$13,'Company Summary'!$K$6:$K$13),"")/100 -> 0.0284 | U6: =Macon!R34 -> 484 | V6: =V20 -> 9 | W6: =IFERROR(SUM(V6/U6),"") -> 0.0186 | X6: =X20 -> 642 | Y6: =Y20 -> 23 | Z6: =IFERROR(SUM(Y6/X6),"") -> 0.0358 | AA6: =IF($I6="","",SUMIF('SQT Data'!$G:$G,$G6,'SQT Data'!$R:$R)) -> 481 | AB6: =IF($I6="","",SUMIF('SQT Data'!$G:$G,$G6,'SQT Data'!$S:$S)) -> 409 | AC6: =IFERROR(SUM(AB6/AA6),"") -> 0.8503 | AD6: =IF($I6="","",SUMIF('SQT Data'!$G:$G,$G6,'SQT Data'!$U:$U)) -> 3249 | AE6: =IF($I6="","",SUMIF('SQT Data'!$G:$G,$G6,'SQT Data'!$V:$V)) -> 2918 | AF6: =IFERROR(SUM(AE6/AD6),"") -> 0.8981 | AJ6: =AJ20 -> 628 | AK6: 14 | AL6: =IFERROR(_xlfn.XLOOKUP($I6,'Company Summary'!$H$6:$H$13,'Company Summary'!$J$6:$J$13),"")/100 -> 0.9777 | AM6: =AM20 -> 446 | AN6: 59 | AO6: =IFERROR(_xlfn.XLOOKUP($I6,'Company Summary'!$H$6:$H$13,'Company Summary'!$O$6:$O$13),"")/100 -> 0.8677 | AP6: =AP20 -> 1301 | AQ6: 1117 | AR6: =IFERROR(_xlfn.XLOOKUP(I6,'Company Summary'!$H$6:$H$13,'Company Summary'!$P$6:$P$13),"")/100 -> 0.8586 | AS6: =AS20 -> 26 | AT6: 16 | AU6: =IFERROR(AT6/AS6,"") -> 0.6154
F7: Gainesville/Ocala (214) | G7: Gainesville | I7: Gainesville/Ocala | J7: Gainesville | K7: =IF(AC7="","",IFERROR(IF(N7>=68.26%,1.25,0)+IF(T7<=5.04%,2.5,0)+IF(AC7>=90%,2.5,0)+IF(AO7>=97%,1.25,0)+IF(Q7>=90%,2.5,0),"")) -> 5 | L7: 64 | M7: 34.0001 | N7: =IFERROR(_xlfn.XLOOKUP($I7,'Company Summary'!$H$6:$H$13,'Company Summary'!$I$6:$I$13),"")/100 -> 0.4688 | O7: =COUNTIFS('SMS tNPS'!L:L,F7,'SMS tNPS'!HB:HB,"Yes") -> 212 | P7: =COUNTIFS('SMS tNPS'!L:L,F7,'SMS tNPS'!HB:HB,"Yes")+COUNTIFS('SMS tNPS'!L:L,F7,'SMS tNPS'!HB:HB,"No") -> 237 | Q7: =IFERROR(SUM(O7/P7),"") -> 0.8945 | R7: 991 | S7: 26 | T7: =IFERROR(_xlfn.XLOOKUP($I7,'Company Summary'!$H$6:$H$13,'Company Summary'!$K$6:$K$13),"")/100 -> 0.0262 | U7: =U21 -> 537 | V7: 16 | W7: 0.0298 | X7: =X21 -> 454 | Y7: 10 | Z7: 0.022 | AA7: =IF($I7="","",SUMIF('SQT Data'!$G:$G,$G7,'SQT Data'!$R:$R)) -> 531 | AB7: =IF($I7="","",SUMIF('SQT Data'!$G:$G,$G7,'SQT Data'!$S:$S)) -> 487 | AC7: =IFERROR(SUM(AB7/AA7),"") -> 0.9171 | AD7: =IF($I7="","",SUMIF('SQT Data'!$G:$G,$G7,'SQT Data'!$U:$U)) -> 3319 | AE7: =IF($I7="","",SUMIF('SQT Data'!$G:$G,$G7,'SQT Data'!$V:$V)) -> 2950 | AF7: =IFERROR(SUM(AE7/AD7),"") -> 0.8888 | AJ7: 577 | AK7: 16 | AL7: =IFERROR(_xlfn.XLOOKUP($I7,'Company Summary'!$H$6:$H$13,'Company Summary'!$J$6:$J$13),"")/100 -> 0.9723 | AM7: 407 | AN7: 31 | AO7: =IFERROR(_xlfn.XLOOKUP($I7,'Company Summary'!$H$6:$H$13,'Company Summary'!$O$6:$O$13),"")/100 -> 0.9238 | AP7: 1005 | AQ7: 884 | AR7: =IFERROR(_xlfn.XLOOKUP(I7,'Company Summary'!$H$6:$H$13,'Company Summary'!$P$6:$P$13),"")/100 -> 0.8787 | AS7: 53 | AT7: 48 | AU7: =IFERROR(AT7/AS7,"") -> 0.9057
F8: New Orleans (126) | G8: New Orleans | I8: New Orleans | J8: New Orleans | K8: 7.5 | L8: 26 | M8: 13.9998 | N8: =IFERROR(_xlfn.XLOOKUP($I8,'Company Summary'!$H$6:$H$13,'Company Summary'!$I$6:$I$13),"")/100 -> 0.5333 | O8: =COUNTIFS('SMS tNPS'!L:L,F8,'SMS tNPS'!HB:HB,"Yes") -> 107 | P8: =COUNTIFS('SMS tNPS'!L:L,F8,'SMS tNPS'!HB:HB,"Yes")+COUNTIFS('SMS tNPS'!L:L,F8,'SMS tNPS'!HB:HB,"No") -> 118 | Q8: 0.9068 | R8: 431 | S8: 19 | T8: =IFERROR(_xlfn.XLOOKUP($I8,'Company Summary'!$H$6:$H$13,'Company Summary'!$K$6:$K$13),"")/100 -> 0.0483 | U8: =U22 -> 134 | V8: 6 | W8: 0.0448 | X8: =X22 -> 297 | Y8: 13 | Z8: 0.0438 | AA8: =IF($I8="","",SUMIF('SQT Data'!$G:$G,$G8,'SQT Data'!$R:$R)) -> 381 | AB8: =IF($I8="","",SUMIF('SQT Data'!$G:$G,$G8,'SQT Data'!$S:$S)) -> 372 | AC8: 0.9764 | AD8: =IF($I8="","",SUMIF('SQT Data'!$G:$G,$G8,'SQT Data'!$U:$U)) -> 2950 | AE8: =IF($I8="","",SUMIF('SQT Data'!$G:$G,$G8,'SQT Data'!$V:$V)) -> 2732 | AF8: =IFERROR(SUM(AE8/AD8),"") -> 0.9261 | AJ8: 179 | AK8: 12 | AL8: =IFERROR(_xlfn.XLOOKUP($I8,'Company Summary'!$H$6:$H$13,'Company Summary'!$J$6:$J$13),"")/100 -> 0.9364 | AM8: 122 | AN8: 11 | AO8: =IFERROR(_xlfn.XLOOKUP($I8,'Company Summary'!$H$6:$H$13,'Company Summary'!$O$6:$O$13),"")/100 -> 0.9091 | AP8: 494 | AQ8: 428 | AR8: =IFERROR(_xlfn.XLOOKUP(I8,'Company Summary'!$H$6:$H$13,'Company Summary'!$P$6:$P$13),"")/100 -> 0.8519 | AS8: 7 | AT8: 6 | AU8: 0.8571
F9: Greater Louisiana (182) | G9: GREATER LOUISIANA | I9: Greater Louisiana | J9: Baton Rouge | K9: 2.5 | L9: 20 | M9: 7.0001 | N9: =IFERROR(_xlfn.XLOOKUP($I9,'Company Summary'!$H$6:$H$13,'Company Summary'!$I$6:$I$13),"")/100 -> 0.65 | O9: =COUNTIFS('SMS tNPS'!L:L,F9,'SMS tNPS'!HB:HB,"Yes") -> 99 | P9: =COUNTIFS('SMS tNPS'!L:L,F9,'SMS tNPS'!HB:HB,"Yes")+COUNTIFS('SMS tNPS'!L:L,F9,'SMS tNPS'!HB:HB,"No") -> 115 | Q9: 0.8609 | R9: 607 | S9: 31 | T9: =IFERROR(_xlfn.XLOOKUP($I9,'Company Summary'!$H$6:$H$13,'Company Summary'!$K$6:$K$13),"")/100 -> 0.0511 | U9: =U23 -> 210 | V9: 7 | W9: 0.0333 | X9: =X23 -> 397 | Y9: 24 | Z9: 0.0605 | AA9: =IF($I9="","",SUMIF('SQT Data'!$G:$G,$G9,'SQT Data'!$R:$R)) -> 341 | AB9: =IF($I9="","",SUMIF('SQT Data'!$G:$G,$G9,'SQT Data'!$S:$S)) -> 329 | AC9: 0.9648 | AD9: =IF($I9="","",SUMIF('SQT Data'!$G:$G,$G9,'SQT Data'!$U:$U)) -> 2610 | AE9: =IF($I9="","",SUMIF('SQT Data'!$G:$G,$G9,'SQT Data'!$V:$V)) -> 2369 | AF9: 0.9077 | AJ9: 303 | AK9: 12 | AL9: =IFERROR(_xlfn.XLOOKUP($I9,'Company Summary'!$H$6:$H$13,'Company Summary'!$J$6:$J$13),"")/100 -> 0.9604 | AM9: 198 | AN9: 16 | AO9: =IFERROR(_xlfn.XLOOKUP($I9,'Company Summary'!$H$6:$H$13,'Company Summary'!$O$6:$O$13),"")/100 -> 0.9192 | AP9: 675 | AQ9: 604 | AR9: =IFERROR(_xlfn.XLOOKUP(I9,'Company Summary'!$H$6:$H$13,'Company Summary'!$P$6:$P$13),"")/100 -> 0.8948 | AS9: 22 | AT9: 11 | AU9: 0.5
F10: Hampton Roads (215) | G10: Hampton Roads | I10: Hampton Roads | J10: Hampton Roads | K10: 5 | L10: 45 | M10: 22.0005 | N10: =IFERROR(_xlfn.XLOOKUP($I10,'Company Summary'!$H$6:$H$13,'Company Summary'!$I$6:$I$13),"")/100 -> 0.6364 | O10: =COUNTIFS('SMS tNPS'!L:L,F10,'SMS tNPS'!HB:HB,"Yes") -> 192 | P10: =COUNTIFS('SMS tNPS'!L:L,F10,'SMS tNPS'!HB:HB,"Yes")+COUNTIFS('SMS tNPS'!L:L,F10,'SMS tNPS'!HB:HB,"No") -> 231 | Q10: 0.8312 | R10: 631 | S10: 32 | T10: =IFERROR(_xlfn.XLOOKUP($I10,'Company Summary'!$H$6:$H$13,'Company Summary'!$K$6:$K$13),"")/100 -> 0.0446 | U10: =U24 -> 333 | V10: 13 | W10: 0.039 | X10: =X24 -> 298 | Y10: 19 | Z10: 0.0638 | AA10: =IF($I10="","",SUMIF('SQT Data'!$G:$G,$G10,'SQT Data'!$R:$R)) -> 535 | AB10: =IF($I10="","",SUMIF('SQT Data'!$G:$G,$G10,'SQT Data'!$S:$S)) -> 482 | AC10: 0.9009 | AD10: =IF($I10="","",SUMIF('SQT Data'!$G:$G,$G10,'SQT Data'!$U:$U)) -> 3714 | AE10: =IF($I10="","",SUMIF('SQT Data'!$G:$G,$G10,'SQT Data'!$V:$V)) -> 2752 | AF10: 0.741 | AJ10: 363 | AK10: 14 | AL10: =IFERROR(_xlfn.XLOOKUP($I10,'Company Summary'!$H$6:$H$13,'Company Summary'!$J$6:$J$13),"")/100 -> 0.9684 | AM10: 220 | AN10: 15 | AO10: =IFERROR(_xlfn.XLOOKUP($I10,'Company Summary'!$H$6:$H$13,'Company Summary'!$O$6:$O$13),"")/100 -> 0.9449 | AP10: 582 | AQ10: 538 | AR10: =IFERROR(_xlfn.XLOOKUP(I10,'Company Summary'!$H$6:$H$13,'Company Summary'!$P$6:$P$13),"")/100 -> 0.9292 | AS10: =SUM(AS24:AS25) -> 2 | AT10: =SUM(AT24:AT25) -> 1 | AU10: 0.5
B11: Home | F11: Roanoke (239) | G11: Roanoke | I11: Roanoke | J11: Roanoke | K11: 5 | L11: =L26 -> 38 | M11: =M26 -> 9.9997 | N11: =IFERROR(_xlfn.XLOOKUP($I11,'Company Summary'!$H$6:$H$13,'Company Summary'!$I$6:$I$13),"")/100 -> 0.7368 | O11: =COUNTIFS('SMS tNPS'!L:L,F11,'SMS tNPS'!HB:HB,"Yes") -> 74 | P11: =COUNTIFS('SMS tNPS'!L:L,F11,'SMS tNPS'!HB:HB,"Yes")+COUNTIFS('SMS tNPS'!L:L,F11,'SMS tNPS'!HB:HB,"No") -> 83 | Q11: 0.8916 | R11: =R26 -> 464 | S11: =S26 -> 16 | T11: =IFERROR(_xlfn.XLOOKUP($I11,'Company Summary'!$H$6:$H$13,'Company Summary'!$K$6:$K$13),"")/100 -> 0.0344 | U11: =U26 -> 201 | V11: 7 | W11: 0.0348 | X11: =X26 -> 263 | Y11: 9 | Z11: 0.0342 | AA11: =IF($I11="","",SUMIF('SQT Data'!$G:$G,$G11,'SQT Data'!$R:$R)) -> 350 | AB11: =IF($I11="","",SUMIF('SQT Data'!$G:$G,$G11,'SQT Data'!$S:$S)) -> 284 | AC11: 0.8114 | AD11: =IF($I11="","",SUMIF('SQT Data'!$G:$G,$G11,'SQT Data'!$U:$U)) -> 2265 | AE11: =IF($I11="","",SUMIF('SQT Data'!$G:$G,$G11,'SQT Data'!$V:$V)) -> 2097 | AF11: 0.9258 | AJ11: =AJ26 -> 274 | AK11: =AK26 -> 9 | AL11: =IFERROR(_xlfn.XLOOKUP($I11,'Company Summary'!$H$6:$H$13,'Company Summary'!$J$6:$J$13),"")/100 -> 0.9672 | AM11: =AM26 -> 194 | AN11: =AN26 -> 2 | AO11: =IFERROR(_xlfn.XLOOKUP($I11,'Company Summary'!$H$6:$H$13,'Company Summary'!$O$6:$O$13),"")/100 -> 0.9897 | AP11: =AP26 -> 503 | AQ11: =AQ26 -> 459 | AR11: =IFERROR(_xlfn.XLOOKUP(I11,'Company Summary'!$H$6:$H$13,'Company Summary'!$P$6:$P$13),"")/100 -> 0.9091 | AS11: =AS26 -> 5 | AT11: =AT26 -> 2 | AU11: 0.4
F12: Pensacola (135) | G12: Gulf Coast | I12: Pensacola | J12: Gulf Coast | K12: 7.5 | L12: =L27 -> 83 | M12: =M27 -> 37 | N12: =IFERROR(_xlfn.XLOOKUP($I12,'Company Summary'!$H$6:$H$13,'Company Summary'!$I$6:$I$13),"")/100 -> 0.5595 | O12: =COUNTIFS('SMS tNPS'!L:L,F12,'SMS tNPS'!HB:HB,"Yes") -> 259 | P12: =COUNTIFS('SMS tNPS'!L:L,F12,'SMS tNPS'!HB:HB,"Yes")+COUNTIFS('SMS tNPS'!L:L,F12,'SMS tNPS'!HB:HB,"No") -> 285 | Q12: 0.9088 | R12: =R27 -> 1217 | S12: =S27 -> 57 | T12: =IFERROR(_xlfn.XLOOKUP($I12,'Company Summary'!$H$6:$H$13,'Company Summary'!$K$6:$K$13),"")/100 -> 0.047 | U12: 502 | V12: 19 | W12: 0.0378 | X12: 715 | Y12: 38 | Z12: 0.0531 | AA12: =IF($I12="","",SUMIF('SQT Data'!$G:$G,$G12,'SQT Data'!$R:$R)) -> 770 | AB12: =IF($I12="","",SUMIF('SQT Data'!$G:$G,$G12,'SQT Data'!$S:$S)) -> 697 | AC12: 0.9052 | AD12: =IF($I12="","",SUMIF('SQT Data'!$G:$G,$G12,'SQT Data'!$U:$U)) -> 5529 | AE12: =IF($I12="","",SUMIF('SQT Data'!$G:$G,$G12,'SQT Data'!$V:$V)) -> 4769 | AF12: 0.8625 | AJ12: =AJ27 -> 640 | AK12: =AK27 -> 21 | AL12: =IFERROR(_xlfn.XLOOKUP($I12,'Company Summary'!$H$6:$H$13,'Company Summary'!$J$6:$J$13),"")/100 -> 0.9676 | AM12: =AM27 -> 453 | AN12: =AN27 -> 40 | AO12: =IFERROR(_xlfn.XLOOKUP($I12,'Company Summary'!$H$6:$H$13,'Company Summary'!$O$6:$O$13),"")/100 -> 0.9127 | AP12: =AP27 -> 1332 | AQ12: =AQ27 -> 1180 | AR12: =IFERROR(_xlfn.XLOOKUP(I12,'Company Summary'!$H$6:$H$13,'Company Summary'!$P$6:$P$13),"")/100 -> 0.8853 | AS12: =AS27 -> 36 | AT12: =AT27 -> 15 | AU12: 0.4167
B13: Performance Metrics | F13: Oklahoma City (131) | G13: Oklahoma City | I13: Oklahoma City | J13: Oklahoma City | K13: 5 | L13: =L29 -> 0 | M13: =M29 -> 0 | N13: =IFERROR(_xlfn.XLOOKUP($I13,'Company Summary'!$H$6:$H$13,'Company Summary'!$I$6:$I$13),"")/100 -> 0.3833 | O13: =COUNTIFS('SMS tNPS'!L:L,F13,'SMS tNPS'!HB:HB,"Yes") -> 208 | P13: =COUNTIFS('SMS tNPS'!L:L,F13,'SMS tNPS'!HB:HB,"Yes")+COUNTIFS('SMS tNPS'!L:L,F13,'SMS tNPS'!HB:HB,"No") -> 222 | Q13: 0.9369 | R13: =R29 -> 0 | S13: =S29 -> 0 | T13: =IFERROR(_xlfn.XLOOKUP($I13,'Company Summary'!$H$6:$H$13,'Company Summary'!$K$6:$K$13),"")/100 -> 0.0511 | U13: 346 | V13: 13 | W13: 0.0376 | X13: 470 | Y13: 31 | Z13: 0.066 | AA13: =IF($I13="","",SUMIF('SQT Data'!$G:$G,$G13,'SQT Data'!$R:$R)) -> 633 | AB13: =IF($I13="","",SUMIF('SQT Data'!$G:$G,$G13,'SQT Data'!$S:$S)) -> 594 | AC13: 0.9384 | AD13: =IF($I13="","",SUMIF('SQT Data'!$G:$G,$G13,'SQT Data'!$U:$U)) -> 4591 | AE13: =IF($I13="","",SUMIF('SQT Data'!$G:$G,$G13,'SQT Data'!$V:$V)) -> 4285 | AF13: 0.9333 | AJ13: =AJ29 -> 0 | AK13: =AK29 -> 0 | AL13: =IFERROR(_xlfn.XLOOKUP($I13,'Company Summary'!$H$6:$H$13,'Company Summary'!$J$6:$J$13),"")/100 -> 0.9534 | AM13: =AM29 -> 0 | AN13: =AN29 -> 0 | AO13: =IFERROR(_xlfn.XLOOKUP($I13,'Company Summary'!$H$6:$H$13,'Company Summary'!$O$6:$O$13),"")/100 -> 0.8712 | AP13: =AP29 -> 0 | AQ13: =AQ29 -> 0 | AR13: =IFERROR(_xlfn.XLOOKUP(I13,'Company Summary'!$H$6:$H$13,'Company Summary'!$P$6:$P$13),"")/100 -> 0.8397 | AS13: =SUM(AS28:AS29) -> 11 | AT13: =SUM(AT28:AT29) -> 10 | AU13: 0.9091
B14: Gainesville
B15: Macon | J15: COX Total | K15: 5 | L15: =SUM(L6:L12) -> 340 | M15: =SUM(M6:M12) -> 145.0004 | N15: =IFERROR(1-(M15/L15),"") -> 0.5735 | O15: =SUM(O6:O13) -> 1363 | P15: =SUM(P6:P13) -> 1524 | Q15: 0.8944 | R15: =SUM(R6:R12) -> 5467 | S15: =SUM(S6:S12) -> 213 | T15: =IFERROR(SUM(S15/R15),"") -> 0.039 | U15: =SUM(U6:U13) -> 2747 | V15: =SUM(V6:V13) -> 90 | W15: 0.0328 | X15: =SUM(X6:X13) -> 3536 | Y15: =SUM(Y6:Y13) -> 167 | Z15: 0.0472 | AA15: =SUM(AA6:AA12) -> 3389 | AB15: =SUM(AB6:AB12) -> 3060 | AC15: 0.9029 | AD15: =SUM(AD6:AD13) -> 28227 | AE15: =SUM(AE6:AE13) -> 24872 | AF15: 0.8811 | AJ15: =SUM(AJ6:AJ12) -> 2964 | AK15: =SUM(AK6:AK12) -> 98 | AL15: =IFERROR(1-AK15/AJ15,"") -> 0.9669 | AM15: =SUM(AM6:AM12) -> 2040 | AN15: =SUM(AN6:AN12) -> 174 | AO15: =IFERROR(1-AN15/AM15,"") -> 0.9147 | AP15: =SUM(AP6:AP12) -> 5892 | AQ15: =SUM(AQ6:AQ12) -> 5210 | AR15: =IFERROR(AQ15/AP15,"") -> 0.8842 | AS15: =SUM(AS5:AS11) -> 115 | AT15: =SUM(AT5:AT11) -> 84 | AU15: 0.7304
B16: New Orleans
B17: Hampton Roads
B18: Baton Rouge | J18: Supervisor | K18: Score | L18: # NPS WO's | M18: # Failures | N18: NPS | O18: SMS Promoter Count | P18: SMS Count | Q18: SMS tNPS | R18: Total Repeatable WO | S18: Total Repeats | T18: Repeats | U18: Total Repeatable WO | V18: Repeat IN | W18: IN Repeat % | X18: Total Repeatable WO | Y18: Repeat TC | Z18: Repeat TC % | AA18: Jobs | AB18: Pass | AC18: SQT Compliance | AD18: Parameters Tested | AE18: Parameters Passing | AF18: SQT Pass | AG18: Ingress Test Run | AH18: Test Passed | AI18: Ingress Test Pass | AJ18: FCR WO | AK18: FCR Failures | AL18: FCR | AM18: Jobs | AN18: Jobs Late | AO18: OTA | AP18: Jobs | AQ18: Completed Jobs | AR18: Completion % | AS18: Total Jobs | AT18: Total Valid | AU18: Drop Validation
B19: Roanoke
B20: Gulf Coast | H20: Macon | J20: Deandre McCants | K20: =IF(AC20="","",IFERROR(IF(N20>=68.26%,1.25,0)+IF(T20<=5.04%,2.5,0)+IF(AC20>=90%,2.5,0)+IF(AO20>=97%,1.25,0)+IF(Q20>=90%,2.5,0),"")) -> 5 | L20: =Macon!I33 -> 64 | M20: =Macon!J33 -> 21.0002 | N20: =IFERROR(1-(M20/L20),"") -> 0.6719 | O20: =Macon!L34 -> 212 | P20: =Macon!M34 -> 233 | Q20: =IFERROR(SUM(O20/P20),"") -> 0.9099 | R20: =Macon!O34 -> 1126 | S20: =Macon!P34 -> 32 | T20: =IFERROR(SUM(S20/R20),"") -> 0.0284 | U20: =Macon!R34 -> 484 | V20: =Macon!S34 -> 9 | W20: =IFERROR(SUM(V20/U20),"") -> 0.0186 | X20: =Macon!U34 -> 642 | Y20: =Macon!V34 -> 23 | Z20: =IFERROR(SUM(Y20/X20),"") -> 0.0358 | AA20: =Macon!X34 -> 481 | AB20: =Macon!Y34 -> 409 | AC20: =IFERROR(SUM(AB20/AA20),"") -> 0.8503 | AD20: =Macon!AA34 -> 3249 | AE20: =Macon!AB34 -> 2918 | AF20: =IFERROR(SUM(AE20/AD20),"") -> 0.8981 | AJ20: =Macon!AF34 -> 628 | AK20: =Macon!AG34 -> 14 | AL20: =IFERROR(1-AK20/AJ20,"") -> 0.9777 | AM20: =Macon!AI34 -> 446 | AN20: =Macon!AJ34 -> 59 | AO20: =IFERROR(1-AN20/AM20,"") -> 0.8677 | AP20: =Macon!AL34 -> 1301 | AQ20: =Macon!AM34 -> 1117 | AR20: =IFERROR(AQ20/AP20,"") -> 0.8586 | AS20: =Macon!AO34 -> 26 | AT20: =Macon!AP34 -> 16 | AU20: =IFERROR(AT20/AS20,"") -> 0.6154
B21: Oklahoma City | H21: Gainesville | J21: Scotty Lynch | K21: 2.5 | L21: =Gainesville!I34 -> 64 | M21: =Gainesville!J34 -> 34.0001 | N21: 0.4687 | O21: =Gainesville!L34 -> 212 | P21: =Gainesville!M34 -> 237 | Q21: 0.8945 | R21: =Gainesville!O34 -> 991 | S21: =Gainesville!P34 -> 26 | T21: 0.0262 | U21: =Gainesville!R34 -> 537 | V21: =Gainesville!S34 -> 16 | W21: 0.0298 | X21: =Gainesville!U34 -> 454 | Y21: =Gainesville!V34 -> 10 | Z21: 0.022 | AA21: =Gainesville!X34 -> 704 | AB21: =Gainesville!Y34 -> 618 | AC21: =IFERROR(SUM(AB21/AA21),"") -> 0.8778 | AD21: =Gainesville!AA34 -> 4364 | AE21: =Gainesville!AB34 -> 3905 | AF21: 0.8948 | AJ21: =Gainesville!AF34 -> 577 | AK21: =Gainesville!AG34 -> 16 | AL21: 0.9723 | AM21: =Gainesville!AI34 -> 407 | AN21: =Gainesville!AJ34 -> 31 | AO21: 0.9238 | AP21: =Gainesville!AL34 -> 1005 | AQ21: =Gainesville!AM34 -> 884 | AR21: 0.8796 | AS21: =Gainesville!AO34 -> 53 | AT21: =Gainesville!AP34 -> 48 | AU21: =IFERROR(AT21/AS21,"") -> 0.9057
B22: Tech Rankings | H22: New Orleans | J22: Aisha Alexander | K22: 7.5 | L22: ='New Orleans'!I33 -> 26 | M22: ='New Orleans'!J33 -> 13.9998 | N22: 0.4615 | O22: ='New Orleans'!L34 -> 85 | P22: ='New Orleans'!M34 -> 93 | Q22: 0.914 | R22: ='New Orleans'!O34 -> 431 | S22: ='New Orleans'!P34 -> 19 | T22: 0.0441 | U22: ='New Orleans'!R34 -> 134 | V22: ='New Orleans'!S34 -> 6 | W22: 0.0448 | X22: ='New Orleans'!U34 -> 297 | Y22: ='New Orleans'!V34 -> 13 | Z22: 0.0438 | AA22: ='New Orleans'!X34 -> 314 | AB22: ='New Orleans'!Y34 -> 306 | AC22: 0.9745 | AD22: ='New Orleans'!AA34 -> 2427 | AE22: ='New Orleans'!AB34 -> 2238 | AF22: 0.9221 | AJ22: ='New Orleans'!AF34 -> 179 | AK22: ='New Orleans'!AG34 -> 12 | AL22: 0.933 | AM22: ='New Orleans'!AI34 -> 122 | AN22: ='New Orleans'!AJ34 -> 11 | AO22: 0.9098 | AP22: ='New Orleans'!AL34 -> 494 | AQ22: ='New Orleans'!AM34 -> 428 | AR22: 0.8664 | AS22: ='New Orleans'!AO34 -> 7 | AT22: ='New Orleans'!AP34 -> 6 | AU22: 0.8571
B23: SMS Rankings | H23: Baton Rouge | J23: Paul Cook | K23: 2.5 | L23: ='Baton Rouge'!I33 -> 20 | M23: ='Baton Rouge'!J33 -> 7.0001 | N23: 0.65 | O23: ='Baton Rouge'!L34 -> 99 | P23: ='Baton Rouge'!M34 -> 115 | Q23: 0.8609 | R23: ='Baton Rouge'!O34 -> 607 | S23: ='Baton Rouge'!P34 -> 31 | T23: 0.0511 | U23: ='Baton Rouge'!R34 -> 210 | V23: ='Baton Rouge'!S34 -> 7 | W23: 0.0333 | X23: ='Baton Rouge'!U34 -> 397 | Y23: ='Baton Rouge'!V34 -> 24 | Z23: 0.0605 | AA23: ='Baton Rouge'!X34 -> 340 | AB23: ='Baton Rouge'!Y34 -> 328 | AC23: 0.9647 | AD23: ='Baton Rouge'!AA34 -> 2602 | AE23: ='Baton Rouge'!AB34 -> 2361 | AF23: 0.9074 | AJ23: ='Baton Rouge'!AF34 -> 303 | AK23: ='Baton Rouge'!AG34 -> 12 | AL23: 0.9604 | AM23: ='Baton Rouge'!AI34 -> 198 | AN23: ='Baton Rouge'!AJ34 -> 16 | AO23: 0.9192 | AP23: ='Baton Rouge'!AL34 -> 675 | AQ23: ='Baton Rouge'!AM34 -> 604 | AR23: 0.8948 | AS23: ='Baton Rouge'!AO34 -> 22 | AT23: ='Baton Rouge'!AP34 -> 11 | AU23: 0.5
B24: SQT Rankings | H24: Hampton Roads | J24: Jervar Gayle | K24: 2.5 | L24: ='Hampton Roads'!I24 -> 45 | M24: ='Hampton Roads'!J24 -> 22.0005 | N24: =IFERROR(1-(M24/L24),"") -> 0.5111 | O24: ='Hampton Roads'!L25 -> 103 | P24: ='Hampton Roads'!M25 -> 126 | Q24: 0.8175 | R24: ='Hampton Roads'!O25 -> 631 | S24: ='Hampton Roads'!P25 -> 32 | T24: =IFERROR(SUM(S24/R24),"") -> 0.0507 | U24: ='Hampton Roads'!R25 -> 333 | V24: ='Hampton Roads'!S25 -> 13 | W24: 0.039 | X24: ='Hampton Roads'!U25 -> 298 | Y24: ='Hampton Roads'!V25 -> 19 | Z24: 0.0638 | AA24: ='Hampton Roads'!X25 -> 266 | AB24: ='Hampton Roads'!Y25 -> 242 | AC24: 0.9098 | AD24: ='Hampton Roads'!AA25 -> 1897 | AE24: ='Hampton Roads'!AB25 -> 1577 | AF24: 0.8313 | AJ24: ='Hampton Roads'!AF25 -> 363 | AK24: ='Hampton Roads'!AG25 -> 14 | AL24: =IFERROR(1-AK24/AJ24,"") -> 0.9614 | AM24: ='Hampton Roads'!AI25 -> 220 | AN24: ='Hampton Roads'!AJ25 -> 15 | AO24: =IFERROR(1-AN24/AM24,"") -> 0.9318 | AP24: ='Hampton Roads'!AL25 -> 582 | AQ24: ='Hampton Roads'!AM25 -> 538 | AR24: =IFERROR(AQ24/AP24,"") -> 0.9244 | AS24: ='Hampton Roads'!AO25 -> 1 | AT24: ='Hampton Roads'!AP25 -> 1 | AU24: 1
B25: Repeat Rankings | J25: Frank Dole | K25: 6.25 | L25: ='Hampton Roads'!I46 -> 14 | M25: ='Hampton Roads'!J46 -> 2 | N25: 0.8571 | O25: ='Hampton Roads'!L47 -> 56 | P25: ='Hampton Roads'!M47 -> 69 | Q25: 0.8116 | R25: ='Hampton Roads'!O47 -> 354 | S25: ='Hampton Roads'!P47 -> 15 | T25: 0.0424 | U25: ='Hampton Roads'!R47 -> 160 | V25: ='Hampton Roads'!S47 -> 5 | W25: 0.0313 | X25: ='Hampton Roads'!U47 -> 194 | Y25: ='Hampton Roads'!V47 -> 10 | Z25: 0.0515 | AA25: ='Hampton Roads'!X47 -> 190 | AB25: ='Hampton Roads'!Y47 -> 175 | AC25: 0.9211 | AD25: ='Hampton Roads'!AA47 -> 1347 | AE25: ='Hampton Roads'!AB47 -> 766 | AF25: 0.5687 | AJ25: ='Hampton Roads'!AF41 -> 59 | AK25: ='Hampton Roads'!AG41 -> 5 | AL25: 0.9153 | AM25: ='Hampton Roads'!AI47 -> 119 | AN25: ='Hampton Roads'!AJ47 -> 5 | AO25: 0.958 | AP25: ='Hampton Roads'!AL47 -> 333 | AQ25: ='Hampton Roads'!AM47 -> 313 | AR25: 0.9399 | AS25: ='Hampton Roads'!AO47 -> 1 | AT25: ='Hampton Roads'!AP47 -> 0 | AU25: 0
H26: Roanoke | J26: Donnie Evans | K26: 5 | L26: =Roanoke!I33 -> 38 | M26: =Roanoke!J33 -> 9.9997 | N26: 0.7369 | O26: =Roanoke!L34 -> 74 | P26: =Roanoke!M34 -> 83 | Q26: 0.8916 | R26: =Roanoke!O34 -> 464 | S26: =Roanoke!P34 -> 16 | T26: 0.0345 | U26: =Roanoke!R34 -> 201 | V26: =Roanoke!S34 -> 7 | W26: 0.0348 | X26: =Roanoke!U34 -> 263 | Y26: =Roanoke!V34 -> 9 | Z26: 0.0342 | AA26: =Roanoke!X34 -> 177 | AB26: =Roanoke!Y34 -> 153 | AC26: 0.8644 | AD26: =Roanoke!AA34 -> 1220 | AE26: =Roanoke!AB34 -> 1142 | AF26: 0.9361 | AJ26: =Roanoke!AF34 -> 274 | AK26: =Roanoke!AG34 -> 9 | AL26: 0.9672 | AM26: =Roanoke!AI34 -> 194 | AN26: =Roanoke!AJ34 -> 2 | AO26: 0.9897 | AP26: =Roanoke!AL34 -> 503 | AQ26: =Roanoke!AM34 -> 459 | AR26: 0.9125 | AS26: =Roanoke!AO34 -> 5 | AT26: =Roanoke!AP34 -> 2 | AU26: 0.4
B27: Raw Data | H27: Gulf Coast | J27: Tim Judy | K27: 7.5 | L27: ='Gulf Coast'!I33 -> 83 | M27: ='Gulf Coast'!J33 -> 37 | N27: 0.5542 | O27: ='Gulf Coast'!L34 -> 256 | P27: ='Gulf Coast'!M34 -> 282 | Q27: 0.9078 | R27: ='Gulf Coast'!O34 -> 1217 | S27: ='Gulf Coast'!P34 -> 57 | T27: 0.0468 | U27: ='Gulf Coast'!R34 -> 502 | V27: ='Gulf Coast'!S34 -> 19 | W27: 0.0378 | X27: ='Gulf Coast'!U34 -> 715 | Y27: ='Gulf Coast'!V34 -> 38 | Z27: 0.0531 | AA27: ='Gulf Coast'!X34 -> 762 | AB27: ='Gulf Coast'!Y34 -> 689 | AC27: 0.9042 | AD27: ='Gulf Coast'!AA34 -> 5465 | AE27: ='Gulf Coast'!AB34 -> 4709 | AF27: 0.8617 | AJ27: ='Gulf Coast'!AF34 -> 640 | AK27: ='Gulf Coast'!AG34 -> 21 | AL27: 0.9672 | AM27: ='Gulf Coast'!AI34 -> 453 | AN27: ='Gulf Coast'!AJ34 -> 40 | AO27: 0.9117 | AP27: ='Gulf Coast'!AL34 -> 1332 | AQ27: ='Gulf Coast'!AM34 -> 1180 | AR27: 0.8859 | AS27: ='Gulf Coast'!AO34 -> 36 | AT27: ='Gulf Coast'!AP34 -> 15 | AU27: 0.4167
H28: Oklahoma City | J28: Saddam Ferzauli | K28: 5 | L28: ='Oklahoma City'!I52 -> 51 | M28: ='Oklahoma City'!J52 -> 30.9997 | N28: 0.3922 | O28: ='Oklahoma City'!L53 -> 178 | P28: ='Oklahoma City'!M53 -> 192 | Q28: 0.9271 | R28: ='Oklahoma City'!O53 -> 816 | S28: ='Oklahoma City'!P53 -> 44 | T28: 0.0539 | U28: ='Oklahoma City'!R53 -> 346 | V28: ='Oklahoma City'!S53 -> 13 | W28: 0.0376 | X28: ='Oklahoma City'!U53 -> 470 | Y28: ='Oklahoma City'!V53 -> 31 | Z28: 0.066 | AA28: ='Oklahoma City'!X53 -> 534 | AB28: ='Oklahoma City'!Y53 -> 501 | AC28: 0.9382 | AD28: ='Oklahoma City'!AA53 -> 3847 | AE28: ='Oklahoma City'!AB53 -> 3596 | AF28: 0.9348 | AJ28: ='Oklahoma City'!AF53 -> 456 | AK28: ='Oklahoma City'!AG53 -> 23 | AL28: 0.9496 | AM28: ='Oklahoma City'!AI53 -> 337 | AN28: ='Oklahoma City'!AJ53 -> 43 | AO28: 0.8724 | AP28: ='Oklahoma City'!AL53 -> 961 | AQ28: ='Oklahoma City'!AM53 -> 802 | AR28: 0.8345 | AS28: ='Oklahoma City'!AO53 -> 11 | AT28: ='Oklahoma City'!AP53 -> 10 | AU28: 0.9091
J29: Daniel Hererra | L29: ='Oklahoma City'!I17 -> 0 | M29: ='Oklahoma City'!J17 -> 0 | O29: ='Oklahoma City'!L18 -> 0 | P29: ='Oklahoma City'!M18 -> 0 | Q29: =O29/P29 ->  | R29: ='Oklahoma City'!O18 -> 0 | S29: ='Oklahoma City'!P18 -> 0 | U29: ='Oklahoma City'!R18 -> 0 | V29: ='Oklahoma City'!S18 -> 0 | X29: ='Oklahoma City'!U18 -> 0 | Y29: ='Oklahoma City'!V18 -> 0 | AA29: ='Oklahoma City'!X18 -> 0 | AB29: ='Oklahoma City'!Y18 -> 0 | AD29: ='Oklahoma City'!AA18 -> 0 | AE29: ='Oklahoma City'!AB18 -> 0 | AJ29: ='Oklahoma City'!AF18 -> 0 | AK29: ='Oklahoma City'!AG18 -> 0 | AM29: ='Oklahoma City'!AI18 -> 0 | AN29: ='Oklahoma City'!AJ18 -> 0 | AP29: ='Oklahoma City'!AL18 -> 0 | AQ29: ='Oklahoma City'!AM18 -> 0 | AS29: ='Oklahoma City'!AO18 -> 0 | AT29: ='Oklahoma City'!AP18 -> 0
Q35: SMS tNPS | T35: Repeats | AC35: SQT Compliance
J37: Aisha Combined | O37: =SUM(O8:O9) -> 206 | P37: =SUM(P8:P9) -> 233 | Q37: =O37/P37 -> 0.8841 | R37: =SUM(R8:R9) -> 1038 | S37: =SUM(S8:S9) -> 50 | T37: =S37/R37 -> 0.0482 | AA37: =SUM(AA8:AA9) -> 722 | AB37: =SUM(AB8:AB9) -> 701 | AC37: =IFERROR(SUM(AB37/AA37),"") -> 0.9709

Sheet Gainesville
F3: Scotty Lynch
F5: Tech Name | G5: Tech ID | H5: Score | I5: # NPS WO's | J5: # Failures | K5: NPS | L5: SMS Promoter Count | M5: SMS Count | N5: SMS tNPS | O5: Total Repeatable WO | P5: Total Repeats | Q5: Repeats | R5: Total Repeatable WO | S5: Repeat IN | T5: IN Repeat % | U5: Total Repeatable WO | V5: Repeat TC | W5: Repeat TC % | X5: Jobs | Y5: Test Run | Z5: SQT Compliance | AA5: Parameters Tested | AB5: Parameters Passing | AC5: SQT Pass | AD5: Test Passed | AE5: Ingress Test Pass | AF5: FCR WO | AG5: FCR Failures | AH5: FCR | AI5: Jobs | AJ5: Jobs Late | AK5: OTA | AL5: Jobs | AM5: Completed Jobs | AN5: Completion % | AO5: Total Jobs | AP5: Total Valid | AQ5: Drop Validation
F7: Scotty Lynch | G7: 6958 | H7: =IF(Z7="","",IFERROR(IF(K7>=68.26%,1.25,0)+IF(Q7<=5.04%,2.5,0)+IF(Z7>=90%,2.5,0)+IF(AK7>=96%,1.25,0)+IF(N7>=90%,2.5,0),"")) -> 7.5 | I7: =IFERROR(VLOOKUP($G7,'Technician Summary'!$G$7:$BB$372,2,FALSE),"") -> 0 | J7: =IFERROR(VLOOKUP($G7,'Technician Summary'!$G$7:$BN$372,60,FALSE),"") ->  | K7: =IFERROR(1-(J7/I7),"") ->  | L7: =IF(G7="","",COUNTIFS('SMS tNPS'!DE:DE,G7,'SMS tNPS'!HB:HB,"Yes")) -> 0 | M7: =IFERROR(IF(G7="","",COUNTIFS('SMS tNPS'!DE:DE,G7,'SMS tNPS'!HB:HB,"Yes"))+COUNTIFS('SMS tNPS'!DE:DE,G7,'SMS tNPS'!HB:HB,"No"),"") -> 0 | N7: =IFERROR(SUM(L7/M7),"") ->  | O7: =IFERROR(VLOOKUP($G7,'Technician Summary'!$G$7:$BK$372,14,FALSE),"") -> 11 | P7: =IFERROR(VLOOKUP($G7,'Technician Summary'!$G$7:$BK$372,15,FALSE),"") -> 0 | Q7: =IFERROR(SUM(P7/O7),"") -> 0 | R7: =IFERROR(VLOOKUP($G7,'Technician Summary'!$G$7:$BK$372,17,FALSE),"") -> 11 | S7: =IFERROR(VLOOKUP($G7,'Technician Summary'!$G$7:$BK$372,18,FALSE),"") -> 0 | T7: =IFERROR(SUM(S7/R7),"") -> 0 | U7: =IFERROR(VLOOKUP($G7,'Technician Summary'!$G$7:$BK$372,20,FALSE),"") -> 0 | V7: =IFERROR(VLOOKUP($G7,'Technician Summary'!$G$7:$BK$372,21,FALSE),"") -> 0 | W7: =IFERROR(SUM(V7/U7),"") ->  | X7: =IF($G7="","",SUMIF('SQT Data'!$K:$K,$G7,'SQT Data'!$R:$R)) -> 6 | Y7: =IF($G7="","",SUMIF('SQT Data'!$K:$K,$G7,'SQT Data'!$S:$S)) -> 3 | Z7: =IFERROR(SUM(Y7/X7),"") -> 0.5 | AA7: =IF($G7="","",SUMIF('SQT Data'!$K:$K,$G7,'SQT Data'!$U:$U)) -> 24 | AB7: =IF($G7="","",SUMIF('SQT Data'!$K:$K,$G7,'SQT Data'!$V:$V)) -> 0 | AC7: =IFERROR(SUM(AB7/AA7),"") -> 0 | AD7: =SUMIF('SQT Data'!#REF!,G7,'SQT Data'!#REF!) ->  | AE7: =IFERROR(SUM(AD7/#REF!),"") ->  | AF7: =IFERROR(VLOOKUP($G7,'Technician Summary'!$G$7:$BK$372,7,FALSE),"") -> 11 | AG7: =IFERROR(VLOOKUP($G7,'Technician Summary'!$G$7:$BK$372,8,FALSE),"") -> 0 | AH7: =IFERROR(1-AG7/AF7,"") -> 1 | AI7: =IFERROR(VLOOKUP($G7,'Technician Summary'!$G$7:$BK$372,34,FALSE),"") -> 0 | AJ7: =IFERROR(VLOOKUP($G7,'Technician Summary'!$G$7:$BK$372,35,FALSE),"") -> 0 | AK7: =IFERROR(1-AJ7/AI7,"") ->  | AL7: =IFERROR(VLOOKUP($G7,'Technician Summary'!$G$7:$BK$372,37,FALSE),"") -> 12 | AM7: =IFERROR(VLOOKUP($G7,'Technician Summary'!$G$7:$BK$372,38,FALSE),"") -> 11 | AN7: =IFERROR(AM7/AL7,"") -> 0.9167 | AO7: =COUNTIFS('Drop Validation'!$P:$P,$G7,'Drop Validation'!$F:$F,"In Scope") -> 0 | AP7: =COUNTIFS('Drop Validation'!$P:$P,$G7,'Drop Validation'!$AA:$AA,"Compliant",'Drop Validation'!$F:$F,"In Scope") -> 0 | AQ7: =IFERROR(AP7/AO7,"") -> 
F8: Sean Pestel | G8: 11576 | H8: =IF(Z8="","",IFERROR(IF(K8>=68.26%,1.25,0)+IF(Q8<=5.04%,2.5,0)+IF(Z8>=90%,2.5,0)+IF(AK8>=96%,1.25,0)+IF(N8>=90%,2.5,0),"")) -> 5 | I8: =IFERROR(VLOOKUP($G8,'Technician Summary'!$G$7:$BB$372,2,FALSE),"") ->  | J8: =IFERROR(VLOOKUP($G8,'Technician Summary'!$G$7:$BN$372,60,FALSE),"") ->  | K8: =IFERROR(1-(J8/I8),"") ->  | L8: =IF(G8="","",COUNTIFS('SMS tNPS'!DE:DE,G8,'SMS tNPS'!HB:HB,"Yes")) -> 0 | M8: =IFERROR(IF(G8="","",COUNTIFS('SMS tNPS'!DE:DE,G8,'SMS tNPS'!HB:HB,"Yes"))+COUNTIFS('SMS tNPS'!DE:DE,G8,'SMS tNPS'!HB:HB,"No"),"") -> 0 | N8: =IFERROR(SUM(L8/M8),"") ->  | O8: =IFERROR(VLOOKUP($G8,'Technician Summary'!$G$7:$BK$372,14,FALSE),"") ->  | P8: =IFERROR(VLOOKUP($G8,'Technician Summary'!$G$7:$BK$372,15,FALSE),"") ->  | Q8: =IFERROR(SUM(P8/O8),"") ->  | R8: =IFERROR(VLOOKUP($G8,'Technician Summary'!$G$7:$BK$372,17,FALSE),"") ->  | S8: =IFERROR(VLOOKUP($G8,'Technician Summary'!$G$7:$BK$372,18,FALSE),"") ->  | T8: =IFERROR(SUM(S8/R8),"") ->  | U8: =IFERROR(VLOOKUP($G8,'Technician Summary'!$G$7:$BK$372,20,FALSE),"") ->  | V8: =IFERROR(VLOOKUP($G8,'Technician Summary'!$G$7:$BK$372,21,FALSE),"") ->  | W8: =IFERROR(SUM(V8/U8),"") ->  | X8: =IF($G8="","",SUMIF('SQT Data'!$K:$K,$G8,'SQT Data'!$R:$R)) -> 78 | Y8: =IF($G8="","",SUMIF('SQT Data'!$K:$K,$G8,'SQT Data'!$S:$S)) -> 67 | Z8: =IFERROR(SUM(Y8/X8),"") -> 0.859 | AA8: =IF($G8="","",SUMIF('SQT Data'!$K:$K,$G8,'SQT Data'!$U:$U)) -> 533 | AB8: =IF($G8="","",SUMIF('SQT Data'!$K:$K,$G8,'SQT Data'!$V:$V)) -> 499 | AC8: =IFERROR(SUM(AB8/AA8),"") -> 0.9362 | AD8: =SUMIF('SQT Data'!#REF!,G8,'SQT Data'!#REF!) ->  | AE8: =IFERROR(SUM(AD8/#REF!),"") ->  | AF8: =IFERROR(VLOOKUP($G8,'Technician Summary'!$G$7:$BK$372,7,FALSE),"") ->  | AG8: =IFERROR(VLOOKUP($G8,'Technician Summary'!$G$7:$BK$372,8,FALSE),"") ->  | AH8: =IFERROR(1-AG8/AF8,"") ->  | AI8: =IFERROR(VLOOKUP($G8,'Technician Summary'!$G$7:$BK$372,34,FALSE),"") ->  | AJ8: =IFERROR(VLOOKUP($G8,'Technician Summary'!$G$7:$BK$372,35,FALSE),"") ->  | AK8: =IFERROR(1-AJ8/AI8,"") ->  | AL8: =IFERROR(VLOOKUP($G8,'Technician Summary'!$G$7:$BK$372,37,FALSE),"") ->  | AM8: =IFERROR(VLOOKUP($G8,'Technician Summary'!$G$7:$BK$372,38,FALSE),"") ->  | AN8: =IFERROR(AM8/AL8,"") ->  | AO8: =COUNTIFS('Drop Validation'!$P:$P,$G8,'Drop Validation'!$F:$F,"In Scope") -> 0 | AP8: =COUNTIFS('Drop Validation'!$P:$P,$G8,'Drop Validation'!$AA:$AA,"Compliant",'Drop Validation'!$F:$F,"In Scope") -> 0 | AQ8: =IFERROR(AP8/AO8,"") -> 
F9: Omar Graterol | G9: 28359 | H9: 6.25 | I9: =IFERROR(VLOOKUP($G9,'Technician Summary'!$G$7:$BB$372,2,FALSE),"") -> 1 | J9: =IFERROR(VLOOKUP($G9,'Technician Summary'!$G$7:$BN$372,60,FALSE),"") -> 0 | K9: 1 | L9: =IF(G9="","",COUNTIFS('SMS tNPS'!DE:DE,G9,'SMS tNPS'!HB:HB,"Yes")) -> 4 | M9: =IFERROR(IF(G9="","",COUNTIFS('SMS tNPS'!DE:DE,G9,'SMS tNPS'!HB:HB,"Yes"))+COUNTIFS('SMS tNPS'!DE:DE,G9,'SMS tNPS'!HB:HB,"No"),"") -> 5 | N9: 0.8 | O9: =IFERROR(VLOOKUP($G9,'Technician Summary'!$G$7:$BK$372,14,FALSE),"") -> 71 | P9: =IFERROR(VLOOKUP($G9,'Technician Summary'!$G$7:$BK$372,15,FALSE),"") -> 3 | Q9: 0.0423 | R9: =IFERROR(VLOOKUP($G9,'Technician Summary'!$G$7:$BK$372,17,FALSE),"") -> 35 | S9: =IFERROR(VLOOKUP($G9,'Technician Summary'!$G$7:$BK$372,18,FALSE),"") -> 2 | T9: 0.0571 | U9: =IFERROR(VLOOKUP($G9,'Technician Summary'!$G$7:$BK$372,20,FALSE),"") -> 36 | V9: =IFERROR(VLOOKUP($G9,'Technician Summary'!$G$7:$BK$372,21,FALSE),"") -> 1 | W9: 0.0278 | X9: =IF($G9="","",SUMIF('SQT Data'!$K:$K,$G9,'SQT Data'!$R:$R)) -> 41 | Y9: =IF($G9="","",SUMIF('SQT Data'!$K:$K,$G9,'SQT Data'!$S:$S)) -> 37 | Z9: 0.9024 | AA9: =IF($G9="","",SUMIF('SQT Data'!$K:$K,$G9,'SQT Data'!$U:$U)) -> 296 | AB9: =IF($G9="","",SUMIF('SQT Data'!$K:$K,$G9,'SQT Data'!$V:$V)) -> 280 | AC9: 0.9459 | AD9: =SUMIF('SQT Data'!#REF!,G9,'SQT Data'!#REF!) ->  | AE9: =IFERROR(SUM(AD9/#REF!),"") ->  | AF9: =IFERROR(VLOOKUP($G9,'Technician Summary'!$G$7:$BK$372,7,FALSE),"") -> 55 | AG9: =IFERROR(VLOOKUP($G9,'Technician Summary'!$G$7:$BK$372,8,FALSE),"") -> 3 | AH9: 0.9455 | AI9: =IFERROR(VLOOKUP($G9,'Technician Summary'!$G$7:$BK$372,34,FALSE),"") -> 31 | AJ9: =IFERROR(VLOOKUP($G9,'Technician Summary'!$G$7:$BK$372,35,FALSE),"") -> 2 | AK9: 0.9355 | AL9: =IFERROR(VLOOKUP($G9,'Technician Summary'!$G$7:$BK$372,37,FALSE),"") -> 75 | AM9: =IFERROR(VLOOKUP($G9,'Technician Summary'!$G$7:$BK$372,38,FALSE),"") -> 65 | AN9: 0.8667 | AO9: =COUNTIFS('Drop Validation'!$P:$P,$G9,'Drop Validation'!$F:$F,"In Scope") -> 3 | AP9: =COUNTIFS('Drop Validation'!$P:$P,$G9,'Drop Validation'!$AA:$AA,"Compliant",'Drop Validation'!$F:$F,"In Scope") -> 3 | AQ9: 1
F10: Dimitri Pina | G10: 29269 | H10: 10 | I10: =IFERROR(VLOOKUP($G10,'Technician Summary'!$G$7:$BB$372,2,FALSE),"") -> 6 | J10: =IFERROR(VLOOKUP($G10,'Technician Summary'!$G$7:$BN$372,60,FALSE),"") -> 0 | K10: 1 | L10: =IF(G10="","",COUNTIFS('SMS tNPS'!DE:DE,G10,'SMS tNPS'!HB:HB,"Yes")) -> 23 | M10: =IFERROR(IF(G10="","",COUNTIFS('SMS tNPS'!DE:DE,G10,'SMS tNPS'!HB:HB,"Yes"))+COUNTIFS('SMS tNPS'!DE:DE,G10,'SMS tNPS'!HB:HB,"No"),"") -> 25 | N10: 0.92 | O10: =IFERROR(VLOOKUP($G10,'Technician Summary'!$G$7:$BK$372,14,FALSE),"") -> 87 | P10: =IFERROR(VLOOKUP($G10,'Technician Summary'!$G$7:$BK$372,15,FALSE),"") -> 3 | Q10: 0.0345 | R10: =IFERROR(VLOOKUP($G10,'Technician Summary'!$G$7:$BK$372,17,FALSE),"") -> 54 | S10: =IFERROR(VLOOKUP($G10,'Technician Summary'!$G$7:$BK$372,18,FALSE),"") -> 3 | T10: 0.0556 | U10: =IFERROR(VLOOKUP($G10,'Technician Summary'!$G$7:$BK$372,20,FALSE),"") -> 33 | V10: =IFERROR(VLOOKUP($G10,'Technician Summary'!$G$7:$BK$372,21,FALSE),"") -> 0 | W10: 0 | X10: =IF($G10="","",SUMIF('SQT Data'!$K:$K,$G10,'SQT Data'!$R:$R)) -> 38 | Y10: =IF($G10="","",SUMIF('SQT Data'!$K:$K,$G10,'SQT Data'!$S:$S)) -> 37 | Z10: 0.9737 | AA10: =IF($G10="","",SUMIF('SQT Data'!$K:$K,$G10,'SQT Data'!$U:$U)) -> 296 | AB10: =IF($G10="","",SUMIF('SQT Data'!$K:$K,$G10,'SQT Data'!$V:$V)) -> 266 | AC10: 0.8986 | AD10: =SUMIF('SQT Data'!#REF!,G10,'SQT Data'!#REF!) ->  | AE10: =IFERROR(SUM(AD10/#REF!),"") ->  | AF10: =IFERROR(VLOOKUP($G10,'Technician Summary'!$G$7:$BK$372,7,FALSE),"") -> 54 | AG10: =IFERROR(VLOOKUP($G10,'Technician Summary'!$G$7:$BK$372,8,FALSE),"") -> 2 | AH10: 0.963 | AI10: =IFERROR(VLOOKUP($G10,'Technician Summary'!$G$7:$BK$372,34,FALSE),"") -> 42 | AJ10: =IFERROR(VLOOKUP($G10,'Technician Summary'!$G$7:$BK$372,35,FALSE),"") -> 1 | AK10: 0.9762 | AL10: =IFERROR(VLOOKUP($G10,'Technician Summary'!$G$7:$BK$372,37,FALSE),"") -> 83 | AM10: =IFERROR(VLOOKUP($G10,'Technician Summary'!$G$7:$BK$372,38,FALSE),"") -> 76 | AN10: 0.9157 | AO10: =COUNTIFS('Drop Validation'!$P:$P,$G10,'Drop Validation'!$F:$F,"In Scope") -> 0 | AP10: =COUNTIFS('Drop Validation'!$P:$P,$G10,'Drop Validation'!$AA:$AA,"Compliant",'Drop Validation'!$F:$F,"In Scope") -> 0
B11: Home | F11: Lawrence Proctor | G11: 33259 | H11: 7.5 | I11: =IFERROR(VLOOKUP($G11,'Technician Summary'!$G$7:$BB$372,2,FALSE),"") -> 1 | J11: =IFERROR(VLOOKUP($G11,'Technician Summary'!$G$7:$BN$372,60,FALSE),"") -> 2 | K11: -1 | L11: =IF(G11="","",COUNTIFS('SMS tNPS'!DE:DE,G11,'SMS tNPS'!HB:HB,"Yes")) -> 10 | M11: =IFERROR(IF(G11="","",COUNTIFS('SMS tNPS'!DE:DE,G11,'SMS tNPS'!HB:HB,"Yes"))+COUNTIFS('SMS tNPS'!DE:DE,G11,'SMS tNPS'!HB:HB,"No"),"") -> 11 | N11: 0.9091 | O11: =IFERROR(VLOOKUP($G11,'Technician Summary'!$G$7:$BK$372,14,FALSE),"") -> 64 | P11: =IFERROR(VLOOKUP($G11,'Technician Summary'!$G$7:$BK$372,15,FALSE),"") -> 2 | Q11: 0.0313 | R11: =IFERROR(VLOOKUP($G11,'Technician Summary'!$G$7:$BK$372,17,FALSE),"") -> 28 | S11: =IFERROR(VLOOKUP($G11,'Technician Summary'!$G$7:$BK$372,18,FALSE),"") -> 1 | T11: 0.0357 | U11: =IFERROR(VLOOKUP($G11,'Technician Summary'!$G$7:$BK$372,20,FALSE),"") -> 36 | V11: =IFERROR(VLOOKUP($G11,'Technician Summary'!$G$7:$BK$372,21,FALSE),"") -> 1 | W11: 0.0278 | X11: =IF($G11="","",SUMIF('SQT Data'!$K:$K,$G11,'SQT Data'!$R:$R)) -> 28 | Y11: =IF($G11="","",SUMIF('SQT Data'!$K:$K,$G11,'SQT Data'!$S:$S)) -> 26 | Z11: 0.9286 | AA11: =IF($G11="","",SUMIF('SQT Data'!$K:$K,$G11,'SQT Data'!$U:$U)) -> 208 | AB11: =IF($G11="","",SUMIF('SQT Data'!$K:$K,$G11,'SQT Data'!$V:$V)) -> 196 | AC11: 0.9423 | AD11: =SUMIF('SQT Data'!#REF!,G11,'SQT Data'!#REF!) ->  | AE11: =IFERROR(SUM(AD11/#REF!),"") ->  | AF11: =IFERROR(VLOOKUP($G11,'Technician Summary'!$G$7:$BK$372,7,FALSE),"") -> 35 | AG11: =IFERROR(VLOOKUP($G11,'Technician Summary'!$G$7:$BK$372,8,FALSE),"") -> 1 | AH11: 0.9714 | AI11: =IFERROR(VLOOKUP($G11,'Technician Summary'!$G$7:$BK$372,34,FALSE),"") -> 25 | AJ11: =IFERROR(VLOOKUP($G11,'Technician Summary'!$G$7:$BK$372,35,FALSE),"") -> 4 | AK11: 0.84 | AL11: =IFERROR(VLOOKUP($G11,'Technician Summary'!$G$7:$BK$372,37,FALSE),"") -> 80 | AM11: =IFERROR(VLOOKUP($G11,'Technician Summary'!$G$7:$BK$372,38,FALSE),"") -> 62 | AN11: 0.775 | AO11: =COUNTIFS('Drop Validation'!$P:$P,$G11,'Drop Validation'!$F:$F,"In Scope") -> 3 | AP11: =COUNTIFS('Drop Validation'!$P:$P,$G11,'Drop Validation'!$AA:$AA,"Compliant",'Drop Validation'!$F:$F,"In Scope") -> 3 | AQ11: 1
F12: Lee Segal | G12: 52535 | H12: 5 | I12: =IFERROR(VLOOKUP($G12,'Technician Summary'!$G$7:$BB$372,2,FALSE),"") -> 1 | J12: =IFERROR(VLOOKUP($G12,'Technician Summary'!$G$7:$BN$372,60,FALSE),"") -> 0 | K12: 1 | L12: =IF(G12="","",COUNTIFS('SMS tNPS'!DE:DE,G12,'SMS tNPS'!HB:HB,"Yes")) -> 8 | M12: =IFERROR(IF(G12="","",COUNTIFS('SMS tNPS'!DE:DE,G12,'SMS tNPS'!HB:HB,"Yes"))+COUNTIFS('SMS tNPS'!DE:DE,G12,'SMS tNPS'!HB:HB,"No"),"") -> 9 | N12: 0.8889 | O12: =IFERROR(VLOOKUP($G12,'Technician Summary'!$G$7:$BK$372,14,FALSE),"") -> 25 | P12: =IFERROR(VLOOKUP($G12,'Technician Summary'!$G$7:$BK$372,15,FALSE),"") -> 0 | Q12: 0 | R12: =IFERROR(VLOOKUP($G12,'Technician Summary'!$G$7:$BK$372,17,FALSE),"") -> 11 | S12: =IFERROR(VLOOKUP($G12,'Technician Summary'!$G$7:$BK$372,18,FALSE),"") -> 0 | T12: 0 | U12: =IFERROR(VLOOKUP($G12,'Technician Summary'!$G$7:$BK$372,20,FALSE),"") -> 14 | V12: =IFERROR(VLOOKUP($G12,'Technician Summary'!$G$7:$BK$372,21,FALSE),"") -> 0 | W12: 0 | X12: =IF($G12="","",SUMIF('SQT Data'!$K:$K,$G12,'SQT Data'!$R:$R)) -> 74 | Y12: =IF($G12="","",SUMIF('SQT Data'!$K:$K,$G12,'SQT Data'!$S:$S)) -> 56 | Z12: 0.7568 | AA12: =IF($G12="","",SUMIF('SQT Data'!$K:$K,$G12,'SQT Data'!$U:$U)) -> 448 | AB12: =IF($G12="","",SUMIF('SQT Data'!$K:$K,$G12,'SQT Data'!$V:$V)) -> 399 | AC12: 0.8906 | AD12: =SUMIF('SQT Data'!#REF!,G12,'SQT Data'!#REF!) ->  | AE12: =IFERROR(SUM(AD12/#REF!),"") ->  | AF12: =IFERROR(VLOOKUP($G12,'Technician Summary'!$G$7:$BK$372,7,FALSE),"") -> 15 | AG12: =IFERROR(VLOOKUP($G12,'Technician Summary'!$G$7:$BK$372,8,FALSE),"") -> 0 | AH12: 1 | AI12: =IFERROR(VLOOKUP($G12,'Technician Summary'!$G$7:$BK$372,34,FALSE),"") -> 11 | AJ12: =IFERROR(VLOOKUP($G12,'Technician Summary'!$G$7:$BK$372,35,FALSE),"") -> 0 | AK12: 1 | AL12: =IFERROR(VLOOKUP($G12,'Technician Summary'!$G$7:$BK$372,37,FALSE),"") -> 29 | AM12: =IFERROR(VLOOKUP($G12,'Technician Summary'!$G$7:$BK$372,38,FALSE),"") -> 25 | AN12: 0.8621 | AO12: =COUNTIFS('Drop Validation'!$P:$P,$G12,'Drop Validation'!$F:$F,"In Scope") -> 0 | AP12: =COUNTIFS('Drop Validation'!$P:$P,$G12,'Drop Validation'!$AA:$AA,"Compliant",'Drop Validation'!$F:$F,"In Scope") -> 0
B13: Performance Metrics | F13: David Corbitt | G13: 54054 | H13: 5 | I13: =IFERROR(VLOOKUP($G13,'Technician Summary'!$G$7:$BB$372,2,FALSE),"") ->  | J13: =IFERROR(VLOOKUP($G13,'Technician Summary'!$G$7:$BN$372,60,FALSE),"") ->  | L13: =IF(G13="","",COUNTIFS('SMS tNPS'!DE:DE,G13,'SMS tNPS'!HB:HB,"Yes")) -> 0 | M13: =IFERROR(IF(G13="","",COUNTIFS('SMS tNPS'!DE:DE,G13,'SMS tNPS'!HB:HB,"Yes"))+COUNTIFS('SMS tNPS'!DE:DE,G13,'SMS tNPS'!HB:HB,"No"),"") -> 0 | O13: =IFERROR(VLOOKUP($G13,'Technician Summary'!$G$7:$BK$372,14,FALSE),"") ->  | P13: =IFERROR(VLOOKUP($G13,'Technician Summary'!$G$7:$BK$372,15,FALSE),"") ->  | R13: =IFERROR(VLOOKUP($G13,'Technician Summary'!$G$7:$BK$372,17,FALSE),"") ->  | S13: =IFERROR(VLOOKUP($G13,'Technician Summary'!$G$7:$BK$372,18,FALSE),"") ->  | U13: =IFERROR(VLOOKUP($G13,'Technician Summary'!$G$7:$BK$372,20,FALSE),"") ->  | V13: =IFERROR(VLOOKUP($G13,'Technician Summary'!$G$7:$BK$372,21,FALSE),"") ->  | X13: =IF($G13="","",SUMIF('SQT Data'!$K:$K,$G13,'SQT Data'!$R:$R)) -> 27 | Y13: =IF($G13="","",SUMIF('SQT Data'!$K:$K,$G13,'SQT Data'!$S:$S)) -> 24 | Z13: 0.8889 | AA13: =IF($G13="","",SUMIF('SQT Data'!$K:$K,$G13,'SQT Data'!$U:$U)) -> 190 | AB13: =IF($G13="","",SUMIF('SQT Data'!$K:$K,$G13,'SQT Data'!$V:$V)) -> 176 | AC13: 0.9263 | AD13: =SUMIF('SQT Data'!#REF!,G13,'SQT Data'!#REF!) ->  | AE13: =IFERROR(SUM(AD13/#REF!),"") ->  | AF13: =IFERROR(VLOOKUP($G13,'Technician Summary'!$G$7:$BK$372,7,FALSE),"") ->  | AG13: =IFERROR(VLOOKUP($G13,'Technician Summary'!$G$7:$BK$372,8,FALSE),"") ->  | AI13: =IFERROR(VLOOKUP($G13,'Technician Summary'!$G$7:$BK$372,34,FALSE),"") ->  | AJ13: =IFERROR(VLOOKUP($G13,'Technician Summary'!$G$7:$BK$372,35,FALSE),"") ->  | AL13: =IFERROR(VLOOKUP($G13,'Technician Summary'!$G$7:$BK$372,37,FALSE),"") ->  | AM13: =IFERROR(VLOOKUP($G13,'Technician Summary'!$G$7:$BK$372,38,FALSE),"") ->  | AO13: =COUNTIFS('Drop Validation'!$P:$P,$G13,'Drop Validation'!$F:$F,"In Scope") -> 0 | AP13: =COUNTIFS('Drop Validation'!$P:$P,$G13,'Drop Validation'!$AA:$AA,"Compliant",'Drop Validation'!$F:$F,"In Scope") -> 0
B14: Gainesville | F14: Eric Moorehead | G14: 62706 | H14: 2.5 | I14: =IFERROR(VLOOKUP($G14,'Technician Summary'!$G$7:$BB$372,2,FALSE),"") -> 3 | J14: =IFERROR(VLOOKUP($G14,'Technician Summary'!$G$7:$BN$372,60,FALSE),"") -> 3 | K14: 0 | L14: =IF(G14="","",COUNTIFS('SMS tNPS'!DE:DE,G14,'SMS tNPS'!HB:HB,"Yes")) -> 17 | M14: =IFERROR(IF(G14="","",COUNTIFS('SMS tNPS'!DE:DE,G14,'SMS tNPS'!HB:HB,"Yes"))+COUNTIFS('SMS tNPS'!DE:DE,G14,'SMS tNPS'!HB:HB,"No"),"") -> 19 | N14: 0.8947 | O14: =IFERROR(VLOOKUP($G14,'Technician Summary'!$G$7:$BK$372,14,FALSE),"") -> 69 | P14: =IFERROR(VLOOKUP($G14,'Technician Summary'!$G$7:$BK$372,15,FALSE),"") -> 2 | Q14: 0.029 | R14: =IFERROR(VLOOKUP($G14,'Technician Summary'!$G$7:$BK$372,17,FALSE),"") -> 36 | S14: =IFERROR(VLOOKUP($G14,'Technician Summary'!$G$7:$BK$372,18,FALSE),"") -> 1 | T14: 0.0278 | U14: =IFERROR(VLOOKUP($G14,'Technician Summary'!$G$7:$BK$372,20,FALSE),"") -> 33 | V14: =IFERROR(VLOOKUP($G14,'Technician Summary'!$G$7:$BK$372,21,FALSE),"") -> 1 | W14: 0.0303 | X14: =IF($G14="","",SUMIF('SQT Data'!$K:$K,$G14,'SQT Data'!$R:$R)) -> 26 | Y14: =IF($G14="","",SUMIF('SQT Data'!$K:$K,$G14,'SQT Data'!$S:$S)) -> 21 | Z14: 0.8077 | AA14: =IF($G14="","",SUMIF('SQT Data'!$K:$K,$G14,'SQT Data'!$U:$U)) -> 152 | AB14: =IF($G14="","",SUMIF('SQT Data'!$K:$K,$G14,'SQT Data'!$V:$V)) -> 135 | AC14: 0.8882 | AD14: =SUMIF('SQT Data'!#REF!,G14,'SQT Data'!#REF!) ->  | AE14: =IFERROR(SUM(AD14/#REF!),"") ->  | AF14: =IFERROR(VLOOKUP($G14,'Technician Summary'!$G$7:$BK$372,7,FALSE),"") -> 43 | AG14: =IFERROR(VLOOKUP($G14,'Technician Summary'!$G$7:$BK$372,8,FALSE),"") -> 1 | AH14: 0.9767 | AI14: =IFERROR(VLOOKUP($G14,'Technician Summary'!$G$7:$BK$372,34,FALSE),"") -> 34 | AJ14: =IFERROR(VLOOKUP($G14,'Technician Summary'!$G$7:$BK$372,35,FALSE),"") -> 5 | AK14: 0.8529 | AL14: =IFERROR(VLOOKUP($G14,'Technician Summary'!$G$7:$BK$372,37,FALSE),"") -> 77 | AM14: =IFERROR(VLOOKUP($G14,'Technician Summary'!$G$7:$BK$372,38,FALSE),"") -> 67 | AN14: 0.8701 | AO14: =COUNTIFS('Drop Validation'!$P:$P,$G14,'Drop Validation'!$F:$F,"In Scope") -> 0 | AP14: =COUNTIFS('Drop Validation'!$P:$P,$G14,'Drop Validation'!$AA:$AA,"Compliant",'Drop Validation'!$F:$F,"In Scope") -> 0
B15: Macon | F15: Alvin Mitchell | G15: 63801 | I15: =IFERROR(VLOOKUP($G15,'Technician Summary'!$G$7:$BB$372,2,FALSE),"") ->  | J15: =IFERROR(VLOOKUP($G15,'Technician Summary'!$G$7:$BN$372,60,FALSE),"") ->  | L15: =IF(G15="","",COUNTIFS('SMS tNPS'!DE:DE,G15,'SMS tNPS'!HB:HB,"Yes")) -> 0 | M15: =IFERROR(IF(G15="","",COUNTIFS('SMS tNPS'!DE:DE,G15,'SMS tNPS'!HB:HB,"Yes"))+COUNTIFS('SMS tNPS'!DE:DE,G15,'SMS tNPS'!HB:HB,"No"),"") -> 0 | O15: =IFERROR(VLOOKUP($G15,'Technician Summary'!$G$7:$BK$372,14,FALSE),"") ->  | P15: =IFERROR(VLOOKUP($G15,'Technician Summary'!$G$7:$BK$372,15,FALSE),"") ->  | R15: =IFERROR(VLOOKUP($G15,'Technician Summary'!$G$7:$BK$372,17,FALSE),"") ->  | S15: =IFERROR(VLOOKUP($G15,'Technician Summary'!$G$7:$BK$372,18,FALSE),"") ->  | U15: =IFERROR(VLOOKUP($G15,'Technician Summary'!$G$7:$BK$372,20,FALSE),"") ->  | V15: =IFERROR(VLOOKUP($G15,'Technician Summary'!$G$7:$BK$372,21,FALSE),"") ->  | X15: =IF($G15="","",SUMIF('SQT Data'!$K:$K,$G15,'SQT Data'!$R:$R)) -> 0 | Y15: =IF($G15="","",SUMIF('SQT Data'!$K:$K,$G15,'SQT Data'!$S:$S)) -> 0 | AA15: =IF($G15="","",SUMIF('SQT Data'!$K:$K,$G15,'SQT Data'!$U:$U)) -> 0 | AB15: =IF($G15="","",SUMIF('SQT Data'!$K:$K,$G15,'SQT Data'!$V:$V)) -> 0 | AD15: =SUMIF('SQT Data'!#REF!,G15,'SQT Data'!#REF!) ->  | AE15: =IFERROR(SUM(AD15/#REF!),"") ->  | AF15: =IFERROR(VLOOKUP($G15,'Technician Summary'!$G$7:$BK$372,7,FALSE),"") ->  | AG15: =IFERROR(VLOOKUP($G15,'Technician Summary'!$G$7:$BK$372,8,FALSE),"") ->  | AI15: =IFERROR(VLOOKUP($G15,'Technician Summary'!$G$7:$BK$372,34,FALSE),"") ->  | AJ15: =IFERROR(VLOOKUP($G15,'Technician Summary'!$G$7:$BK$372,35,FALSE),"") ->  | AL15: =IFERROR(VLOOKUP($G15,'Technician Summary'!$G$7:$BK$372,37,FALSE),"") ->  | AM15: =IFERROR(VLOOKUP($G15,'Technician Summary'!$G$7:$BK$372,38,FALSE),"") ->  | AO15: =COUNTIFS('Drop Validation'!$P:$P,$G15,'Drop Validation'!$F:$F,"In Scope") -> 0 | AP15: =COUNTIFS('Drop Validation'!$P:$P,$G15,'Drop Validation'!$AA:$AA,"Compliant",'Drop Validation'!$F:$F,"In Scope") -> 0
B16: New Orleans | F16: Toni Duckworth | G16: 73789 | H16: 5 | I16: =IFERROR(VLOOKUP($G16,'Technician Summary'!$G$7:$BB$372,2,FALSE),"") -> 7 | J16: =IFERROR(VLOOKUP($G16,'Technician Summary'!$G$7:$BN$372,60,FALSE),"") -> 3.9998 | K16: 0.4286 | L16: =IF(G16="","",COUNTIFS('SMS tNPS'!DE:DE,G16,'SMS tNPS'!HB:HB,"Yes")) -> 30 | M16: =IFERROR(IF(G16="","",COUNTIFS('SMS tNPS'!DE:DE,G16,'SMS tNPS'!HB:HB,"Yes"))+COUNTIFS('SMS tNPS'!DE:DE,G16,'SMS tNPS'!HB:HB,"No"),"") -> 34 | N16: 0.8824 | O16: =IFERROR(VLOOKUP($G16,'Technician Summary'!$G$7:$BK$372,14,FALSE),"") -> 133 | P16: =IFERROR(VLOOKUP($G16,'Technician Summary'!$G$7:$BK$372,15,FALSE),"") -> 4 | Q16: 0.0301 | R16: =IFERROR(VLOOKUP($G16,'Technician Summary'!$G$7:$BK$372,17,FALSE),"") -> 55 | S16: =IFERROR(VLOOKUP($G16,'Technician Summary'!$G$7:$BK$372,18,FALSE),"") -> 2 | T16: 0.0364 | U16: =IFERROR(VLOOKUP($G16,'Technician Summary'!$G$7:$BK$372,20,FALSE),"") -> 78 | V16: =IFERROR(VLOOKUP($G16,'Technician Summary'!$G$7:$BK$372,21,FALSE),"") -> 2 | W16: 0.0256 | X16: =IF($G16="","",SUMIF('SQT Data'!$K:$K,$G16,'SQT Data'!$R:$R)) -> 78 | Y16: =IF($G16="","",SUMIF('SQT Data'!$K:$K,$G16,'SQT Data'!$S:$S)) -> 78 | Z16: 1 | AA16: =IF($G16="","",SUMIF('SQT Data'!$K:$K,$G16,'SQT Data'!$U:$U)) -> 78 | AB16: =IF($G16="","",SUMIF('SQT Data'!$K:$K,$G16,'SQT Data'!$V:$V)) -> 78 | AC16: 1 | AD16: =SUMIF('SQT Data'!#REF!,G16,'SQT Data'!#REF!) ->  | AE16: =IFERROR(SUM(AD16/#REF!),"") ->  | AF16: =IFERROR(VLOOKUP($G16,'Technician Summary'!$G$7:$BK$372,7,FALSE),"") -> 78 | AG16: =IFERROR(VLOOKUP($G16,'Technician Summary'!$G$7:$BK$372,8,FALSE),"") -> 2 | AH16: 0.9744 | AI16: =IFERROR(VLOOKUP($G16,'Technician Summary'!$G$7:$BK$372,34,FALSE),"") -> 52 | AJ16: =IFERROR(VLOOKUP($G16,'Technician Summary'!$G$7:$BK$372,35,FALSE),"") -> 4 | AK16: 0.9231 | AL16: =IFERROR(VLOOKUP($G16,'Technician Summary'!$G$7:$BK$372,37,FALSE),"") -> 145 | AM16: =IFERROR(VLOOKUP($G16,'Technician Summary'!$G$7:$BK$372,38,FALSE),"") -> 130 | AN16: 0.8966 | AO16: =COUNTIFS('Drop Validation'!$P:$P,$G16,'Drop Validation'!$F:$F,"In Scope") -> 14 | AP16: =COUNTIFS('Drop Validation'!$P:$P,$G16,'Drop Validation'!$AA:$AA,"Compliant",'Drop Validation'!$F:$F,"In Scope") -> 13 | AQ16: 0.9286
B17: Hampton Roads | F17: Craig Laraway | G17: 74202 | H17: 8.75 | I17: =IFERROR(VLOOKUP($G17,'Technician Summary'!$G$7:$BB$372,2,FALSE),"") -> 7 | J17: =IFERROR(VLOOKUP($G17,'Technician Summary'!$G$7:$BN$372,60,FALSE),"") -> 1.0003 | K17: 0.8571 | L17: =IF(G17="","",COUNTIFS('SMS tNPS'!DE:DE,G17,'SMS tNPS'!HB:HB,"Yes")) -> 26 | M17: =IFERROR(IF(G17="","",COUNTIFS('SMS tNPS'!DE:DE,G17,'SMS tNPS'!HB:HB,"Yes"))+COUNTIFS('SMS tNPS'!DE:DE,G17,'SMS tNPS'!HB:HB,"No"),"") -> 26 | N17: 1 | O17: =IFERROR(VLOOKUP($G17,'Technician Summary'!$G$7:$BK$372,14,FALSE),"") -> 115 | P17: =IFERROR(VLOOKUP($G17,'Technician Summary'!$G$7:$BK$372,15,FALSE),"") -> 1 | Q17: 0.0087 | R17: =IFERROR(VLOOKUP($G17,'Technician Summary'!$G$7:$BK$372,17,FALSE),"") -> 70 | S17: =IFERROR(VLOOKUP($G17,'Technician Summary'!$G$7:$BK$372,18,FALSE),"") -> 0 | T17: 0 | U17: =IFERROR(VLOOKUP($G17,'Technician Summary'!$G$7:$BK$372,20,FALSE),"") -> 45 | V17: =IFERROR(VLOOKUP($G17,'Technician Summary'!$G$7:$BK$372,21,FALSE),"") -> 1 | W17: 0.0222 | X17: =IF($G17="","",SUMIF('SQT Data'!$K:$K,$G17,'SQT Data'!$R:$R)) -> 43 | Y17: =IF($G17="","",SUMIF('SQT Data'!$K:$K,$G17,'SQT Data'!$S:$S)) -> 42 | Z17: 0.9767 | AA17: =IF($G17="","",SUMIF('SQT Data'!$K:$K,$G17,'SQT Data'!$U:$U)) -> 336 | AB17: =IF($G17="","",SUMIF('SQT Data'!$K:$K,$G17,'SQT Data'!$V:$V)) -> 317 | AC17: 0.9435 | AD17: =SUMIF('SQT Data'!#REF!,G17,'SQT Data'!#REF!) ->  | AE17: =IFERROR(SUM(AD17/#REF!),"") ->  | AF17: =IFERROR(VLOOKUP($G17,'Technician Summary'!$G$7:$BK$372,7,FALSE),"") -> 53 | AG17: =IFERROR(VLOOKUP($G17,'Technician Summary'!$G$7:$BK$372,8,FALSE),"") -> 1 | AH17: 0.9811 | AI17: =IFERROR(VLOOKUP($G17,'Technician Summary'!$G$7:$BK$372,34,FALSE),"") -> 38 | AJ17: =IFERROR(VLOOKUP($G17,'Technician Summary'!$G$7:$BK$372,35,FALSE),"") -> 2 | AK17: 0.9474 | AL17: =IFERROR(VLOOKUP($G17,'Technician Summary'!$G$7:$BK$372,37,FALSE),"") -> 96 | AM17: =IFERROR(VLOOKUP($G17,'Technician Summary'!$G$7:$BK$372,38,FALSE),"") -> 86 | AN17: 0.8958 | AO17: =COUNTIFS('Drop Validation'!$P:$P,$G17,'Drop Validation'!$F:$F,"In Scope") -> 13 | AP17: =COUNTIFS('Drop Validation'!$P:$P,$G17,'Drop Validation'!$AA:$AA,"Compliant",'Drop Validation'!$F:$F,"In Scope") -> 13 | AQ17: 1
B18: Baton Rouge | F18: Opnodo Evanson | G18: 81924 | H18: 5 | I18: =IFERROR(VLOOKUP($G18,'Technician Summary'!$G$7:$BB$372,2,FALSE),"") ->  | J18: =IFERROR(VLOOKUP($G18,'Technician Summary'!$G$7:$BN$372,60,FALSE),"") ->  | L18: =IF(G18="","",COUNTIFS('SMS tNPS'!DE:DE,G18,'SMS tNPS'!HB:HB,"Yes")) -> 0 | M18: =IFERROR(IF(G18="","",COUNTIFS('SMS tNPS'!DE:DE,G18,'SMS tNPS'!HB:HB,"Yes"))+COUNTIFS('SMS tNPS'!DE:DE,G18,'SMS tNPS'!HB:HB,"No"),"") -> 0 | O18: =IFERROR(VLOOKUP($G18,'Technician Summary'!$G$7:$BK$372,14,FALSE),"") ->  | P18: =IFERROR(VLOOKUP($G18,'Technician Summary'!$G$7:$BK$372,15,FALSE),"") ->  | R18: =IFERROR(VLOOKUP($G18,'Technician Summary'!$G$7:$BK$372,17,FALSE),"") ->  | S18: =IFERROR(VLOOKUP($G18,'Technician Summary'!$G$7:$BK$372,18,FALSE),"") ->  | U18: =IFERROR(VLOOKUP($G18,'Technician Summary'!$G$7:$BK$372,20,FALSE),"") ->  | V18: =IFERROR(VLOOKUP($G18,'Technician Summary'!$G$7:$BK$372,21,FALSE),"") ->  | X18: =IF($G18="","",SUMIF('SQT Data'!$K:$K,$G18,'SQT Data'!$R:$R)) -> 40 | Y18: =IF($G18="","",SUMIF('SQT Data'!$K:$K,$G18,'SQT Data'!$S:$S)) -> 22 | Z18: 0.55 | AA18: =IF($G18="","",SUMIF('SQT Data'!$K:$K,$G18,'SQT Data'!$U:$U)) -> 176 | AB18: =IF($G18="","",SUMIF('SQT Data'!$K:$K,$G18,'SQT Data'!$V:$V)) -> 160 | AC18: 0.9091 | AD18: =SUMIF('SQT Data'!#REF!,G18,'SQT Data'!#REF!) ->  | AE18: =IFERROR(SUM(AD18/#REF!),"") ->  | AF18: =IFERROR(VLOOKUP($G18,'Technician Summary'!$G$7:$BK$372,7,FALSE),"") ->  | AG18: =IFERROR(VLOOKUP($G18,'Technician Summary'!$G$7:$BK$372,8,FALSE),"") ->  | AI18: =IFERROR(VLOOKUP($G18,'Technician Summary'!$G$7:$BK$372,34,FALSE),"") ->  | AJ18: =IFERROR(VLOOKUP($G18,'Technician Summary'!$G$7:$BK$372,35,FALSE),"") ->  | AL18: =IFERROR(VLOOKUP($G18,'Technician Summary'!$G$7:$BK$372,37,FALSE),"") ->  | AM18: =IFERROR(VLOOKUP($G18,'Technician Summary'!$G$7:$BK$372,38,FALSE),"") ->  | AO18: =COUNTIFS('Drop Validation'!$P:$P,$G18,'Drop Validation'!$F:$F,"In Scope") -> 0 | AP18: =COUNTIFS('Drop Validation'!$P:$P,$G18,'Drop Validation'!$AA:$AA,"Compliant",'Drop Validation'!$F:$F,"In Scope") -> 0
B19: Roanoke | F19: Christian Whiting | G19: 84103 | H19: 5 | I19: =IFERROR(VLOOKUP($G19,'Technician Summary'!$G$7:$BB$372,2,FALSE),"") -> 8 | J19: =IFERROR(VLOOKUP($G19,'Technician Summary'!$G$7:$BN$372,60,FALSE),"") -> 5 | K19: 0.375 | L19: =IF(G19="","",COUNTIFS('SMS tNPS'!DE:DE,G19,'SMS tNPS'!HB:HB,"Yes")) -> 14 | M19: =IFERROR(IF(G19="","",COUNTIFS('SMS tNPS'!DE:DE,G19,'SMS tNPS'!HB:HB,"Yes"))+COUNTIFS('SMS tNPS'!DE:DE,G19,'SMS tNPS'!HB:HB,"No"),"") -> 19 | N19: 0.7368 | O19: =IFERROR(VLOOKUP($G19,'Technician Summary'!$G$7:$BK$372,14,FALSE),"") -> 88 | P19: =IFERROR(VLOOKUP($G19,'Technician Summary'!$G$7:$BK$372,15,FALSE),"") -> 2 | Q19: 0.0227 | R19: =IFERROR(VLOOKUP($G19,'Technician Summary'!$G$7:$BK$372,17,FALSE),"") -> 48 | S19: =IFERROR(VLOOKUP($G19,'Technician Summary'!$G$7:$BK$372,18,FALSE),"") -> 1 | T19: 0.0208 | U19: =IFERROR(VLOOKUP($G19,'Technician Summary'!$G$7:$BK$372,20,FALSE),"") -> 40 | V19: =IFERROR(VLOOKUP($G19,'Technician Summary'!$G$7:$BK$372,21,FALSE),"") -> 1 | W19: 0.025 | X19: =IF($G19="","",SUMIF('SQT Data'!$K:$K,$G19,'SQT Data'!$R:$R)) -> 43 | Y19: =IF($G19="","",SUMIF('SQT Data'!$K:$K,$G19,'SQT Data'!$S:$S)) -> 40 | Z19: 0.9302 | AA19: =IF($G19="","",SUMIF('SQT Data'!$K:$K,$G19,'SQT Data'!$U:$U)) -> 317 | AB19: =IF($G19="","",SUMIF('SQT Data'!$K:$K,$G19,'SQT Data'!$V:$V)) -> 292 | AC19: 0.9211 | AD19: =SUMIF('SQT Data'!#REF!,G19,'SQT Data'!#REF!) ->  | AE19: =IFERROR(SUM(AD19/#REF!),"") ->  | AF19: =IFERROR(VLOOKUP($G19,'Technician Summary'!$G$7:$BK$372,7,FALSE),"") -> 37 | AG19: =IFERROR(VLOOKUP($G19,'Technician Summary'!$G$7:$BK$372,8,FALSE),"") -> 1 | AH19: 0.973 | AI19: =IFERROR(VLOOKUP($G19,'Technician Summary'!$G$7:$BK$372,34,FALSE),"") -> 29 | AJ19: =IFERROR(VLOOKUP($G19,'Technician Summary'!$G$7:$BK$372,35,FALSE),"") -> 3 | AK19: 0.8966 | AL19: =IFERROR(VLOOKUP($G19,'Technician Summary'!$G$7:$BK$372,37,FALSE),"") -> 77 | AM19: =IFERROR(VLOOKUP($G19,'Technician Summary'!$G$7:$BK$372,38,FALSE),"") -> 69 | AN19: 0.8961 | AO19: =COUNTIFS('Drop Validation'!$P:$P,$G19,'Drop Validation'!$F:$F,"In Scope") -> 6 | AP19: =COUNTIFS('Drop Validation'!$P:$P,$G19,'Drop Validation'!$AA:$AA,"Compliant",'Drop Validation'!$F:$F,"In Scope") -> 5 | AQ19: 0.8333
B20: Gulf Coast | F20: Ryhan Tucker | G20: 92855 | H20: 10 | I20: =IFERROR(VLOOKUP($G20,'Technician Summary'!$G$7:$BB$372,2,FALSE),"") -> 3 | J20: =IFERROR(VLOOKUP($G20,'Technician Summary'!$G$7:$BN$372,60,FALSE),"") -> 0 | K20: 1 | L20: =IF(G20="","",COUNTIFS('SMS tNPS'!DE:DE,G20,'SMS tNPS'!HB:HB,"Yes")) -> 12 | M20: =IFERROR(IF(G20="","",COUNTIFS('SMS tNPS'!DE:DE,G20,'SMS tNPS'!HB:HB,"Yes"))+COUNTIFS('SMS tNPS'!DE:DE,G20,'SMS tNPS'!HB:HB,"No"),"") -> 13 | N20: 0.9231 | O20: =IFERROR(VLOOKUP($G20,'Technician Summary'!$G$7:$BK$372,14,FALSE),"") -> 69 | P20: =IFERROR(VLOOKUP($G20,'Technician Summary'!$G$7:$BK$372,15,FALSE),"") -> 0 | Q20: 0 | R20: =IFERROR(VLOOKUP($G20,'Technician Summary'!$G$7:$BK$372,17,FALSE),"") -> 48 | S20: =IFERROR(VLOOKUP($G20,'Technician Summary'!$G$7:$BK$372,18,FALSE),"") -> 0 | T20: 0 | U20: =IFERROR(VLOOKUP($G20,'Technician Summary'!$G$7:$BK$372,20,FALSE),"") -> 21 | V20: =IFERROR(VLOOKUP($G20,'Technician Summary'!$G$7:$BK$372,21,FALSE),"") -> 0 | W20: 0 | X20: =IF($G20="","",SUMIF('SQT Data'!$K:$K,$G20,'SQT Data'!$R:$R)) -> 20 | Y20: =IF($G20="","",SUMIF('SQT Data'!$K:$K,$G20,'SQT Data'!$S:$S)) -> 19 | Z20: 0.95 | AA20: =IF($G20="","",SUMIF('SQT Data'!$K:$K,$G20,'SQT Data'!$U:$U)) -> 149 | AB20: =IF($G20="","",SUMIF('SQT Data'!$K:$K,$G20,'SQT Data'!$V:$V)) -> 134 | AC20: 0.8993 | AD20: =SUMIF('SQT Data'!#REF!,G20,'SQT Data'!#REF!) ->  | AE20: =IFERROR(SUM(AD20/#REF!),"") ->  | AF20: =IFERROR(VLOOKUP($G20,'Technician Summary'!$G$7:$BK$372,7,FALSE),"") -> 27 | AG20: =IFERROR(VLOOKUP($G20,'Technician Summary'!$G$7:$BK$372,8,FALSE),"") -> 0 | AH20: 1 | AI20: =IFERROR(VLOOKUP($G20,'Technician Summary'!$G$7:$BK$372,34,FALSE),"") -> 18 | AJ20: =IFERROR(VLOOKUP($G20,'Technician Summary'!$G$7:$BK$372,35,FALSE),"") -> 0 | AK20: 1 | AL20: =IFERROR(VLOOKUP($G20,'Technician Summary'!$G$7:$BK$372,37,FALSE),"") -> 47 | AM20: =IFERROR(VLOOKUP($G20,'Technician Summary'!$G$7:$BK$372,38,FALSE),"") -> 41 | AN20: 0.8723 | AO20: =COUNTIFS('Drop Validation'!$P:$P,$G20,'Drop Validation'!$F:$F,"In Scope") -> 1 | AP20: =COUNTIFS('Drop Validation'!$P:$P,$G20,'Drop Validation'!$AA:$AA,"Compliant",'Drop Validation'!$F:$F,"In Scope") -> 0 | AQ20: 0
B21: Oklahoma City | F21: Juan Rivas | G21: 14380 | H21: 0 | I21: =IFERROR(VLOOKUP($G21,'Technician Summary'!$G$7:$BB$372,2,FALSE),"") -> 8 | J21: =IFERROR(VLOOKUP($G21,'Technician Summary'!$G$7:$BN$372,60,FALSE),"") -> 7 | K21: 0.125 | L21: =IF(G21="","",COUNTIFS('SMS tNPS'!DE:DE,G21,'SMS tNPS'!HB:HB,"Yes")) -> 15 | M21: =IFERROR(IF(G21="","",COUNTIFS('SMS tNPS'!DE:DE,G21,'SMS tNPS'!HB:HB,"Yes"))+COUNTIFS('SMS tNPS'!DE:DE,G21,'SMS tNPS'!HB:HB,"No"),"") -> 20 | N21: 0.75 | O21: =IFERROR(VLOOKUP($G21,'Technician Summary'!$G$7:$BK$372,14,FALSE),"") -> 82 | P21: =IFERROR(VLOOKUP($G21,'Technician Summary'!$G$7:$BK$372,15,FALSE),"") -> 5 | Q21: 0.061 | R21: =IFERROR(VLOOKUP($G21,'Technician Summary'!$G$7:$BK$372,17,FALSE),"") -> 50 | S21: =IFERROR(VLOOKUP($G21,'Technician Summary'!$G$7:$BK$372,18,FALSE),"") -> 4 | T21: 0.08 | U21: =IFERROR(VLOOKUP($G21,'Technician Summary'!$G$7:$BK$372,20,FALSE),"") -> 32 | V21: =IFERROR(VLOOKUP($G21,'Technician Summary'!$G$7:$BK$372,21,FALSE),"") -> 1 | W21: 0.0313 | X21: =IF($G21="","",SUMIF('SQT Data'!$K:$K,$G21,'SQT Data'!$R:$R)) -> 43 | Y21: =IF($G21="","",SUMIF('SQT Data'!$K:$K,$G21,'SQT Data'!$S:$S)) -> 30 | Z21: 0.6977 | AA21: =IF($G21="","",SUMIF('SQT Data'!$K:$K,$G21,'SQT Data'!$U:$U)) -> 240 | AB21: =IF($G21="","",SUMIF('SQT Data'!$K:$K,$G21,'SQT Data'!$V:$V)) -> 205 | AC21: 0.8542 | AD21: =SUMIF('SQT Data'!#REF!,G21,'SQT Data'!#REF!) ->  | AE21: =IFERROR(SUM(AD21/#REF!),"") ->  | AF21: =IFERROR(VLOOKUP($G21,'Technician Summary'!$G$7:$BK$372,7,FALSE),"") -> 55 | AG21: =IFERROR(VLOOKUP($G21,'Technician Summary'!$G$7:$BK$372,8,FALSE),"") -> 4 | AH21: 0.9273 | AI21: =IFERROR(VLOOKUP($G21,'Technician Summary'!$G$7:$BK$372,34,FALSE),"") -> 50 | AJ21: =IFERROR(VLOOKUP($G21,'Technician Summary'!$G$7:$BK$372,35,FALSE),"") -> 5 | AK21: 0.9 | AL21: =IFERROR(VLOOKUP($G21,'Technician Summary'!$G$7:$BK$372,37,FALSE),"") -> 85 | AM21: =IFERROR(VLOOKUP($G21,'Technician Summary'!$G$7:$BK$372,38,FALSE),"") -> 81 | AN21: 0.9529 | AO21: =COUNTIFS('Drop Validation'!$P:$P,$G21,'Drop Validation'!$F:$F,"In Scope") -> 3 | AP21: =COUNTIFS('Drop Validation'!$P:$P,$G21,'Drop Validation'!$AA:$AA,"Compliant",'Drop Validation'!$F:$F,"In Scope") -> 2 | AQ21: 0.6667
B22: Tech Rankings | F22: Nathan Downs | G22: 17176 | H22: 7.5 | I22: =IFERROR(VLOOKUP($G22,'Technician Summary'!$G$7:$BB$372,2,FALSE),"") -> 15 | J22: =IFERROR(VLOOKUP($G22,'Technician Summary'!$G$7:$BN$372,60,FALSE),"") -> 9 | K22: 0.4 | L22: =IF(G22="","",COUNTIFS('SMS tNPS'!DE:DE,G22,'SMS tNPS'!HB:HB,"Yes")) -> 30 | M22: =IFERROR(IF(G22="","",COUNTIFS('SMS tNPS'!DE:DE,G22,'SMS tNPS'!HB:HB,"Yes"))+COUNTIFS('SMS tNPS'!DE:DE,G22,'SMS tNPS'!HB:HB,"No"),"") -> 33 | N22: 0.9091 | O22: =IFERROR(VLOOKUP($G22,'Technician Summary'!$G$7:$BK$372,14,FALSE),"") -> 103 | P22: =IFERROR(VLOOKUP($G22,'Technician Summary'!$G$7:$BK$372,15,FALSE),"") -> 3 | Q22: 0.0291 | R22: =IFERROR(VLOOKUP($G22,'Technician Summary'!$G$7:$BK$372,17,FALSE),"") -> 40 | S22: =IFERROR(VLOOKUP($G22,'Technician Summary'!$G$7:$BK$372,18,FALSE),"") -> 1 | T22: 0.025 | U22: =IFERROR(VLOOKUP($G22,'Technician Summary'!$G$7:$BK$372,20,FALSE),"") -> 63 | V22: =IFERROR(VLOOKUP($G22,'Technician Summary'!$G$7:$BK$372,21,FALSE),"") -> 2 | W22: 0.0317 | X22: =IF($G22="","",SUMIF('SQT Data'!$K:$K,$G22,'SQT Data'!$R:$R)) -> 74 | Y22: =IF($G22="","",SUMIF('SQT Data'!$K:$K,$G22,'SQT Data'!$S:$S)) -> 74 | Z22: 1 | AA22: =IF($G22="","",SUMIF('SQT Data'!$K:$K,$G22,'SQT Data'!$U:$U)) -> 585 | AB22: =IF($G22="","",SUMIF('SQT Data'!$K:$K,$G22,'SQT Data'!$V:$V)) -> 472 | AC22: 0.8068 | AD22: =SUMIF('SQT Data'!#REF!,G22,'SQT Data'!#REF!) ->  | AE22: =IFERROR(SUM(AD22/#REF!),"") ->  | AF22: =IFERROR(VLOOKUP($G22,'Technician Summary'!$G$7:$BK$372,7,FALSE),"") -> 60 | AG22: =IFERROR(VLOOKUP($G22,'Technician Summary'!$G$7:$BK$372,8,FALSE),"") -> 1 | AH22: 0.9833 | AI22: =IFERROR(VLOOKUP($G22,'Technician Summary'!$G$7:$BK$372,34,FALSE),"") -> 35 | AJ22: =IFERROR(VLOOKUP($G22,'Technician Summary'!$G$7:$BK$372,35,FALSE),"") -> 2 | AK22: 0.9429 | AL22: =IFERROR(VLOOKUP($G22,'Technician Summary'!$G$7:$BK$372,37,FALSE),"") -> 120 | AM22: =IFERROR(VLOOKUP($G22,'Technician Summary'!$G$7:$BK$372,38,FALSE),"") -> 103 | AN22: 0.8583 | AO22: =COUNTIFS('Drop Validation'!$P:$P,$G22,'Drop Validation'!$F:$F,"In Scope") -> 9 | AP22: =COUNTIFS('Drop Validation'!$P:$P,$G22,'Drop Validation'!$AA:$AA,"Compliant",'Drop Validation'!$F:$F,"In Scope") -> 8 | AQ22: 0.8889
B23: SMS Rankings | F23: Rafael Gomez Helmeyer | G23: 75471 | H23: 7.5 | I23: =IFERROR(VLOOKUP($G23,'Technician Summary'!$G$7:$BB$372,2,FALSE),"") -> 4 | J23: =IFERROR(VLOOKUP($G23,'Technician Summary'!$G$7:$BN$372,60,FALSE),"") -> 3 | K23: 0.25 | L23: =IF(G23="","",COUNTIFS('SMS tNPS'!DE:DE,G23,'SMS tNPS'!HB:HB,"Yes")) -> 23 | M23: =IFERROR(IF(G23="","",COUNTIFS('SMS tNPS'!DE:DE,G23,'SMS tNPS'!HB:HB,"Yes"))+COUNTIFS('SMS tNPS'!DE:DE,G23,'SMS tNPS'!HB:HB,"No"),"") -> 23 | N23: 1 | O23: =IFERROR(VLOOKUP($G23,'Technician Summary'!$G$7:$BK$372,14,FALSE),"") -> 74 | P23: =IFERROR(VLOOKUP($G23,'Technician Summary'!$G$7:$BK$372,15,FALSE),"") -> 1 | Q23: 0.0135 | R23: =IFERROR(VLOOKUP($G23,'Technician Summary'!$G$7:$BK$372,17,FALSE),"") -> 51 | S23: =IFERROR(VLOOKUP($G23,'Technician Summary'!$G$7:$BK$372,18,FALSE),"") -> 1 | T23: 0.0196 | U23: =IFERROR(VLOOKUP($G23,'Technician Summary'!$G$7:$BK$372,20,FALSE),"") -> 23 | V23: =IFERROR(VLOOKUP($G23,'Technician Summary'!$G$7:$BK$372,21,FALSE),"") -> 0 | W23: 0 | X23: =IF($G23="","",SUMIF('SQT Data'!$K:$K,$G23,'SQT Data'!$R:$R)) -> 45 | Y23: =IF($G23="","",SUMIF('SQT Data'!$K:$K,$G23,'SQT Data'!$S:$S)) -> 42 | Z23: 0.9333 | AA23: =IF($G23="","",SUMIF('SQT Data'!$K:$K,$G23,'SQT Data'!$U:$U)) -> 336 | AB23: =IF($G23="","",SUMIF('SQT Data'!$K:$K,$G23,'SQT Data'!$V:$V)) -> 296 | AC23: 0.881 | AD23: =SUMIF('SQT Data'!#REF!,G23,'SQT Data'!#REF!) ->  | AE23: =IFERROR(SUM(AD23/#REF!),"") ->  | AF23: =IFERROR(VLOOKUP($G23,'Technician Summary'!$G$7:$BK$372,7,FALSE),"") -> 54 | AG23: =IFERROR(VLOOKUP($G23,'Technician Summary'!$G$7:$BK$372,8,FALSE),"") -> 0 | AH23: 1 | AI23: =IFERROR(VLOOKUP($G23,'Technician Summary'!$G$7:$BK$372,34,FALSE),"") -> 42 | AJ23: =IFERROR(VLOOKUP($G23,'Technician Summary'!$G$7:$BK$372,35,FALSE),"") -> 3 | AK23: 0.9286 | AL23: =IFERROR(VLOOKUP($G23,'Technician Summary'!$G$7:$BK$372,37,FALSE),"") -> 79 | AM23: =IFERROR(VLOOKUP($G23,'Technician Summary'!$G$7:$BK$372,38,FALSE),"") -> 68 | AN23: 0.8608 | AO23: =COUNTIFS('Drop Validation'!$P:$P,$G23,'Drop Validation'!$F:$F,"In Scope") -> 1 | AP23: =COUNTIFS('Drop Validation'!$P:$P,$G23,'Drop Validation'!$AA:$AA,"Compliant",'Drop Validation'!$F:$F,"In Scope") -> 1 | AQ23: 1
B24: SQT Rankings | I24: =IFERROR(VLOOKUP($G24,'Technician Summary'!$G$7:$BB$372,2,FALSE),"") ->  | J24: =IFERROR(VLOOKUP($G24,'Technician Summary'!$G$7:$BN$372,60,FALSE),"") ->  | L24: =IF(G24="","",COUNTIFS('SMS tNPS'!DE:DE,G24,'SMS tNPS'!HB:HB,"Yes")) ->  | M24: =IFERROR(IF(G24="","",COUNTIFS('SMS tNPS'!DE:DE,G24,'SMS tNPS'!HB:HB,"Yes"))+COUNTIFS('SMS tNPS'!DE:DE,G24,'SMS tNPS'!HB:HB,"No"),"") ->  | O24: =IFERROR(VLOOKUP($G24,'Technician Summary'!$G$7:$BK$372,14,FALSE),"") ->  | P24: =IFERROR(VLOOKUP($G24,'Technician Summary'!$G$7:$BK$372,15,FALSE),"") ->  | R24: =IFERROR(VLOOKUP($G24,'Technician Summary'!$G$7:$BK$372,17,FALSE),"") ->  | S24: =IFERROR(VLOOKUP($G24,'Technician Summary'!$G$7:$BK$372,18,FALSE),"") ->  | U24: =IFERROR(VLOOKUP($G24,'Technician Summary'!$G$7:$BK$372,20,FALSE),"") ->  | V24: =IFERROR(VLOOKUP($G24,'Technician Summary'!$G$7:$BK$372,21,FALSE),"") ->  | X24: =IF($G24="","",SUMIF('SQT Data'!$K:$K,$G24,'SQT Data'!$R:$R)) ->  | Y24: =IF($G24="","",SUMIF('SQT Data'!$K:$K,$G24,'SQT Data'!$S:$S)) ->  | AA24: =IF($G24="","",SUMIF('SQT Data'!$K:$K,$G24,'SQT Data'!$U:$U)) ->  | AB24: =IF($G24="","",SUMIF('SQT Data'!$K:$K,$G24,'SQT Data'!$V:$V)) ->  | AD24: =SUMIF('SQT Data'!#REF!,G24,'SQT Data'!#REF!) ->  | AE24: =IFERROR(SUM(AD24/#REF!),"") ->  | AF24: =IFERROR(VLOOKUP($G24,'Technician Summary'!$G$7:$BK$372,7,FALSE),"") ->  | AG24: =IFERROR(VLOOKUP($G24,'Technician Summary'!$G$7:$BK$372,8,FALSE),"") ->  | AI24: =IFERROR(VLOOKUP($G24,'Technician Summary'!$G$7:$BK$372,34,FALSE),"") ->  | AJ24: =IFERROR(VLOOKUP($G24,'Technician Summary'!$G$7:$BK$372,35,FALSE),"") ->  | AL24: =IFERROR(VLOOKUP($G24,'Technician Summary'!$G$7:$BK$372,37,FALSE),"") ->  | AM24: =IFERROR(VLOOKUP($G24,'Technician Summary'!$G$7:$BK$372,38,FALSE),"") ->  | AO24: =COUNTIFS('Drop Validation'!$P:$P,$G24,'Drop Validation'!$F:$F,"In Scope") -> 0 | AP24: =COUNTIFS('Drop Validation'!$P:$P,$G24,'Drop Validation'!$AA:$AA,"Compliant",'Drop Validation'!$F:$F,"In Scope") -> 0
B25: Repeat Rankings | I25: =IFERROR(VLOOKUP($G25,'Technician Summary'!$G$7:$BB$372,2,FALSE),"") ->  | J25: =IFERROR(VLOOKUP($G25,'Technician Summary'!$G$7:$BN$372,60,FALSE),"") ->  | L25: =IF(G25="","",COUNTIFS('SMS tNPS'!DE:DE,G25,'SMS tNPS'!HB:HB,"Yes")) ->  | M25: =IFERROR(IF(G25="","",COUNTIFS('SMS tNPS'!DE:DE,G25,'SMS tNPS'!HB:HB,"Yes"))+COUNTIFS('SMS tNPS'!DE:DE,G25,'SMS tNPS'!HB:HB,"No"),"") ->  | O25: =IFERROR(VLOOKUP($G25,'Technician Summary'!$G$7:$BK$372,14,FALSE),"") ->  | P25: =IFERROR(VLOOKUP($G25,'Technician Summary'!$G$7:$BK$372,15,FALSE),"") ->  | R25: =IFERROR(VLOOKUP($G25,'Technician Summary'!$G$7:$BK$372,17,FALSE),"") ->  | S25: =IFERROR(VLOOKUP($G25,'Technician Summary'!$G$7:$BK$372,18,FALSE),"") ->  | U25: =IFERROR(VLOOKUP($G25,'Technician Summary'!$G$7:$BK$372,20,FALSE),"") ->  | V25: =IFERROR(VLOOKUP($G25,'Technician Summary'!$G$7:$BK$372,21,FALSE),"") ->  | X25: =IF($G25="","",SUMIF('SQT Data'!$K:$K,$G25,'SQT Data'!$R:$R)) ->  | Y25: =IF($G25="","",SUMIF('SQT Data'!$K:$K,$G25,'SQT Data'!$S:$S)) ->  | AA25: =IF($G25="","",SUMIF('SQT Data'!$K:$K,$G25,'SQT Data'!$U:$U)) ->  | AB25: =IF($G25="","",SUMIF('SQT Data'!$K:$K,$G25,'SQT Data'!$V:$V)) ->  | AD25: =SUMIF('SQT Data'!#REF!,G25,'SQT Data'!#REF!) ->  | AE25: =IFERROR(SUM(AD25/#REF!),"") ->  | AF25: =IFERROR(VLOOKUP($G25,'Technician Summary'!$G$7:$BK$372,7,FALSE),"") ->  | AG25: =IFERROR(VLOOKUP($G25,'Technician Summary'!$G$7:$BK$372,8,FALSE),"") ->  | AI25: =IFERROR(VLOOKUP($G25,'Technician Summary'!$G$7:$BK$372,34,FALSE),"") ->  | AJ25: =IFERROR(VLOOKUP($G25,'Technician Summary'!$G$7:$BK$372,35,FALSE),"") ->  | AL25: =IFERROR(VLOOKUP($G25,'Technician Summary'!$G$7:$BK$372,37,FALSE),"") ->  | AM25: =IFERROR(VLOOKUP($G25,'Technician Summary'!$G$7:$BK$372,38,FALSE),"") ->  | AO25: =COUNTIFS('Drop Validation'!$P:$P,$G25,'Drop Validation'!$F:$F,"In Scope") -> 0 | AP25: =COUNTIFS('Drop Validation'!$P:$P,$G25,'Drop Validation'!$AA:$AA,"Compliant",'Drop Validation'!$F:$F,"In Scope") -> 0
I26: =IFERROR(VLOOKUP($G26,'Technician Summary'!$G$7:$BB$372,2,FALSE),"") ->  | J26: =IFERROR(VLOOKUP($G26,'Technician Summary'!$G$7:$BN$372,60,FALSE),"") ->  | L26: =IF(G26="","",COUNTIFS('SMS tNPS'!DE:DE,G26,'SMS tNPS'!HB:HB,"Yes")) ->  | M26: =IFERROR(IF(G26="","",COUNTIFS('SMS tNPS'!DE:DE,G26,'SMS tNPS'!HB:HB,"Yes"))+COUNTIFS('SMS tNPS'!DE:DE,G26,'SMS tNPS'!HB:HB,"No"),"") ->  | O26: =IFERROR(VLOOKUP($G26,'Technician Summary'!$G$7:$BK$372,14,FALSE),"") ->  | P26: =IFERROR(VLOOKUP($G26,'Technician Summary'!$G$7:$BK$372,15,FALSE),"") ->  | R26: =IFERROR(VLOOKUP($G26,'Technician Summary'!$G$7:$BK$372,17,FALSE),"") ->  | S26: =IFERROR(VLOOKUP($G26,'Technician Summary'!$G$7:$BK$372,18,FALSE),"") ->  | U26: =IFERROR(VLOOKUP($G26,'Technician Summary'!$G$7:$BK$372,20,FALSE),"") ->  | V26: =IFERROR(VLOOKUP($G26,'Technician Summary'!$G$7:$BK$372,21,FALSE),"") ->  | X26: =IF($G26="","",SUMIF('SQT Data'!$K:$K,$G26,'SQT Data'!$R:$R)) ->  | Y26: =IF($G26="","",SUMIF('SQT Data'!$K:$K,$G26,'SQT Data'!$S:$S)) ->  | AA26: =IF($G26="","",SUMIF('SQT Data'!$K:$K,$G26,'SQT Data'!$U:$U)) ->  | AB26: =IF($G26="","",SUMIF('SQT Data'!$K:$K,$G26,'SQT Data'!$V:$V)) ->  | AD26: =SUMIF('SQT Data'!#REF!,G26,'SQT Data'!#REF!) ->  | AE26: =IFERROR(SUM(AD26/#REF!),"") ->  | AF26: =IFERROR(VLOOKUP($G26,'Technician Summary'!$G$7:$BK$372,7,FALSE),"") ->  | AG26: =IFERROR(VLOOKUP($G26,'Technician Summary'!$G$7:$BK$372,8,FALSE),"") ->  | AI26: =IFERROR(VLOOKUP($G26,'Technician Summary'!$G$7:$BK$372,34,FALSE),"") ->  | AJ26: =IFERROR(VLOOKUP($G26,'Technician Summary'!$G$7:$BK$372,35,FALSE),"") ->  | AL26: =IFERROR(VLOOKUP($G26,'Technician Summary'!$G$7:$BK$372,37,FALSE),"") ->  | AM26: =IFERROR(VLOOKUP($G26,'Technician Summary'!$G$7:$BK$372,38,FALSE),"") ->  | AO26: =COUNTIFS('Drop Validation'!$P:$P,$G26,'Drop Validation'!$F:$F,"In Scope") -> 0 | AP26: =COUNTIFS('Drop Validation'!$P:$P,$G26,'Drop Validation'!$AA:$AA,"Compliant",'Drop Validation'!$F:$F,"In Scope") -> 0
B27: Raw Data | I27: =IFERROR(VLOOKUP($G27,'Technician Summary'!$G$7:$BB$372,2,FALSE),"") ->  | J27: =IFERROR(VLOOKUP($G27,'Technician Summary'!$G$7:$BN$372,60,FALSE),"") ->  | L27: =IF(G27="","",COUNTIFS('SMS tNPS'!DE:DE,G27,'SMS tNPS'!HB:HB,"Yes")) ->  | M27: =IFERROR(IF(G27="","",COUNTIFS('SMS tNPS'!DE:DE,G27,'SMS tNPS'!HB:HB,"Yes"))+COUNTIFS('SMS tNPS'!DE:DE,G27,'SMS tNPS'!HB:HB,"No"),"") ->  | O27: =IFERROR(VLOOKUP($G27,'Technician Summary'!$G$7:$BK$372,14,FALSE),"") ->  | P27: =IFERROR(VLOOKUP($G27,'Technician Summary'!$G$7:$BK$372,15,FALSE),"") ->  | R27: =IFERROR(VLOOKUP($G27,'Technician Summary'!$G$7:$BK$372,17,FALSE),"") ->  | S27: =IFERROR(VLOOKUP($G27,'Technician Summary'!$G$7:$BK$372,18,FALSE),"") ->  | U27: =IFERROR(VLOOKUP($G27,'Technician Summary'!$G$7:$BK$372,20,FALSE),"") ->  | V27: =IFERROR(VLOOKUP($G27,'Technician Summary'!$G$7:$BK$372,21,FALSE),"") ->  | X27: =IF($G27="","",SUMIF('SQT Data'!$K:$K,$G27,'SQT Data'!$R:$R)) ->  | Y27: =IF($G27="","",SUMIF('SQT Data'!$K:$K,$G27,'SQT Data'!$S:$S)) ->  | AA27: =IF($G27="","",SUMIF('SQT Data'!$K:$K,$G27,'SQT Data'!$U:$U)) ->  | AB27: =IF($G27="","",SUMIF('SQT Data'!$K:$K,$G27,'SQT Data'!$V:$V)) ->  | AD27: =SUMIF('SQT Data'!#REF!,G27,'SQT Data'!#REF!) ->  | AE27: =IFERROR(SUM(AD27/#REF!),"") ->  | AF27: =IFERROR(VLOOKUP($G27,'Technician Summary'!$G$7:$BK$372,7,FALSE),"") ->  | AG27: =IFERROR(VLOOKUP($G27,'Technician Summary'!$G$7:$BK$372,8,FALSE),"") ->  | AI27: =IFERROR(VLOOKUP($G27,'Technician Summary'!$G$7:$BK$372,34,FALSE),"") ->  | AJ27: =IFERROR(VLOOKUP($G27,'Technician Summary'!$G$7:$BK$372,35,FALSE),"") ->  | AL27: =IFERROR(VLOOKUP($G27,'Technician Summary'!$G$7:$BK$372,37,FALSE),"") ->  | AM27: =IFERROR(VLOOKUP($G27,'Technician Summary'!$G$7:$BK$372,38,FALSE),"") ->  | AO27: =COUNTIFS('Drop Validation'!$P:$P,$G27,'Drop Validation'!$F:$F,"In Scope") -> 0 | AP27: =COUNTIFS('Drop Validation'!$P:$P,$G27,'Drop Validation'!$AA:$AA,"Compliant",'Drop Validation'!$F:$F,"In Scope") -> 0
I28: =IFERROR(VLOOKUP($G28,'Technician Summary'!$G$7:$BB$372,2,FALSE),"") ->  | J28: =IFERROR(VLOOKUP($G28,'Technician Summary'!$G$7:$BN$372,60,FALSE),"") ->  | L28: =IF(G28="","",COUNTIFS('SMS tNPS'!DE:DE,G28,'SMS tNPS'!HB:HB,"Yes")) ->  | M28: =IFERROR(IF(G28="","",COUNTIFS('SMS tNPS'!DE:DE,G28,'SMS tNPS'!HB:HB,"Yes"))+COUNTIFS('SMS tNPS'!DE:DE,G28,'SMS tNPS'!HB:HB,"No"),"") ->  | O28: =IFERROR(VLOOKUP($G28,'Technician Summary'!$G$7:$BK$372,14,FALSE),"") ->  | P28: =IFERROR(VLOOKUP($G28,'Technician Summary'!$G$7:$BK$372,15,FALSE),"") ->  | R28: =IFERROR(VLOOKUP($G28,'Technician Summary'!$G$7:$BK$372,17,FALSE),"") ->  | S28: =IFERROR(VLOOKUP($G28,'Technician Summary'!$G$7:$BK$372,18,FALSE),"") ->  | U28: =IFERROR(VLOOKUP($G28,'Technician Summary'!$G$7:$BK$372,20,FALSE),"") ->  | V28: =IFERROR(VLOOKUP($G28,'Technician Summary'!$G$7:$BK$372,21,FALSE),"") ->  | X28: =IF($G28="","",SUMIF('SQT Data'!$K:$K,$G28,'SQT Data'!$R:$R)) ->  | Y28: =IF($G28="","",SUMIF('SQT Data'!$K:$K,$G28,'SQT Data'!$S:$S)) ->  | AA28: =IF($G28="","",SUMIF('SQT Data'!$K:$K,$G28,'SQT Data'!$U:$U)) ->  | AB28: =IF($G28="","",SUMIF('SQT Data'!$K:$K,$G28,'SQT Data'!$V:$V)) ->  | AD28: =SUMIF('SQT Data'!#REF!,G28,'SQT Data'!#REF!) ->  | AE28: =IFERROR(SUM(AD28/#REF!),"") ->  | AF28: =IFERROR(VLOOKUP($G28,'Technician Summary'!$G$7:$BK$372,7,FALSE),"") ->  | AG28: =IFERROR(VLOOKUP($G28,'Technician Summary'!$G$7:$BK$372,8,FALSE),"") ->  | AI28: =IFERROR(VLOOKUP($G28,'Technician Summary'!$G$7:$BK$372,34,FALSE),"") ->  | AJ28: =IFERROR(VLOOKUP($G28,'Technician Summary'!$G$7:$BK$372,35,FALSE),"") ->  | AL28: =IFERROR(VLOOKUP($G28,'Technician Summary'!$G$7:$BK$372,37,FALSE),"") ->  | AM28: =IFERROR(VLOOKUP($G28,'Technician Summary'!$G$7:$BK$372,38,FALSE),"") ->  | AO28: =COUNTIFS('Drop Validation'!$P:$P,$G28,'Drop Validation'!$F:$F,"In Scope") -> 0 | AP28: =COUNTIFS('Drop Validation'!$P:$P,$G28,'Drop Validation'!$AA:$AA,"Compliant",'Drop Validation'!$F:$F,"In Scope") -> 0
I29: =IFERROR(VLOOKUP($G29,'Technician Summary'!$G$7:$BB$372,2,FALSE),"") ->  | J29: =IFERROR(VLOOKUP($G29,'Technician Summary'!$G$7:$BN$372,60,FALSE),"") ->  | L29: =IF(G29="","",COUNTIFS('SMS tNPS'!DE:DE,G29,'SMS tNPS'!HB:HB,"Yes")) ->  | M29: =IFERROR(IF(G29="","",COUNTIFS('SMS tNPS'!DE:DE,G29,'SMS tNPS'!HB:HB,"Yes"))+COUNTIFS('SMS tNPS'!DE:DE,G29,'SMS tNPS'!HB:HB,"No"),"") ->  | O29: =IFERROR(VLOOKUP($G29,'Technician Summary'!$G$7:$BK$372,14,FALSE),"") ->  | P29: =IFERROR(VLOOKUP($G29,'Technician Summary'!$G$7:$BK$372,15,FALSE),"") ->  | R29: =IFERROR(VLOOKUP($G29,'Technician Summary'!$G$7:$BK$372,17,FALSE),"") ->  | S29: =IFERROR(VLOOKUP($G29,'Technician Summary'!$G$7:$BK$372,18,FALSE),"") ->  | U29: =IFERROR(VLOOKUP($G29,'Technician Summary'!$G$7:$BK$372,20,FALSE),"") ->  | V29: =IFERROR(VLOOKUP($G29,'Technician Summary'!$G$7:$BK$372,21,FALSE),"") ->  | X29: =IF($G29="","",SUMIF('SQT Data'!$K:$K,$G29,'SQT Data'!$R:$R)) ->  | Y29: =IF($G29="","",SUMIF('SQT Data'!$K:$K,$G29,'SQT Data'!$S:$S)) ->  | AA29: =IF($G29="","",SUMIF('SQT Data'!$K:$K,$G29,'SQT Data'!$U:$U)) ->  | AB29: =IF($G29="","",SUMIF('SQT Data'!$K:$K,$G29,'SQT Data'!$V:$V)) ->  | AD29: =SUMIF('SQT Data'!#REF!,G29,'SQT Data'!#REF!) ->  | AE29: =IFERROR(SUM(AD29/#REF!),"") ->  | AF29: =IFERROR(VLOOKUP($G29,'Technician Summary'!$G$7:$BK$372,7,FALSE),"") ->  | AG29: =IFERROR(VLOOKUP($G29,'Technician Summary'!$G$7:$BK$372,8,FALSE),"") ->  | AI29: =IFERROR(VLOOKUP($G29,'Technician Summary'!$G$7:$BK$372,34,FALSE),"") ->  | AJ29: =IFERROR(VLOOKUP($G29,'Technician Summary'!$G$7:$BK$372,35,FALSE),"") ->  | AL29: =IFERROR(VLOOKUP($G29,'Technician Summary'!$G$7:$BK$372,37,FALSE),"") ->  | AM29: =IFERROR(VLOOKUP($G29,'Technician Summary'!$G$7:$BK$372,38,FALSE),"") ->  | AO29: =COUNTIFS('Drop Validation'!$P:$P,$G29,'Drop Validation'!$F:$F,"In Scope") -> 0 | AP29: =COUNTIFS('Drop Validation'!$P:$P,$G29,'Drop Validation'!$AA:$AA,"Compliant",'Drop Validation'!$F:$F,"In Scope") -> 0
I30: =IFERROR(VLOOKUP($G30,'Technician Summary'!$G$7:$BB$372,2,FALSE),"") ->  | J30: =IFERROR(VLOOKUP($G30,'Technician Summary'!$G$7:$BN$372,60,FALSE),"") ->  | L30: =IF(G30="","",COUNTIFS('SMS tNPS'!DE:DE,G30,'SMS tNPS'!HB:HB,"Yes")) ->  | M30: =IFERROR(IF(G30="","",COUNTIFS('SMS tNPS'!DE:DE,G30,'SMS tNPS'!HB:HB,"Yes"))+COUNTIFS('SMS tNPS'!DE:DE,G30,'SMS tNPS'!HB:HB,"No"),"") ->  | O30: =IFERROR(VLOOKUP($G30,'Technician Summary'!$G$7:$BK$372,14,FALSE),"") ->  | P30: =IFERROR(VLOOKUP($G30,'Technician Summary'!$G$7:$BK$372,15,FALSE),"") ->  | R30: =IFERROR(VLOOKUP($G30,'Technician Summary'!$G$7:$BK$372,17,FALSE),"") ->  | S30: =IFERROR(VLOOKUP($G30,'Technician Summary'!$G$7:$BK$372,18,FALSE),"") ->  | U30: =IFERROR(VLOOKUP($G30,'Technician Summary'!$G$7:$BK$372,20,FALSE),"") ->  | V30: =IFERROR(VLOOKUP($G30,'Technician Summary'!$G$7:$BK$372,21,FALSE),"") ->  | X30: =IF($G30="","",SUMIF('SQT Data'!$K:$K,$G30,'SQT Data'!$R:$R)) ->  | Y30: =IF($G30="","",SUMIF('SQT Data'!$K:$K,$G30,'SQT Data'!$S:$S)) ->  | AA30: =IF($G30="","",SUMIF('SQT Data'!$K:$K,$G30,'SQT Data'!$U:$U)) ->  | AB30: =IF($G30="","",SUMIF('SQT Data'!$K:$K,$G30,'SQT Data'!$V:$V)) ->  | AD30: =SUMIF('SQT Data'!#REF!,G30,'SQT Data'!#REF!) ->  | AE30: =IFERROR(SUM(AD30/#REF!),"") ->  | AF30: =IFERROR(VLOOKUP($G30,'Technician Summary'!$G$7:$BK$372,7,FALSE),"") ->  | AG30: =IFERROR(VLOOKUP($G30,'Technician Summary'!$G$7:$BK$372,8,FALSE),"") ->  | AI30: =IFERROR(VLOOKUP($G30,'Technician Summary'!$G$7:$BK$372,34,FALSE),"") ->  | AJ30: =IFERROR(VLOOKUP($G30,'Technician Summary'!$G$7:$BK$372,35,FALSE),"") ->  | AL30: =IFERROR(VLOOKUP($G30,'Technician Summary'!$G$7:$BK$372,37,FALSE),"") ->  | AM30: =IFERROR(VLOOKUP($G30,'Technician Summary'!$G$7:$BK$372,38,FALSE),"") ->  | AO30: =COUNTIFS('Drop Validation'!$P:$P,$G30,'Drop Validation'!$F:$F,"In Scope") -> 0 | AP30: =COUNTIFS('Drop Validation'!$P:$P,$G30,'Drop Validation'!$AA:$AA,"Compliant",'Drop Validation'!$F:$F,"In Scope") -> 0
I31: =IFERROR(VLOOKUP($G31,'Technician Summary'!$G$7:$BB$372,2,FALSE),"") ->  | J31: =IFERROR(VLOOKUP($G31,'Technician Summary'!$G$7:$BN$372,60,FALSE),"") ->  | L31: =IF(G31="","",COUNTIFS('SMS tNPS'!DE:DE,G31,'SMS tNPS'!HB:HB,"Yes")) ->  | M31: =IFERROR(IF(G31="","",COUNTIFS('SMS tNPS'!DE:DE,G31,'SMS tNPS'!HB:HB,"Yes"))+COUNTIFS('SMS tNPS'!DE:DE,G31,'SMS tNPS'!HB:HB,"No"),"") ->  | O31: =IFERROR(VLOOKUP($G31,'Technician Summary'!$G$7:$BK$372,14,FALSE),"") ->  | P31: =IFERROR(VLOOKUP($G31,'Technician Summary'!$G$7:$BK$372,15,FALSE),"") ->  | R31: =IFERROR(VLOOKUP($G31,'Technician Summary'!$G$7:$BK$372,17,FALSE),"") ->  | S31: =IFERROR(VLOOKUP($G31,'Technician Summary'!$G$7:$BK$372,18,FALSE),"") ->  | U31: =IFERROR(VLOOKUP($G31,'Technician Summary'!$G$7:$BK$372,20,FALSE),"") ->  | V31: =IFERROR(VLOOKUP($G31,'Technician Summary'!$G$7:$BK$372,21,FALSE),"") ->  | X31: =IF($G31="","",SUMIF('SQT Data'!$K:$K,$G31,'SQT Data'!$R:$R)) ->  | Y31: =IF($G31="","",SUMIF('SQT Data'!$K:$K,$G31,'SQT Data'!$S:$S)) ->  | AA31: =IF($G31="","",SUMIF('SQT Data'!$K:$K,$G31,'SQT Data'!$U:$U)) ->  | AB31: =IF($G31="","",SUMIF('SQT Data'!$K:$K,$G31,'SQT Data'!$V:$V)) ->  | AD31: =SUMIF('SQT Data'!#REF!,G31,'SQT Data'!#REF!) ->  | AE31: =IFERROR(SUM(AD31/#REF!),"") ->  | AF31: =IFERROR(VLOOKUP($G31,'Technician Summary'!$G$7:$BK$372,7,FALSE),"") ->  | AG31: =IFERROR(VLOOKUP($G31,'Technician Summary'!$G$7:$BK$372,8,FALSE),"") ->  | AI31: =IFERROR(VLOOKUP($G31,'Technician Summary'!$G$7:$BK$372,34,FALSE),"") ->  | AJ31: =IFERROR(VLOOKUP($G31,'Technician Summary'!$G$7:$BK$372,35,FALSE),"") ->  | AL31: =IFERROR(VLOOKUP($G31,'Technician Summary'!$G$7:$BK$372,37,FALSE),"") ->  | AM31: =IFERROR(VLOOKUP($G31,'Technician Summary'!$G$7:$BK$372,38,FALSE),"") ->  | AO31: =COUNTIFS('Drop Validation'!$P:$P,$G31,'Drop Validation'!$F:$F,"In Scope") -> 0 | AP31: =COUNTIFS('Drop Validation'!$P:$P,$G31,'Drop Validation'!$AA:$AA,"Compliant",'Drop Validation'!$F:$F,"In Scope") -> 0
I32: # NPS WO's | J32: # Failures | K32: NPS | L32: SMS Promoter Count | M32: SMS Count | N32: SMS tNPS | O32: Total Repeatable WO | P32: Total Repeats | Q32: Repeats | R32: Total Repeatable WO | S32: Repeat IN | T32: IN Repeat % | U32: Total Repeatable WO | V32: Repeat TC | W32: Repeat TC % | X32: Jobs | Y32: Test Run | Z32: SQT Compliance | AA32: Parameters Tested | AB32: Parameters Passing | AC32: SQT Pass | AD32: Test Passed | AE32: Ingress Test Pass | AF32: FCR WO | AG32: FCR Failures | AH32: FCR | AI32: Jobs | AJ32: Jobs Late | AK32: OTA | AL32: Jobs | AM32: Completed Jobs | AN32: Completion % | AO32: Total Jobs | AP32: Total Valid | AQ32: Drop Validation
I34: =SUMIF(I7:I31,">0") -> 64 | J34: =SUMIF(J7:J31,">0") -> 34.0001 | K34: =IFERROR(1-(J34/I34),"") -> 0.4687 | L34: =SUM(L7:L31) -> 212 | M34: =SUM(M7:M31) -> 237 | N34: =IFERROR(SUM(L34/M34),"") -> 0.8945 | O34: =SUM(O7:O31) -> 991 | P34: =SUM(P7:P31) -> 26 | Q34: =IFERROR(SUM(P34/O34),"") -> 0.0262 | R34: =SUM(R7:R31) -> 537 | S34: =SUM(S7:S31) -> 16 | T34: =IFERROR(SUM(S34/R34),"") -> 0.0298 | U34: =SUM(U7:U31) -> 454 | V34: =SUM(V7:V31) -> 10 | W34: =IFERROR(SUM(V34/U34),"") -> 0.022 | X34: =SUMIF(X7:X31,">0") -> 704 | Y34: =SUMIF(Y7:Y31,">0") -> 618 | Z34: =IFERROR(SUM(Y34/X34),"") -> 0.8778 | AA34: =SUM(AA7:AA31) -> 4364 | AB34: =SUM(AB7:AB31) -> 3905 | AC34: =IFERROR(SUM(AB34/AA34),"") -> 0.8948 | AD34: =SUM(AD7:AD31) ->  | AE34: =IFERROR(SUM(AD34/#REF!),"") ->  | AF34: =SUM(AF7:AF31) -> 577 | AG34: =SUM(AG7:AG31) -> 16 | AH34: =IFERROR(1-AG34/AF34,"") -> 0.9723 | AI34: =SUM(AI7:AI31) -> 407 | AJ34: =SUM(AJ7:AJ31) -> 31 | AK34: =IFERROR(1-AJ34/AI34,"") -> 0.9238 | AL34: =SUM(AL7:AL31) -> 1005 | AM34: =SUM(AM7:AM31) -> 884 | AN34: =IFERROR(AM34/AL34,"") -> 0.8796 | AO34: =SUM(AO7:AO31) -> 53 | AP34: =SUM(AP7:AP31) -> 48 | AQ34: =IFERROR(AP34/AO34,"") -> 0.9057

Sheet Macon
A1: rand
F3: Deandre McCants
F5: Tech Name | G5: Tech ID | H5: Score | I5: # NPS WO's | J5: # Failures | K5: NPS | L5: SMS Promoter Count | M5: SMS Count | N5: SMS tNPS | O5: Total Repeatable WO | P5: Total Repeats | Q5: Repeats | R5: Total Repeatable WO | S5: Repeat IN | T5: IN Repeat % | U5: Total Repeatable WO | V5: Repeat TC | W5: Repeat TC % | X5: Jobs | Y5: Test Run | Z5: SQT Compliance | AA5: Parameters Tested | AB5: Parameters Passing | AC5: SQT Pass | AD5: Test Passed | AE5: Ingress Test Pass | AF5: FCR WO | AG5: FCR Failures | AH5: FCR | AI5: Jobs | AJ5: Jobs Late | AK5: OTA | AL5: Jobs | AM5: Completed Jobs | AN5: Completion % | AO5: Total Jobs | AP5: Total Valid | AQ5: Drop Validation
F7: Robert Yerby | G7: 25399 | H7: =IF(Z7="","",IFERROR(IF(K7>=68.26%,1.25,0)+IF(Q7<=5.04%,2.5,0)+IF(Z7>=90%,2.5,0)+IF(AK7>=96%,1.25,0)+IF(N7>=90%,2.5,0),"")) ->  | I7: =IFERROR(VLOOKUP($G7,'Technician Summary'!$G$3:$BB$372,2,FALSE),"") -> 1 | J7: =IFERROR(VLOOKUP($G7,'Technician Summary'!$G$8:$BN$372,60,FALSE),"") -> 0 | K7: =IFERROR(1-(J7/I7),"") -> 1 | L7: =IF(G7="","",COUNTIFS('SMS tNPS'!DE:DE,G7,'SMS tNPS'!HB:HB,"Yes")) -> 5 | M7: =IFERROR(IF(G7="","",COUNTIFS('SMS tNPS'!DE:DE,G7,'SMS tNPS'!HB:HB,"Yes"))+COUNTIFS('SMS tNPS'!DE:DE,G7,'SMS tNPS'!HB:HB,"No"),"") -> 5 | N7: =IFERROR(SUM(L7/M7),"") -> 1 | O7: =IFERROR(VLOOKUP($G7,'Technician Summary'!$G$8:$BK$372,14,FALSE),"") -> 24 | P7: =IFERROR(VLOOKUP($G7,'Technician Summary'!$G$8:$BK$372,15,FALSE),"") -> 0 | Q7: =IFERROR(SUM(P7/O7),"") -> 0 | R7: =IFERROR(VLOOKUP($G7,'Technician Summary'!$G$7:$BK$372,17,FALSE),"") -> 19 | S7: =IFERROR(VLOOKUP($G7,'Technician Summary'!$G$7:$BK$372,18,FALSE),"") -> 0 | T7: =IFERROR(SUM(S7/R7),"") -> 0 | U7: =IFERROR(VLOOKUP($G7,'Technician Summary'!$G$7:$BK$372,20,FALSE),"") -> 5 | V7: =IFERROR(VLOOKUP($G7,'Technician Summary'!$G$7:$BK$372,21,FALSE),"") -> 0 | W7: =IFERROR(SUM(V7/U7),"") -> 0 | X7: =IF($G7="","",SUMIF('SQT Data'!$K:$K,$G7,'SQT Data'!$R:$R)) -> 0 | Y7: =IF($G7="","",SUMIF('SQT Data'!$K:$K,$G7,'SQT Data'!$S:$S)) -> 0 | Z7: =IFERROR(SUM(Y7/X7),"") ->  | AA7: =IF($G7="","",SUMIF('SQT Data'!$K:$K,$G7,'SQT Data'!$U:$U)) -> 0 | AB7: =IF($G7="","",SUMIF('SQT Data'!$K:$K,$G7,'SQT Data'!$V:$V)) -> 0 | AC7: =IFERROR(SUM(AB7/AA7),"") ->  | AE7: =IFERROR(SUM(AD7/#REF!),"") ->  | AF7: =IFERROR(VLOOKUP($G7,'Technician Summary'!$G$8:$BK$372,7,FALSE),"") -> 20 | AG7: =IFERROR(VLOOKUP($G7,'Technician Summary'!$G$8:$BK$372,8,FALSE),"") -> 0 | AH7: =IFERROR(1-AG7/AF7,"") -> 1 | AI7: =IFERROR(VLOOKUP($G7,'Technician Summary'!$G$8:$BK$372,34,FALSE),"") -> 14 | AJ7: =IFERROR(VLOOKUP($G7,'Technician Summary'!$G$8:$BK$372,35,FALSE),"") -> 1 | AK7: =IFERROR(1-AJ7/AI7,"") -> 0.9286 | AL7: =IFERROR(VLOOKUP($G7,'Technician Summary'!$G$8:$BK$372,37,FALSE),"") -> 28 | AM7: =IFERROR(VLOOKUP($G7,'Technician Summary'!$G$8:$BK$372,38,FALSE),"") -> 24 | AN7: =IFERROR(AM7/AL7,"") -> 0.8571 | AO7: =COUNTIFS('Drop Validation'!$P:$P,$G7,'Drop Validation'!$F:$F,"In Scope") -> 0 | AP7: =COUNTIFS('Drop Validation'!$P:$P,$G7,'Drop Validation'!$AA:$AA,"Compliant",'Drop Validation'!$F:$F,"In Scope") -> 0 | AQ7: =IFERROR(AP7/AO7,"") -> 
F8: Deshawn Richburg | G8: 92058 | H8: 6.25 | I8: =IFERROR(VLOOKUP($G8,'Technician Summary'!$G$3:$BB$372,2,FALSE),"") -> 10 | J8: =IFERROR(VLOOKUP($G8,'Technician Summary'!$G$8:$BN$372,60,FALSE),"") -> 2 | K8: =IFERROR(1-(J8/I8),"") -> 0.8 | L8: =IF(G8="","",COUNTIFS('SMS tNPS'!DE:DE,G8,'SMS tNPS'!HB:HB,"Yes")) -> 29 | M8: =IFERROR(IF(G8="","",COUNTIFS('SMS tNPS'!DE:DE,G8,'SMS tNPS'!HB:HB,"Yes"))+COUNTIFS('SMS tNPS'!DE:DE,G8,'SMS tNPS'!HB:HB,"No"),"") -> 31 | N8: =IFERROR(SUM(L8/M8),"") -> 0.9355 | O8: =IFERROR(VLOOKUP($G8,'Technician Summary'!$G$8:$BK$372,14,FALSE),"") -> 135 | P8: =IFERROR(VLOOKUP($G8,'Technician Summary'!$G$8:$BK$372,15,FALSE),"") -> 6 | Q8: =IFERROR(SUM(P8/O8),"") -> 0.0444 | R8: =IFERROR(VLOOKUP($G8,'Technician Summary'!$G$7:$BK$372,17,FALSE),"") -> 58 | S8: =IFERROR(VLOOKUP($G8,'Technician Summary'!$G$7:$BK$372,18,FALSE),"") -> 2 | T8: =IFERROR(SUM(S8/R8),"") -> 0.0345 | U8: =IFERROR(VLOOKUP($G8,'Technician Summary'!$G$7:$BK$372,20,FALSE),"") -> 77 | V8: =IFERROR(VLOOKUP($G8,'Technician Summary'!$G$7:$BK$372,21,FALSE),"") -> 4 | W8: =IFERROR(SUM(V8/U8),"") -> 0.0519 | X8: =IF($G8="","",SUMIF('SQT Data'!$K:$K,$G8,'SQT Data'!$R:$R)) -> 60 | Y8: =IF($G8="","",SUMIF('SQT Data'!$K:$K,$G8,'SQT Data'!$S:$S)) -> 48 | Z8: =IFERROR(SUM(Y8/X8),"") -> 0.8 | AA8: =IF($G8="","",SUMIF('SQT Data'!$K:$K,$G8,'SQT Data'!$U:$U)) -> 381 | AB8: =IF($G8="","",SUMIF('SQT Data'!$K:$K,$G8,'SQT Data'!$V:$V)) -> 305 | AC8: =IFERROR(SUM(AB8/AA8),"") -> 0.8005 | AE8: =IFERROR(SUM(AD8/#REF!),"") ->  | AF8: =IFERROR(VLOOKUP($G8,'Technician Summary'!$G$8:$BK$372,7,FALSE),"") -> 68 | AG8: =IFERROR(VLOOKUP($G8,'Technician Summary'!$G$8:$BK$372,8,FALSE),"") -> 4 | AH8: =IFERROR(1-AG8/AF8,"") -> 0.9412 | AI8: =IFERROR(VLOOKUP($G8,'Technician Summary'!$G$8:$BK$372,34,FALSE),"") -> 53 | AJ8: =IFERROR(VLOOKUP($G8,'Technician Summary'!$G$8:$BK$372,35,FALSE),"") -> 4 | AK8: =IFERROR(1-AJ8/AI8,"") -> 0.9245 | AL8: =IFERROR(VLOOKUP($G8,'Technician Summary'!$G$8:$BK$372,37,FALSE),"") -> 155 | AM8: =IFERROR(VLOOKUP($G8,'Technician Summary'!$G$8:$BK$372,38,FALSE),"") -> 134 | AN8: =IFERROR(AM8/AL8,"") -> 0.8645 | AO8: =COUNTIFS('Drop Validation'!$P:$P,$G8,'Drop Validation'!$F:$F,"In Scope") -> 0 | AP8: =COUNTIFS('Drop Validation'!$P:$P,$G8,'Drop Validation'!$AA:$AA,"Compliant",'Drop Validation'!$F:$F,"In Scope") -> 0 | AQ8: =IFERROR(AP8/AO8,"") -> 
F9: Delvin Montford | G9: 18558 | H9: 5 | I9: =IFERROR(VLOOKUP($G9,'Technician Summary'!$G$3:$BB$372,2,FALSE),"") -> 10 | J9: =IFERROR(VLOOKUP($G9,'Technician Summary'!$G$8:$BN$372,60,FALSE),"") -> 3 | K9: 0.7 | L9: =IF(G9="","",COUNTIFS('SMS tNPS'!DE:DE,G9,'SMS tNPS'!HB:HB,"Yes")) -> 26 | M9: =IFERROR(IF(G9="","",COUNTIFS('SMS tNPS'!DE:DE,G9,'SMS tNPS'!HB:HB,"Yes"))+COUNTIFS('SMS tNPS'!DE:DE,G9,'SMS tNPS'!HB:HB,"No"),"") -> 30 | N9: 0.8667 | O9: =IFERROR(VLOOKUP($G9,'Technician Summary'!$G$8:$BK$372,14,FALSE),"") -> 95 | P9: =IFERROR(VLOOKUP($G9,'Technician Summary'!$G$8:$BK$372,15,FALSE),"") -> 1 | Q9: 0.0105 | R9: =IFERROR(VLOOKUP($G9,'Technician Summary'!$G$7:$BK$372,17,FALSE),"") -> 50 | S9: =IFERROR(VLOOKUP($G9,'Technician Summary'!$G$7:$BK$372,18,FALSE),"") -> 0 | T9: 0 | U9: =IFERROR(VLOOKUP($G9,'Technician Summary'!$G$7:$BK$372,20,FALSE),"") -> 45 | V9: =IFERROR(VLOOKUP($G9,'Technician Summary'!$G$7:$BK$372,21,FALSE),"") -> 1 | W9: 0.0222 | X9: =IF($G9="","",SUMIF('SQT Data'!$K:$K,$G9,'SQT Data'!$R:$R)) -> 21 | Y9: =IF($G9="","",SUMIF('SQT Data'!$K:$K,$G9,'SQT Data'!$S:$S)) -> 17 | Z9: 0.8095 | AA9: =IF($G9="","",SUMIF('SQT Data'!$K:$K,$G9,'SQT Data'!$U:$U)) -> 136 | AB9: =IF($G9="","",SUMIF('SQT Data'!$K:$K,$G9,'SQT Data'!$V:$V)) -> 126 | AC9: 0.9265 | AE9: =IFERROR(SUM(AD9/#REF!),"") ->  | AF9: =IFERROR(VLOOKUP($G9,'Technician Summary'!$G$8:$BK$372,7,FALSE),"") -> 65 | AG9: =IFERROR(VLOOKUP($G9,'Technician Summary'!$G$8:$BK$372,8,FALSE),"") -> 0 | AH9: 1 | AI9: =IFERROR(VLOOKUP($G9,'Technician Summary'!$G$8:$BK$372,34,FALSE),"") -> 46 | AJ9: =IFERROR(VLOOKUP($G9,'Technician Summary'!$G$8:$BK$372,35,FALSE),"") -> 1 | AK9: 0.9783 | AL9: =IFERROR(VLOOKUP($G9,'Technician Summary'!$G$8:$BK$372,37,FALSE),"") -> 96 | AM9: =IFERROR(VLOOKUP($G9,'Technician Summary'!$G$8:$BK$372,38,FALSE),"") -> 93 | AN9: 0.9688 | AO9: =COUNTIFS('Drop Validation'!$P:$P,$G9,'Drop Validation'!$F:$F,"In Scope") -> 2 | AP9: =COUNTIFS('Drop Validation'!$P:$P,$G9,'Drop Validation'!$AA:$AA,"Compliant",'Drop Validation'!$F:$F,"In Scope") -> 2 | AQ9: 1
F10: Tyler Hughes | G10: 1838 | H10: 6.25 | I10: =IFERROR(VLOOKUP($G10,'Technician Summary'!$G$3:$BB$372,2,FALSE),"") -> 7 | J10: =IFERROR(VLOOKUP($G10,'Technician Summary'!$G$8:$BN$372,60,FALSE),"") -> 1.9999 | K10: 0.7143 | L10: =IF(G10="","",COUNTIFS('SMS tNPS'!DE:DE,G10,'SMS tNPS'!HB:HB,"Yes")) -> 13 | M10: =IFERROR(IF(G10="","",COUNTIFS('SMS tNPS'!DE:DE,G10,'SMS tNPS'!HB:HB,"Yes"))+COUNTIFS('SMS tNPS'!DE:DE,G10,'SMS tNPS'!HB:HB,"No"),"") -> 14 | N10: 0.9286 | O10: =IFERROR(VLOOKUP($G10,'Technician Summary'!$G$8:$BK$372,14,FALSE),"") -> 96 | P10: =IFERROR(VLOOKUP($G10,'Technician Summary'!$G$8:$BK$372,15,FALSE),"") -> 3 | Q10: 0.0313 | R10: =IFERROR(VLOOKUP($G10,'Technician Summary'!$G$7:$BK$372,17,FALSE),"") -> 41 | S10: =IFERROR(VLOOKUP($G10,'Technician Summary'!$G$7:$BK$372,18,FALSE),"") -> 1 | T10: 0.0244 | U10: =IFERROR(VLOOKUP($G10,'Technician Summary'!$G$7:$BK$372,20,FALSE),"") -> 55 | V10: =IFERROR(VLOOKUP($G10,'Technician Summary'!$G$7:$BK$372,21,FALSE),"") -> 2 | W10: 0.0364 | X10: =IF($G10="","",SUMIF('SQT Data'!$K:$K,$G10,'SQT Data'!$R:$R)) -> 15 | Y10: =IF($G10="","",SUMIF('SQT Data'!$K:$K,$G10,'SQT Data'!$S:$S)) -> 10 | Z10: 0.6667 | AA10: =IF($G10="","",SUMIF('SQT Data'!$K:$K,$G10,'SQT Data'!$U:$U)) -> 80 | AB10: =IF($G10="","",SUMIF('SQT Data'!$K:$K,$G10,'SQT Data'!$V:$V)) -> 71 | AC10: 0.8875 | AE10: =IFERROR(SUM(AD10/#REF!),"") ->  | AF10: =IFERROR(VLOOKUP($G10,'Technician Summary'!$G$8:$BK$372,7,FALSE),"") -> 47 | AG10: =IFERROR(VLOOKUP($G10,'Technician Summary'!$G$8:$BK$372,8,FALSE),"") -> 1 | AH10: 0.9787 | AI10: =IFERROR(VLOOKUP($G10,'Technician Summary'!$G$8:$BK$372,34,FALSE),"") -> 40 | AJ10: =IFERROR(VLOOKUP($G10,'Technician Summary'!$G$8:$BK$372,35,FALSE),"") -> 14 | AK10: 0.65 | AL10: =IFERROR(VLOOKUP($G10,'Technician Summary'!$G$8:$BK$372,37,FALSE),"") -> 103 | AM10: =IFERROR(VLOOKUP($G10,'Technician Summary'!$G$8:$BK$372,38,FALSE),"") -> 94 | AN10: 0.9126 | AO10: =COUNTIFS('Drop Validation'!$P:$P,$G10,'Drop Validation'!$F:$F,"In Scope") -> 0 | AP10: =COUNTIFS('Drop Validation'!$P:$P,$G10,'Drop Validation'!$AA:$AA,"Compliant",'Drop Validation'!$F:$F,"In Scope") -> 0
B11: Home | F11: Dylan DeLorme | G11: 37359 | I11: =IFERROR(VLOOKUP($G11,'Technician Summary'!$G$3:$BB$372,2,FALSE),"") ->  | J11: =IFERROR(VLOOKUP($G11,'Technician Summary'!$G$8:$BN$372,60,FALSE),"") ->  | L11: =IF(G11="","",COUNTIFS('SMS tNPS'!DE:DE,G11,'SMS tNPS'!HB:HB,"Yes")) -> 0 | M11: =IFERROR(IF(G11="","",COUNTIFS('SMS tNPS'!DE:DE,G11,'SMS tNPS'!HB:HB,"Yes"))+COUNTIFS('SMS tNPS'!DE:DE,G11,'SMS tNPS'!HB:HB,"No"),"") -> 0 | O11: =IFERROR(VLOOKUP($G11,'Technician Summary'!$G$8:$BK$372,14,FALSE),"") ->  | P11: =IFERROR(VLOOKUP($G11,'Technician Summary'!$G$8:$BK$372,15,FALSE),"") ->  | R11: =IFERROR(VLOOKUP($G11,'Technician Summary'!$G$7:$BK$372,17,FALSE),"") ->  | S11: =IFERROR(VLOOKUP($G11,'Technician Summary'!$G$7:$BK$372,18,FALSE),"") ->  | U11: =IFERROR(VLOOKUP($G11,'Technician Summary'!$G$7:$BK$372,20,FALSE),"") ->  | V11: =IFERROR(VLOOKUP($G11,'Technician Summary'!$G$7:$BK$372,21,FALSE),"") ->  | X11: =IF($G11="","",SUMIF('SQT Data'!$K:$K,$G11,'SQT Data'!$R:$R)) -> 0 | Y11: =IF($G11="","",SUMIF('SQT Data'!$K:$K,$G11,'SQT Data'!$S:$S)) -> 0 | AA11: =IF($G11="","",SUMIF('SQT Data'!$K:$K,$G11,'SQT Data'!$U:$U)) -> 0 | AB11: =IF($G11="","",SUMIF('SQT Data'!$K:$K,$G11,'SQT Data'!$V:$V)) -> 0 | AE11: =IFERROR(SUM(AD11/#REF!),"") ->  | AF11: =IFERROR(VLOOKUP($G11,'Technician Summary'!$G$8:$BK$372,7,FALSE),"") ->  | AG11: =IFERROR(VLOOKUP($G11,'Technician Summary'!$G$8:$BK$372,8,FALSE),"") ->  | AI11: =IFERROR(VLOOKUP($G11,'Technician Summary'!$G$8:$BK$372,34,FALSE),"") ->  | AJ11: =IFERROR(VLOOKUP($G11,'Technician Summary'!$G$8:$BK$372,35,FALSE),"") ->  | AL11: =IFERROR(VLOOKUP($G11,'Technician Summary'!$G$8:$BK$372,37,FALSE),"") ->  | AM11: =IFERROR(VLOOKUP($G11,'Technician Summary'!$G$8:$BK$372,38,FALSE),"") ->  | AO11: =COUNTIFS('Drop Validation'!$P:$P,$G11,'Drop Validation'!$F:$F,"In Scope") -> 0 | AP11: =COUNTIFS('Drop Validation'!$P:$P,$G11,'Drop Validation'!$AA:$AA,"Compliant",'Drop Validation'!$F:$F,"In Scope") -> 0
F12: Trey Minter | G12: 53981 | H12: 2.5 | I12: =IFERROR(VLOOKUP($G12,'Technician Summary'!$G$3:$BB$372,2,FALSE),"") -> 3 | J12: =IFERROR(VLOOKUP($G12,'Technician Summary'!$G$8:$BN$372,60,FALSE),"") -> 0.9999 | K12: 0.6667 | L12: =IF(G12="","",COUNTIFS('SMS tNPS'!DE:DE,G12,'SMS tNPS'!HB:HB,"Yes")) -> 8 | M12: =IFERROR(IF(G12="","",COUNTIFS('SMS tNPS'!DE:DE,G12,'SMS tNPS'!HB:HB,"Yes"))+COUNTIFS('SMS tNPS'!DE:DE,G12,'SMS tNPS'!HB:HB,"No"),"") -> 9 | N12: 0.8889 | O12: =IFERROR(VLOOKUP($G12,'Technician Summary'!$G$8:$BK$372,14,FALSE),"") -> 87 | P12: =IFERROR(VLOOKUP($G12,'Technician Summary'!$G$8:$BK$372,15,FALSE),"") -> 4 | Q12: 0.046 | R12: =IFERROR(VLOOKUP($G12,'Technician Summary'!$G$7:$BK$372,17,FALSE),"") -> 22 | S12: =IFERROR(VLOOKUP($G12,'Technician Summary'!$G$7:$BK$372,18,FALSE),"") -> 0 | T12: 0 | U12: =IFERROR(VLOOKUP($G12,'Technician Summary'!$G$7:$BK$372,20,FALSE),"") -> 65 | V12: =IFERROR(VLOOKUP($G12,'Technician Summary'!$G$7:$BK$372,21,FALSE),"") -> 4 | W12: 0.0615 | X12: =IF($G12="","",SUMIF('SQT Data'!$K:$K,$G12,'SQT Data'!$R:$R)) -> 54 | Y12: =IF($G12="","",SUMIF('SQT Data'!$K:$K,$G12,'SQT Data'!$S:$S)) -> 44 | Z12: 0.8148 | AA12: =IF($G12="","",SUMIF('SQT Data'!$K:$K,$G12,'SQT Data'!$U:$U)) -> 347 | AB12: =IF($G12="","",SUMIF('SQT Data'!$K:$K,$G12,'SQT Data'!$V:$V)) -> 287 | AC12: 0.8271 | AE12: =IFERROR(SUM(AD12/#REF!),"") ->  | AF12: =IFERROR(VLOOKUP($G12,'Technician Summary'!$G$8:$BK$372,7,FALSE),"") -> 42 | AG12: =IFERROR(VLOOKUP($G12,'Technician Summary'!$G$8:$BK$372,8,FALSE),"") -> 1 | AH12: 0.9762 | AI12: =IFERROR(VLOOKUP($G12,'Technician Summary'!$G$8:$BK$372,34,FALSE),"") -> 21 | AJ12: =IFERROR(VLOOKUP($G12,'Technician Summary'!$G$8:$BK$372,35,FALSE),"") -> 1 | AK12: 0.9524 | AL12: =IFERROR(VLOOKUP($G12,'Technician Summary'!$G$8:$BK$372,37,FALSE),"") -> 97 | AM12: =IFERROR(VLOOKUP($G12,'Technician Summary'!$G$8:$BK$372,38,FALSE),"") -> 85 | AN12: 0.8763 | AO12: =COUNTIFS('Drop Validation'!$P:$P,$G12,'Drop Validation'!$F:$F,"In Scope") -> 1 | AP12: =COUNTIFS('Drop Validation'!$P:$P,$G12,'Drop Validation'!$AA:$AA,"Compliant",'Drop Validation'!$F:$F,"In Scope") -> 1 | AQ12: 1
B13: Performance Metrics | F13: Courtney Mann | G13: 74521 | H13: 3.75 | I13: =IFERROR(VLOOKUP($G13,'Technician Summary'!$G$3:$BB$372,2,FALSE),"") -> 7 | J13: =IFERROR(VLOOKUP($G13,'Technician Summary'!$G$8:$BN$372,60,FALSE),"") -> 1.9999 | K13: 0.7143 | L13: =IF(G13="","",COUNTIFS('SMS tNPS'!DE:DE,G13,'SMS tNPS'!HB:HB,"Yes")) -> 23 | M13: =IFERROR(IF(G13="","",COUNTIFS('SMS tNPS'!DE:DE,G13,'SMS tNPS'!HB:HB,"Yes"))+COUNTIFS('SMS tNPS'!DE:DE,G13,'SMS tNPS'!HB:HB,"No"),"") -> 26 | N13: 0.8846 | O13: =IFERROR(VLOOKUP($G13,'Technician Summary'!$G$8:$BK$372,14,FALSE),"") -> 109 | P13: =IFERROR(VLOOKUP($G13,'Technician Summary'!$G$8:$BK$372,15,FALSE),"") -> 1 | Q13: 0.0092 | R13: =IFERROR(VLOOKUP($G13,'Technician Summary'!$G$7:$BK$372,17,FALSE),"") -> 37 | S13: =IFERROR(VLOOKUP($G13,'Technician Summary'!$G$7:$BK$372,18,FALSE),"") -> 0 | T13: 0 | U13: =IFERROR(VLOOKUP($G13,'Technician Summary'!$G$7:$BK$372,20,FALSE),"") -> 72 | V13: =IFERROR(VLOOKUP($G13,'Technician Summary'!$G$7:$BK$372,21,FALSE),"") -> 1 | W13: 0.0139 | X13: =IF($G13="","",SUMIF('SQT Data'!$K:$K,$G13,'SQT Data'!$R:$R)) -> 62 | Y13: =IF($G13="","",SUMIF('SQT Data'!$K:$K,$G13,'SQT Data'!$S:$S)) -> 46 | Z13: 0.7419 | AA13: =IF($G13="","",SUMIF('SQT Data'!$K:$K,$G13,'SQT Data'!$U:$U)) -> 368 | AB13: =IF($G13="","",SUMIF('SQT Data'!$K:$K,$G13,'SQT Data'!$V:$V)) -> 343 | AC13: 0.9321 | AE13: =IFERROR(SUM(AD13/#REF!),"") ->  | AF13: =IFERROR(VLOOKUP($G13,'Technician Summary'!$G$8:$BK$372,7,FALSE),"") -> 52 | AG13: =IFERROR(VLOOKUP($G13,'Technician Summary'!$G$8:$BK$372,8,FALSE),"") -> 0 | AH13: 1 | AI13: =IFERROR(VLOOKUP($G13,'Technician Summary'!$G$8:$BK$372,34,FALSE),"") -> 36 | AJ13: =IFERROR(VLOOKUP($G13,'Technician Summary'!$G$8:$BK$372,35,FALSE),"") -> 4 | AK13: 0.8889 | AL13: =IFERROR(VLOOKUP($G13,'Technician Summary'!$G$8:$BK$372,37,FALSE),"") -> 133 | AM13: =IFERROR(VLOOKUP($G13,'Technician Summary'!$G$8:$BK$372,38,FALSE),"") -> 109 | AN13: 0.8195 | AO13: =COUNTIFS('Drop Validation'!$P:$P,$G13,'Drop Validation'!$F:$F,"In Scope") -> 5 | AP13: =COUNTIFS('Drop Validation'!$P:$P,$G13,'Drop Validation'!$AA:$AA,"Compliant",'Drop Validation'!$F:$F,"In Scope") -> 0 | AQ13: 0
B14: Gainesville | F14: Dalton Bass | G14: 80926 | H14: 8.75 | I14: =IFERROR(VLOOKUP($G14,'Technician Summary'!$G$3:$BB$372,2,FALSE),"") -> 4 | J14: =IFERROR(VLOOKUP($G14,'Technician Summary'!$G$8:$BN$372,60,FALSE),"") -> 1 | K14: 0.75 | L14: =IF(G14="","",COUNTIFS('SMS tNPS'!DE:DE,G14,'SMS tNPS'!HB:HB,"Yes")) -> 21 | M14: =IFERROR(IF(G14="","",COUNTIFS('SMS tNPS'!DE:DE,G14,'SMS tNPS'!HB:HB,"Yes"))+COUNTIFS('SMS tNPS'!DE:DE,G14,'SMS tNPS'!HB:HB,"No"),"") -> 22 | N14: 0.9545 | O14: =IFERROR(VLOOKUP($G14,'Technician Summary'!$G$8:$BK$372,14,FALSE),"") -> 123 | P14: =IFERROR(VLOOKUP($G14,'Technician Summary'!$G$8:$BK$372,15,FALSE),"") -> 3 | Q14: 0.0244 | R14: =IFERROR(VLOOKUP($G14,'Technician Summary'!$G$7:$BK$372,17,FALSE),"") -> 43 | S14: =IFERROR(VLOOKUP($G14,'Technician Summary'!$G$7:$BK$372,18,FALSE),"") -> 2 | T14: 0.0465 | U14: =IFERROR(VLOOKUP($G14,'Technician Summary'!$G$7:$BK$372,20,FALSE),"") -> 80 | V14: =IFERROR(VLOOKUP($G14,'Technician Summary'!$G$7:$BK$372,21,FALSE),"") -> 1 | W14: 0.0125 | X14: =IF($G14="","",SUMIF('SQT Data'!$K:$K,$G14,'SQT Data'!$R:$R)) -> 61 | Y14: =IF($G14="","",SUMIF('SQT Data'!$K:$K,$G14,'SQT Data'!$S:$S)) -> 59 | Z14: 0.9672 | AA14: =IF($G14="","",SUMIF('SQT Data'!$K:$K,$G14,'SQT Data'!$U:$U)) -> 472 | AB14: =IF($G14="","",SUMIF('SQT Data'!$K:$K,$G14,'SQT Data'!$V:$V)) -> 435 | AC14: 0.9216 | AE14: =IFERROR(SUM(AD14/#REF!),"") ->  | AF14: =IFERROR(VLOOKUP($G14,'Technician Summary'!$G$8:$BK$372,7,FALSE),"") -> 69 | AG14: =IFERROR(VLOOKUP($G14,'Technician Summary'!$G$8:$BK$372,8,FALSE),"") -> 2 | AH14: 0.971 | AI14: =IFERROR(VLOOKUP($G14,'Technician Summary'!$G$8:$BK$372,34,FALSE),"") -> 41 | AJ14: =IFERROR(VLOOKUP($G14,'Technician Summary'!$G$8:$BK$372,35,FALSE),"") -> 2 | AK14: 0.9512 | AL14: =IFERROR(VLOOKUP($G14,'Technician Summary'!$G$8:$BK$372,37,FALSE),"") -> 143 | AM14: =IFERROR(VLOOKUP($G14,'Technician Summary'!$G$8:$BK$372,38,FALSE),"") -> 122 | AN14: 0.8531 | AO14: =COUNTIFS('Drop Validation'!$P:$P,$G14,'Drop Validation'!$F:$F,"In Scope") -> 0 | AP14: =COUNTIFS('Drop Validation'!$P:$P,$G14,'Drop Validation'!$AA:$AA,"Compliant",'Drop Validation'!$F:$F,"In Scope") -> 0
B15: Macon | F15: Rakeem Smith | G15: 82810 | H15: 7.5 | I15: =IFERROR(VLOOKUP($G15,'Technician Summary'!$G$3:$BB$372,2,FALSE),"") -> 4 | J15: =IFERROR(VLOOKUP($G15,'Technician Summary'!$G$8:$BN$372,60,FALSE),"") -> 2 | K15: 0.5 | L15: =IF(G15="","",COUNTIFS('SMS tNPS'!DE:DE,G15,'SMS tNPS'!HB:HB,"Yes")) -> 27 | M15: =IFERROR(IF(G15="","",COUNTIFS('SMS tNPS'!DE:DE,G15,'SMS tNPS'!HB:HB,"Yes"))+COUNTIFS('SMS tNPS'!DE:DE,G15,'SMS tNPS'!HB:HB,"No"),"") -> 28 | N15: 0.9643 | O15: =IFERROR(VLOOKUP($G15,'Technician Summary'!$G$8:$BK$372,14,FALSE),"") -> 120 | P15: =IFERROR(VLOOKUP($G15,'Technician Summary'!$G$8:$BK$372,15,FALSE),"") -> 3 | Q15: 0.025 | R15: =IFERROR(VLOOKUP($G15,'Technician Summary'!$G$7:$BK$372,17,FALSE),"") -> 41 | S15: =IFERROR(VLOOKUP($G15,'Technician Summary'!$G$7:$BK$372,18,FALSE),"") -> 1 | T15: 0.0244 | U15: =IFERROR(VLOOKUP($G15,'Technician Summary'!$G$7:$BK$372,20,FALSE),"") -> 79 | V15: =IFERROR(VLOOKUP($G15,'Technician Summary'!$G$7:$BK$372,21,FALSE),"") -> 2 | W15: 0.0253 | X15: =IF($G15="","",SUMIF('SQT Data'!$K:$K,$G15,'SQT Data'!$R:$R)) -> 89 | Y15: =IF($G15="","",SUMIF('SQT Data'!$K:$K,$G15,'SQT Data'!$S:$S)) -> 85 | Z15: 0.9551 | AA15: =IF($G15="","",SUMIF('SQT Data'!$K:$K,$G15,'SQT Data'!$U:$U)) -> 677 | AB15: =IF($G15="","",SUMIF('SQT Data'!$K:$K,$G15,'SQT Data'!$V:$V)) -> 636 | AC15: 0.9394 | AE15: =IFERROR(SUM(AD15/#REF!),"") ->  | AF15: =IFERROR(VLOOKUP($G15,'Technician Summary'!$G$8:$BK$372,7,FALSE),"") -> 64 | AG15: =IFERROR(VLOOKUP($G15,'Technician Summary'!$G$8:$BK$372,8,FALSE),"") -> 1 | AH15: 0.9844 | AI15: =IFERROR(VLOOKUP($G15,'Technician Summary'!$G$8:$BK$372,34,FALSE),"") -> 40 | AJ15: =IFERROR(VLOOKUP($G15,'Technician Summary'!$G$8:$BK$372,35,FALSE),"") -> 16 | AK15: 0.6 | AL15: =IFERROR(VLOOKUP($G15,'Technician Summary'!$G$8:$BK$372,37,FALSE),"") -> 130 | AM15: =IFERROR(VLOOKUP($G15,'Technician Summary'!$G$8:$BK$372,38,FALSE),"") -> 120 | AN15: 0.9231 | AO15: =COUNTIFS('Drop Validation'!$P:$P,$G15,'Drop Validation'!$F:$F,"In Scope") -> 0 | AP15: =COUNTIFS('Drop Validation'!$P:$P,$G15,'Drop Validation'!$AA:$AA,"Compliant",'Drop Validation'!$F:$F,"In Scope") -> 0
B16: New Orleans | F16: Charles Howard | G16: 48783 | H16: 6.25 | I16: =IFERROR(VLOOKUP($G16,'Technician Summary'!$G$3:$BB$372,2,FALSE),"") -> 4 | J16: =IFERROR(VLOOKUP($G16,'Technician Summary'!$G$8:$BN$372,60,FALSE),"") -> 2 | K16: 0.5 | L16: =IF(G16="","",COUNTIFS('SMS tNPS'!DE:DE,G16,'SMS tNPS'!HB:HB,"Yes")) -> 16 | M16: =IFERROR(IF(G16="","",COUNTIFS('SMS tNPS'!DE:DE,G16,'SMS tNPS'!HB:HB,"Yes"))+COUNTIFS('SMS tNPS'!DE:DE,G16,'SMS tNPS'!HB:HB,"No"),"") -> 17 | N16: 0.9412 | O16: =IFERROR(VLOOKUP($G16,'Technician Summary'!$G$8:$BK$372,14,FALSE),"") -> 103 | P16: =IFERROR(VLOOKUP($G16,'Technician Summary'!$G$8:$BK$372,15,FALSE),"") -> 1 | Q16: 0.0097 | R16: =IFERROR(VLOOKUP($G16,'Technician Summary'!$G$7:$BK$372,17,FALSE),"") -> 50 | S16: =IFERROR(VLOOKUP($G16,'Technician Summary'!$G$7:$BK$372,18,FALSE),"") -> 0 | T16: 0 | U16: =IFERROR(VLOOKUP($G16,'Technician Summary'!$G$7:$BK$372,20,FALSE),"") -> 53 | V16: =IFERROR(VLOOKUP($G16,'Technician Summary'!$G$7:$BK$372,21,FALSE),"") -> 1 | W16: 0.0189 | X16: =IF($G16="","",SUMIF('SQT Data'!$K:$K,$G16,'SQT Data'!$R:$R)) -> 14 | Y16: =IF($G16="","",SUMIF('SQT Data'!$K:$K,$G16,'SQT Data'!$S:$S)) -> 11 | Z16: 0.7857 | AA16: =IF($G16="","",SUMIF('SQT Data'!$K:$K,$G16,'SQT Data'!$U:$U)) -> 88 | AB16: =IF($G16="","",SUMIF('SQT Data'!$K:$K,$G16,'SQT Data'!$V:$V)) -> 83 | AC16: 0.9432 | AE16: =IFERROR(SUM(AD16/#REF!),"") ->  | AF16: =IFERROR(VLOOKUP($G16,'Technician Summary'!$G$8:$BK$372,7,FALSE),"") -> 60 | AG16: =IFERROR(VLOOKUP($G16,'Technician Summary'!$G$8:$BK$372,8,FALSE),"") -> 0 | AH16: 1 | AI16: =IFERROR(VLOOKUP($G16,'Technician Summary'!$G$8:$BK$372,34,FALSE),"") -> 44 | AJ16: =IFERROR(VLOOKUP($G16,'Technician Summary'!$G$8:$BK$372,35,FALSE),"") -> 1 | AK16: 0.9773 | AL16: =IFERROR(VLOOKUP($G16,'Technician Summary'!$G$8:$BK$372,37,FALSE),"") -> 118 | AM16: =IFERROR(VLOOKUP($G16,'Technician Summary'!$G$8:$BK$372,38,FALSE),"") -> 103 | AN16: 0.8729 | AO16: =COUNTIFS('Drop Validation'!$P:$P,$G16,'Drop Validation'!$F:$F,"In Scope") -> 8 | AP16: =COUNTIFS('Drop Validation'!$P:$P,$G16,'Drop Validation'!$AA:$AA,"Compliant",'Drop Validation'!$F:$F,"In Scope") -> 8 | AQ16: 1
B17: Hampton Roads | F17: Angela Yerby | G17: 60229 | H17: 3.75 | I17: =IFERROR(VLOOKUP($G17,'Technician Summary'!$G$3:$BB$372,2,FALSE),"") -> 1 | J17: =IFERROR(VLOOKUP($G17,'Technician Summary'!$G$8:$BN$372,60,FALSE),"") -> 0 | K17: 1 | L17: =IF(G17="","",COUNTIFS('SMS tNPS'!DE:DE,G17,'SMS tNPS'!HB:HB,"Yes")) -> 8 | M17: =IFERROR(IF(G17="","",COUNTIFS('SMS tNPS'!DE:DE,G17,'SMS tNPS'!HB:HB,"Yes"))+COUNTIFS('SMS tNPS'!DE:DE,G17,'SMS tNPS'!HB:HB,"No"),"") -> 11 | N17: 0.7273 | O17: =IFERROR(VLOOKUP($G17,'Technician Summary'!$G$8:$BK$372,14,FALSE),"") -> 48 | P17: =IFERROR(VLOOKUP($G17,'Technician Summary'!$G$8:$BK$372,15,FALSE),"") -> 0 | Q17: 0 | R17: =IFERROR(VLOOKUP($G17,'Technician Summary'!$G$7:$BK$372,17,FALSE),"") -> 35 | S17: =IFERROR(VLOOKUP($G17,'Technician Summary'!$G$7:$BK$372,18,FALSE),"") -> 0 | T17: 0 | U17: =IFERROR(VLOOKUP($G17,'Technician Summary'!$G$7:$BK$372,20,FALSE),"") -> 13 | V17: =IFERROR(VLOOKUP($G17,'Technician Summary'!$G$7:$BK$372,21,FALSE),"") -> 0 | W17: 0 | X17: =IF($G17="","",SUMIF('SQT Data'!$K:$K,$G17,'SQT Data'!$R:$R)) -> 2 | Y17: =IF($G17="","",SUMIF('SQT Data'!$K:$K,$G17,'SQT Data'!$S:$S)) -> 0 | Z17: 0 | AA17: =IF($G17="","",SUMIF('SQT Data'!$K:$K,$G17,'SQT Data'!$U:$U)) -> 0 | AB17: =IF($G17="","",SUMIF('SQT Data'!$K:$K,$G17,'SQT Data'!$V:$V)) -> 0 | AE17: =IFERROR(SUM(AD17/#REF!),"") ->  | AF17: =IFERROR(VLOOKUP($G17,'Technician Summary'!$G$8:$BK$372,7,FALSE),"") -> 38 | AG17: =IFERROR(VLOOKUP($G17,'Technician Summary'!$G$8:$BK$372,8,FALSE),"") -> 0 | AH17: 1 | AI17: =IFERROR(VLOOKUP($G17,'Technician Summary'!$G$8:$BK$372,34,FALSE),"") -> 32 | AJ17: =IFERROR(VLOOKUP($G17,'Technician Summary'!$G$8:$BK$372,35,FALSE),"") -> 3 | AK17: 0.9063 | AL17: =IFERROR(VLOOKUP($G17,'Technician Summary'!$G$8:$BK$372,37,FALSE),"") -> 53 | AM17: =IFERROR(VLOOKUP($G17,'Technician Summary'!$G$8:$BK$372,38,FALSE),"") -> 48 | AN17: 0.9057 | AO17: =COUNTIFS('Drop Validation'!$P:$P,$G17,'Drop Validation'!$F:$F,"In Scope") -> 1 | AP17: =COUNTIFS('Drop Validation'!$P:$P,$G17,'Drop Validation'!$AA:$AA,"Compliant",'Drop Validation'!$F:$F,"In Scope") -> 1 | AQ17: 1
B18: Baton Rouge | F18: Bev DeLorme | G18: 75156 | H18: 5 | I18: =IFERROR(VLOOKUP($G18,'Technician Summary'!$G$3:$BB$372,2,FALSE),"") -> 2 | J18: =IFERROR(VLOOKUP($G18,'Technician Summary'!$G$8:$BN$372,60,FALSE),"") -> 0 | K18: 1 | L18: =IF(G18="","",COUNTIFS('SMS tNPS'!DE:DE,G18,'SMS tNPS'!HB:HB,"Yes")) -> 8 | M18: =IFERROR(IF(G18="","",COUNTIFS('SMS tNPS'!DE:DE,G18,'SMS tNPS'!HB:HB,"Yes"))+COUNTIFS('SMS tNPS'!DE:DE,G18,'SMS tNPS'!HB:HB,"No"),"") -> 9 | N18: 0.8889 | O18: =IFERROR(VLOOKUP($G18,'Technician Summary'!$G$8:$BK$372,14,FALSE),"") -> 55 | P18: =IFERROR(VLOOKUP($G18,'Technician Summary'!$G$8:$BK$372,15,FALSE),"") -> 3 | Q18: 0.0545 | R18: =IFERROR(VLOOKUP($G18,'Technician Summary'!$G$7:$BK$372,17,FALSE),"") -> 43 | S18: =IFERROR(VLOOKUP($G18,'Technician Summary'!$G$7:$BK$372,18,FALSE),"") -> 2 | T18: 0.0465 | U18: =IFERROR(VLOOKUP($G18,'Technician Summary'!$G$7:$BK$372,20,FALSE),"") -> 12 | V18: =IFERROR(VLOOKUP($G18,'Technician Summary'!$G$7:$BK$372,21,FALSE),"") -> 1 | W18: 0.0833 | X18: =IF($G18="","",SUMIF('SQT Data'!$K:$K,$G18,'SQT Data'!$R:$R)) -> 12 | Y18: =IF($G18="","",SUMIF('SQT Data'!$K:$K,$G18,'SQT Data'!$S:$S)) -> 12 | Z18: 1 | AA18: =IF($G18="","",SUMIF('SQT Data'!$K:$K,$G18,'SQT Data'!$U:$U)) -> 96 | AB18: =IF($G18="","",SUMIF('SQT Data'!$K:$K,$G18,'SQT Data'!$V:$V)) -> 88 | AC18: 0.9167 | AE18: =IFERROR(SUM(AD18/#REF!),"") ->  | AF18: =IFERROR(VLOOKUP($G18,'Technician Summary'!$G$8:$BK$372,7,FALSE),"") -> 45 | AG18: =IFERROR(VLOOKUP($G18,'Technician Summary'!$G$8:$BK$372,8,FALSE),"") -> 3 | AH18: 0.9333 | AI18: =IFERROR(VLOOKUP($G18,'Technician Summary'!$G$8:$BK$372,34,FALSE),"") -> 41 | AJ18: =IFERROR(VLOOKUP($G18,'Technician Summary'!$G$8:$BK$372,35,FALSE),"") -> 1 | AK18: 0.9756 | AL18: =IFERROR(VLOOKUP($G18,'Technician Summary'!$G$8:$BK$372,37,FALSE),"") -> 64 | AM18: =IFERROR(VLOOKUP($G18,'Technician Summary'!$G$8:$BK$372,38,FALSE),"") -> 55 | AN18: 0.8594 | AO18: =COUNTIFS('Drop Validation'!$P:$P,$G18,'Drop Validation'!$F:$F,"In Scope") -> 4 | AP18: =COUNTIFS('Drop Validation'!$P:$P,$G18,'Drop Validation'!$AA:$AA,"Compliant",'Drop Validation'!$F:$F,"In Scope") -> 0 | AQ18: 0
B19: Roanoke | F19: Jamir Chambers | G19: 2558 | H19: 0 | I19: =IFERROR(VLOOKUP($G19,'Technician Summary'!$G$3:$BB$372,2,FALSE),"") -> 11 | J19: =IFERROR(VLOOKUP($G19,'Technician Summary'!$G$8:$BN$372,60,FALSE),"") -> 6.0005 | K19: 0.4545 | L19: =IF(G19="","",COUNTIFS('SMS tNPS'!DE:DE,G19,'SMS tNPS'!HB:HB,"Yes")) -> 26 | M19: =IFERROR(IF(G19="","",COUNTIFS('SMS tNPS'!DE:DE,G19,'SMS tNPS'!HB:HB,"Yes"))+COUNTIFS('SMS tNPS'!DE:DE,G19,'SMS tNPS'!HB:HB,"No"),"") -> 29 | N19: 0.8966 | O19: =IFERROR(VLOOKUP($G19,'Technician Summary'!$G$8:$BK$372,14,FALSE),"") -> 115 | P19: =IFERROR(VLOOKUP($G19,'Technician Summary'!$G$8:$BK$372,15,FALSE),"") -> 7 | Q19: 0.0609 | R19: =IFERROR(VLOOKUP($G19,'Technician Summary'!$G$7:$BK$372,17,FALSE),"") -> 34 | S19: =IFERROR(VLOOKUP($G19,'Technician Summary'!$G$7:$BK$372,18,FALSE),"") -> 1 | T19: 0.0294 | U19: =IFERROR(VLOOKUP($G19,'Technician Summary'!$G$7:$BK$372,20,FALSE),"") -> 81 | V19: =IFERROR(VLOOKUP($G19,'Technician Summary'!$G$7:$BK$372,21,FALSE),"") -> 6 | W19: 0.0741 | X19: =IF($G19="","",SUMIF('SQT Data'!$K:$K,$G19,'SQT Data'!$R:$R)) -> 89 | Y19: =IF($G19="","",SUMIF('SQT Data'!$K:$K,$G19,'SQT Data'!$S:$S)) -> 75 | Z19: 0.8427 | AA19: =IF($G19="","",SUMIF('SQT Data'!$K:$K,$G19,'SQT Data'!$U:$U)) -> 588 | AB19: =IF($G19="","",SUMIF('SQT Data'!$K:$K,$G19,'SQT Data'!$V:$V)) -> 528 | AC19: 0.898 | AE19: =IFERROR(SUM(AD19/#REF!),"") ->  | AF19: =IFERROR(VLOOKUP($G19,'Technician Summary'!$G$8:$BK$372,7,FALSE),"") -> 55 | AG19: =IFERROR(VLOOKUP($G19,'Technician Summary'!$G$8:$BK$372,8,FALSE),"") -> 2 | AH19: 0.9636 | AI19: =IFERROR(VLOOKUP($G19,'Technician Summary'!$G$8:$BK$372,34,FALSE),"") -> 34 | AJ19: =IFERROR(VLOOKUP($G19,'Technician Summary'!$G$8:$BK$372,35,FALSE),"") -> 10 | AK19: 0.7059 | AL19: =IFERROR(VLOOKUP($G19,'Technician Summary'!$G$8:$BK$372,37,FALSE),"") -> 139 | AM19: =IFERROR(VLOOKUP($G19,'Technician Summary'!$G$8:$BK$372,38,FALSE),"") -> 114 | AN19: 0.8201 | AO19: =COUNTIFS('Drop Validation'!$P:$P,$G19,'Drop Validation'!$F:$F,"In Scope") -> 4 | AP19: =COUNTIFS('Drop Validation'!$P:$P,$G19,'Drop Validation'!$AA:$AA,"Compliant",'Drop Validation'!$F:$F,"In Scope") -> 3 | AQ19: 0.75
B20: Gulf Coast | F20: Deandre McCants | G20: 90429 | H20: 8.75 | I20: =IFERROR(VLOOKUP($G20,'Technician Summary'!$G$3:$BB$372,2,FALSE),"") -> 0 | J20: =IFERROR(VLOOKUP($G20,'Technician Summary'!$G$8:$BN$372,60,FALSE),"") ->  | L20: =IF(G20="","",COUNTIFS('SMS tNPS'!DE:DE,G20,'SMS tNPS'!HB:HB,"Yes")) -> 2 | M20: =IFERROR(IF(G20="","",COUNTIFS('SMS tNPS'!DE:DE,G20,'SMS tNPS'!HB:HB,"Yes"))+COUNTIFS('SMS tNPS'!DE:DE,G20,'SMS tNPS'!HB:HB,"No"),"") -> 2 | N20: 1 | O20: =IFERROR(VLOOKUP($G20,'Technician Summary'!$G$8:$BK$372,14,FALSE),"") -> 14 | P20: =IFERROR(VLOOKUP($G20,'Technician Summary'!$G$8:$BK$372,15,FALSE),"") -> 0 | Q20: 0 | R20: =IFERROR(VLOOKUP($G20,'Technician Summary'!$G$7:$BK$372,17,FALSE),"") -> 11 | S20: =IFERROR(VLOOKUP($G20,'Technician Summary'!$G$7:$BK$372,18,FALSE),"") -> 0 | T20: 0 | U20: =IFERROR(VLOOKUP($G20,'Technician Summary'!$G$7:$BK$372,20,FALSE),"") -> 3 | V20: =IFERROR(VLOOKUP($G20,'Technician Summary'!$G$7:$BK$372,21,FALSE),"") -> 0 | W20: 0 | X20: =IF($G20="","",SUMIF('SQT Data'!$K:$K,$G20,'SQT Data'!$R:$R)) -> 2 | Y20: =IF($G20="","",SUMIF('SQT Data'!$K:$K,$G20,'SQT Data'!$S:$S)) -> 2 | Z20: 1 | AA20: =IF($G20="","",SUMIF('SQT Data'!$K:$K,$G20,'SQT Data'!$U:$U)) -> 16 | AB20: =IF($G20="","",SUMIF('SQT Data'!$K:$K,$G20,'SQT Data'!$V:$V)) -> 16 | AC20: 1 | AE20: =IFERROR(SUM(AD20/#REF!),"") ->  | AF20: =IFERROR(VLOOKUP($G20,'Technician Summary'!$G$8:$BK$372,7,FALSE),"") -> 3 | AG20: =IFERROR(VLOOKUP($G20,'Technician Summary'!$G$8:$BK$372,8,FALSE),"") -> 0 | AH20: 1 | AI20: =IFERROR(VLOOKUP($G20,'Technician Summary'!$G$8:$BK$372,34,FALSE),"") -> 4 | AJ20: =IFERROR(VLOOKUP($G20,'Technician Summary'!$G$8:$BK$372,35,FALSE),"") -> 1 | AK20: 0.75 | AL20: =IFERROR(VLOOKUP($G20,'Technician Summary'!$G$8:$BK$372,37,FALSE),"") -> 39 | AM20: =IFERROR(VLOOKUP($G20,'Technician Summary'!$G$8:$BK$372,38,FALSE),"") -> 14 | AN20: 0.359 | AO20: =COUNTIFS('Drop Validation'!$P:$P,$G20,'Drop Validation'!$F:$F,"In Scope") -> 1 | AP20: =COUNTIFS('Drop Validation'!$P:$P,$G20,'Drop Validation'!$AA:$AA,"Compliant",'Drop Validation'!$F:$F,"In Scope") -> 1 | AQ20: 1
B21: Oklahoma City | F21: Rashad Code | G21: 81303 | I21: =IFERROR(VLOOKUP($G21,'Technician Summary'!$G$3:$BB$372,2,FALSE),"") -> 0 | J21: =IFERROR(VLOOKUP($G21,'Technician Summary'!$G$8:$BN$372,60,FALSE),"") ->  | L21: =IF(G21="","",COUNTIFS('SMS tNPS'!DE:DE,G21,'SMS tNPS'!HB:HB,"Yes")) -> 0 | M21: =IFERROR(IF(G21="","",COUNTIFS('SMS tNPS'!DE:DE,G21,'SMS tNPS'!HB:HB,"Yes"))+COUNTIFS('SMS tNPS'!DE:DE,G21,'SMS tNPS'!HB:HB,"No"),"") -> 0 | O21: =IFERROR(VLOOKUP($G21,'Technician Summary'!$G$8:$BK$372,14,FALSE),"") -> 2 | P21: =IFERROR(VLOOKUP($G21,'Technician Summary'!$G$8:$BK$372,15,FALSE),"") -> 0 | Q21: 0 | R21: =IFERROR(VLOOKUP($G21,'Technician Summary'!$G$7:$BK$372,17,FALSE),"") -> 0 | S21: =IFERROR(VLOOKUP($G21,'Technician Summary'!$G$7:$BK$372,18,FALSE),"") -> 0 | U21: =IFERROR(VLOOKUP($G21,'Technician Summary'!$G$7:$BK$372,20,FALSE),"") -> 2 | V21: =IFERROR(VLOOKUP($G21,'Technician Summary'!$G$7:$BK$372,21,FALSE),"") -> 0 | W21: 0 | X21: =IF($G21="","",SUMIF('SQT Data'!$K:$K,$G21,'SQT Data'!$R:$R)) -> 0 | Y21: =IF($G21="","",SUMIF('SQT Data'!$K:$K,$G21,'SQT Data'!$S:$S)) -> 0 | AA21: =IF($G21="","",SUMIF('SQT Data'!$K:$K,$G21,'SQT Data'!$U:$U)) -> 0 | AB21: =IF($G21="","",SUMIF('SQT Data'!$K:$K,$G21,'SQT Data'!$V:$V)) -> 0 | AE21: =IFERROR(SUM(AD21/#REF!),"") ->  | AF21: =IFERROR(VLOOKUP($G21,'Technician Summary'!$G$8:$BK$372,7,FALSE),"") -> 0 | AG21: =IFERROR(VLOOKUP($G21,'Technician Summary'!$G$8:$BK$372,8,FALSE),"") -> 0 | AI21: =IFERROR(VLOOKUP($G21,'Technician Summary'!$G$8:$BK$372,34,FALSE),"") -> 0 | AJ21: =IFERROR(VLOOKUP($G21,'Technician Summary'!$G$8:$BK$372,35,FALSE),"") -> 0 | AL21: =IFERROR(VLOOKUP($G21,'Technician Summary'!$G$8:$BK$372,37,FALSE),"") -> 3 | AM21: =IFERROR(VLOOKUP($G21,'Technician Summary'!$G$8:$BK$372,38,FALSE),"") -> 2 | AN21: 0.6667 | AO21: =COUNTIFS('Drop Validation'!$P:$P,$G21,'Drop Validation'!$F:$F,"In Scope") -> 0 | AP21: =COUNTIFS('Drop Validation'!$P:$P,$G21,'Drop Validation'!$AA:$AA,"Compliant",'Drop Validation'!$F:$F,"In Scope") -> 0
B22: Tech Rankings | I22: =IFERROR(VLOOKUP($G22,'Technician Summary'!$G$3:$BB$372,2,FALSE),"") ->  | J22: =IFERROR(VLOOKUP($G22,'Technician Summary'!$G$8:$BN$372,60,FALSE),"") ->  | L22: =IF(G22="","",COUNTIFS('SMS tNPS'!DE:DE,G22,'SMS tNPS'!HB:HB,"Yes")) ->  | M22: =IFERROR(IF(G22="","",COUNTIFS('SMS tNPS'!DE:DE,G22,'SMS tNPS'!HB:HB,"Yes"))+COUNTIFS('SMS tNPS'!DE:DE,G22,'SMS tNPS'!HB:HB,"No"),"") ->  | O22: =IFERROR(VLOOKUP($G22,'Technician Summary'!$G$8:$BK$372,14,FALSE),"") ->  | P22: =IFERROR(VLOOKUP($G22,'Technician Summary'!$G$8:$BK$372,15,FALSE),"") ->  | R22: =IFERROR(VLOOKUP($G22,'Technician Summary'!$G$7:$BK$372,17,FALSE),"") ->  | S22: =IFERROR(VLOOKUP($G22,'Technician Summary'!$G$7:$BK$372,18,FALSE),"") ->  | U22: =IFERROR(VLOOKUP($G22,'Technician Summary'!$G$7:$BK$372,20,FALSE),"") ->  | V22: =IFERROR(VLOOKUP($G22,'Technician Summary'!$G$7:$BK$372,21,FALSE),"") ->  | X22: =IF($G22="","",SUMIF('SQT Data'!$K:$K,$G22,'SQT Data'!$R:$R)) ->  | Y22: =IF($G22="","",SUMIF('SQT Data'!$K:$K,$G22,'SQT Data'!$S:$S)) ->  | AA22: =IF($G22="","",SUMIF('SQT Data'!$K:$K,$G22,'SQT Data'!$U:$U)) ->  | AB22: =IF($G22="","",SUMIF('SQT Data'!$K:$K,$G22,'SQT Data'!$V:$V)) ->  | AE22: =IFERROR(SUM(AD22/#REF!),"") ->  | AF22: =IFERROR(VLOOKUP($G22,'Technician Summary'!$G$8:$BK$372,7,FALSE),"") ->  | AG22: =IFERROR(VLOOKUP($G22,'Technician Summary'!$G$8:$BK$372,8,FALSE),"") ->  | AI22: =IFERROR(VLOOKUP($G22,'Technician Summary'!$G$8:$BK$372,34,FALSE),"") ->  | AJ22: =IFERROR(VLOOKUP($G22,'Technician Summary'!$G$8:$BK$372,35,FALSE),"") ->  | AL22: =IFERROR(VLOOKUP($G22,'Technician Summary'!$G$8:$BK$372,37,FALSE),"") ->  | AM22: =IFERROR(VLOOKUP($G22,'Technician Summary'!$G$8:$BK$372,38,FALSE),"") ->  | AO22: =COUNTIFS('Drop Validation'!$P:$P,$G22,'Drop Validation'!$F:$F,"In Scope") -> 0 | AP22: =COUNTIFS('Drop Validation'!$P:$P,$G22,'Drop Validation'!$AA:$AA,"Compliant",'Drop Validation'!$F:$F,"In Scope") -> 0
B23: SMS Rankings | I23: =IFERROR(VLOOKUP($G23,'Technician Summary'!$G$3:$BB$372,2,FALSE),"") ->  | J23: =IFERROR(VLOOKUP($G23,'Technician Summary'!$G$8:$BN$372,60,FALSE),"") ->  | L23: =IF(G23="","",COUNTIFS('SMS tNPS'!DE:DE,G23,'SMS tNPS'!HB:HB,"Yes")) ->  | M23: =IFERROR(IF(G23="","",COUNTIFS('SMS tNPS'!DE:DE,G23,'SMS tNPS'!HB:HB,"Yes"))+COUNTIFS('SMS tNPS'!DE:DE,G23,'SMS tNPS'!HB:HB,"No"),"") ->  | O23: =IFERROR(VLOOKUP($G23,'Technician Summary'!$G$8:$BK$372,14,FALSE),"") ->  | P23: =IFERROR(VLOOKUP($G23,'Technician Summary'!$G$8:$BK$372,15,FALSE),"") ->  | R23: =IFERROR(VLOOKUP($G23,'Technician Summary'!$G$7:$BK$372,17,FALSE),"") ->  | S23: =IFERROR(VLOOKUP($G23,'Technician Summary'!$G$7:$BK$372,18,FALSE),"") ->  | U23: =IFERROR(VLOOKUP($G23,'Technician Summary'!$G$7:$BK$372,20,FALSE),"") ->  | V23: =IFERROR(VLOOKUP($G23,'Technician Summary'!$G$7:$BK$372,21,FALSE),"") ->  | X23: =IF($G23="","",SUMIF('SQT Data'!$K:$K,$G23,'SQT Data'!$R:$R)) ->  | Y23: =IF($G23="","",SUMIF('SQT Data'!$K:$K,$G23,'SQT Data'!$S:$S)) ->  | AA23: =IF($G23="","",SUMIF('SQT Data'!$K:$K,$G23,'SQT Data'!$U:$U)) ->  | AB23: =IF($G23="","",SUMIF('SQT Data'!$K:$K,$G23,'SQT Data'!$V:$V)) ->  | AE23: =IFERROR(SUM(AD23/#REF!),"") ->  | AF23: =IFERROR(VLOOKUP($G23,'Technician Summary'!$G$8:$BK$372,7,FALSE),"") ->  | AG23: =IFERROR(VLOOKUP($G23,'Technician Summary'!$G$8:$BK$372,8,FALSE),"") ->  | AI23: =IFERROR(VLOOKUP($G23,'Technician Summary'!$G$8:$BK$372,34,FALSE),"") ->  | AJ23: =IFERROR(VLOOKUP($G23,'Technician Summary'!$G$8:$BK$372,35,FALSE),"") ->  | AL23: =IFERROR(VLOOKUP($G23,'Technician Summary'!$G$8:$BK$372,37,FALSE),"") ->  | AM23: =IFERROR(VLOOKUP($G23,'Technician Summary'!$G$8:$BK$372,38,FALSE),"") ->  | AO23: =COUNTIFS('Drop Validation'!$P:$P,$G23,'Drop Validation'!$F:$F,"In Scope") -> 0 | AP23: =COUNTIFS('Drop Validation'!$P:$P,$G23,'Drop Validation'!$AA:$AA,"Compliant",'Drop Validation'!$F:$F,"In Scope") -> 0
B24: SQT Rankings | I24: =IFERROR(VLOOKUP($G24,'Technician Summary'!$G$3:$BB$372,2,FALSE),"") ->  | J24: =IFERROR(VLOOKUP($G24,'Technician Summary'!$G$8:$BN$372,60,FALSE),"") ->  | L24: =IF(G24="","",COUNTIFS('SMS tNPS'!DE:DE,G24,'SMS tNPS'!HB:HB,"Yes")) ->  | M24: =IFERROR(IF(G24="","",COUNTIFS('SMS tNPS'!DE:DE,G24,'SMS tNPS'!HB:HB,"Yes"))+COUNTIFS('SMS tNPS'!DE:DE,G24,'SMS tNPS'!HB:HB,"No"),"") ->  | O24: =IFERROR(VLOOKUP($G24,'Technician Summary'!$G$8:$BK$372,14,FALSE),"") ->  | P24: =IFERROR(VLOOKUP($G24,'Technician Summary'!$G$8:$BK$372,15,FALSE),"") ->  | R24: =IFERROR(VLOOKUP($G24,'Technician Summary'!$G$7:$BK$372,17,FALSE),"") ->  | S24: =IFERROR(VLOOKUP($G24,'Technician Summary'!$G$7:$BK$372,18,FALSE),"") ->  | U24: =IFERROR(VLOOKUP($G24,'Technician Summary'!$G$7:$BK$372,20,FALSE),"") ->  | V24: =IFERROR(VLOOKUP($G24,'Technician Summary'!$G$7:$BK$372,21,FALSE),"") ->  | X24: =IF($G24="","",SUMIF('SQT Data'!$K:$K,$G24,'SQT Data'!$R:$R)) ->  | Y24: =IF($G24="","",SUMIF('SQT Data'!$K:$K,$G24,'SQT Data'!$S:$S)) ->  | AA24: =IF($G24="","",SUMIF('SQT Data'!$K:$K,$G24,'SQT Data'!$U:$U)) ->  | AB24: =IF($G24="","",SUMIF('SQT Data'!$K:$K,$G24,'SQT Data'!$V:$V)) ->  | AE24: =IFERROR(SUM(AD24/#REF!),"") ->  | AF24: =IFERROR(VLOOKUP($G24,'Technician Summary'!$G$8:$BK$372,7,FALSE),"") ->  | AG24: =IFERROR(VLOOKUP($G24,'Technician Summary'!$G$8:$BK$372,8,FALSE),"") ->  | AI24: =IFERROR(VLOOKUP($G24,'Technician Summary'!$G$8:$BK$372,34,FALSE),"") ->  | AJ24: =IFERROR(VLOOKUP($G24,'Technician Summary'!$G$8:$BK$372,35,FALSE),"") ->  | AL24: =IFERROR(VLOOKUP($G24,'Technician Summary'!$G$8:$BK$372,37,FALSE),"") ->  | AM24: =IFERROR(VLOOKUP($G24,'Technician Summary'!$G$8:$BK$372,38,FALSE),"") ->  | AO24: =COUNTIFS('Drop Validation'!$P:$P,$G24,'Drop Validation'!$F:$F,"In Scope") -> 0 | AP24: =COUNTIFS('Drop Validation'!$P:$P,$G24,'Drop Validation'!$AA:$AA,"Compliant",'Drop Validation'!$F:$F,"In Scope") -> 0
B25: Repeat Rankings | I25: =IFERROR(VLOOKUP($G25,'Technician Summary'!$G$3:$BB$372,2,FALSE),"") ->  | J25: =IFERROR(VLOOKUP($G25,'Technician Summary'!$G$8:$BN$372,60,FALSE),"") ->  | L25: =IF(G25="","",COUNTIFS('SMS tNPS'!DE:DE,G25,'SMS tNPS'!HB:HB,"Yes")) ->  | M25: =IFERROR(IF(G25="","",COUNTIFS('SMS tNPS'!DE:DE,G25,'SMS tNPS'!HB:HB,"Yes"))+COUNTIFS('SMS tNPS'!DE:DE,G25,'SMS tNPS'!HB:HB,"No"),"") ->  | O25: =IFERROR(VLOOKUP($G25,'Technician Summary'!$G$8:$BK$372,14,FALSE),"") ->  | P25: =IFERROR(VLOOKUP($G25,'Technician Summary'!$G$8:$BK$372,15,FALSE),"") ->  | R25: =IFERROR(VLOOKUP($G25,'Technician Summary'!$G$7:$BK$372,17,FALSE),"") ->  | S25: =IFERROR(VLOOKUP($G25,'Technician Summary'!$G$7:$BK$372,18,FALSE),"") ->  | U25: =IFERROR(VLOOKUP($G25,'Technician Summary'!$G$7:$BK$372,20,FALSE),"") ->  | V25: =IFERROR(VLOOKUP($G25,'Technician Summary'!$G$7:$BK$372,21,FALSE),"") ->  | X25: =IF($G25="","",SUMIF('SQT Data'!$K:$K,$G25,'SQT Data'!$R:$R)) ->  | Y25: =IF($G25="","",SUMIF('SQT Data'!$K:$K,$G25,'SQT Data'!$S:$S)) ->  | AA25: =IF($G25="","",SUMIF('SQT Data'!$K:$K,$G25,'SQT Data'!$U:$U)) ->  | AB25: =IF($G25="","",SUMIF('SQT Data'!$K:$K,$G25,'SQT Data'!$V:$V)) ->  | AE25: =IFERROR(SUM(AD25/#REF!),"") ->  | AF25: =IFERROR(VLOOKUP($G25,'Technician Summary'!$G$8:$BK$372,7,FALSE),"") ->  | AG25: =IFERROR(VLOOKUP($G25,'Technician Summary'!$G$8:$BK$372,8,FALSE),"") ->  | AI25: =IFERROR(VLOOKUP($G25,'Technician Summary'!$G$8:$BK$372,34,FALSE),"") ->  | AJ25: =IFERROR(VLOOKUP($G25,'Technician Summary'!$G$8:$BK$372,35,FALSE),"") ->  | AL25: =IFERROR(VLOOKUP($G25,'Technician Summary'!$G$8:$BK$372,37,FALSE),"") ->  | AM25: =IFERROR(VLOOKUP($G25,'Technician Summary'!$G$8:$BK$372,38,FALSE),"") ->  | AO25: =COUNTIFS('Drop Validation'!$P:$P,$G25,'Drop Validation'!$F:$F,"In Scope") -> 0 | AP25: =COUNTIFS('Drop Validation'!$P:$P,$G25,'Drop Validation'!$AA:$AA,"Compliant",'Drop Validation'!$F:$F,"In Scope") -> 0
I26: =IFERROR(VLOOKUP($G26,'Technician Summary'!$G$3:$BB$372,2,FALSE),"") ->  | J26: =IFERROR(VLOOKUP($G26,'Technician Summary'!$G$8:$BN$372,60,FALSE),"") ->  | L26: =IF(G26="","",COUNTIFS('SMS tNPS'!DE:DE,G26,'SMS tNPS'!HB:HB,"Yes")) ->  | M26: =IFERROR(IF(G26="","",COUNTIFS('SMS tNPS'!DE:DE,G26,'SMS tNPS'!HB:HB,"Yes"))+COUNTIFS('SMS tNPS'!DE:DE,G26,'SMS tNPS'!HB:HB,"No"),"") ->  | O26: =IFERROR(VLOOKUP($G26,'Technician Summary'!$G$8:$BK$372,14,FALSE),"") ->  | P26: =IFERROR(VLOOKUP($G26,'Technician Summary'!$G$8:$BK$372,15,FALSE),"") ->  | R26: =IFERROR(VLOOKUP($G26,'Technician Summary'!$G$7:$BK$372,17,FALSE),"") ->  | S26: =IFERROR(VLOOKUP($G26,'Technician Summary'!$G$7:$BK$372,18,FALSE),"") ->  | U26: =IFERROR(VLOOKUP($G26,'Technician Summary'!$G$7:$BK$372,20,FALSE),"") ->  | V26: =IFERROR(VLOOKUP($G26,'Technician Summary'!$G$7:$BK$372,21,FALSE),"") ->  | X26: =IF($G26="","",SUMIF('SQT Data'!$K:$K,$G26,'SQT Data'!$R:$R)) ->  | Y26: =IF($G26="","",SUMIF('SQT Data'!$K:$K,$G26,'SQT Data'!$S:$S)) ->  | AA26: =IF($G26="","",SUMIF('SQT Data'!$K:$K,$G26,'SQT Data'!$U:$U)) ->  | AB26: =IF($G26="","",SUMIF('SQT Data'!$K:$K,$G26,'SQT Data'!$V:$V)) ->  | AE26: =IFERROR(SUM(AD26/#REF!),"") ->  | AF26: =IFERROR(VLOOKUP($G26,'Technician Summary'!$G$8:$BK$372,7,FALSE),"") ->  | AG26: =IFERROR(VLOOKUP($G26,'Technician Summary'!$G$8:$BK$372,8,FALSE),"") ->  | AI26: =IFERROR(VLOOKUP($G26,'Technician Summary'!$G$8:$BK$372,34,FALSE),"") ->  | AJ26: =IFERROR(VLOOKUP($G26,'Technician Summary'!$G$8:$BK$372,35,FALSE),"") ->  | AL26: =IFERROR(VLOOKUP($G26,'Technician Summary'!$G$8:$BK$372,37,FALSE),"") ->  | AM26: =IFERROR(VLOOKUP($G26,'Technician Summary'!$G$8:$BK$372,38,FALSE),"") ->  | AO26: =COUNTIFS('Drop Validation'!$P:$P,$G26,'Drop Validation'!$F:$F,"In Scope") -> 0 | AP26: =COUNTIFS('Drop Validation'!$P:$P,$G26,'Drop Validation'!$AA:$AA,"Compliant",'Drop Validation'!$F:$F,"In Scope") -> 0
B27: Raw Data | I27: =IFERROR(VLOOKUP($G27,'Technician Summary'!$G$3:$BB$372,2,FALSE),"") ->  | J27: =IFERROR(VLOOKUP($G27,'Technician Summary'!$G$8:$BN$372,60,FALSE),"") ->  | L27: =IF(G27="","",COUNTIFS('SMS tNPS'!DE:DE,G27,'SMS tNPS'!HB:HB,"Yes")) ->  | M27: =IFERROR(IF(G27="","",COUNTIFS('SMS tNPS'!DE:DE,G27,'SMS tNPS'!HB:HB,"Yes"))+COUNTIFS('SMS tNPS'!DE:DE,G27,'SMS tNPS'!HB:HB,"No"),"") ->  | O27: =IFERROR(VLOOKUP($G27,'Technician Summary'!$G$8:$BK$372,14,FALSE),"") ->  | P27: =IFERROR(VLOOKUP($G27,'Technician Summary'!$G$8:$BK$372,15,FALSE),"") ->  | R27: =IFERROR(VLOOKUP($G27,'Technician Summary'!$G$7:$BK$372,17,FALSE),"") ->  | S27: =IFERROR(VLOOKUP($G27,'Technician Summary'!$G$7:$BK$372,18,FALSE),"") ->  | U27: =IFERROR(VLOOKUP($G27,'Technician Summary'!$G$7:$BK$372,20,FALSE),"") ->  | V27: =IFERROR(VLOOKUP($G27,'Technician Summary'!$G$7:$BK$372,21,FALSE),"") ->  | X27: =IF($G27="","",SUMIF('SQT Data'!$K:$K,$G27,'SQT Data'!$R:$R)) ->  | Y27: =IF($G27="","",SUMIF('SQT Data'!$K:$K,$G27,'SQT Data'!$S:$S)) ->  | AA27: =IF($G27="","",SUMIF('SQT Data'!$K:$K,$G27,'SQT Data'!$U:$U)) ->  | AB27: =IF($G27="","",SUMIF('SQT Data'!$K:$K,$G27,'SQT Data'!$V:$V)) ->  | AE27: =IFERROR(SUM(AD27/#REF!),"") ->  | AF27: =IFERROR(VLOOKUP($G27,'Technician Summary'!$G$8:$BK$372,7,FALSE),"") ->  | AG27: =IFERROR(VLOOKUP($G27,'Technician Summary'!$G$8:$BK$372,8,FALSE),"") ->  | AI27: =IFERROR(VLOOKUP($G27,'Technician Summary'!$G$8:$BK$372,34,FALSE),"") ->  | AJ27: =IFERROR(VLOOKUP($G27,'Technician Summary'!$G$8:$BK$372,35,FALSE),"") ->  | AL27: =IFERROR(VLOOKUP($G27,'Technician Summary'!$G$8:$BK$372,37,FALSE),"") ->  | AM27: =IFERROR(VLOOKUP($G27,'Technician Summary'!$G$8:$BK$372,38,FALSE),"") ->  | AO27: =COUNTIFS('Drop Validation'!$P:$P,$G27,'Drop Validation'!$F:$F,"In Scope") -> 0 | AP27: =COUNTIFS('Drop Validation'!$P:$P,$G27,'Drop Validation'!$AA:$AA,"Compliant",'Drop Validation'!$F:$F,"In Scope") -> 0
I28: =IFERROR(VLOOKUP($G28,'Technician Summary'!$G$3:$BB$372,2,FALSE),"") ->  | J28: =IFERROR(VLOOKUP($G28,'Technician Summary'!$G$8:$BN$372,60,FALSE),"") ->  | L28: =IF(G28="","",COUNTIFS('SMS tNPS'!DE:DE,G28,'SMS tNPS'!HB:HB,"Yes")) ->  | M28: =IFERROR(IF(G28="","",COUNTIFS('SMS tNPS'!DE:DE,G28,'SMS tNPS'!HB:HB,"Yes"))+COUNTIFS('SMS tNPS'!DE:DE,G28,'SMS tNPS'!HB:HB,"No"),"") ->  | O28: =IFERROR(VLOOKUP($G28,'Technician Summary'!$G$8:$BK$372,14,FALSE),"") ->  | P28: =IFERROR(VLOOKUP($G28,'Technician Summary'!$G$8:$BK$372,15,FALSE),"") ->  | R28: =IFERROR(VLOOKUP($G28,'Technician Summary'!$G$7:$BK$372,17,FALSE),"") ->  | S28: =IFERROR(VLOOKUP($G28,'Technician Summary'!$G$7:$BK$372,18,FALSE),"") ->  | U28: =IFERROR(VLOOKUP($G28,'Technician Summary'!$G$7:$BK$372,20,FALSE),"") ->  | V28: =IFERROR(VLOOKUP($G28,'Technician Summary'!$G$7:$BK$372,21,FALSE),"") ->  | X28: =IF($G28="","",SUMIF('SQT Data'!$K:$K,$G28,'SQT Data'!$R:$R)) ->  | Y28: =IF($G28="","",SUMIF('SQT Data'!$K:$K,$G28,'SQT Data'!$S:$S)) ->  | AA28: =IF($G28="","",SUMIF('SQT Data'!$K:$K,$G28,'SQT Data'!$U:$U)) ->  | AB28: =IF($G28="","",SUMIF('SQT Data'!$K:$K,$G28,'SQT Data'!$V:$V)) ->  | AE28: =IFERROR(SUM(AD28/#REF!),"") ->  | AF28: =IFERROR(VLOOKUP($G28,'Technician Summary'!$G$8:$BK$372,7,FALSE),"") ->  | AG28: =IFERROR(VLOOKUP($G28,'Technician Summary'!$G$8:$BK$372,8,FALSE),"") ->  | AI28: =IFERROR(VLOOKUP($G28,'Technician Summary'!$G$8:$BK$372,34,FALSE),"") ->  | AJ28: =IFERROR(VLOOKUP($G28,'Technician Summary'!$G$8:$BK$372,35,FALSE),"") ->  | AL28: =IFERROR(VLOOKUP($G28,'Technician Summary'!$G$8:$BK$372,37,FALSE),"") ->  | AM28: =IFERROR(VLOOKUP($G28,'Technician Summary'!$G$8:$BK$372,38,FALSE),"") ->  | AO28: =COUNTIFS('Drop Validation'!$P:$P,$G28,'Drop Validation'!$F:$F,"In Scope") -> 0 | AP28: =COUNTIFS('Drop Validation'!$P:$P,$G28,'Drop Validation'!$AA:$AA,"Compliant",'Drop Validation'!$F:$F,"In Scope") -> 0
I29: =IFERROR(VLOOKUP($G29,'Technician Summary'!$G$3:$BB$372,2,FALSE),"") ->  | J29: =IFERROR(VLOOKUP($G29,'Technician Summary'!$G$8:$BN$372,60,FALSE),"") ->  | L29: =IF(G29="","",COUNTIFS('SMS tNPS'!DE:DE,G29,'SMS tNPS'!HB:HB,"Yes")) ->  | M29: =IFERROR(IF(G29="","",COUNTIFS('SMS tNPS'!DE:DE,G29,'SMS tNPS'!HB:HB,"Yes"))+COUNTIFS('SMS tNPS'!DE:DE,G29,'SMS tNPS'!HB:HB,"No"),"") ->  | O29: =IFERROR(VLOOKUP($G29,'Technician Summary'!$G$8:$BK$372,14,FALSE),"") ->  | P29: =IFERROR(VLOOKUP($G29,'Technician Summary'!$G$8:$BK$372,15,FALSE),"") ->  | R29: =IFERROR(VLOOKUP($G29,'Technician Summary'!$G$7:$BK$372,17,FALSE),"") ->  | S29: =IFERROR(VLOOKUP($G29,'Technician Summary'!$G$7:$BK$372,18,FALSE),"") ->  | U29: =IFERROR(VLOOKUP($G29,'Technician Summary'!$G$7:$BK$372,20,FALSE),"") ->  | V29: =IFERROR(VLOOKUP($G29,'Technician Summary'!$G$7:$BK$372,21,FALSE),"") ->  | X29: =IF($G29="","",SUMIF('SQT Data'!$K:$K,$G29,'SQT Data'!$R:$R)) ->  | Y29: =IF($G29="","",SUMIF('SQT Data'!$K:$K,$G29,'SQT Data'!$S:$S)) ->  | AA29: =IF($G29="","",SUMIF('SQT Data'!$K:$K,$G29,'SQT Data'!$U:$U)) ->  | AB29: =IF($G29="","",SUMIF('SQT Data'!$K:$K,$G29,'SQT Data'!$V:$V)) ->  | AE29: =IFERROR(SUM(AD29/#REF!),"") ->  | AF29: =IFERROR(VLOOKUP($G29,'Technician Summary'!$G$8:$BK$372,7,FALSE),"") ->  | AG29: =IFERROR(VLOOKUP($G29,'Technician Summary'!$G$8:$BK$372,8,FALSE),"") ->  | AI29: =IFERROR(VLOOKUP($G29,'Technician Summary'!$G$8:$BK$372,34,FALSE),"") ->  | AJ29: =IFERROR(VLOOKUP($G29,'Technician Summary'!$G$8:$BK$372,35,FALSE),"") ->  | AL29: =IFERROR(VLOOKUP($G29,'Technician Summary'!$G$8:$BK$372,37,FALSE),"") ->  | AM29: =IFERROR(VLOOKUP($G29,'Technician Summary'!$G$8:$BK$372,38,FALSE),"") ->  | AO29: =COUNTIFS('Drop Validation'!$P:$P,$G29,'Drop Validation'!$F:$F,"In Scope") -> 0 | AP29: =COUNTIFS('Drop Validation'!$P:$P,$G29,'Drop Validation'!$AA:$AA,"Compliant",'Drop Validation'!$F:$F,"In Scope") -> 0
I30: =IFERROR(VLOOKUP($G30,'Technician Summary'!$G$3:$BB$372,2,FALSE),"") ->  | J30: =IFERROR(VLOOKUP($G30,'Technician Summary'!$G$8:$BN$372,60,FALSE),"") ->  | L30: =IF(G30="","",COUNTIFS('SMS tNPS'!DE:DE,G30,'SMS tNPS'!HB:HB,"Yes")) ->  | M30: =IFERROR(IF(G30="","",COUNTIFS('SMS tNPS'!DE:DE,G30,'SMS tNPS'!HB:HB,"Yes"))+COUNTIFS('SMS tNPS'!DE:DE,G30,'SMS tNPS'!HB:HB,"No"),"") ->  | O30: =IFERROR(VLOOKUP($G30,'Technician Summary'!$G$8:$BK$372,14,FALSE),"") ->  | P30: =IFERROR(VLOOKUP($G30,'Technician Summary'!$G$8:$BK$372,15,FALSE),"") ->  | R30: =IFERROR(VLOOKUP($G30,'Technician Summary'!$G$7:$BK$372,17,FALSE),"") ->  | S30: =IFERROR(VLOOKUP($G30,'Technician Summary'!$G$7:$BK$372,18,FALSE),"") ->  | U30: =IFERROR(VLOOKUP($G30,'Technician Summary'!$G$7:$BK$372,20,FALSE),"") ->  | V30: =IFERROR(VLOOKUP($G30,'Technician Summary'!$G$7:$BK$372,21,FALSE),"") ->  | X30: =IF($G30="","",SUMIF('SQT Data'!$K:$K,$G30,'SQT Data'!$R:$R)) ->  | Y30: =IF($G30="","",SUMIF('SQT Data'!$K:$K,$G30,'SQT Data'!$S:$S)) ->  | AA30: =IF($G30="","",SUMIF('SQT Data'!$K:$K,$G30,'SQT Data'!$U:$U)) ->  | AB30: =IF($G30="","",SUMIF('SQT Data'!$K:$K,$G30,'SQT Data'!$V:$V)) ->  | AE30: =IFERROR(SUM(AD30/#REF!),"") ->  | AF30: =IFERROR(VLOOKUP($G30,'Technician Summary'!$G$8:$BK$372,7,FALSE),"") ->  | AG30: =IFERROR(VLOOKUP($G30,'Technician Summary'!$G$8:$BK$372,8,FALSE),"") ->  | AI30: =IFERROR(VLOOKUP($G30,'Technician Summary'!$G$8:$BK$372,34,FALSE),"") ->  | AJ30: =IFERROR(VLOOKUP($G30,'Technician Summary'!$G$8:$BK$372,35,FALSE),"") ->  | AL30: =IFERROR(VLOOKUP($G30,'Technician Summary'!$G$8:$BK$372,37,FALSE),"") ->  | AM30: =IFERROR(VLOOKUP($G30,'Technician Summary'!$G$8:$BK$372,38,FALSE),"") ->  | AO30: =COUNTIFS('Drop Validation'!$P:$P,$G30,'Drop Validation'!$F:$F,"In Scope") -> 0 | AP30: =COUNTIFS('Drop Validation'!$P:$P,$G30,'Drop Validation'!$AA:$AA,"Compliant",'Drop Validation'!$F:$F,"In Scope") -> 0
I31: =IFERROR(VLOOKUP($G31,'Technician Summary'!$G$3:$BB$372,2,FALSE),"") ->  | J31: =IFERROR(VLOOKUP($G31,'Technician Summary'!$G$8:$BN$372,60,FALSE),"") ->  | L31: =IF(G31="","",COUNTIFS('SMS tNPS'!DE:DE,G31,'SMS tNPS'!HB:HB,"Yes")) ->  | M31: =IFERROR(IF(G31="","",COUNTIFS('SMS tNPS'!DE:DE,G31,'SMS tNPS'!HB:HB,"Yes"))+COUNTIFS('SMS tNPS'!DE:DE,G31,'SMS tNPS'!HB:HB,"No"),"") ->  | O31: =IFERROR(VLOOKUP($G31,'Technician Summary'!$G$8:$BK$372,14,FALSE),"") ->  | P31: =IFERROR(VLOOKUP($G31,'Technician Summary'!$G$8:$BK$372,15,FALSE),"") ->  | R31: =IFERROR(VLOOKUP($G31,'Technician Summary'!$G$7:$BK$372,17,FALSE),"") ->  | S31: =IFERROR(VLOOKUP($G31,'Technician Summary'!$G$7:$BK$372,18,FALSE),"") ->  | U31: =IFERROR(VLOOKUP($G31,'Technician Summary'!$G$7:$BK$372,20,FALSE),"") ->  | V31: =IFERROR(VLOOKUP($G31,'Technician Summary'!$G$7:$BK$372,21,FALSE),"") ->  | X31: =IF($G31="","",SUMIF('SQT Data'!$K:$K,$G31,'SQT Data'!$R:$R)) ->  | Y31: =IF($G31="","",SUMIF('SQT Data'!$K:$K,$G31,'SQT Data'!$S:$S)) ->  | AA31: =IF($G31="","",SUMIF('SQT Data'!$K:$K,$G31,'SQT Data'!$U:$U)) ->  | AB31: =IF($G31="","",SUMIF('SQT Data'!$K:$K,$G31,'SQT Data'!$V:$V)) ->  | AE31: =IFERROR(SUM(AD31/#REF!),"") ->  | AF31: =IFERROR(VLOOKUP($G31,'Technician Summary'!$G$8:$BK$372,7,FALSE),"") ->  | AG31: =IFERROR(VLOOKUP($G31,'Technician Summary'!$G$8:$BK$372,8,FALSE),"") ->  | AI31: =IFERROR(VLOOKUP($G31,'Technician Summary'!$G$8:$BK$372,34,FALSE),"") ->  | AJ31: =IFERROR(VLOOKUP($G31,'Technician Summary'!$G$8:$BK$372,35,FALSE),"") ->  | AL31: =IFERROR(VLOOKUP($G31,'Technician Summary'!$G$8:$BK$372,37,FALSE),"") ->  | AM31: =IFERROR(VLOOKUP($G31,'Technician Summary'!$G$8:$BK$372,38,FALSE),"") ->  | AO31: =COUNTIFS('Drop Validation'!$P:$P,$G31,'Drop Validation'!$F:$F,"In Scope") -> 0 | AP31: =COUNTIFS('Drop Validation'!$P:$P,$G31,'Drop Validation'!$AA:$AA,"Compliant",'Drop Validation'!$F:$F,"In Scope") -> 0
I32: # NPS WO's | J32: # Failures | K32: NPS | L32: SMS Promoter Count | M32: SMS Count | N32: SMS tNPS | O32: Total Repeatable WO | P32: Total Repeats | Q32: Repeats | R32: Total Repeatable WO | S32: Repeat IN | T32: IN Repeat % | U32: Total Repeatable WO | V32: Repeat TC | W32: Repeat TC % | X32: Jobs | Y32: Test Run | Z32: SQT Compliance | AA32: Parameters Tested | AB32: Parameters Passing | AC32: SQT Pass | AD32: Test Passed | AE32: Ingress Test Pass | AF32: FCR WO | AG32: FCR Failures | AH32: FCR | AI32: Jobs | AJ32: Jobs Late | AK32: OTA | AL32: Jobs | AM32: Completed Jobs | AN32: Completion % | AO32: Total Jobs | AP32: Total Valid | AQ32: Drop Validation
I33: =SUMIF(I7:I31,">0") -> 64 | J33: =SUMIF(J7:J31,">0") -> 21.0002
K34: =IFERROR(1-(J33/I33),"") -> 0.6719 | L34: =SUM(L7:L31) -> 212 | M34: =SUM(M7:M31) -> 233 | N34: =IFERROR(SUM(L34/M34),"") -> 0.9099 | O34: =SUM(O7:O31) -> 1126 | P34: =SUM(P7:P31) -> 32 | Q34: =IFERROR(SUM(P34/O34),"") -> 0.0284 | R34: =SUM(R7:R31) -> 484 | S34: =SUM(S7:S31) -> 9 | T34: =IFERROR(SUM(S34/R34),"") -> 0.0186 | U34: =SUM(U7:U31) -> 642 | V34: =SUM(V7:V31) -> 23 | W34: =IFERROR(SUM(V34/U34),"") -> 0.0358 | X34: =SUMIF(X7:X31,">0") -> 481 | Y34: =SUMIF(Y7:Y31,">0") -> 409 | Z34: =IFERROR(SUM(Y34/X34),"") -> 0.8503 | AA34: =SUM(AA7:AA31) -> 3249 | AB34: =SUM(AB7:AB31) -> 2918 | AC34: =IFERROR(SUM(AB34/AA34),"") -> 0.8981 | AD34: =SUM(AD7:AD31) -> 0 | AE34: =IFERROR(SUM(AD34/#REF!),"") ->  | AF34: =SUM(AF7:AF31) -> 628 | AG34: =SUM(AG7:AG31) -> 14 | AH34: =IFERROR(1-AG34/AF34,"") -> 0.9777 | AI34: =SUM(AI7:AI31) -> 446 | AJ34: =SUM(AJ7:AJ31) -> 59 | AK34: =IFERROR(1-AJ34/AI34,"") -> 0.8677 | AL34: =SUM(AL7:AL31) -> 1301 | AM34: =SUM(AM7:AM31) -> 1117 | AN34: =IFERROR(AM34/AL34,"") -> 0.8586 | AO34: =SUM(AO7:AO31) -> 26 | AP34: =SUM(AP7:AP31) -> 16 | AQ34: =IFERROR(AP34/AO34,"") -> 0.6154

Sheet New Orleans
F3: Aisha Alexander
F5: Tech Name | G5: Tech ID | H5: Score | I5: # NPS WO's | J5: # Failures | K5: NPS | L5: SMS Promoter Count | M5: SMS Count | N5: SMS tNPS | O5: Total Repeatable WO | P5: Total Repeats | Q5: Repeats | R5: Total Repeatable WO | S5: Repeat IN | T5: IN Repeat % | U5: Total Repeatable WO | V5: Repeat TC | W5: Repeat TC % | X5: Jobs | Y5: Test Run | Z5: SQT Compliance | AA5: Parameters Tested | AB5: Parameters Passing | AC5: SQT Pass | AD5: Test Passed | AE5: Ingress Test Pass | AF5: FCR WO | AG5: FCR Failures | AH5: FCR | AI5: Jobs | AJ5: Jobs Late | AK5: OTA | AL5: Jobs | AM5: Completed Jobs | AN5: Completion % | AO5: Total Jobs | AP5: Total Valid | AQ5: Drop Validation
F7: Kevin Mcelee | G7: 74634 | H7: =IF(Z7="","",IFERROR(IF(K7>=68.26%,1.25,0)+IF(Q7<=5.04%,2.5,0)+IF(Z7>=90%,2.5,0)+IF(AK7>=96%,1.25,0)+IF(N7>=90%,2.5,0),"")) -> 8.75 | I7: =IFERROR(VLOOKUP($G7,'Technician Summary'!$G$7:$BB$372,2,FALSE),"") -> 8 | J7: =IFERROR(VLOOKUP($G7,'Technician Summary'!$G$7:$BN$372,60,FALSE),"") -> 4 | K7: =IFERROR(1-(J7/I7),"") -> 0.5 | L7: =IF(G7="","",COUNTIFS('SMS tNPS'!DE:DE,G7,'SMS tNPS'!HB:HB,"Yes")) -> 32 | M7: =IFERROR(IF(G7="","",COUNTIFS('SMS tNPS'!DE:DE,G7,'SMS tNPS'!HB:HB,"Yes"))+COUNTIFS('SMS tNPS'!DE:DE,G7,'SMS tNPS'!HB:HB,"No"),"") -> 33 | N7: =IFERROR(SUM(L7/M7),"") -> 0.9697 | O7: =IFERROR(VLOOKUP($G7,'Technician Summary'!$G$7:$BK$372,14,FALSE),"") -> 138 | P7: =IFERROR(VLOOKUP($G7,'Technician Summary'!$G$7:$BK$372,15,FALSE),"") -> 5 | Q7: =IFERROR(SUM(P7/O7),"") -> 0.0362 | R7: =IFERROR(VLOOKUP($G7,'Technician Summary'!$G$7:$BK$372,17,FALSE),"") -> 44 | S7: =IFERROR(VLOOKUP($G7,'Technician Summary'!$G$7:$BK$372,18,FALSE),"") -> 1 | T7: =IFERROR(SUM(S7/R7),"") -> 0.0227 | U7: =IFERROR(VLOOKUP($G7,'Technician Summary'!$G$7:$BK$372,20,FALSE),"") -> 94 | V7: =IFERROR(VLOOKUP($G7,'Technician Summary'!$G$7:$BK$372,21,FALSE),"") -> 4 | W7: =IFERROR(SUM(V7/U7),"") -> 0.0426 | X7: =IF($G7="","",SUMIF('SQT Data'!$K:$K,$G7,'SQT Data'!$R:$R)) -> 103 | Y7: =IF($G7="","",SUMIF('SQT Data'!$K:$K,$G7,'SQT Data'!$S:$S)) -> 102 | Z7: =IFERROR(SUM(Y7/X7),"") -> 0.9903 | AA7: =IF($G7="","",SUMIF('SQT Data'!$K:$K,$G7,'SQT Data'!$U:$U)) -> 811 | AB7: =IF($G7="","",SUMIF('SQT Data'!$K:$K,$G7,'SQT Data'!$V:$V)) -> 733 | AC7: =IFERROR(SUM(AB7/AA7),"") -> 0.9038 | AE7: =IFERROR(SUM(AD7/#REF!),"") ->  | AF7: =IFERROR(VLOOKUP($G7,'Technician Summary'!$G$7:$BK$372,7,FALSE),"") -> 49 | AG7: =IFERROR(VLOOKUP($G7,'Technician Summary'!$G$7:$BK$372,8,FALSE),"") -> 3 | AH7: =IFERROR(1-AG7/AF7,"") -> 0.9388 | AI7: =IFERROR(VLOOKUP($G7,'Technician Summary'!$G$7:$BK$372,34,FALSE),"") -> 40 | AJ7: =IFERROR(VLOOKUP($G7,'Technician Summary'!$G$7:$BK$372,35,FALSE),"") -> 1 | AK7: =IFERROR(1-AJ7/AI7,"") -> 0.975 | AL7: =IFERROR(VLOOKUP($G7,'Technician Summary'!$G$7:$BK$372,37,FALSE),"") -> 147 | AM7: =IFERROR(VLOOKUP($G7,'Technician Summary'!$G$7:$BK$372,38,FALSE),"") -> 138 | AN7: =IFERROR(AM7/AL7,"") -> 0.9388 | AO7: =COUNTIFS('Drop Validation'!$P:$P,$G7,'Drop Validation'!$F:$F,"In Scope") -> 2 | AP7: =COUNTIFS('Drop Validation'!$P:$P,$G7,'Drop Validation'!$AA:$AA,"Compliant",'Drop Validation'!$F:$F,"In Scope") -> 2 | AQ7: =IFERROR(AP7/AO7,"") -> 1
F8: Qaasim Abdul-Razzaq | G8: 56837 | H8: 8.75 | I8: =IFERROR(VLOOKUP($G8,'Technician Summary'!$G$7:$BB$372,2,FALSE),"") -> 9 | J8: =IFERROR(VLOOKUP($G8,'Technician Summary'!$G$7:$BN$372,60,FALSE),"") -> 1.9998 | K8: =IFERROR(1-(J8/I8),"") -> 0.7778 | L8: =IF(G8="","",COUNTIFS('SMS tNPS'!DE:DE,G8,'SMS tNPS'!HB:HB,"Yes")) -> 16 | M8: =IFERROR(IF(G8="","",COUNTIFS('SMS tNPS'!DE:DE,G8,'SMS tNPS'!HB:HB,"Yes"))+COUNTIFS('SMS tNPS'!DE:DE,G8,'SMS tNPS'!HB:HB,"No"),"") -> 16 | N8: =IFERROR(SUM(L8/M8),"") -> 1 | O8: =IFERROR(VLOOKUP($G8,'Technician Summary'!$G$7:$BK$372,14,FALSE),"") -> 84 | P8: =IFERROR(VLOOKUP($G8,'Technician Summary'!$G$7:$BK$372,15,FALSE),"") -> 3 | Q8: =IFERROR(SUM(P8/O8),"") -> 0.0357 | R8: =IFERROR(VLOOKUP($G8,'Technician Summary'!$G$7:$BK$372,17,FALSE),"") -> 26 | S8: =IFERROR(VLOOKUP($G8,'Technician Summary'!$G$7:$BK$372,18,FALSE),"") -> 1 | T8: =IFERROR(SUM(S8/R8),"") -> 0.0385 | U8: =IFERROR(VLOOKUP($G8,'Technician Summary'!$G$7:$BK$372,20,FALSE),"") -> 58 | V8: =IFERROR(VLOOKUP($G8,'Technician Summary'!$G$7:$BK$372,21,FALSE),"") -> 2 | W8: =IFERROR(SUM(V8/U8),"") -> 0.0345 | X8: =IF($G8="","",SUMIF('SQT Data'!$K:$K,$G8,'SQT Data'!$R:$R)) -> 61 | Y8: =IF($G8="","",SUMIF('SQT Data'!$K:$K,$G8,'SQT Data'!$S:$S)) -> 58 | Z8: =IFERROR(SUM(Y8/X8),"") -> 0.9508 | AA8: =IF($G8="","",SUMIF('SQT Data'!$K:$K,$G8,'SQT Data'!$U:$U)) -> 464 | AB8: =IF($G8="","",SUMIF('SQT Data'!$K:$K,$G8,'SQT Data'!$V:$V)) -> 427 | AC8: =IFERROR(SUM(AB8/AA8),"") -> 0.9203 | AE8: =IFERROR(SUM(AD8/#REF!),"") ->  | AF8: =IFERROR(VLOOKUP($G8,'Technician Summary'!$G$7:$BK$372,7,FALSE),"") -> 38 | AG8: =IFERROR(VLOOKUP($G8,'Technician Summary'!$G$7:$BK$372,8,FALSE),"") -> 3 | AH8: =IFERROR(1-AG8/AF8,"") -> 0.9211 | AI8: =IFERROR(VLOOKUP($G8,'Technician Summary'!$G$7:$BK$372,34,FALSE),"") -> 25 | AJ8: =IFERROR(VLOOKUP($G8,'Technician Summary'!$G$7:$BK$372,35,FALSE),"") -> 4 | AK8: =IFERROR(1-AJ8/AI8,"") -> 0.84 | AL8: =IFERROR(VLOOKUP($G8,'Technician Summary'!$G$7:$BK$372,37,FALSE),"") -> 101 | AM8: =IFERROR(VLOOKUP($G8,'Technician Summary'!$G$7:$BK$372,38,FALSE),"") -> 84 | AN8: =IFERROR(AM8/AL8,"") -> 0.8317 | AO8: =COUNTIFS('Drop Validation'!$P:$P,$G8,'Drop Validation'!$F:$F,"In Scope") -> 4 | AP8: =COUNTIFS('Drop Validation'!$P:$P,$G8,'Drop Validation'!$AA:$AA,"Compliant",'Drop Validation'!$F:$F,"In Scope") -> 4 | AQ8: =IFERROR(AP8/AO8,"") -> 1
F9: Deantwin Page | G9: 6098 | H9: 5 | I9: =IFERROR(VLOOKUP($G9,'Technician Summary'!$G$7:$BB$372,2,FALSE),"") -> 6 | J9: =IFERROR(VLOOKUP($G9,'Technician Summary'!$G$7:$BN$372,60,FALSE),"") -> 6 | K9: 0 | L9: =IF(G9="","",COUNTIFS('SMS tNPS'!DE:DE,G9,'SMS tNPS'!HB:HB,"Yes")) -> 23 | M9: =IFERROR(IF(G9="","",COUNTIFS('SMS tNPS'!DE:DE,G9,'SMS tNPS'!HB:HB,"Yes"))+COUNTIFS('SMS tNPS'!DE:DE,G9,'SMS tNPS'!HB:HB,"No"),"") -> 26 | N9: 0.8846 | O9: =IFERROR(VLOOKUP($G9,'Technician Summary'!$G$7:$BK$372,14,FALSE),"") -> 115 | P9: =IFERROR(VLOOKUP($G9,'Technician Summary'!$G$7:$BK$372,15,FALSE),"") -> 5 | Q9: 0.0435 | R9: =IFERROR(VLOOKUP($G9,'Technician Summary'!$G$7:$BK$372,17,FALSE),"") -> 37 | S9: =IFERROR(VLOOKUP($G9,'Technician Summary'!$G$7:$BK$372,18,FALSE),"") -> 2 | T9: 0.0541 | U9: =IFERROR(VLOOKUP($G9,'Technician Summary'!$G$7:$BK$372,20,FALSE),"") -> 78 | V9: =IFERROR(VLOOKUP($G9,'Technician Summary'!$G$7:$BK$372,21,FALSE),"") -> 3 | W9: 0.0385 | X9: =IF($G9="","",SUMIF('SQT Data'!$K:$K,$G9,'SQT Data'!$R:$R)) -> 81 | Y9: =IF($G9="","",SUMIF('SQT Data'!$K:$K,$G9,'SQT Data'!$S:$S)) -> 78 | Z9: 0.963 | AA9: =IF($G9="","",SUMIF('SQT Data'!$K:$K,$G9,'SQT Data'!$U:$U)) -> 615 | AB9: =IF($G9="","",SUMIF('SQT Data'!$K:$K,$G9,'SQT Data'!$V:$V)) -> 563 | AC9: 0.9154 | AE9: =IFERROR(SUM(AD9/#REF!),"") ->  | AF9: =IFERROR(VLOOKUP($G9,'Technician Summary'!$G$7:$BK$372,7,FALSE),"") -> 47 | AG9: =IFERROR(VLOOKUP($G9,'Technician Summary'!$G$7:$BK$372,8,FALSE),"") -> 3 | AH9: 0.9362 | AI9: =IFERROR(VLOOKUP($G9,'Technician Summary'!$G$7:$BK$372,34,FALSE),"") -> 31 | AJ9: =IFERROR(VLOOKUP($G9,'Technician Summary'!$G$7:$BK$372,35,FALSE),"") -> 5 | AK9: 0.8387 | AL9: =IFERROR(VLOOKUP($G9,'Technician Summary'!$G$7:$BK$372,37,FALSE),"") -> 138 | AM9: =IFERROR(VLOOKUP($G9,'Technician Summary'!$G$7:$BK$372,38,FALSE),"") -> 115 | AN9: 0.8333 | AO9: =COUNTIFS('Drop Validation'!$P:$P,$G9,'Drop Validation'!$F:$F,"In Scope") -> 1 | AP9: =COUNTIFS('Drop Validation'!$P:$P,$G9,'Drop Validation'!$AA:$AA,"Compliant",'Drop Validation'!$F:$F,"In Scope") -> 0 | AQ9: 0
F10: Leo Portoda Cunha | G10: 13027 | H10: 7.5 | I10: =IFERROR(VLOOKUP($G10,'Technician Summary'!$G$7:$BB$372,2,FALSE),"") ->  | J10: =IFERROR(VLOOKUP($G10,'Technician Summary'!$G$7:$BN$372,60,FALSE),"") ->  | L10: =IF(G10="","",COUNTIFS('SMS tNPS'!DE:DE,G10,'SMS tNPS'!HB:HB,"Yes")) -> 0 | M10: =IFERROR(IF(G10="","",COUNTIFS('SMS tNPS'!DE:DE,G10,'SMS tNPS'!HB:HB,"Yes"))+COUNTIFS('SMS tNPS'!DE:DE,G10,'SMS tNPS'!HB:HB,"No"),"") -> 0 | O10: =IFERROR(VLOOKUP($G10,'Technician Summary'!$G$7:$BK$372,14,FALSE),"") ->  | P10: =IFERROR(VLOOKUP($G10,'Technician Summary'!$G$7:$BK$372,15,FALSE),"") ->  | R10: =IFERROR(VLOOKUP($G10,'Technician Summary'!$G$7:$BK$372,17,FALSE),"") ->  | S10: =IFERROR(VLOOKUP($G10,'Technician Summary'!$G$7:$BK$372,18,FALSE),"") ->  | U10: =IFERROR(VLOOKUP($G10,'Technician Summary'!$G$7:$BK$372,20,FALSE),"") ->  | V10: =IFERROR(VLOOKUP($G10,'Technician Summary'!$G$7:$BK$372,21,FALSE),"") ->  | X10: =IF($G10="","",SUMIF('SQT Data'!$K:$K,$G10,'SQT Data'!$R:$R)) -> 1 | Y10: =IF($G10="","",SUMIF('SQT Data'!$K:$K,$G10,'SQT Data'!$S:$S)) -> 1 | Z10: 1 | AA10: =IF($G10="","",SUMIF('SQT Data'!$K:$K,$G10,'SQT Data'!$U:$U)) -> 8 | AB10: =IF($G10="","",SUMIF('SQT Data'!$K:$K,$G10,'SQT Data'!$V:$V)) -> 8 | AC10: 1 | AE10: =IFERROR(SUM(AD10/#REF!),"") ->  | AF10: =IFERROR(VLOOKUP($G10,'Technician Summary'!$G$7:$BK$372,7,FALSE),"") ->  | AG10: =IFERROR(VLOOKUP($G10,'Technician Summary'!$G$7:$BK$372,8,FALSE),"") ->  | AI10: =IFERROR(VLOOKUP($G10,'Technician Summary'!$G$7:$BK$372,34,FALSE),"") ->  | AJ10: =IFERROR(VLOOKUP($G10,'Technician Summary'!$G$7:$BK$372,35,FALSE),"") ->  | AL10: =IFERROR(VLOOKUP($G10,'Technician Summary'!$G$7:$BK$372,37,FALSE),"") ->  | AM10: =IFERROR(VLOOKUP($G10,'Technician Summary'!$G$7:$BK$372,38,FALSE),"") ->  | AO10: =COUNTIFS('Drop Validation'!$P:$P,$G10,'Drop Validation'!$F:$F,"In Scope") -> 0 | AP10: =COUNTIFS('Drop Validation'!$P:$P,$G10,'Drop Validation'!$AA:$AA,"Compliant",'Drop Validation'!$F:$F,"In Scope") -> 0
B11: Home | F11: Hasheem Cook | G11: 42232 | H11: 5 | I11: =IFERROR(VLOOKUP($G11,'Technician Summary'!$G$7:$BB$372,2,FALSE),"") -> 1 | J11: =IFERROR(VLOOKUP($G11,'Technician Summary'!$G$7:$BN$372,60,FALSE),"") -> 0 | K11: 1 | L11: =IF(G11="","",COUNTIFS('SMS tNPS'!DE:DE,G11,'SMS tNPS'!HB:HB,"Yes")) -> 4 | M11: =IFERROR(IF(G11="","",COUNTIFS('SMS tNPS'!DE:DE,G11,'SMS tNPS'!HB:HB,"Yes"))+COUNTIFS('SMS tNPS'!DE:DE,G11,'SMS tNPS'!HB:HB,"No"),"") -> 5 | N11: 0.8 | O11: =IFERROR(VLOOKUP($G11,'Technician Summary'!$G$7:$BK$372,14,FALSE),"") -> 30 | P11: =IFERROR(VLOOKUP($G11,'Technician Summary'!$G$7:$BK$372,15,FALSE),"") -> 2 | Q11: 0.0667 | R11: =IFERROR(VLOOKUP($G11,'Technician Summary'!$G$7:$BK$372,17,FALSE),"") -> 9 | S11: =IFERROR(VLOOKUP($G11,'Technician Summary'!$G$7:$BK$372,18,FALSE),"") -> 0 | T11: 0 | U11: =IFERROR(VLOOKUP($G11,'Technician Summary'!$G$7:$BK$372,20,FALSE),"") -> 21 | V11: =IFERROR(VLOOKUP($G11,'Technician Summary'!$G$7:$BK$372,21,FALSE),"") -> 2 | W11: 0.0952 | X11: =IF($G11="","",SUMIF('SQT Data'!$K:$K,$G11,'SQT Data'!$R:$R)) -> 20 | Y11: =IF($G11="","",SUMIF('SQT Data'!$K:$K,$G11,'SQT Data'!$S:$S)) -> 20 | Z11: 1 | AA11: =IF($G11="","",SUMIF('SQT Data'!$K:$K,$G11,'SQT Data'!$U:$U)) -> 160 | AB11: =IF($G11="","",SUMIF('SQT Data'!$K:$K,$G11,'SQT Data'!$V:$V)) -> 152 | AC11: 0.95 | AE11: =IFERROR(SUM(AD11/#REF!),"") ->  | AF11: =IFERROR(VLOOKUP($G11,'Technician Summary'!$G$7:$BK$372,7,FALSE),"") -> 13 | AG11: =IFERROR(VLOOKUP($G11,'Technician Summary'!$G$7:$BK$372,8,FALSE),"") -> 1 | AH11: 0.9231 | AI11: =IFERROR(VLOOKUP($G11,'Technician Summary'!$G$7:$BK$372,34,FALSE),"") -> 9 | AJ11: =IFERROR(VLOOKUP($G11,'Technician Summary'!$G$7:$BK$372,35,FALSE),"") -> 0 | AK11: 1 | AL11: =IFERROR(VLOOKUP($G11,'Technician Summary'!$G$7:$BK$372,37,FALSE),"") -> 40 | AM11: =IFERROR(VLOOKUP($G11,'Technician Summary'!$G$7:$BK$372,38,FALSE),"") -> 30 | AN11: 0.75 | AO11: =COUNTIFS('Drop Validation'!$P:$P,$G11,'Drop Validation'!$F:$F,"In Scope") -> 0 | AP11: =COUNTIFS('Drop Validation'!$P:$P,$G11,'Drop Validation'!$AA:$AA,"Compliant",'Drop Validation'!$F:$F,"In Scope") -> 0
F12: Lucius Jackson | G12: 84884 | H12: 2.5 | I12: =IFERROR(VLOOKUP($G12,'Technician Summary'!$G$7:$BB$372,2,FALSE),"") -> 2 | J12: =IFERROR(VLOOKUP($G12,'Technician Summary'!$G$7:$BN$372,60,FALSE),"") -> 2 | K12: 0 | L12: =IF(G12="","",COUNTIFS('SMS tNPS'!DE:DE,G12,'SMS tNPS'!HB:HB,"Yes")) -> 10 | M12: =IFERROR(IF(G12="","",COUNTIFS('SMS tNPS'!DE:DE,G12,'SMS tNPS'!HB:HB,"Yes"))+COUNTIFS('SMS tNPS'!DE:DE,G12,'SMS tNPS'!HB:HB,"No"),"") -> 13 | N12: 0.7692 | O12: =IFERROR(VLOOKUP($G12,'Technician Summary'!$G$7:$BK$372,14,FALSE),"") -> 64 | P12: =IFERROR(VLOOKUP($G12,'Technician Summary'!$G$7:$BK$372,15,FALSE),"") -> 4 | Q12: 0.0625 | R12: =IFERROR(VLOOKUP($G12,'Technician Summary'!$G$7:$BK$372,17,FALSE),"") -> 18 | S12: =IFERROR(VLOOKUP($G12,'Technician Summary'!$G$7:$BK$372,18,FALSE),"") -> 2 | T12: 0.1111 | U12: =IFERROR(VLOOKUP($G12,'Technician Summary'!$G$7:$BK$372,20,FALSE),"") -> 46 | V12: =IFERROR(VLOOKUP($G12,'Technician Summary'!$G$7:$BK$372,21,FALSE),"") -> 2 | W12: 0.0435 | X12: =IF($G12="","",SUMIF('SQT Data'!$K:$K,$G12,'SQT Data'!$R:$R)) -> 48 | Y12: =IF($G12="","",SUMIF('SQT Data'!$K:$K,$G12,'SQT Data'!$S:$S)) -> 47 | Z12: 0.9792 | AA12: =IF($G12="","",SUMIF('SQT Data'!$K:$K,$G12,'SQT Data'!$U:$U)) -> 369 | AB12: =IF($G12="","",SUMIF('SQT Data'!$K:$K,$G12,'SQT Data'!$V:$V)) -> 355 | AC12: 0.9621 | AE12: =IFERROR(SUM(AD12/#REF!),"") ->  | AF12: =IFERROR(VLOOKUP($G12,'Technician Summary'!$G$7:$BK$372,7,FALSE),"") -> 32 | AG12: =IFERROR(VLOOKUP($G12,'Technician Summary'!$G$7:$BK$372,8,FALSE),"") -> 2 | AH12: 0.9375 | AI12: =IFERROR(VLOOKUP($G12,'Technician Summary'!$G$7:$BK$372,34,FALSE),"") -> 17 | AJ12: =IFERROR(VLOOKUP($G12,'Technician Summary'!$G$7:$BK$372,35,FALSE),"") -> 1 | AK12: 0.9412 | AL12: =IFERROR(VLOOKUP($G12,'Technician Summary'!$G$7:$BK$372,37,FALSE),"") -> 68 | AM12: =IFERROR(VLOOKUP($G12,'Technician Summary'!$G$7:$BK$372,38,FALSE),"") -> 61 | AN12: 0.8971 | AO12: =COUNTIFS('Drop Validation'!$P:$P,$G12,'Drop Validation'!$F:$F,"In Scope") -> 0 | AP12: =COUNTIFS('Drop Validation'!$P:$P,$G12,'Drop Validation'!$AA:$AA,"Compliant",'Drop Validation'!$F:$F,"In Scope") -> 0
B13: Performance Metrics | I13: =IFERROR(VLOOKUP($G13,'Technician Summary'!$G$7:$BB$372,2,FALSE),"") ->  | J13: =IFERROR(VLOOKUP($G13,'Technician Summary'!$G$7:$BN$372,60,FALSE),"") ->  | L13: =IF(G13="","",COUNTIFS('SMS tNPS'!DE:DE,G13,'SMS tNPS'!HB:HB,"Yes")) ->  | M13: =IFERROR(IF(G13="","",COUNTIFS('SMS tNPS'!DE:DE,G13,'SMS tNPS'!HB:HB,"Yes"))+COUNTIFS('SMS tNPS'!DE:DE,G13,'SMS tNPS'!HB:HB,"No"),"") ->  | O13: =IFERROR(VLOOKUP($G13,'Technician Summary'!$G$7:$BK$372,14,FALSE),"") ->  | P13: =IFERROR(VLOOKUP($G13,'Technician Summary'!$G$7:$BK$372,15,FALSE),"") ->  | R13: =IFERROR(VLOOKUP($G13,'Technician Summary'!$G$7:$BK$372,17,FALSE),"") ->  | S13: =IFERROR(VLOOKUP($G13,'Technician Summary'!$G$7:$BK$372,18,FALSE),"") ->  | U13: =IFERROR(VLOOKUP($G13,'Technician Summary'!$G$7:$BK$372,20,FALSE),"") ->  | V13: =IFERROR(VLOOKUP($G13,'Technician Summary'!$G$7:$BK$372,21,FALSE),"") ->  | X13: =IF($G13="","",SUMIF('SQT Data'!$K:$K,$G13,'SQT Data'!$R:$R)) ->  | Y13: =IF($G13="","",SUMIF('SQT Data'!$K:$K,$G13,'SQT Data'!$S:$S)) ->  | AA13: =IF($G13="","",SUMIF('SQT Data'!$K:$K,$G13,'SQT Data'!$U:$U)) ->  | AB13: =IF($G13="","",SUMIF('SQT Data'!$K:$K,$G13,'SQT Data'!$V:$V)) ->  | AE13: =IFERROR(SUM(AD13/#REF!),"") ->  | AF13: =IFERROR(VLOOKUP($G13,'Technician Summary'!$G$7:$BK$372,7,FALSE),"") ->  | AG13: =IFERROR(VLOOKUP($G13,'Technician Summary'!$G$7:$BK$372,8,FALSE),"") ->  | AI13: =IFERROR(VLOOKUP($G13,'Technician Summary'!$G$7:$BK$372,34,FALSE),"") ->  | AJ13: =IFERROR(VLOOKUP($G13,'Technician Summary'!$G$7:$BK$372,35,FALSE),"") ->  | AL13: =IFERROR(VLOOKUP($G13,'Technician Summary'!$G$7:$BK$372,37,FALSE),"") ->  | AM13: =IFERROR(VLOOKUP($G13,'Technician Summary'!$G$7:$BK$372,38,FALSE),"") ->  | AO13: =COUNTIFS('Drop Validation'!$P:$P,$G13,'Drop Validation'!$F:$F,"In Scope") -> 0 | AP13: =COUNTIFS('Drop Validation'!$P:$P,$G13,'Drop Validation'!$AA:$AA,"Compliant",'Drop Validation'!$F:$F,"In Scope") -> 0
B14: Gainesville | I14: =IFERROR(VLOOKUP($G14,'Technician Summary'!$G$7:$BB$372,2,FALSE),"") ->  | J14: =IFERROR(VLOOKUP($G14,'Technician Summary'!$G$7:$BN$372,60,FALSE),"") ->  | L14: =IF(G14="","",COUNTIFS('SMS tNPS'!DE:DE,G14,'SMS tNPS'!HB:HB,"Yes")) ->  | M14: =IFERROR(IF(G14="","",COUNTIFS('SMS tNPS'!DE:DE,G14,'SMS tNPS'!HB:HB,"Yes"))+COUNTIFS('SMS tNPS'!DE:DE,G14,'SMS tNPS'!HB:HB,"No"),"") ->  | O14: =IFERROR(VLOOKUP($G14,'Technician Summary'!$G$7:$BK$372,14,FALSE),"") ->  | P14: =IFERROR(VLOOKUP($G14,'Technician Summary'!$G$7:$BK$372,15,FALSE),"") ->  | R14: =IFERROR(VLOOKUP($G14,'Technician Summary'!$G$7:$BK$372,17,FALSE),"") ->  | S14: =IFERROR(VLOOKUP($G14,'Technician Summary'!$G$7:$BK$372,18,FALSE),"") ->  | U14: =IFERROR(VLOOKUP($G14,'Technician Summary'!$G$7:$BK$372,20,FALSE),"") ->  | V14: =IFERROR(VLOOKUP($G14,'Technician Summary'!$G$7:$BK$372,21,FALSE),"") ->  | X14: =IF($G14="","",SUMIF('SQT Data'!$K:$K,$G14,'SQT Data'!$R:$R)) ->  | Y14: =IF($G14="","",SUMIF('SQT Data'!$K:$K,$G14,'SQT Data'!$S:$S)) ->  | AA14: =IF($G14="","",SUMIF('SQT Data'!$K:$K,$G14,'SQT Data'!$U:$U)) ->  | AB14: =IF($G14="","",SUMIF('SQT Data'!$K:$K,$G14,'SQT Data'!$V:$V)) ->  | AE14: =IFERROR(SUM(AD14/#REF!),"") ->  | AF14: =IFERROR(VLOOKUP($G14,'Technician Summary'!$G$7:$BK$372,7,FALSE),"") ->  | AG14: =IFERROR(VLOOKUP($G14,'Technician Summary'!$G$7:$BK$372,8,FALSE),"") ->  | AI14: =IFERROR(VLOOKUP($G14,'Technician Summary'!$G$7:$BK$372,34,FALSE),"") ->  | AJ14: =IFERROR(VLOOKUP($G14,'Technician Summary'!$G$7:$BK$372,35,FALSE),"") ->  | AL14: =IFERROR(VLOOKUP($G14,'Technician Summary'!$G$7:$BK$372,37,FALSE),"") ->  | AM14: =IFERROR(VLOOKUP($G14,'Technician Summary'!$G$7:$BK$372,38,FALSE),"") ->  | AO14: =COUNTIFS('Drop Validation'!$P:$P,$G14,'Drop Validation'!$F:$F,"In Scope") -> 0 | AP14: =COUNTIFS('Drop Validation'!$P:$P,$G14,'Drop Validation'!$AA:$AA,"Compliant",'Drop Validation'!$F:$F,"In Scope") -> 0
B15: Macon | I15: =IFERROR(VLOOKUP($G15,'Technician Summary'!$G$7:$BB$372,2,FALSE),"") ->  | J15: =IFERROR(VLOOKUP($G15,'Technician Summary'!$G$7:$BN$372,60,FALSE),"") ->  | L15: =IF(G15="","",COUNTIFS('SMS tNPS'!DE:DE,G15,'SMS tNPS'!HB:HB,"Yes")) ->  | M15: =IFERROR(IF(G15="","",COUNTIFS('SMS tNPS'!DE:DE,G15,'SMS tNPS'!HB:HB,"Yes"))+COUNTIFS('SMS tNPS'!DE:DE,G15,'SMS tNPS'!HB:HB,"No"),"") ->  | O15: =IFERROR(VLOOKUP($G15,'Technician Summary'!$G$7:$BK$372,14,FALSE),"") ->  | P15: =IFERROR(VLOOKUP($G15,'Technician Summary'!$G$7:$BK$372,15,FALSE),"") ->  | R15: =IFERROR(VLOOKUP($G15,'Technician Summary'!$G$7:$BK$372,17,FALSE),"") ->  | S15: =IFERROR(VLOOKUP($G15,'Technician Summary'!$G$7:$BK$372,18,FALSE),"") ->  | U15: =IFERROR(VLOOKUP($G15,'Technician Summary'!$G$7:$BK$372,20,FALSE),"") ->  | V15: =IFERROR(VLOOKUP($G15,'Technician Summary'!$G$7:$BK$372,21,FALSE),"") ->  | X15: =IF($G15="","",SUMIF('SQT Data'!$K:$K,$G15,'SQT Data'!$R:$R)) ->  | Y15: =IF($G15="","",SUMIF('SQT Data'!$K:$K,$G15,'SQT Data'!$S:$S)) ->  | AA15: =IF($G15="","",SUMIF('SQT Data'!$K:$K,$G15,'SQT Data'!$U:$U)) ->  | AB15: =IF($G15="","",SUMIF('SQT Data'!$K:$K,$G15,'SQT Data'!$V:$V)) ->  | AE15: =IFERROR(SUM(AD15/#REF!),"") ->  | AF15: =IFERROR(VLOOKUP($G15,'Technician Summary'!$G$7:$BK$372,7,FALSE),"") ->  | AG15: =IFERROR(VLOOKUP($G15,'Technician Summary'!$G$7:$BK$372,8,FALSE),"") ->  | AI15: =IFERROR(VLOOKUP($G15,'Technician Summary'!$G$7:$BK$372,34,FALSE),"") ->  | AJ15: =IFERROR(VLOOKUP($G15,'Technician Summary'!$G$7:$BK$372,35,FALSE),"") ->  | AL15: =IFERROR(VLOOKUP($G15,'Technician Summary'!$G$7:$BK$372,37,FALSE),"") ->  | AM15: =IFERROR(VLOOKUP($G15,'Technician Summary'!$G$7:$BK$372,38,FALSE),"") ->  | AO15: =COUNTIFS('Drop Validation'!$P:$P,$G15,'Drop Validation'!$F:$F,"In Scope") -> 0 | AP15: =COUNTIFS('Drop Validation'!$P:$P,$G15,'Drop Validation'!$AA:$AA,"Compliant",'Drop Validation'!$F:$F,"In Scope") -> 0
B16: New Orleans | I16: =IFERROR(VLOOKUP($G16,'Technician Summary'!$G$7:$BB$372,2,FALSE),"") ->  | J16: =IFERROR(VLOOKUP($G16,'Technician Summary'!$G$7:$BN$372,60,FALSE),"") ->  | L16: =IF(G16="","",COUNTIFS('SMS tNPS'!DE:DE,G16,'SMS tNPS'!HB:HB,"Yes")) ->  | M16: =IFERROR(IF(G16="","",COUNTIFS('SMS tNPS'!DE:DE,G16,'SMS tNPS'!HB:HB,"Yes"))+COUNTIFS('SMS tNPS'!DE:DE,G16,'SMS tNPS'!HB:HB,"No"),"") ->  | O16: =IFERROR(VLOOKUP($G16,'Technician Summary'!$G$7:$BK$372,14,FALSE),"") ->  | P16: =IFERROR(VLOOKUP($G16,'Technician Summary'!$G$7:$BK$372,15,FALSE),"") ->  | R16: =IFERROR(VLOOKUP($G16,'Technician Summary'!$G$7:$BK$372,17,FALSE),"") ->  | S16: =IFERROR(VLOOKUP($G16,'Technician Summary'!$G$7:$BK$372,18,FALSE),"") ->  | U16: =IFERROR(VLOOKUP($G16,'Technician Summary'!$G$7:$BK$372,20,FALSE),"") ->  | V16: =IFERROR(VLOOKUP($G16,'Technician Summary'!$G$7:$BK$372,21,FALSE),"") ->  | X16: =IF($G16="","",SUMIF('SQT Data'!$K:$K,$G16,'SQT Data'!$R:$R)) ->  | Y16: =IF($G16="","",SUMIF('SQT Data'!$K:$K,$G16,'SQT Data'!$S:$S)) ->  | AA16: =IF($G16="","",SUMIF('SQT Data'!$K:$K,$G16,'SQT Data'!$U:$U)) ->  | AB16: =IF($G16="","",SUMIF('SQT Data'!$K:$K,$G16,'SQT Data'!$V:$V)) ->  | AE16: =IFERROR(SUM(AD16/#REF!),"") ->  | AF16: =IFERROR(VLOOKUP($G16,'Technician Summary'!$G$7:$BK$372,7,FALSE),"") ->  | AG16: =IFERROR(VLOOKUP($G16,'Technician Summary'!$G$7:$BK$372,8,FALSE),"") ->  | AI16: =IFERROR(VLOOKUP($G16,'Technician Summary'!$G$7:$BK$372,34,FALSE),"") ->  | AJ16: =IFERROR(VLOOKUP($G16,'Technician Summary'!$G$7:$BK$372,35,FALSE),"") ->  | AL16: =IFERROR(VLOOKUP($G16,'Technician Summary'!$G$7:$BK$372,37,FALSE),"") ->  | AM16: =IFERROR(VLOOKUP($G16,'Technician Summary'!$G$7:$BK$372,38,FALSE),"") ->  | AO16: =COUNTIFS('Drop Validation'!$P:$P,$G16,'Drop Validation'!$F:$F,"In Scope") -> 0 | AP16: =COUNTIFS('Drop Validation'!$P:$P,$G16,'Drop Validation'!$AA:$AA,"Compliant",'Drop Validation'!$F:$F,"In Scope") -> 0
B17: Hampton Roads | I17: =IFERROR(VLOOKUP($G17,'Technician Summary'!$G$7:$BB$372,2,FALSE),"") ->  | J17: =IFERROR(VLOOKUP($G17,'Technician Summary'!$G$7:$BN$372,60,FALSE),"") ->  | L17: =IF(G17="","",COUNTIFS('SMS tNPS'!DE:DE,G17,'SMS tNPS'!HB:HB,"Yes")) ->  | M17: =IFERROR(IF(G17="","",COUNTIFS('SMS tNPS'!DE:DE,G17,'SMS tNPS'!HB:HB,"Yes"))+COUNTIFS('SMS tNPS'!DE:DE,G17,'SMS tNPS'!HB:HB,"No"),"") ->  | O17: =IFERROR(VLOOKUP($G17,'Technician Summary'!$G$7:$BK$372,14,FALSE),"") ->  | P17: =IFERROR(VLOOKUP($G17,'Technician Summary'!$G$7:$BK$372,15,FALSE),"") ->  | R17: =IFERROR(VLOOKUP($G17,'Technician Summary'!$G$7:$BK$372,17,FALSE),"") ->  | S17: =IFERROR(VLOOKUP($G17,'Technician Summary'!$G$7:$BK$372,18,FALSE),"") ->  | U17: =IFERROR(VLOOKUP($G17,'Technician Summary'!$G$7:$BK$372,20,FALSE),"") ->  | V17: =IFERROR(VLOOKUP($G17,'Technician Summary'!$G$7:$BK$372,21,FALSE),"") ->  | X17: =IF($G17="","",SUMIF('SQT Data'!$K:$K,$G17,'SQT Data'!$R:$R)) ->  | Y17: =IF($G17="","",SUMIF('SQT Data'!$K:$K,$G17,'SQT Data'!$S:$S)) ->  | AA17: =IF($G17="","",SUMIF('SQT Data'!$K:$K,$G17,'SQT Data'!$U:$U)) ->  | AB17: =IF($G17="","",SUMIF('SQT Data'!$K:$K,$G17,'SQT Data'!$V:$V)) ->  | AE17: =IFERROR(SUM(AD17/#REF!),"") ->  | AF17: =IFERROR(VLOOKUP($G17,'Technician Summary'!$G$7:$BK$372,7,FALSE),"") ->  | AG17: =IFERROR(VLOOKUP($G17,'Technician Summary'!$G$7:$BK$372,8,FALSE),"") ->  | AI17: =IFERROR(VLOOKUP($G17,'Technician Summary'!$G$7:$BK$372,34,FALSE),"") ->  | AJ17: =IFERROR(VLOOKUP($G17,'Technician Summary'!$G$7:$BK$372,35,FALSE),"") ->  | AL17: =IFERROR(VLOOKUP($G17,'Technician Summary'!$G$7:$BK$372,37,FALSE),"") ->  | AM17: =IFERROR(VLOOKUP($G17,'Technician Summary'!$G$7:$BK$372,38,FALSE),"") ->  | AO17: =COUNTIFS('Drop Validation'!$P:$P,$G17,'Drop Validation'!$F:$F,"In Scope") -> 0 | AP17: =COUNTIFS('Drop Validation'!$P:$P,$G17,'Drop Validation'!$AA:$AA,"Compliant",'Drop Validation'!$F:$F,"In Scope") -> 0
B18: Baton Rouge | I18: =IFERROR(VLOOKUP($G18,'Technician Summary'!$G$7:$BB$372,2,FALSE),"") ->  | J18: =IFERROR(VLOOKUP($G18,'Technician Summary'!$G$7:$BN$372,60,FALSE),"") ->  | L18: =IF(G18="","",COUNTIFS('SMS tNPS'!DE:DE,G18,'SMS tNPS'!HB:HB,"Yes")) ->  | M18: =IFERROR(IF(G18="","",COUNTIFS('SMS tNPS'!DE:DE,G18,'SMS tNPS'!HB:HB,"Yes"))+COUNTIFS('SMS tNPS'!DE:DE,G18,'SMS tNPS'!HB:HB,"No"),"") ->  | O18: =IFERROR(VLOOKUP($G18,'Technician Summary'!$G$7:$BK$372,14,FALSE),"") ->  | P18: =IFERROR(VLOOKUP($G18,'Technician Summary'!$G$7:$BK$372,15,FALSE),"") ->  | R18: =IFERROR(VLOOKUP($G18,'Technician Summary'!$G$7:$BK$372,17,FALSE),"") ->  | S18: =IFERROR(VLOOKUP($G18,'Technician Summary'!$G$7:$BK$372,18,FALSE),"") ->  | U18: =IFERROR(VLOOKUP($G18,'Technician Summary'!$G$7:$BK$372,20,FALSE),"") ->  | V18: =IFERROR(VLOOKUP($G18,'Technician Summary'!$G$7:$BK$372,21,FALSE),"") ->  | X18: =IF($G18="","",SUMIF('SQT Data'!$K:$K,$G18,'SQT Data'!$R:$R)) ->  | Y18: =IF($G18="","",SUMIF('SQT Data'!$K:$K,$G18,'SQT Data'!$S:$S)) ->  | AA18: =IF($G18="","",SUMIF('SQT Data'!$K:$K,$G18,'SQT Data'!$U:$U)) ->  | AB18: =IF($G18="","",SUMIF('SQT Data'!$K:$K,$G18,'SQT Data'!$V:$V)) ->  | AE18: =IFERROR(SUM(AD18/#REF!),"") ->  | AF18: =IFERROR(VLOOKUP($G18,'Technician Summary'!$G$7:$BK$372,7,FALSE),"") ->  | AG18: =IFERROR(VLOOKUP($G18,'Technician Summary'!$G$7:$BK$372,8,FALSE),"") ->  | AI18: =IFERROR(VLOOKUP($G18,'Technician Summary'!$G$7:$BK$372,34,FALSE),"") ->  | AJ18: =IFERROR(VLOOKUP($G18,'Technician Summary'!$G$7:$BK$372,35,FALSE),"") ->  | AL18: =IFERROR(VLOOKUP($G18,'Technician Summary'!$G$7:$BK$372,37,FALSE),"") ->  | AM18: =IFERROR(VLOOKUP($G18,'Technician Summary'!$G$7:$BK$372,38,FALSE),"") ->  | AO18: =COUNTIFS('Drop Validation'!$P:$P,$G18,'Drop Validation'!$F:$F,"In Scope") -> 0 | AP18: =COUNTIFS('Drop Validation'!$P:$P,$G18,'Drop Validation'!$AA:$AA,"Compliant",'Drop Validation'!$F:$F,"In Scope") -> 0
B19: Roanoke | I19: =IFERROR(VLOOKUP($G19,'Technician Summary'!$G$7:$BB$372,2,FALSE),"") ->  | J19: =IFERROR(VLOOKUP($G19,'Technician Summary'!$G$7:$BN$372,60,FALSE),"") ->  | L19: =IF(G19="","",COUNTIFS('SMS tNPS'!DE:DE,G19,'SMS tNPS'!HB:HB,"Yes")) ->  | M19: =IFERROR(IF(G19="","",COUNTIFS('SMS tNPS'!DE:DE,G19,'SMS tNPS'!HB:HB,"Yes"))+COUNTIFS('SMS tNPS'!DE:DE,G19,'SMS tNPS'!HB:HB,"No"),"") ->  | O19: =IFERROR(VLOOKUP($G19,'Technician Summary'!$G$7:$BK$372,14,FALSE),"") ->  | P19: =IFERROR(VLOOKUP($G19,'Technician Summary'!$G$7:$BK$372,15,FALSE),"") ->  | R19: =IFERROR(VLOOKUP($G19,'Technician Summary'!$G$7:$BK$372,17,FALSE),"") ->  | S19: =IFERROR(VLOOKUP($G19,'Technician Summary'!$G$7:$BK$372,18,FALSE),"") ->  | U19: =IFERROR(VLOOKUP($G19,'Technician Summary'!$G$7:$BK$372,20,FALSE),"") ->  | V19: =IFERROR(VLOOKUP($G19,'Technician Summary'!$G$7:$BK$372,21,FALSE),"") ->  | X19: =IF($G19="","",SUMIF('SQT Data'!$K:$K,$G19,'SQT Data'!$R:$R)) ->  | Y19: =IF($G19="","",SUMIF('SQT Data'!$K:$K,$G19,'SQT Data'!$S:$S)) ->  | AA19: =IF($G19="","",SUMIF('SQT Data'!$K:$K,$G19,'SQT Data'!$U:$U)) ->  | AB19: =IF($G19="","",SUMIF('SQT Data'!$K:$K,$G19,'SQT Data'!$V:$V)) ->  | AE19: =IFERROR(SUM(AD19/#REF!),"") ->  | AF19: =IFERROR(VLOOKUP($G19,'Technician Summary'!$G$7:$BK$372,7,FALSE),"") ->  | AG19: =IFERROR(VLOOKUP($G19,'Technician Summary'!$G$7:$BK$372,8,FALSE),"") ->  | AI19: =IFERROR(VLOOKUP($G19,'Technician Summary'!$G$7:$BK$372,34,FALSE),"") ->  | AJ19: =IFERROR(VLOOKUP($G19,'Technician Summary'!$G$7:$BK$372,35,FALSE),"") ->  | AL19: =IFERROR(VLOOKUP($G19,'Technician Summary'!$G$7:$BK$372,37,FALSE),"") ->  | AM19: =IFERROR(VLOOKUP($G19,'Technician Summary'!$G$7:$BK$372,38,FALSE),"") ->  | AO19: =COUNTIFS('Drop Validation'!$P:$P,$G19,'Drop Validation'!$F:$F,"In Scope") -> 0 | AP19: =COUNTIFS('Drop Validation'!$P:$P,$G19,'Drop Validation'!$AA:$AA,"Compliant",'Drop Validation'!$F:$F,"In Scope") -> 0
B20: Gulf Coast | I20: =IFERROR(VLOOKUP($G20,'Technician Summary'!$G$7:$BB$372,2,FALSE),"") ->  | J20: =IFERROR(VLOOKUP($G20,'Technician Summary'!$G$7:$BN$372,60,FALSE),"") ->  | L20: =IF(G20="","",COUNTIFS('SMS tNPS'!DE:DE,G20,'SMS tNPS'!HB:HB,"Yes")) ->  | M20: =IFERROR(IF(G20="","",COUNTIFS('SMS tNPS'!DE:DE,G20,'SMS tNPS'!HB:HB,"Yes"))+COUNTIFS('SMS tNPS'!DE:DE,G20,'SMS tNPS'!HB:HB,"No"),"") ->  | O20: =IFERROR(VLOOKUP($G20,'Technician Summary'!$G$7:$BK$372,14,FALSE),"") ->  | P20: =IFERROR(VLOOKUP($G20,'Technician Summary'!$G$7:$BK$372,15,FALSE),"") ->  | R20: =IFERROR(VLOOKUP($G20,'Technician Summary'!$G$7:$BK$372,17,FALSE),"") ->  | S20: =IFERROR(VLOOKUP($G20,'Technician Summary'!$G$7:$BK$372,18,FALSE),"") ->  | U20: =IFERROR(VLOOKUP($G20,'Technician Summary'!$G$7:$BK$372,20,FALSE),"") ->  | V20: =IFERROR(VLOOKUP($G20,'Technician Summary'!$G$7:$BK$372,21,FALSE),"") ->  | X20: =IF($G20="","",SUMIF('SQT Data'!$K:$K,$G20,'SQT Data'!$R:$R)) ->  | Y20: =IF($G20="","",SUMIF('SQT Data'!$K:$K,$G20,'SQT Data'!$S:$S)) ->  | AA20: =IF($G20="","",SUMIF('SQT Data'!$K:$K,$G20,'SQT Data'!$U:$U)) ->  | AB20: =IF($G20="","",SUMIF('SQT Data'!$K:$K,$G20,'SQT Data'!$V:$V)) ->  | AE20: =IFERROR(SUM(AD20/#REF!),"") ->  | AF20: =IFERROR(VLOOKUP($G20,'Technician Summary'!$G$7:$BK$372,7,FALSE),"") ->  | AG20: =IFERROR(VLOOKUP($G20,'Technician Summary'!$G$7:$BK$372,8,FALSE),"") ->  | AI20: =IFERROR(VLOOKUP($G20,'Technician Summary'!$G$7:$BK$372,34,FALSE),"") ->  | AJ20: =IFERROR(VLOOKUP($G20,'Technician Summary'!$G$7:$BK$372,35,FALSE),"") ->  | AL20: =IFERROR(VLOOKUP($G20,'Technician Summary'!$G$7:$BK$372,37,FALSE),"") ->  | AM20: =IFERROR(VLOOKUP($G20,'Technician Summary'!$G$7:$BK$372,38,FALSE),"") ->  | AO20: =COUNTIFS('Drop Validation'!$P:$P,$G20,'Drop Validation'!$F:$F,"In Scope") -> 0 | AP20: =COUNTIFS('Drop Validation'!$P:$P,$G20,'Drop Validation'!$AA:$AA,"Compliant",'Drop Validation'!$F:$F,"In Scope") -> 0
B21: Oklahoma City | I21: =IFERROR(VLOOKUP($G21,'Technician Summary'!$G$7:$BB$372,2,FALSE),"") ->  | J21: =IFERROR(VLOOKUP($G21,'Technician Summary'!$G$7:$BN$372,60,FALSE),"") ->  | L21: =IF(G21="","",COUNTIFS('SMS tNPS'!DE:DE,G21,'SMS tNPS'!HB:HB,"Yes")) ->  | M21: =IFERROR(IF(G21="","",COUNTIFS('SMS tNPS'!DE:DE,G21,'SMS tNPS'!HB:HB,"Yes"))+COUNTIFS('SMS tNPS'!DE:DE,G21,'SMS tNPS'!HB:HB,"No"),"") ->  | O21: =IFERROR(VLOOKUP($G21,'Technician Summary'!$G$7:$BK$372,14,FALSE),"") ->  | P21: =IFERROR(VLOOKUP($G21,'Technician Summary'!$G$7:$BK$372,15,FALSE),"") ->  | R21: =IFERROR(VLOOKUP($G21,'Technician Summary'!$G$7:$BK$372,17,FALSE),"") ->  | S21: =IFERROR(VLOOKUP($G21,'Technician Summary'!$G$7:$BK$372,18,FALSE),"") ->  | U21: =IFERROR(VLOOKUP($G21,'Technician Summary'!$G$7:$BK$372,20,FALSE),"") ->  | V21: =IFERROR(VLOOKUP($G21,'Technician Summary'!$G$7:$BK$372,21,FALSE),"") ->  | X21: =IF($G21="","",SUMIF('SQT Data'!$K:$K,$G21,'SQT Data'!$R:$R)) ->  | Y21: =IF($G21="","",SUMIF('SQT Data'!$K:$K,$G21,'SQT Data'!$S:$S)) ->  | AA21: =IF($G21="","",SUMIF('SQT Data'!$K:$K,$G21,'SQT Data'!$U:$U)) ->  | AB21: =IF($G21="","",SUMIF('SQT Data'!$K:$K,$G21,'SQT Data'!$V:$V)) ->  | AE21: =IFERROR(SUM(AD21/#REF!),"") ->  | AF21: =IFERROR(VLOOKUP($G21,'Technician Summary'!$G$7:$BK$372,7,FALSE),"") ->  | AG21: =IFERROR(VLOOKUP($G21,'Technician Summary'!$G$7:$BK$372,8,FALSE),"") ->  | AI21: =IFERROR(VLOOKUP($G21,'Technician Summary'!$G$7:$BK$372,34,FALSE),"") ->  | AJ21: =IFERROR(VLOOKUP($G21,'Technician Summary'!$G$7:$BK$372,35,FALSE),"") ->  | AL21: =IFERROR(VLOOKUP($G21,'Technician Summary'!$G$7:$BK$372,37,FALSE),"") ->  | AM21: =IFERROR(VLOOKUP($G21,'Technician Summary'!$G$7:$BK$372,38,FALSE),"") ->  | AO21: =COUNTIFS('Drop Validation'!$P:$P,$G21,'Drop Validation'!$F:$F,"In Scope") -> 0 | AP21: =COUNTIFS('Drop Validation'!$P:$P,$G21,'Drop Validation'!$AA:$AA,"Compliant",'Drop Validation'!$F:$F,"In Scope") -> 0
B22: Tech Rankings | I22: =IFERROR(VLOOKUP($G22,'Technician Summary'!$G$7:$BB$372,2,FALSE),"") ->  | J22: =IFERROR(VLOOKUP($G22,'Technician Summary'!$G$7:$BN$372,60,FALSE),"") ->  | L22: =IF(G22="","",COUNTIFS('SMS tNPS'!DE:DE,G22,'SMS tNPS'!HB:HB,"Yes")) ->  | M22: =IFERROR(IF(G22="","",COUNTIFS('SMS tNPS'!DE:DE,G22,'SMS tNPS'!HB:HB,"Yes"))+COUNTIFS('SMS tNPS'!DE:DE,G22,'SMS tNPS'!HB:HB,"No"),"") ->  | O22: =IFERROR(VLOOKUP($G22,'Technician Summary'!$G$7:$BK$372,14,FALSE),"") ->  | P22: =IFERROR(VLOOKUP($G22,'Technician Summary'!$G$7:$BK$372,15,FALSE),"") ->  | R22: =IFERROR(VLOOKUP($G22,'Technician Summary'!$G$7:$BK$372,17,FALSE),"") ->  | S22: =IFERROR(VLOOKUP($G22,'Technician Summary'!$G$7:$BK$372,18,FALSE),"") ->  | U22: =IFERROR(VLOOKUP($G22,'Technician Summary'!$G$7:$BK$372,20,FALSE),"") ->  | V22: =IFERROR(VLOOKUP($G22,'Technician Summary'!$G$7:$BK$372,21,FALSE),"") ->  | X22: =IF($G22="","",SUMIF('SQT Data'!$K:$K,$G22,'SQT Data'!$R:$R)) ->  | Y22: =IF($G22="","",SUMIF('SQT Data'!$K:$K,$G22,'SQT Data'!$S:$S)) ->  | AA22: =IF($G22="","",SUMIF('SQT Data'!$K:$K,$G22,'SQT Data'!$U:$U)) ->  | AB22: =IF($G22="","",SUMIF('SQT Data'!$K:$K,$G22,'SQT Data'!$V:$V)) ->  | AE22: =IFERROR(SUM(AD22/#REF!),"") ->  | AF22: =IFERROR(VLOOKUP($G22,'Technician Summary'!$G$7:$BK$372,7,FALSE),"") ->  | AG22: =IFERROR(VLOOKUP($G22,'Technician Summary'!$G$7:$BK$372,8,FALSE),"") ->  | AI22: =IFERROR(VLOOKUP($G22,'Technician Summary'!$G$7:$BK$372,34,FALSE),"") ->  | AJ22: =IFERROR(VLOOKUP($G22,'Technician Summary'!$G$7:$BK$372,35,FALSE),"") ->  | AL22: =IFERROR(VLOOKUP($G22,'Technician Summary'!$G$7:$BK$372,37,FALSE),"") ->  | AM22: =IFERROR(VLOOKUP($G22,'Technician Summary'!$G$7:$BK$372,38,FALSE),"") ->  | AO22: =COUNTIFS('Drop Validation'!$P:$P,$G22,'Drop Validation'!$F:$F,"In Scope") -> 0 | AP22: =COUNTIFS('Drop Validation'!$P:$P,$G22,'Drop Validation'!$AA:$AA,"Compliant",'Drop Validation'!$F:$F,"In Scope") -> 0
B23: SMS Rankings | I23: =IFERROR(VLOOKUP($G23,'Technician Summary'!$G$7:$BB$372,2,FALSE),"") ->  | J23: =IFERROR(VLOOKUP($G23,'Technician Summary'!$G$7:$BN$372,60,FALSE),"") ->  | L23: =IF(G23="","",COUNTIFS('SMS tNPS'!DE:DE,G23,'SMS tNPS'!HB:HB,"Yes")) ->  | M23: =IFERROR(IF(G23="","",COUNTIFS('SMS tNPS'!DE:DE,G23,'SMS tNPS'!HB:HB,"Yes"))+COUNTIFS('SMS tNPS'!DE:DE,G23,'SMS tNPS'!HB:HB,"No"),"") ->  | O23: =IFERROR(VLOOKUP($G23,'Technician Summary'!$G$7:$BK$372,14,FALSE),"") ->  | P23: =IFERROR(VLOOKUP($G23,'Technician Summary'!$G$7:$BK$372,15,FALSE),"") ->  | R23: =IFERROR(VLOOKUP($G23,'Technician Summary'!$G$7:$BK$372,17,FALSE),"") ->  | S23: =IFERROR(VLOOKUP($G23,'Technician Summary'!$G$7:$BK$372,18,FALSE),"") ->  | U23: =IFERROR(VLOOKUP($G23,'Technician Summary'!$G$7:$BK$372,20,FALSE),"") ->  | V23: =IFERROR(VLOOKUP($G23,'Technician Summary'!$G$7:$BK$372,21,FALSE),"") ->  | X23: =IF($G23="","",SUMIF('SQT Data'!$K:$K,$G23,'SQT Data'!$R:$R)) ->  | Y23: =IF($G23="","",SUMIF('SQT Data'!$K:$K,$G23,'SQT Data'!$S:$S)) ->  | AA23: =IF($G23="","",SUMIF('SQT Data'!$K:$K,$G23,'SQT Data'!$U:$U)) ->  | AB23: =IF($G23="","",SUMIF('SQT Data'!$K:$K,$G23,'SQT Data'!$V:$V)) ->  | AE23: =IFERROR(SUM(AD23/#REF!),"") ->  | AF23: =IFERROR(VLOOKUP($G23,'Technician Summary'!$G$7:$BK$372,7,FALSE),"") ->  | AG23: =IFERROR(VLOOKUP($G23,'Technician Summary'!$G$7:$BK$372,8,FALSE),"") ->  | AI23: =IFERROR(VLOOKUP($G23,'Technician Summary'!$G$7:$BK$372,34,FALSE),"") ->  | AJ23: =IFERROR(VLOOKUP($G23,'Technician Summary'!$G$7:$BK$372,35,FALSE),"") ->  | AL23: =IFERROR(VLOOKUP($G23,'Technician Summary'!$G$7:$BK$372,37,FALSE),"") ->  | AM23: =IFERROR(VLOOKUP($G23,'Technician Summary'!$G$7:$BK$372,38,FALSE),"") ->  | AO23: =COUNTIFS('Drop Validation'!$P:$P,$G23,'Drop Validation'!$F:$F,"In Scope") -> 0 | AP23: =COUNTIFS('Drop Validation'!$P:$P,$G23,'Drop Validation'!$AA:$AA,"Compliant",'Drop Validation'!$F:$F,"In Scope") -> 0
B24: SQT Rankings | I24: =IFERROR(VLOOKUP($G24,'Technician Summary'!$G$7:$BB$372,2,FALSE),"") ->  | J24: =IFERROR(VLOOKUP($G24,'Technician Summary'!$G$7:$BN$372,60,FALSE),"") ->  | L24: =IF(G24="","",COUNTIFS('SMS tNPS'!DE:DE,G24,'SMS tNPS'!HB:HB,"Yes")) ->  | M24: =IFERROR(IF(G24="","",COUNTIFS('SMS tNPS'!DE:DE,G24,'SMS tNPS'!HB:HB,"Yes"))+COUNTIFS('SMS tNPS'!DE:DE,G24,'SMS tNPS'!HB:HB,"No"),"") ->  | O24: =IFERROR(VLOOKUP($G24,'Technician Summary'!$G$7:$BK$372,14,FALSE),"") ->  | P24: =IFERROR(VLOOKUP($G24,'Technician Summary'!$G$7:$BK$372,15,FALSE),"") ->  | R24: =IFERROR(VLOOKUP($G24,'Technician Summary'!$G$7:$BK$372,17,FALSE),"") ->  | S24: =IFERROR(VLOOKUP($G24,'Technician Summary'!$G$7:$BK$372,18,FALSE),"") ->  | U24: =IFERROR(VLOOKUP($G24,'Technician Summary'!$G$7:$BK$372,20,FALSE),"") ->  | V24: =IFERROR(VLOOKUP($G24,'Technician Summary'!$G$7:$BK$372,21,FALSE),"") ->  | X24: =IF($G24="","",SUMIF('SQT Data'!$K:$K,$G24,'SQT Data'!$R:$R)) ->  | Y24: =IF($G24="","",SUMIF('SQT Data'!$K:$K,$G24,'SQT Data'!$S:$S)) ->  | AA24: =IF($G24="","",SUMIF('SQT Data'!$K:$K,$G24,'SQT Data'!$U:$U)) ->  | AB24: =IF($G24="","",SUMIF('SQT Data'!$K:$K,$G24,'SQT Data'!$V:$V)) ->  | AE24: =IFERROR(SUM(AD24/#REF!),"") ->  | AF24: =IFERROR(VLOOKUP($G24,'Technician Summary'!$G$7:$BK$372,7,FALSE),"") ->  | AG24: =IFERROR(VLOOKUP($G24,'Technician Summary'!$G$7:$BK$372,8,FALSE),"") ->  | AI24: =IFERROR(VLOOKUP($G24,'Technician Summary'!$G$7:$BK$372,34,FALSE),"") ->  | AJ24: =IFERROR(VLOOKUP($G24,'Technician Summary'!$G$7:$BK$372,35,FALSE),"") ->  | AL24: =IFERROR(VLOOKUP($G24,'Technician Summary'!$G$7:$BK$372,37,FALSE),"") ->  | AM24: =IFERROR(VLOOKUP($G24,'Technician Summary'!$G$7:$BK$372,38,FALSE),"") ->  | AO24: =COUNTIFS('Drop Validation'!$P:$P,$G24,'Drop Validation'!$F:$F,"In Scope") -> 0 | AP24: =COUNTIFS('Drop Validation'!$P:$P,$G24,'Drop Validation'!$AA:$AA,"Compliant",'Drop Validation'!$F:$F,"In Scope") -> 0
B25: Repeat Rankings | I25: =IFERROR(VLOOKUP($G25,'Technician Summary'!$G$7:$BB$372,2,FALSE),"") ->  | J25: =IFERROR(VLOOKUP($G25,'Technician Summary'!$G$7:$BN$372,60,FALSE),"") ->  | L25: =IF(G25="","",COUNTIFS('SMS tNPS'!DE:DE,G25,'SMS tNPS'!HB:HB,"Yes")) ->  | M25: =IFERROR(IF(G25="","",COUNTIFS('SMS tNPS'!DE:DE,G25,'SMS tNPS'!HB:HB,"Yes"))+COUNTIFS('SMS tNPS'!DE:DE,G25,'SMS tNPS'!HB:HB,"No"),"") ->  | O25: =IFERROR(VLOOKUP($G25,'Technician Summary'!$G$7:$BK$372,14,FALSE),"") ->  | P25: =IFERROR(VLOOKUP($G25,'Technician Summary'!$G$7:$BK$372,15,FALSE),"") ->  | R25: =IFERROR(VLOOKUP($G25,'Technician Summary'!$G$7:$BK$372,17,FALSE),"") ->  | S25: =IFERROR(VLOOKUP($G25,'Technician Summary'!$G$7:$BK$372,18,FALSE),"") ->  | U25: =IFERROR(VLOOKUP($G25,'Technician Summary'!$G$7:$BK$372,20,FALSE),"") ->  | V25: =IFERROR(VLOOKUP($G25,'Technician Summary'!$G$7:$BK$372,21,FALSE),"") ->  | X25: =IF($G25="","",SUMIF('SQT Data'!$K:$K,$G25,'SQT Data'!$R:$R)) ->  | Y25: =IF($G25="","",SUMIF('SQT Data'!$K:$K,$G25,'SQT Data'!$S:$S)) ->  | AA25: =IF($G25="","",SUMIF('SQT Data'!$K:$K,$G25,'SQT Data'!$U:$U)) ->  | AB25: =IF($G25="","",SUMIF('SQT Data'!$K:$K,$G25,'SQT Data'!$V:$V)) ->  | AE25: =IFERROR(SUM(AD25/#REF!),"") ->  | AF25: =IFERROR(VLOOKUP($G25,'Technician Summary'!$G$7:$BK$372,7,FALSE),"") ->  | AG25: =IFERROR(VLOOKUP($G25,'Technician Summary'!$G$7:$BK$372,8,FALSE),"") ->  | AI25: =IFERROR(VLOOKUP($G25,'Technician Summary'!$G$7:$BK$372,34,FALSE),"") ->  | AJ25: =IFERROR(VLOOKUP($G25,'Technician Summary'!$G$7:$BK$372,35,FALSE),"") ->  | AL25: =IFERROR(VLOOKUP($G25,'Technician Summary'!$G$7:$BK$372,37,FALSE),"") ->  | AM25: =IFERROR(VLOOKUP($G25,'Technician Summary'!$G$7:$BK$372,38,FALSE),"") ->  | AO25: =COUNTIFS('Drop Validation'!$P:$P,$G25,'Drop Validation'!$F:$F,"In Scope") -> 0 | AP25: =COUNTIFS('Drop Validation'!$P:$P,$G25,'Drop Validation'!$AA:$AA,"Compliant",'Drop Validation'!$F:$F,"In Scope") -> 0
I26: =IFERROR(VLOOKUP($G26,'Technician Summary'!$G$7:$BB$372,2,FALSE),"") ->  | J26: =IFERROR(VLOOKUP($G26,'Technician Summary'!$G$7:$BN$372,60,FALSE),"") ->  | L26: =IF(G26="","",COUNTIFS('SMS tNPS'!DE:DE,G26,'SMS tNPS'!HB:HB,"Yes")) ->  | M26: =IFERROR(IF(G26="","",COUNTIFS('SMS tNPS'!DE:DE,G26,'SMS tNPS'!HB:HB,"Yes"))+COUNTIFS('SMS tNPS'!DE:DE,G26,'SMS tNPS'!HB:HB,"No"),"") ->  | O26: =IFERROR(VLOOKUP($G26,'Technician Summary'!$G$7:$BK$372,14,FALSE),"") ->  | P26: =IFERROR(VLOOKUP($G26,'Technician Summary'!$G$7:$BK$372,15,FALSE),"") ->  | R26: =IFERROR(VLOOKUP($G26,'Technician Summary'!$G$7:$BK$372,17,FALSE),"") ->  | S26: =IFERROR(VLOOKUP($G26,'Technician Summary'!$G$7:$BK$372,18,FALSE),"") ->  | U26: =IFERROR(VLOOKUP($G26,'Technician Summary'!$G$7:$BK$372,20,FALSE),"") ->  | V26: =IFERROR(VLOOKUP($G26,'Technician Summary'!$G$7:$BK$372,21,FALSE),"") ->  | X26: =IF($G26="","",SUMIF('SQT Data'!$K:$K,$G26,'SQT Data'!$R:$R)) ->  | Y26: =IF($G26="","",SUMIF('SQT Data'!$K:$K,$G26,'SQT Data'!$S:$S)) ->  | AA26: =IF($G26="","",SUMIF('SQT Data'!$K:$K,$G26,'SQT Data'!$U:$U)) ->  | AB26: =IF($G26="","",SUMIF('SQT Data'!$K:$K,$G26,'SQT Data'!$V:$V)) ->  | AE26: =IFERROR(SUM(AD26/#REF!),"") ->  | AF26: =IFERROR(VLOOKUP($G26,'Technician Summary'!$G$7:$BK$372,7,FALSE),"") ->  | AG26: =IFERROR(VLOOKUP($G26,'Technician Summary'!$G$7:$BK$372,8,FALSE),"") ->  | AI26: =IFERROR(VLOOKUP($G26,'Technician Summary'!$G$7:$BK$372,34,FALSE),"") ->  | AJ26: =IFERROR(VLOOKUP($G26,'Technician Summary'!$G$7:$BK$372,35,FALSE),"") ->  | AL26: =IFERROR(VLOOKUP($G26,'Technician Summary'!$G$7:$BK$372,37,FALSE),"") ->  | AM26: =IFERROR(VLOOKUP($G26,'Technician Summary'!$G$7:$BK$372,38,FALSE),"") ->  | AO26: =COUNTIFS('Drop Validation'!$P:$P,$G26,'Drop Validation'!$F:$F,"In Scope") -> 0 | AP26: =COUNTIFS('Drop Validation'!$P:$P,$G26,'Drop Validation'!$AA:$AA,"Compliant",'Drop Validation'!$F:$F,"In Scope") -> 0
B27: Raw Data | I27: =IFERROR(VLOOKUP($G27,'Technician Summary'!$G$7:$BB$372,2,FALSE),"") ->  | J27: =IFERROR(VLOOKUP($G27,'Technician Summary'!$G$7:$BN$372,60,FALSE),"") ->  | L27: =IF(G27="","",COUNTIFS('SMS tNPS'!DE:DE,G27,'SMS tNPS'!HB:HB,"Yes")) ->  | M27: =IFERROR(IF(G27="","",COUNTIFS('SMS tNPS'!DE:DE,G27,'SMS tNPS'!HB:HB,"Yes"))+COUNTIFS('SMS tNPS'!DE:DE,G27,'SMS tNPS'!HB:HB,"No"),"") ->  | O27: =IFERROR(VLOOKUP($G27,'Technician Summary'!$G$7:$BK$372,14,FALSE),"") ->  | P27: =IFERROR(VLOOKUP($G27,'Technician Summary'!$G$7:$BK$372,15,FALSE),"") ->  | R27: =IFERROR(VLOOKUP($G27,'Technician Summary'!$G$7:$BK$372,17,FALSE),"") ->  | S27: =IFERROR(VLOOKUP($G27,'Technician Summary'!$G$7:$BK$372,18,FALSE),"") ->  | U27: =IFERROR(VLOOKUP($G27,'Technician Summary'!$G$7:$BK$372,20,FALSE),"") ->  | V27: =IFERROR(VLOOKUP($G27,'Technician Summary'!$G$7:$BK$372,21,FALSE),"") ->  | X27: =IF($G27="","",SUMIF('SQT Data'!$K:$K,$G27,'SQT Data'!$R:$R)) ->  | Y27: =IF($G27="","",SUMIF('SQT Data'!$K:$K,$G27,'SQT Data'!$S:$S)) ->  | AA27: =IF($G27="","",SUMIF('SQT Data'!$K:$K,$G27,'SQT Data'!$U:$U)) ->  | AB27: =IF($G27="","",SUMIF('SQT Data'!$K:$K,$G27,'SQT Data'!$V:$V)) ->  | AE27: =IFERROR(SUM(AD27/#REF!),"") ->  | AF27: =IFERROR(VLOOKUP($G27,'Technician Summary'!$G$7:$BK$372,7,FALSE),"") ->  | AG27: =IFERROR(VLOOKUP($G27,'Technician Summary'!$G$7:$BK$372,8,FALSE),"") ->  | AI27: =IFERROR(VLOOKUP($G27,'Technician Summary'!$G$7:$BK$372,34,FALSE),"") ->  | AJ27: =IFERROR(VLOOKUP($G27,'Technician Summary'!$G$7:$BK$372,35,FALSE),"") ->  | AL27: =IFERROR(VLOOKUP($G27,'Technician Summary'!$G$7:$BK$372,37,FALSE),"") ->  | AM27: =IFERROR(VLOOKUP($G27,'Technician Summary'!$G$7:$BK$372,38,FALSE),"") ->  | AO27: =COUNTIFS('Drop Validation'!$P:$P,$G27,'Drop Validation'!$F:$F,"In Scope") -> 0 | AP27: =COUNTIFS('Drop Validation'!$P:$P,$G27,'Drop Validation'!$AA:$AA,"Compliant",'Drop Validation'!$F:$F,"In Scope") -> 0
I28: =IFERROR(VLOOKUP($G28,'Technician Summary'!$G$7:$BB$372,2,FALSE),"") ->  | J28: =IFERROR(VLOOKUP($G28,'Technician Summary'!$G$7:$BN$372,60,FALSE),"") ->  | L28: =IF(G28="","",COUNTIFS('SMS tNPS'!DE:DE,G28,'SMS tNPS'!HB:HB,"Yes")) ->  | M28: =IFERROR(IF(G28="","",COUNTIFS('SMS tNPS'!DE:DE,G28,'SMS tNPS'!HB:HB,"Yes"))+COUNTIFS('SMS tNPS'!DE:DE,G28,'SMS tNPS'!HB:HB,"No"),"") ->  | O28: =IFERROR(VLOOKUP($G28,'Technician Summary'!$G$7:$BK$372,14,FALSE),"") ->  | P28: =IFERROR(VLOOKUP($G28,'Technician Summary'!$G$7:$BK$372,15,FALSE),"") ->  | R28: =IFERROR(VLOOKUP($G28,'Technician Summary'!$G$7:$BK$372,17,FALSE),"") ->  | S28: =IFERROR(VLOOKUP($G28,'Technician Summary'!$G$7:$BK$372,18,FALSE),"") ->  | U28: =IFERROR(VLOOKUP($G28,'Technician Summary'!$G$7:$BK$372,20,FALSE),"") ->  | V28: =IFERROR(VLOOKUP($G28,'Technician Summary'!$G$7:$BK$372,21,FALSE),"") ->  | X28: =IF($G28="","",SUMIF('SQT Data'!$K:$K,$G28,'SQT Data'!$R:$R)) ->  | Y28: =IF($G28="","",SUMIF('SQT Data'!$K:$K,$G28,'SQT Data'!$S:$S)) ->  | AA28: =IF($G28="","",SUMIF('SQT Data'!$K:$K,$G28,'SQT Data'!$U:$U)) ->  | AB28: =IF($G28="","",SUMIF('SQT Data'!$K:$K,$G28,'SQT Data'!$V:$V)) ->  | AE28: =IFERROR(SUM(AD28/#REF!),"") ->  | AF28: =IFERROR(VLOOKUP($G28,'Technician Summary'!$G$7:$BK$372,7,FALSE),"") ->  | AG28: =IFERROR(VLOOKUP($G28,'Technician Summary'!$G$7:$BK$372,8,FALSE),"") ->  | AI28: =IFERROR(VLOOKUP($G28,'Technician Summary'!$G$7:$BK$372,34,FALSE),"") ->  | AJ28: =IFERROR(VLOOKUP($G28,'Technician Summary'!$G$7:$BK$372,35,FALSE),"") ->  | AL28: =IFERROR(VLOOKUP($G28,'Technician Summary'!$G$7:$BK$372,37,FALSE),"") ->  | AM28: =IFERROR(VLOOKUP($G28,'Technician Summary'!$G$7:$BK$372,38,FALSE),"") ->  | AO28: =COUNTIFS('Drop Validation'!$P:$P,$G28,'Drop Validation'!$F:$F,"In Scope") -> 0 | AP28: =COUNTIFS('Drop Validation'!$P:$P,$G28,'Drop Validation'!$AA:$AA,"Compliant",'Drop Validation'!$F:$F,"In Scope") -> 0
I29: =IFERROR(VLOOKUP($G29,'Technician Summary'!$G$7:$BB$372,2,FALSE),"") ->  | J29: =IFERROR(VLOOKUP($G29,'Technician Summary'!$G$7:$BN$372,60,FALSE),"") ->  | L29: =IF(G29="","",COUNTIFS('SMS tNPS'!DE:DE,G29,'SMS tNPS'!HB:HB,"Yes")) ->  | M29: =IFERROR(IF(G29="","",COUNTIFS('SMS tNPS'!DE:DE,G29,'SMS tNPS'!HB:HB,"Yes"))+COUNTIFS('SMS tNPS'!DE:DE,G29,'SMS tNPS'!HB:HB,"No"),"") ->  | O29: =IFERROR(VLOOKUP($G29,'Technician Summary'!$G$7:$BK$372,14,FALSE),"") ->  | P29: =IFERROR(VLOOKUP($G29,'Technician Summary'!$G$7:$BK$372,15,FALSE),"") ->  | R29: =IFERROR(VLOOKUP($G29,'Technician Summary'!$G$7:$BK$372,17,FALSE),"") ->  | S29: =IFERROR(VLOOKUP($G29,'Technician Summary'!$G$7:$BK$372,18,FALSE),"") ->  | U29: =IFERROR(VLOOKUP($G29,'Technician Summary'!$G$7:$BK$372,20,FALSE),"") ->  | V29: =IFERROR(VLOOKUP($G29,'Technician Summary'!$G$7:$BK$372,21,FALSE),"") ->  | X29: =IF($G29="","",SUMIF('SQT Data'!$K:$K,$G29,'SQT Data'!$R:$R)) ->  | Y29: =IF($G29="","",SUMIF('SQT Data'!$K:$K,$G29,'SQT Data'!$S:$S)) ->  | AA29: =IF($G29="","",SUMIF('SQT Data'!$K:$K,$G29,'SQT Data'!$U:$U)) ->  | AB29: =IF($G29="","",SUMIF('SQT Data'!$K:$K,$G29,'SQT Data'!$V:$V)) ->  | AE29: =IFERROR(SUM(AD29/#REF!),"") ->  | AF29: =IFERROR(VLOOKUP($G29,'Technician Summary'!$G$7:$BK$372,7,FALSE),"") ->  | AG29: =IFERROR(VLOOKUP($G29,'Technician Summary'!$G$7:$BK$372,8,FALSE),"") ->  | AI29: =IFERROR(VLOOKUP($G29,'Technician Summary'!$G$7:$BK$372,34,FALSE),"") ->  | AJ29: =IFERROR(VLOOKUP($G29,'Technician Summary'!$G$7:$BK$372,35,FALSE),"") ->  | AL29: =IFERROR(VLOOKUP($G29,'Technician Summary'!$G$7:$BK$372,37,FALSE),"") ->  | AM29: =IFERROR(VLOOKUP($G29,'Technician Summary'!$G$7:$BK$372,38,FALSE),"") ->  | AO29: =COUNTIFS('Drop Validation'!$P:$P,$G29,'Drop Validation'!$F:$F,"In Scope") -> 0 | AP29: =COUNTIFS('Drop Validation'!$P:$P,$G29,'Drop Validation'!$AA:$AA,"Compliant",'Drop Validation'!$F:$F,"In Scope") -> 0
I30: =IFERROR(VLOOKUP($G30,'Technician Summary'!$G$7:$BB$372,2,FALSE),"") ->  | J30: =IFERROR(VLOOKUP($G30,'Technician Summary'!$G$7:$BN$372,60,FALSE),"") ->  | L30: =IF(G30="","",COUNTIFS('SMS tNPS'!DE:DE,G30,'SMS tNPS'!HB:HB,"Yes")) ->  | M30: =IFERROR(IF(G30="","",COUNTIFS('SMS tNPS'!DE:DE,G30,'SMS tNPS'!HB:HB,"Yes"))+COUNTIFS('SMS tNPS'!DE:DE,G30,'SMS tNPS'!HB:HB,"No"),"") ->  | O30: =IFERROR(VLOOKUP($G30,'Technician Summary'!$G$7:$BK$372,14,FALSE),"") ->  | P30: =IFERROR(VLOOKUP($G30,'Technician Summary'!$G$7:$BK$372,15,FALSE),"") ->  | R30: =IFERROR(VLOOKUP($G30,'Technician Summary'!$G$7:$BK$372,17,FALSE),"") ->  | S30: =IFERROR(VLOOKUP($G30,'Technician Summary'!$G$7:$BK$372,18,FALSE),"") ->  | U30: =IFERROR(VLOOKUP($G30,'Technician Summary'!$G$7:$BK$372,20,FALSE),"") ->  | V30: =IFERROR(VLOOKUP($G30,'Technician Summary'!$G$7:$BK$372,21,FALSE),"") ->  | X30: =IF($G30="","",SUMIF('SQT Data'!$K:$K,$G30,'SQT Data'!$R:$R)) ->  | Y30: =IF($G30="","",SUMIF('SQT Data'!$K:$K,$G30,'SQT Data'!$S:$S)) ->  | AA30: =IF($G30="","",SUMIF('SQT Data'!$K:$K,$G30,'SQT Data'!$U:$U)) ->  | AB30: =IF($G30="","",SUMIF('SQT Data'!$K:$K,$G30,'SQT Data'!$V:$V)) ->  | AE30: =IFERROR(SUM(AD30/#REF!),"") ->  | AF30: =IFERROR(VLOOKUP($G30,'Technician Summary'!$G$7:$BK$372,7,FALSE),"") ->  | AG30: =IFERROR(VLOOKUP($G30,'Technician Summary'!$G$7:$BK$372,8,FALSE),"") ->  | AI30: =IFERROR(VLOOKUP($G30,'Technician Summary'!$G$7:$BK$372,34,FALSE),"") ->  | AJ30: =IFERROR(VLOOKUP($G30,'Technician Summary'!$G$7:$BK$372,35,FALSE),"") ->  | AL30: =IFERROR(VLOOKUP($G30,'Technician Summary'!$G$7:$BK$372,37,FALSE),"") ->  | AM30: =IFERROR(VLOOKUP($G30,'Technician Summary'!$G$7:$BK$372,38,FALSE),"") ->  | AO30: =COUNTIFS('Drop Validation'!$P:$P,$G30,'Drop Validation'!$F:$F,"In Scope") -> 0 | AP30: =COUNTIFS('Drop Validation'!$P:$P,$G30,'Drop Validation'!$AA:$AA,"Compliant",'Drop Validation'!$F:$F,"In Scope") -> 0
I31: =IFERROR(VLOOKUP($G31,'Technician Summary'!$G$7:$BB$372,2,FALSE),"") ->  | J31: =IFERROR(VLOOKUP($G31,'Technician Summary'!$G$7:$BN$372,60,FALSE),"") ->  | L31: =IF(G31="","",COUNTIFS('SMS tNPS'!DE:DE,G31,'SMS tNPS'!HB:HB,"Yes")) ->  | M31: =IFERROR(IF(G31="","",COUNTIFS('SMS tNPS'!DE:DE,G31,'SMS tNPS'!HB:HB,"Yes"))+COUNTIFS('SMS tNPS'!DE:DE,G31,'SMS tNPS'!HB:HB,"No"),"") ->  | O31: =IFERROR(VLOOKUP($G31,'Technician Summary'!$G$7:$BK$372,14,FALSE),"") ->  | P31: =IFERROR(VLOOKUP($G31,'Technician Summary'!$G$7:$BK$372,15,FALSE),"") ->  | R31: =IFERROR(VLOOKUP($G31,'Technician Summary'!$G$7:$BK$372,17,FALSE),"") ->  | S31: =IFERROR(VLOOKUP($G31,'Technician Summary'!$G$7:$BK$372,18,FALSE),"") ->  | U31: =IFERROR(VLOOKUP($G31,'Technician Summary'!$G$7:$BK$372,20,FALSE),"") ->  | V31: =IFERROR(VLOOKUP($G31,'Technician Summary'!$G$7:$BK$372,21,FALSE),"") ->  | X31: =IF($G31="","",SUMIF('SQT Data'!$K:$K,$G31,'SQT Data'!$R:$R)) ->  | Y31: =IF($G31="","",SUMIF('SQT Data'!$K:$K,$G31,'SQT Data'!$S:$S)) ->  | AA31: =IF($G31="","",SUMIF('SQT Data'!$K:$K,$G31,'SQT Data'!$U:$U)) ->  | AB31: =IF($G31="","",SUMIF('SQT Data'!$K:$K,$G31,'SQT Data'!$V:$V)) ->  | AE31: =IFERROR(SUM(AD31/#REF!),"") ->  | AF31: =IFERROR(VLOOKUP($G31,'Technician Summary'!$G$7:$BK$372,7,FALSE),"") ->  | AG31: =IFERROR(VLOOKUP($G31,'Technician Summary'!$G$7:$BK$372,8,FALSE),"") ->  | AI31: =IFERROR(VLOOKUP($G31,'Technician Summary'!$G$7:$BK$372,34,FALSE),"") ->  | AJ31: =IFERROR(VLOOKUP($G31,'Technician Summary'!$G$7:$BK$372,35,FALSE),"") ->  | AL31: =IFERROR(VLOOKUP($G31,'Technician Summary'!$G$7:$BK$372,37,FALSE),"") ->  | AM31: =IFERROR(VLOOKUP($G31,'Technician Summary'!$G$7:$BK$372,38,FALSE),"") ->  | AO31: =COUNTIFS('Drop Validation'!$P:$P,$G31,'Drop Validation'!$F:$F,"In Scope") -> 0 | AP31: =COUNTIFS('Drop Validation'!$P:$P,$G31,'Drop Validation'!$AA:$AA,"Compliant",'Drop Validation'!$F:$F,"In Scope") -> 0 | AQ31: =IFERROR(AP31/AO31,"") -> 
I32: # NPS WO's | J32: # Failures | K32: NPS | L32: SMS Promoter Count | M32: SMS Count | N32: SMS tNPS | O32: Total Repeatable WO | P32: Total Repeats | Q32: Repeats | R32: Total Repeatable WO | S32: Repeat IN | T32: IN Repeat % | U32: Total Repeatable WO | V32: Repeat TC | W32: Repeat TC % | X32: Jobs | Y32: Test Run | Z32: SQT Compliance | AA32: Parameters Tested | AB32: Parameters Passing | AC32: SQT Pass | AD32: Test Passed | AE32: Ingress Test Pass | AF32: FCR WO | AG32: FCR Failures | AH32: FCR | AI32: Jobs | AJ32: Jobs Late | AK32: OTA | AL32: Jobs | AM32: Completed Jobs | AN32: Completion % | AO32: Total Jobs | AP32: Total Valid | AQ32: Drop Validation
I33: =SUMIF(I7:I31,">0") -> 26 | J33: =SUMIF(J7:J31,">0") -> 13.9998
K34: =IFERROR(1-(J33/I33),"") -> 0.4615 | L34: =SUM(L7:L31) -> 85 | M34: =SUM(M7:M31) -> 93 | N34: =IFERROR(SUM(L34/M34),"") -> 0.914 | O34: =SUM(O7:O31) -> 431 | P34: =SUM(P7:P31) -> 19 | Q34: =IFERROR(SUM(P34/O34),"") -> 0.0441 | R34: =SUM(R7:R31) -> 134 | S34: =SUM(S7:S31) -> 6 | T34: =IFERROR(SUM(S34/R34),"") -> 0.0448 | U34: =SUM(U7:U31) -> 297 | V34: =SUM(V7:V31) -> 13 | W34: =IFERROR(SUM(V34/U34),"") -> 0.0438 | X34: =SUMIF(X7:X31,">0") -> 314 | Y34: =SUMIF(Y7:Y31,">0") -> 306 | Z34: =IFERROR(SUM(Y34/X34),"") -> 0.9745 | AA34: =SUM(AA7:AA31) -> 2427 | AB34: =SUM(AB7:AB31) -> 2238 | AC34: =IFERROR(SUM(AB34/AA34),"") -> 0.9221 | AD34: =SUM(AD7:AD31) -> 0 | AE34: =IFERROR(SUM(AD34/#REF!),"") ->  | AF34: =SUM(AF7:AF31) -> 179 | AG34: =SUM(AG7:AG31) -> 12 | AH34: =IFERROR(1-AG34/AF34,"") -> 0.933 | AI34: =SUM(AI7:AI31) -> 122 | AJ34: =SUM(AJ7:AJ31) -> 11 | AK34: =IFERROR(1-AJ34/AI34,"") -> 0.9098 | AL34: =SUM(AL7:AL31) -> 494 | AM34: =SUM(AM7:AM31) -> 428 | AN34: =IFERROR(AM34/AL34,"") -> 0.8664 | AO34: =SUM(AO7:AO31) -> 7 | AP34: =SUM(AP7:AP31) -> 6 | AQ34: =IFERROR(AP34/AO34,"") -> 0.8571

Sheet Gulf Coast
F3: Tim Judy
F5: Tech Name | G5: Tech ID | H5: Score | I5: # NPS WO's | J5: # Failures | K5: NPS | L5: SMS Promoter Count | M5: SMS Count | N5: SMS tNPS | O5: Total Repeatable WO | P5: Total Repeats | Q5: Repeats | R5: Total Repeatable WO | S5: Repeat IN | T5: IN Repeat % | U5: Total Repeatable WO | V5: Repeat TC | W5: Repeat TC % | X5: Jobs | Y5: Test Run | Z5: SQT Compliance | AA5: Parameters Tested | AB5: Parameters Passing | AC5: SQT Pass | AD5: Test Passed | AE5: Ingress Test Pass | AF5: FCR WO | AG5: FCR Failures | AH5: FCR | AI5: Jobs | AJ5: Jobs Late | AK5: OTA | AL5: Jobs | AM5: Completed Jobs | AN5: Completion % | AO5: Total Jobs | AP5: Total Valid | AQ5: Drop Validation
F7: Tim Judy | G7: 11070 | H7: =IF(Z7="","",IFERROR(IF(K7>=68.26%,1.25,0)+IF(Q7<=5.04%,2.5,0)+IF(Z7>=90%,2.5,0)+IF(AK7>=96%,1.25,0)+IF(N7>=90%,2.5,0),"")) ->  | I7: =IFERROR(VLOOKUP($G7,'Technician Summary'!$G$7:$BB$372,2,FALSE),"") ->  | J7: =IFERROR(VLOOKUP($G7,'Technician Summary'!$G$7:$BN$372,60,FALSE),"") ->  | K7: =IFERROR(1-(J7/I7),"") ->  | L7: =IF(G7="","",COUNTIFS('SMS tNPS'!DE:DE,G7,'SMS tNPS'!HB:HB,"Yes")) -> 0 | M7: =IFERROR(IF(G7="","",COUNTIFS('SMS tNPS'!DE:DE,G7,'SMS tNPS'!HB:HB,"Yes"))+COUNTIFS('SMS tNPS'!DE:DE,G7,'SMS tNPS'!HB:HB,"No"),"") -> 0 | N7: =IFERROR(SUM(L7/M7),"") ->  | O7: =IFERROR(VLOOKUP($G7,'Technician Summary'!$G$7:$BK$372,14,FALSE),"") ->  | P7: =IFERROR(VLOOKUP($G7,'Technician Summary'!$G$7:$BK$372,15,FALSE),"") ->  | Q7: =IFERROR(SUM(P7/O7),"") ->  | R7: =IFERROR(VLOOKUP($G7,'Technician Summary'!$G$7:$BK$372,17,FALSE),"") ->  | S7: =IFERROR(VLOOKUP($G7,'Technician Summary'!$G$7:$BK$372,18,FALSE),"") ->  | T7: =IFERROR(SUM(S7/R7),"") ->  | U7: =IFERROR(VLOOKUP($G7,'Technician Summary'!$G$7:$BK$372,20,FALSE),"") ->  | V7: =IFERROR(VLOOKUP($G7,'Technician Summary'!$G$7:$BK$372,21,FALSE),"") ->  | W7: =IFERROR(SUM(V7/U7),"") ->  | X7: =IF($G7="","",SUMIF('SQT Data'!$K:$K,$G7,'SQT Data'!$R:$R)) -> 0 | Y7: =IF($G7="","",SUMIF('SQT Data'!$K:$K,$G7,'SQT Data'!$S:$S)) -> 0 | Z7: =IFERROR(SUM(Y7/X7),"") ->  | AA7: =IF($G7="","",SUMIF('SQT Data'!$K:$K,$G7,'SQT Data'!$U:$U)) -> 0 | AB7: =IF($G7="","",SUMIF('SQT Data'!$K:$K,$G7,'SQT Data'!$V:$V)) -> 0 | AC7: =IFERROR(SUM(AB7/AA7),"") ->  | AE7: =IFERROR(SUM(AD7/#REF!),"") ->  | AF7: =IFERROR(VLOOKUP($G7,'Technician Summary'!$G$7:$BK$372,7,FALSE),"") ->  | AG7: =IFERROR(VLOOKUP($G7,'Technician Summary'!$G$7:$BK$372,8,FALSE),"") ->  | AH7: =IFERROR(1-AG7/AF7,"") ->  | AI7: =IFERROR(VLOOKUP($G7,'Technician Summary'!$G$7:$BK$372,34,FALSE),"") ->  | AJ7: =IFERROR(VLOOKUP($G7,'Technician Summary'!$G$7:$BK$372,35,FALSE),"") ->  | AK7: =IFERROR(1-AJ7/AI7,"") ->  | AL7: =IFERROR(VLOOKUP($G7,'Technician Summary'!$G$7:$BK$372,37,FALSE),"") ->  | AM7: =IFERROR(VLOOKUP($G7,'Technician Summary'!$G$7:$BK$372,38,FALSE),"") ->  | AN7: =IFERROR(AM7/AL7,"") ->  | AO7: =COUNTIFS('Drop Validation'!$P:$P,$G7,'Drop Validation'!$F:$F,"In Scope") -> 0 | AP7: =COUNTIFS('Drop Validation'!$P:$P,$G7,'Drop Validation'!$AA:$AA,"Compliant",'Drop Validation'!$F:$F,"In Scope") -> 0 | AQ7: =IFERROR(#REF!/#REF!,"") -> 
F8: Marcus Jones | G8: 11418 | H8: 5 | I8: =IFERROR(VLOOKUP($G8,'Technician Summary'!$G$7:$BB$372,2,FALSE),"") -> 6 | J8: =IFERROR(VLOOKUP($G8,'Technician Summary'!$G$7:$BN$372,60,FALSE),"") -> 4.9998 | K8: =IFERROR(1-(J8/I8),"") -> 0.1667 | L8: =IF(G8="","",COUNTIFS('SMS tNPS'!DE:DE,G8,'SMS tNPS'!HB:HB,"Yes")) -> 15 | M8: =IFERROR(IF(G8="","",COUNTIFS('SMS tNPS'!DE:DE,G8,'SMS tNPS'!HB:HB,"Yes"))+COUNTIFS('SMS tNPS'!DE:DE,G8,'SMS tNPS'!HB:HB,"No"),"") -> 16 | N8: =IFERROR(SUM(L8/M8),"") -> 0.9375 | O8: =IFERROR(VLOOKUP($G8,'Technician Summary'!$G$7:$BK$372,14,FALSE),"") -> 135 | P8: =IFERROR(VLOOKUP($G8,'Technician Summary'!$G$7:$BK$372,15,FALSE),"") -> 5 | Q8: =IFERROR(SUM(P8/O8),"") -> 0.037 | R8: =IFERROR(VLOOKUP($G8,'Technician Summary'!$G$7:$BK$372,17,FALSE),"") -> 50 | S8: =IFERROR(VLOOKUP($G8,'Technician Summary'!$G$7:$BK$372,18,FALSE),"") -> 2 | T8: =IFERROR(SUM(S8/R8),"") -> 0.04 | U8: =IFERROR(VLOOKUP($G8,'Technician Summary'!$G$7:$BK$372,20,FALSE),"") -> 85 | V8: =IFERROR(VLOOKUP($G8,'Technician Summary'!$G$7:$BK$372,21,FALSE),"") -> 3 | W8: =IFERROR(SUM(V8/U8),"") -> 0.0353 | X8: =IF($G8="","",SUMIF('SQT Data'!$K:$K,$G8,'SQT Data'!$R:$R)) -> 85 | Y8: =IF($G8="","",SUMIF('SQT Data'!$K:$K,$G8,'SQT Data'!$S:$S)) -> 71 | Z8: =IFERROR(SUM(Y8/X8),"") -> 0.8353 | AA8: =IF($G8="","",SUMIF('SQT Data'!$K:$K,$G8,'SQT Data'!$U:$U)) -> 568 | AB8: =IF($G8="","",SUMIF('SQT Data'!$K:$K,$G8,'SQT Data'!$V:$V)) -> 502 | AC8: =IFERROR(SUM(AB8/AA8),"") -> 0.8838 | AE8: =IFERROR(SUM(AD8/#REF!),"") ->  | AF8: =IFERROR(VLOOKUP($G8,'Technician Summary'!$G$7:$BK$372,7,FALSE),"") -> 78 | AG8: =IFERROR(VLOOKUP($G8,'Technician Summary'!$G$7:$BK$372,8,FALSE),"") -> 3 | AH8: =IFERROR(1-AG8/AF8,"") -> 0.9615 | AI8: =IFERROR(VLOOKUP($G8,'Technician Summary'!$G$7:$BK$372,34,FALSE),"") -> 46 | AJ8: =IFERROR(VLOOKUP($G8,'Technician Summary'!$G$7:$BK$372,35,FALSE),"") -> 6 | AK8: =IFERROR(1-AJ8/AI8,"") -> 0.8696 | AL8: =IFERROR(VLOOKUP($G8,'Technician Summary'!$G$7:$BK$372,37,FALSE),"") -> 142 | AM8: =IFERROR(VLOOKUP($G8,'Technician Summary'!$G$7:$BK$372,38,FALSE),"") -> 127 | AN8: =IFERROR(AM8/AL8,"") -> 0.8944 | AO8: =COUNTIFS('Drop Validation'!$P:$P,$G8,'Drop Validation'!$F:$F,"In Scope") -> 2 | AP8: =COUNTIFS('Drop Validation'!$P:$P,$G8,'Drop Validation'!$AA:$AA,"Compliant",'Drop Validation'!$F:$F,"In Scope") -> 0 | AQ8: =IFERROR(AP8/AO8,"") -> 0
F9: Rayil Rodriguez | G9: 84104 | H9: 2.5 | I9: =IFERROR(VLOOKUP($G9,'Technician Summary'!$G$7:$BB$372,2,FALSE),"") -> 5 | J9: =IFERROR(VLOOKUP($G9,'Technician Summary'!$G$7:$BN$372,60,FALSE),"") -> 2 | K9: 0.6 | L9: =IF(G9="","",COUNTIFS('SMS tNPS'!DE:DE,G9,'SMS tNPS'!HB:HB,"Yes")) -> 11 | M9: =IFERROR(IF(G9="","",COUNTIFS('SMS tNPS'!DE:DE,G9,'SMS tNPS'!HB:HB,"Yes"))+COUNTIFS('SMS tNPS'!DE:DE,G9,'SMS tNPS'!HB:HB,"No"),"") -> 14 | N9: 0.7857 | O9: =IFERROR(VLOOKUP($G9,'Technician Summary'!$G$7:$BK$372,14,FALSE),"") -> 93 | P9: =IFERROR(VLOOKUP($G9,'Technician Summary'!$G$7:$BK$372,15,FALSE),"") -> 3 | Q9: 0.0323 | R9: =IFERROR(VLOOKUP($G9,'Technician Summary'!$G$7:$BK$372,17,FALSE),"") -> 47 | S9: =IFERROR(VLOOKUP($G9,'Technician Summary'!$G$7:$BK$372,18,FALSE),"") -> 1 | T9: 0.0213 | U9: =IFERROR(VLOOKUP($G9,'Technician Summary'!$G$7:$BK$372,20,FALSE),"") -> 46 | V9: =IFERROR(VLOOKUP($G9,'Technician Summary'!$G$7:$BK$372,21,FALSE),"") -> 2 | W9: 0.0435 | X9: =IF($G9="","",SUMIF('SQT Data'!$K:$K,$G9,'SQT Data'!$R:$R)) -> 48 | Y9: =IF($G9="","",SUMIF('SQT Data'!$K:$K,$G9,'SQT Data'!$S:$S)) -> 40 | Z9: 0.8333 | AA9: =IF($G9="","",SUMIF('SQT Data'!$K:$K,$G9,'SQT Data'!$U:$U)) -> 315 | AB9: =IF($G9="","",SUMIF('SQT Data'!$K:$K,$G9,'SQT Data'!$V:$V)) -> 285 | AC9: 0.9048 | AE9: =IFERROR(SUM(AD9/#REF!),"") ->  | AF9: =IFERROR(VLOOKUP($G9,'Technician Summary'!$G$7:$BK$372,7,FALSE),"") -> 57 | AG9: =IFERROR(VLOOKUP($G9,'Technician Summary'!$G$7:$BK$372,8,FALSE),"") -> 0 | AH9: 1 | AI9: =IFERROR(VLOOKUP($G9,'Technician Summary'!$G$7:$BK$372,34,FALSE),"") -> 42 | AJ9: =IFERROR(VLOOKUP($G9,'Technician Summary'!$G$7:$BK$372,35,FALSE),"") -> 6 | AK9: 0.8571 | AL9: =IFERROR(VLOOKUP($G9,'Technician Summary'!$G$7:$BK$372,37,FALSE),"") -> 92 | AM9: =IFERROR(VLOOKUP($G9,'Technician Summary'!$G$7:$BK$372,38,FALSE),"") -> 86 | AN9: 0.9348 | AO9: =COUNTIFS('Drop Validation'!$P:$P,$G9,'Drop Validation'!$F:$F,"In Scope") -> 2 | AP9: =COUNTIFS('Drop Validation'!$P:$P,$G9,'Drop Validation'!$AA:$AA,"Compliant",'Drop Validation'!$F:$F,"In Scope") -> 2 | AQ9: 1
F10: Brian Swanson | G10: 56775 | H10: 6.25 | I10: =IFERROR(VLOOKUP($G10,'Technician Summary'!$G$7:$BB$372,2,FALSE),"") -> 6 | J10: =IFERROR(VLOOKUP($G10,'Technician Summary'!$G$7:$BN$372,60,FALSE),"") -> 6 | K10: 0 | L10: =IF(G10="","",COUNTIFS('SMS tNPS'!DE:DE,G10,'SMS tNPS'!HB:HB,"Yes")) -> 21 | M10: =IFERROR(IF(G10="","",COUNTIFS('SMS tNPS'!DE:DE,G10,'SMS tNPS'!HB:HB,"Yes"))+COUNTIFS('SMS tNPS'!DE:DE,G10,'SMS tNPS'!HB:HB,"No"),"") -> 24 | N10: 0.875 | O10: =IFERROR(VLOOKUP($G10,'Technician Summary'!$G$7:$BK$372,14,FALSE),"") -> 106 | P10: =IFERROR(VLOOKUP($G10,'Technician Summary'!$G$7:$BK$372,15,FALSE),"") -> 3 | Q10: 0.0283 | R10: =IFERROR(VLOOKUP($G10,'Technician Summary'!$G$7:$BK$372,17,FALSE),"") -> 35 | S10: =IFERROR(VLOOKUP($G10,'Technician Summary'!$G$7:$BK$372,18,FALSE),"") -> 1 | T10: 0.0286 | U10: =IFERROR(VLOOKUP($G10,'Technician Summary'!$G$7:$BK$372,20,FALSE),"") -> 71 | V10: =IFERROR(VLOOKUP($G10,'Technician Summary'!$G$7:$BK$372,21,FALSE),"") -> 2 | W10: 0.0282 | X10: =IF($G10="","",SUMIF('SQT Data'!$K:$K,$G10,'SQT Data'!$R:$R)) -> 62 | Y10: =IF($G10="","",SUMIF('SQT Data'!$K:$K,$G10,'SQT Data'!$S:$S)) -> 61 | Z10: 0.9839 | AA10: =IF($G10="","",SUMIF('SQT Data'!$K:$K,$G10,'SQT Data'!$U:$U)) -> 487 | AB10: =IF($G10="","",SUMIF('SQT Data'!$K:$K,$G10,'SQT Data'!$V:$V)) -> 327 | AC10: 0.6715 | AE10: =IFERROR(SUM(AD10/#REF!),"") ->  | AF10: =IFERROR(VLOOKUP($G10,'Technician Summary'!$G$7:$BK$372,7,FALSE),"") -> 47 | AG10: =IFERROR(VLOOKUP($G10,'Technician Summary'!$G$7:$BK$372,8,FALSE),"") -> 1 | AH10: 0.9787 | AI10: =IFERROR(VLOOKUP($G10,'Technician Summary'!$G$7:$BK$372,34,FALSE),"") -> 32 | AJ10: =IFERROR(VLOOKUP($G10,'Technician Summary'!$G$7:$BK$372,35,FALSE),"") -> 1 | AK10: 0.9688 | AL10: =IFERROR(VLOOKUP($G10,'Technician Summary'!$G$7:$BK$372,37,FALSE),"") -> 124 | AM10: =IFERROR(VLOOKUP($G10,'Technician Summary'!$G$7:$BK$372,38,FALSE),"") -> 104 | AN10: 0.8387 | AO10: =COUNTIFS('Drop Validation'!$P:$P,$G10,'Drop Validation'!$F:$F,"In Scope") -> 2 | AP10: =COUNTIFS('Drop Validation'!$P:$P,$G10,'Drop Validation'!$AA:$AA,"Compliant",'Drop Validation'!$F:$F,"In Scope") -> 0 | AQ10: 0
B11: Home | F11: Alycia Burn | G11: 38210 | I11: =IFERROR(VLOOKUP($G11,'Technician Summary'!$G$7:$BB$372,2,FALSE),"") ->  | J11: =IFERROR(VLOOKUP($G11,'Technician Summary'!$G$7:$BN$372,60,FALSE),"") ->  | L11: =IF(G11="","",COUNTIFS('SMS tNPS'!DE:DE,G11,'SMS tNPS'!HB:HB,"Yes")) -> 0 | M11: =IFERROR(IF(G11="","",COUNTIFS('SMS tNPS'!DE:DE,G11,'SMS tNPS'!HB:HB,"Yes"))+COUNTIFS('SMS tNPS'!DE:DE,G11,'SMS tNPS'!HB:HB,"No"),"") -> 0 | O11: =IFERROR(VLOOKUP($G11,'Technician Summary'!$G$7:$BK$372,14,FALSE),"") ->  | P11: =IFERROR(VLOOKUP($G11,'Technician Summary'!$G$7:$BK$372,15,FALSE),"") ->  | R11: =IFERROR(VLOOKUP($G11,'Technician Summary'!$G$7:$BK$372,17,FALSE),"") ->  | S11: =IFERROR(VLOOKUP($G11,'Technician Summary'!$G$7:$BK$372,18,FALSE),"") ->  | U11: =IFERROR(VLOOKUP($G11,'Technician Summary'!$G$7:$BK$372,20,FALSE),"") ->  | V11: =IFERROR(VLOOKUP($G11,'Technician Summary'!$G$7:$BK$372,21,FALSE),"") ->  | X11: =IF($G11="","",SUMIF('SQT Data'!$K:$K,$G11,'SQT Data'!$R:$R)) -> 0 | Y11: =IF($G11="","",SUMIF('SQT Data'!$K:$K,$G11,'SQT Data'!$S:$S)) -> 0 | AA11: =IF($G11="","",SUMIF('SQT Data'!$K:$K,$G11,'SQT Data'!$U:$U)) -> 0 | AB11: =IF($G11="","",SUMIF('SQT Data'!$K:$K,$G11,'SQT Data'!$V:$V)) -> 0 | AE11: =IFERROR(SUM(AD11/#REF!),"") ->  | AF11: =IFERROR(VLOOKUP($G11,'Technician Summary'!$G$7:$BK$372,7,FALSE),"") ->  | AG11: =IFERROR(VLOOKUP($G11,'Technician Summary'!$G$7:$BK$372,8,FALSE),"") ->  | AI11: =IFERROR(VLOOKUP($G11,'Technician Summary'!$G$7:$BK$372,34,FALSE),"") ->  | AJ11: =IFERROR(VLOOKUP($G11,'Technician Summary'!$G$7:$BK$372,35,FALSE),"") ->  | AL11: =IFERROR(VLOOKUP($G11,'Technician Summary'!$G$7:$BK$372,37,FALSE),"") ->  | AM11: =IFERROR(VLOOKUP($G11,'Technician Summary'!$G$7:$BK$372,38,FALSE),"") ->  | AO11: =COUNTIFS('Drop Validation'!$P:$P,$G11,'Drop Validation'!$F:$F,"In Scope") -> 0 | AP11: =COUNTIFS('Drop Validation'!$P:$P,$G11,'Drop Validation'!$AA:$AA,"Compliant",'Drop Validation'!$F:$F,"In Scope") -> 0
F12: Everton Poole | G12: 11506 | H12: 5 | I12: =IFERROR(VLOOKUP($G12,'Technician Summary'!$G$7:$BB$372,2,FALSE),"") -> 2 | J12: =IFERROR(VLOOKUP($G12,'Technician Summary'!$G$7:$BN$372,60,FALSE),"") -> 1 | K12: 0.5 | L12: =IF(G12="","",COUNTIFS('SMS tNPS'!DE:DE,G12,'SMS tNPS'!HB:HB,"Yes")) -> 13 | M12: =IFERROR(IF(G12="","",COUNTIFS('SMS tNPS'!DE:DE,G12,'SMS tNPS'!HB:HB,"Yes"))+COUNTIFS('SMS tNPS'!DE:DE,G12,'SMS tNPS'!HB:HB,"No"),"") -> 14 | N12: 0.9286 | O12: =IFERROR(VLOOKUP($G12,'Technician Summary'!$G$7:$BK$372,14,FALSE),"") -> 53 | P12: =IFERROR(VLOOKUP($G12,'Technician Summary'!$G$7:$BK$372,15,FALSE),"") -> 3 | Q12: 0.0566 | R12: =IFERROR(VLOOKUP($G12,'Technician Summary'!$G$7:$BK$372,17,FALSE),"") -> 21 | S12: =IFERROR(VLOOKUP($G12,'Technician Summary'!$G$7:$BK$372,18,FALSE),"") -> 2 | T12: 0.0952 | U12: =IFERROR(VLOOKUP($G12,'Technician Summary'!$G$7:$BK$372,20,FALSE),"") -> 32 | V12: =IFERROR(VLOOKUP($G12,'Technician Summary'!$G$7:$BK$372,21,FALSE),"") -> 1 | W12: 0.0313 | X12: =IF($G12="","",SUMIF('SQT Data'!$K:$K,$G12,'SQT Data'!$R:$R)) -> 31 | Y12: =IF($G12="","",SUMIF('SQT Data'!$K:$K,$G12,'SQT Data'!$S:$S)) -> 31 | Z12: 1 | AA12: =IF($G12="","",SUMIF('SQT Data'!$K:$K,$G12,'SQT Data'!$U:$U)) -> 248 | AB12: =IF($G12="","",SUMIF('SQT Data'!$K:$K,$G12,'SQT Data'!$V:$V)) -> 218 | AC12: 0.879 | AE12: =IFERROR(SUM(AD12/#REF!),"") ->  | AF12: =IFERROR(VLOOKUP($G12,'Technician Summary'!$G$7:$BK$372,7,FALSE),"") -> 23 | AG12: =IFERROR(VLOOKUP($G12,'Technician Summary'!$G$7:$BK$372,8,FALSE),"") -> 1 | AH12: 0.9565 | AI12: =IFERROR(VLOOKUP($G12,'Technician Summary'!$G$7:$BK$372,34,FALSE),"") -> 17 | AJ12: =IFERROR(VLOOKUP($G12,'Technician Summary'!$G$7:$BK$372,35,FALSE),"") -> 3 | AK12: 0.8235 | AL12: =IFERROR(VLOOKUP($G12,'Technician Summary'!$G$7:$BK$372,37,FALSE),"") -> 59 | AM12: =IFERROR(VLOOKUP($G12,'Technician Summary'!$G$7:$BK$372,38,FALSE),"") -> 53 | AN12: 0.8983 | AO12: =COUNTIFS('Drop Validation'!$P:$P,$G12,'Drop Validation'!$F:$F,"In Scope") -> 0 | AP12: =COUNTIFS('Drop Validation'!$P:$P,$G12,'Drop Validation'!$AA:$AA,"Compliant",'Drop Validation'!$F:$F,"In Scope") -> 0
B13: Performance Metrics | F13: LLoyd Resurreccion | G13: 20809 | H13: 7.5 | I13: =IFERROR(VLOOKUP($G13,'Technician Summary'!$G$7:$BB$372,2,FALSE),"") ->  | J13: =IFERROR(VLOOKUP($G13,'Technician Summary'!$G$7:$BN$372,60,FALSE),"") ->  | L13: =IF(G13="","",COUNTIFS('SMS tNPS'!DE:DE,G13,'SMS tNPS'!HB:HB,"Yes")) -> 0 | M13: =IFERROR(IF(G13="","",COUNTIFS('SMS tNPS'!DE:DE,G13,'SMS tNPS'!HB:HB,"Yes"))+COUNTIFS('SMS tNPS'!DE:DE,G13,'SMS tNPS'!HB:HB,"No"),"") -> 0 | O13: =IFERROR(VLOOKUP($G13,'Technician Summary'!$G$7:$BK$372,14,FALSE),"") ->  | P13: =IFERROR(VLOOKUP($G13,'Technician Summary'!$G$7:$BK$372,15,FALSE),"") ->  | R13: =IFERROR(VLOOKUP($G13,'Technician Summary'!$G$7:$BK$372,17,FALSE),"") ->  | S13: =IFERROR(VLOOKUP($G13,'Technician Summary'!$G$7:$BK$372,18,FALSE),"") ->  | U13: =IFERROR(VLOOKUP($G13,'Technician Summary'!$G$7:$BK$372,20,FALSE),"") ->  | V13: =IFERROR(VLOOKUP($G13,'Technician Summary'!$G$7:$BK$372,21,FALSE),"") ->  | X13: =IF($G13="","",SUMIF('SQT Data'!$K:$K,$G13,'SQT Data'!$R:$R)) -> 85 | Y13: =IF($G13="","",SUMIF('SQT Data'!$K:$K,$G13,'SQT Data'!$S:$S)) -> 83 | Z13: 0.9765 | AA13: =IF($G13="","",SUMIF('SQT Data'!$K:$K,$G13,'SQT Data'!$U:$U)) -> 664 | AB13: =IF($G13="","",SUMIF('SQT Data'!$K:$K,$G13,'SQT Data'!$V:$V)) -> 554 | AC13: 0.8343 | AE13: =IFERROR(SUM(AD13/#REF!),"") ->  | AF13: =IFERROR(VLOOKUP($G13,'Technician Summary'!$G$7:$BK$372,7,FALSE),"") ->  | AG13: =IFERROR(VLOOKUP($G13,'Technician Summary'!$G$7:$BK$372,8,FALSE),"") ->  | AI13: =IFERROR(VLOOKUP($G13,'Technician Summary'!$G$7:$BK$372,34,FALSE),"") ->  | AJ13: =IFERROR(VLOOKUP($G13,'Technician Summary'!$G$7:$BK$372,35,FALSE),"") ->  | AL13: =IFERROR(VLOOKUP($G13,'Technician Summary'!$G$7:$BK$372,37,FALSE),"") ->  | AM13: =IFERROR(VLOOKUP($G13,'Technician Summary'!$G$7:$BK$372,38,FALSE),"") ->  | AO13: =COUNTIFS('Drop Validation'!$P:$P,$G13,'Drop Validation'!$F:$F,"In Scope") -> 0 | AP13: =COUNTIFS('Drop Validation'!$P:$P,$G13,'Drop Validation'!$AA:$AA,"Compliant",'Drop Validation'!$F:$F,"In Scope") -> 0
B14: Gainesville | F14: Brenton Austin | G14: 42146 | H14: 7.5 | I14: =IFERROR(VLOOKUP($G14,'Technician Summary'!$G$7:$BB$372,2,FALSE),"") -> 7 | J14: =IFERROR(VLOOKUP($G14,'Technician Summary'!$G$7:$BN$372,60,FALSE),"") -> 3.9998 | K14: 0.4286 | L14: =IF(G14="","",COUNTIFS('SMS tNPS'!DE:DE,G14,'SMS tNPS'!HB:HB,"Yes")) -> 33 | M14: =IFERROR(IF(G14="","",COUNTIFS('SMS tNPS'!DE:DE,G14,'SMS tNPS'!HB:HB,"Yes"))+COUNTIFS('SMS tNPS'!DE:DE,G14,'SMS tNPS'!HB:HB,"No"),"") -> 35 | N14: 0.9429 | O14: =IFERROR(VLOOKUP($G14,'Technician Summary'!$G$7:$BK$372,14,FALSE),"") -> 99 | P14: =IFERROR(VLOOKUP($G14,'Technician Summary'!$G$7:$BK$372,15,FALSE),"") -> 4 | Q14: 0.0404 | R14: =IFERROR(VLOOKUP($G14,'Technician Summary'!$G$7:$BK$372,17,FALSE),"") -> 49 | S14: =IFERROR(VLOOKUP($G14,'Technician Summary'!$G$7:$BK$372,18,FALSE),"") -> 1 | T14: 0.0204 | U14: =IFERROR(VLOOKUP($G14,'Technician Summary'!$G$7:$BK$372,20,FALSE),"") -> 50 | V14: =IFERROR(VLOOKUP($G14,'Technician Summary'!$G$7:$BK$372,21,FALSE),"") -> 3 | W14: 0.06 | X14: =IF($G14="","",SUMIF('SQT Data'!$K:$K,$G14,'SQT Data'!$R:$R)) -> 51 | Y14: =IF($G14="","",SUMIF('SQT Data'!$K:$K,$G14,'SQT Data'!$S:$S)) -> 47 | Z14: 0.9216 | AA14: =IF($G14="","",SUMIF('SQT Data'!$K:$K,$G14,'SQT Data'!$U:$U)) -> 373 | AB14: =IF($G14="","",SUMIF('SQT Data'!$K:$K,$G14,'SQT Data'!$V:$V)) -> 348 | AC14: 0.933 | AE14: =IFERROR(SUM(AD14/#REF!),"") ->  | AF14: =IFERROR(VLOOKUP($G14,'Technician Summary'!$G$7:$BK$372,7,FALSE),"") -> 59 | AG14: =IFERROR(VLOOKUP($G14,'Technician Summary'!$G$7:$BK$372,8,FALSE),"") -> 1 | AH14: 0.9831 | AI14: =IFERROR(VLOOKUP($G14,'Technician Summary'!$G$7:$BK$372,34,FALSE),"") -> 46 | AJ14: =IFERROR(VLOOKUP($G14,'Technician Summary'!$G$7:$BK$372,35,FALSE),"") -> 2 | AK14: 0.9565 | AL14: =IFERROR(VLOOKUP($G14,'Technician Summary'!$G$7:$BK$372,37,FALSE),"") -> 110 | AM14: =IFERROR(VLOOKUP($G14,'Technician Summary'!$G$7:$BK$372,38,FALSE),"") -> 97 | AN14: 0.8818 | AO14: =COUNTIFS('Drop Validation'!$P:$P,$G14,'Drop Validation'!$F:$F,"In Scope") -> 9 | AP14: =COUNTIFS('Drop Validation'!$P:$P,$G14,'Drop Validation'!$AA:$AA,"Compliant",'Drop Validation'!$F:$F,"In Scope") -> 5 | AQ14: 0.5556
B15: Macon | F15: James Welch | G15: 52589 | H15: 3.75 | I15: =IFERROR(VLOOKUP($G15,'Technician Summary'!$G$7:$BB$372,2,FALSE),"") -> 4 | J15: =IFERROR(VLOOKUP($G15,'Technician Summary'!$G$7:$BN$372,60,FALSE),"") -> 0 | K15: 1 | L15: =IF(G15="","",COUNTIFS('SMS tNPS'!DE:DE,G15,'SMS tNPS'!HB:HB,"Yes")) -> 6 | M15: =IFERROR(IF(G15="","",COUNTIFS('SMS tNPS'!DE:DE,G15,'SMS tNPS'!HB:HB,"Yes"))+COUNTIFS('SMS tNPS'!DE:DE,G15,'SMS tNPS'!HB:HB,"No"),"") -> 8 | N15: 0.75 | O15: =IFERROR(VLOOKUP($G15,'Technician Summary'!$G$7:$BK$372,14,FALSE),"") -> 44 | P15: =IFERROR(VLOOKUP($G15,'Technician Summary'!$G$7:$BK$372,15,FALSE),"") -> 3 | Q15: 0.0682 | R15: =IFERROR(VLOOKUP($G15,'Technician Summary'!$G$7:$BK$372,17,FALSE),"") -> 20 | S15: =IFERROR(VLOOKUP($G15,'Technician Summary'!$G$7:$BK$372,18,FALSE),"") -> 1 | T15: 0.05 | U15: =IFERROR(VLOOKUP($G15,'Technician Summary'!$G$7:$BK$372,20,FALSE),"") -> 24 | V15: =IFERROR(VLOOKUP($G15,'Technician Summary'!$G$7:$BK$372,21,FALSE),"") -> 2 | W15: 0.0833 | X15: =IF($G15="","",SUMIF('SQT Data'!$K:$K,$G15,'SQT Data'!$R:$R)) -> 23 | Y15: =IF($G15="","",SUMIF('SQT Data'!$K:$K,$G15,'SQT Data'!$S:$S)) -> 22 | Z15: 0.9565 | AA15: =IF($G15="","",SUMIF('SQT Data'!$K:$K,$G15,'SQT Data'!$U:$U)) -> 176 | AB15: =IF($G15="","",SUMIF('SQT Data'!$K:$K,$G15,'SQT Data'!$V:$V)) -> 44 | AC15: 0.25 | AE15: =IFERROR(SUM(AD15/#REF!),"") ->  | AF15: =IFERROR(VLOOKUP($G15,'Technician Summary'!$G$7:$BK$372,7,FALSE),"") -> 22 | AG15: =IFERROR(VLOOKUP($G15,'Technician Summary'!$G$7:$BK$372,8,FALSE),"") -> 2 | AH15: 0.9091 | AI15: =IFERROR(VLOOKUP($G15,'Technician Summary'!$G$7:$BK$372,34,FALSE),"") -> 16 | AJ15: =IFERROR(VLOOKUP($G15,'Technician Summary'!$G$7:$BK$372,35,FALSE),"") -> 1 | AK15: 0.9375 | AL15: =IFERROR(VLOOKUP($G15,'Technician Summary'!$G$7:$BK$372,37,FALSE),"") -> 53 | AM15: =IFERROR(VLOOKUP($G15,'Technician Summary'!$G$7:$BK$372,38,FALSE),"") -> 42 | AN15: 0.7925 | AO15: =COUNTIFS('Drop Validation'!$P:$P,$G15,'Drop Validation'!$F:$F,"In Scope") -> 0 | AP15: =COUNTIFS('Drop Validation'!$P:$P,$G15,'Drop Validation'!$AA:$AA,"Compliant",'Drop Validation'!$F:$F,"In Scope") -> 0
B16: New Orleans | F16: Davion Kelley | G16: 57523 | H16: 2.5 | I16: =IFERROR(VLOOKUP($G16,'Technician Summary'!$G$7:$BB$372,2,FALSE),"") -> 11 | J16: =IFERROR(VLOOKUP($G16,'Technician Summary'!$G$7:$BN$372,60,FALSE),"") -> 8.0003 | K16: 0.2727 | L16: =IF(G16="","",COUNTIFS('SMS tNPS'!DE:DE,G16,'SMS tNPS'!HB:HB,"Yes")) -> 32 | M16: =IFERROR(IF(G16="","",COUNTIFS('SMS tNPS'!DE:DE,G16,'SMS tNPS'!HB:HB,"Yes"))+COUNTIFS('SMS tNPS'!DE:DE,G16,'SMS tNPS'!HB:HB,"No"),"") -> 36 | N16: 0.8889 | O16: =IFERROR(VLOOKUP($G16,'Technician Summary'!$G$7:$BK$372,14,FALSE),"") -> 164 | P16: =IFERROR(VLOOKUP($G16,'Technician Summary'!$G$7:$BK$372,15,FALSE),"") -> 13 | Q16: 0.0793 | R16: =IFERROR(VLOOKUP($G16,'Technician Summary'!$G$7:$BK$372,17,FALSE),"") -> 61 | S16: =IFERROR(VLOOKUP($G16,'Technician Summary'!$G$7:$BK$372,18,FALSE),"") -> 2 | T16: 0.0328 | U16: =IFERROR(VLOOKUP($G16,'Technician Summary'!$G$7:$BK$372,20,FALSE),"") -> 103 | V16: =IFERROR(VLOOKUP($G16,'Technician Summary'!$G$7:$BK$372,21,FALSE),"") -> 11 | W16: 0.1068 | X16: =IF($G16="","",SUMIF('SQT Data'!$K:$K,$G16,'SQT Data'!$R:$R)) -> 116 | Y16: =IF($G16="","",SUMIF('SQT Data'!$K:$K,$G16,'SQT Data'!$S:$S)) -> 111 | Z16: 0.9569 | AA16: =IF($G16="","",SUMIF('SQT Data'!$K:$K,$G16,'SQT Data'!$U:$U)) -> 886 | AB16: =IF($G16="","",SUMIF('SQT Data'!$K:$K,$G16,'SQT Data'!$V:$V)) -> 804 | AC16: 0.9074 | AE16: =IFERROR(SUM(AD16/#REF!),"") ->  | AF16: =IFERROR(VLOOKUP($G16,'Technician Summary'!$G$7:$BK$372,7,FALSE),"") -> 81 | AG16: =IFERROR(VLOOKUP($G16,'Technician Summary'!$G$7:$BK$372,8,FALSE),"") -> 2 | AH16: 0.9753 | AI16: =IFERROR(VLOOKUP($G16,'Technician Summary'!$G$7:$BK$372,34,FALSE),"") -> 57 | AJ16: =IFERROR(VLOOKUP($G16,'Technician Summary'!$G$7:$BK$372,35,FALSE),"") -> 4 | AK16: 0.9298 | AL16: =IFERROR(VLOOKUP($G16,'Technician Summary'!$G$7:$BK$372,37,FALSE),"") -> 170 | AM16: =IFERROR(VLOOKUP($G16,'Technician Summary'!$G$7:$BK$372,38,FALSE),"") -> 162 | AN16: 0.9529 | AO16: =COUNTIFS('Drop Validation'!$P:$P,$G16,'Drop Validation'!$F:$F,"In Scope") -> 0 | AP16: =COUNTIFS('Drop Validation'!$P:$P,$G16,'Drop Validation'!$AA:$AA,"Compliant",'Drop Validation'!$F:$F,"In Scope") -> 0
B17: Hampton Roads | F17: Jahkiya Jackson | G17: 62514 | H17: 8.75 | I17: =IFERROR(VLOOKUP($G17,'Technician Summary'!$G$7:$BB$372,2,FALSE),"") -> 3 | J17: =IFERROR(VLOOKUP($G17,'Technician Summary'!$G$7:$BN$372,60,FALSE),"") -> 0 | K17: 1 | L17: =IF(G17="","",COUNTIFS('SMS tNPS'!DE:DE,G17,'SMS tNPS'!HB:HB,"Yes")) -> 23 | M17: =IFERROR(IF(G17="","",COUNTIFS('SMS tNPS'!DE:DE,G17,'SMS tNPS'!HB:HB,"Yes"))+COUNTIFS('SMS tNPS'!DE:DE,G17,'SMS tNPS'!HB:HB,"No"),"") -> 24 | N17: 0.9583 | O17: =IFERROR(VLOOKUP($G17,'Technician Summary'!$G$7:$BK$372,14,FALSE),"") -> 114 | P17: =IFERROR(VLOOKUP($G17,'Technician Summary'!$G$7:$BK$372,15,FALSE),"") -> 2 | Q17: 0.0175 | R17: =IFERROR(VLOOKUP($G17,'Technician Summary'!$G$7:$BK$372,17,FALSE),"") -> 32 | S17: =IFERROR(VLOOKUP($G17,'Technician Summary'!$G$7:$BK$372,18,FALSE),"") -> 0 | T17: 0 | U17: =IFERROR(VLOOKUP($G17,'Technician Summary'!$G$7:$BK$372,20,FALSE),"") -> 82 | V17: =IFERROR(VLOOKUP($G17,'Technician Summary'!$G$7:$BK$372,21,FALSE),"") -> 2 | W17: 0.0244 | X17: =IF($G17="","",SUMIF('SQT Data'!$K:$K,$G17,'SQT Data'!$R:$R)) -> 92 | Y17: =IF($G17="","",SUMIF('SQT Data'!$K:$K,$G17,'SQT Data'!$S:$S)) -> 90 | Z17: 0.9783 | AA17: =IF($G17="","",SUMIF('SQT Data'!$K:$K,$G17,'SQT Data'!$U:$U)) -> 720 | AB17: =IF($G17="","",SUMIF('SQT Data'!$K:$K,$G17,'SQT Data'!$V:$V)) -> 695 | AC17: 0.9653 | AE17: =IFERROR(SUM(AD17/#REF!),"") ->  | AF17: =IFERROR(VLOOKUP($G17,'Technician Summary'!$G$7:$BK$372,7,FALSE),"") -> 46 | AG17: =IFERROR(VLOOKUP($G17,'Technician Summary'!$G$7:$BK$372,8,FALSE),"") -> 0 | AH17: 1 | AI17: =IFERROR(VLOOKUP($G17,'Technician Summary'!$G$7:$BK$372,34,FALSE),"") -> 31 | AJ17: =IFERROR(VLOOKUP($G17,'Technician Summary'!$G$7:$BK$372,35,FALSE),"") -> 4 | AK17: 0.871 | AL17: =IFERROR(VLOOKUP($G17,'Technician Summary'!$G$7:$BK$372,37,FALSE),"") -> 136 | AM17: =IFERROR(VLOOKUP($G17,'Technician Summary'!$G$7:$BK$372,38,FALSE),"") -> 114 | AN17: 0.8382 | AO17: =COUNTIFS('Drop Validation'!$P:$P,$G17,'Drop Validation'!$F:$F,"In Scope") -> 5 | AP17: =COUNTIFS('Drop Validation'!$P:$P,$G17,'Drop Validation'!$AA:$AA,"Compliant",'Drop Validation'!$F:$F,"In Scope") -> 4 | AQ17: 0.8
B18: Baton Rouge | F18: Jonathon Velasco | G18: 62931 | H18: 7.5 | I18: =IFERROR(VLOOKUP($G18,'Technician Summary'!$G$7:$BB$372,2,FALSE),"") -> 6 | J18: =IFERROR(VLOOKUP($G18,'Technician Summary'!$G$7:$BN$372,60,FALSE),"") -> 3 | K18: 0.5 | L18: =IF(G18="","",COUNTIFS('SMS tNPS'!DE:DE,G18,'SMS tNPS'!HB:HB,"Yes")) -> 31 | M18: =IFERROR(IF(G18="","",COUNTIFS('SMS tNPS'!DE:DE,G18,'SMS tNPS'!HB:HB,"Yes"))+COUNTIFS('SMS tNPS'!DE:DE,G18,'SMS tNPS'!HB:HB,"No"),"") -> 32 | N18: 0.9688 | O18: =IFERROR(VLOOKUP($G18,'Technician Summary'!$G$7:$BK$372,14,FALSE),"") -> 102 | P18: =IFERROR(VLOOKUP($G18,'Technician Summary'!$G$7:$BK$372,15,FALSE),"") -> 5 | Q18: 0.049 | R18: =IFERROR(VLOOKUP($G18,'Technician Summary'!$G$7:$BK$372,17,FALSE),"") -> 59 | S18: =IFERROR(VLOOKUP($G18,'Technician Summary'!$G$7:$BK$372,18,FALSE),"") -> 5 | T18: 0.0847 | U18: =IFERROR(VLOOKUP($G18,'Technician Summary'!$G$7:$BK$372,20,FALSE),"") -> 43 | V18: =IFERROR(VLOOKUP($G18,'Technician Summary'!$G$7:$BK$372,21,FALSE),"") -> 0 | W18: 0 | X18: =IF($G18="","",SUMIF('SQT Data'!$K:$K,$G18,'SQT Data'!$R:$R)) -> 26 | Y18: =IF($G18="","",SUMIF('SQT Data'!$K:$K,$G18,'SQT Data'!$S:$S)) -> 26 | Z18: 1 | AA18: =IF($G18="","",SUMIF('SQT Data'!$K:$K,$G18,'SQT Data'!$U:$U)) -> 208 | AB18: =IF($G18="","",SUMIF('SQT Data'!$K:$K,$G18,'SQT Data'!$V:$V)) -> 199 | AC18: 0.9567 | AE18: =IFERROR(SUM(AD18/#REF!),"") ->  | AF18: =IFERROR(VLOOKUP($G18,'Technician Summary'!$G$7:$BK$372,7,FALSE),"") -> 57 | AG18: =IFERROR(VLOOKUP($G18,'Technician Summary'!$G$7:$BK$372,8,FALSE),"") -> 4 | AH18: 0.9298 | AI18: =IFERROR(VLOOKUP($G18,'Technician Summary'!$G$7:$BK$372,34,FALSE),"") -> 48 | AJ18: =IFERROR(VLOOKUP($G18,'Technician Summary'!$G$7:$BK$372,35,FALSE),"") -> 3 | AK18: 0.9375 | AL18: =IFERROR(VLOOKUP($G18,'Technician Summary'!$G$7:$BK$372,37,FALSE),"") -> 104 | AM18: =IFERROR(VLOOKUP($G18,'Technician Summary'!$G$7:$BK$372,38,FALSE),"") -> 94 | AN18: 0.9038 | AO18: =COUNTIFS('Drop Validation'!$P:$P,$G18,'Drop Validation'!$F:$F,"In Scope") -> 0 | AP18: =COUNTIFS('Drop Validation'!$P:$P,$G18,'Drop Validation'!$AA:$AA,"Compliant",'Drop Validation'!$F:$F,"In Scope") -> 0
B19: Roanoke | F19: John Decker | G19: 80123 | H19: 3.75 | I19: =IFERROR(VLOOKUP($G19,'Technician Summary'!$G$7:$BB$372,2,FALSE),"") -> 7 | J19: =IFERROR(VLOOKUP($G19,'Technician Summary'!$G$7:$BN$372,60,FALSE),"") -> 1.9999 | K19: 0.7143 | L19: =IF(G19="","",COUNTIFS('SMS tNPS'!DE:DE,G19,'SMS tNPS'!HB:HB,"Yes")) -> 11 | M19: =IFERROR(IF(G19="","",COUNTIFS('SMS tNPS'!DE:DE,G19,'SMS tNPS'!HB:HB,"Yes"))+COUNTIFS('SMS tNPS'!DE:DE,G19,'SMS tNPS'!HB:HB,"No"),"") -> 11 | N19: 1 | O19: =IFERROR(VLOOKUP($G19,'Technician Summary'!$G$7:$BK$372,14,FALSE),"") -> 49 | P19: =IFERROR(VLOOKUP($G19,'Technician Summary'!$G$7:$BK$372,15,FALSE),"") -> 3 | Q19: 0.0612 | R19: =IFERROR(VLOOKUP($G19,'Technician Summary'!$G$7:$BK$372,17,FALSE),"") -> 24 | S19: =IFERROR(VLOOKUP($G19,'Technician Summary'!$G$7:$BK$372,18,FALSE),"") -> 0 | T19: 0 | U19: =IFERROR(VLOOKUP($G19,'Technician Summary'!$G$7:$BK$372,20,FALSE),"") -> 25 | V19: =IFERROR(VLOOKUP($G19,'Technician Summary'!$G$7:$BK$372,21,FALSE),"") -> 3 | W19: 0.12 | X19: =IF($G19="","",SUMIF('SQT Data'!$K:$K,$G19,'SQT Data'!$R:$R)) -> 15 | Y19: =IF($G19="","",SUMIF('SQT Data'!$K:$K,$G19,'SQT Data'!$S:$S)) -> 12 | Z19: 0.8 | AA19: =IF($G19="","",SUMIF('SQT Data'!$K:$K,$G19,'SQT Data'!$U:$U)) -> 91 | AB19: =IF($G19="","",SUMIF('SQT Data'!$K:$K,$G19,'SQT Data'!$V:$V)) -> 79 | AC19: 0.8681 | AE19: =IFERROR(SUM(AD19/#REF!),"") ->  | AF19: =IFERROR(VLOOKUP($G19,'Technician Summary'!$G$7:$BK$372,7,FALSE),"") -> 23 | AG19: =IFERROR(VLOOKUP($G19,'Technician Summary'!$G$7:$BK$372,8,FALSE),"") -> 0 | AH19: 1 | AI19: =IFERROR(VLOOKUP($G19,'Technician Summary'!$G$7:$BK$372,34,FALSE),"") -> 21 | AJ19: =IFERROR(VLOOKUP($G19,'Technician Summary'!$G$7:$BK$372,35,FALSE),"") -> 4 | AK19: 0.8095 | AL19: =IFERROR(VLOOKUP($G19,'Technician Summary'!$G$7:$BK$372,37,FALSE),"") -> 52 | AM19: =IFERROR(VLOOKUP($G19,'Technician Summary'!$G$7:$BK$372,38,FALSE),"") -> 47 | AN19: 0.9038 | AO19: =COUNTIFS('Drop Validation'!$P:$P,$G19,'Drop Validation'!$F:$F,"In Scope") -> 2 | AP19: =COUNTIFS('Drop Validation'!$P:$P,$G19,'Drop Validation'!$AA:$AA,"Compliant",'Drop Validation'!$F:$F,"In Scope") -> 2 | AQ19: 1
B20: Gulf Coast | F20: Brayan Sabogal | G20: 55185 | H20: 0 | I20: =IFERROR(VLOOKUP($G20,'Technician Summary'!$G$7:$BB$372,2,FALSE),"") -> 6 | J20: =IFERROR(VLOOKUP($G20,'Technician Summary'!$G$7:$BN$372,60,FALSE),"") -> 4.0002 | K20: 0.3333 | L20: =IF(G20="","",COUNTIFS('SMS tNPS'!DE:DE,G20,'SMS tNPS'!HB:HB,"Yes")) -> 9 | M20: =IFERROR(IF(G20="","",COUNTIFS('SMS tNPS'!DE:DE,G20,'SMS tNPS'!HB:HB,"Yes"))+COUNTIFS('SMS tNPS'!DE:DE,G20,'SMS tNPS'!HB:HB,"No"),"") -> 15 | N20: 0.6 | O20: =IFERROR(VLOOKUP($G20,'Technician Summary'!$G$7:$BK$372,14,FALSE),"") -> 63 | P20: =IFERROR(VLOOKUP($G20,'Technician Summary'!$G$7:$BK$372,15,FALSE),"") -> 8 | Q20: 0.127 | R20: =IFERROR(VLOOKUP($G20,'Technician Summary'!$G$7:$BK$372,17,FALSE),"") -> 15 | S20: =IFERROR(VLOOKUP($G20,'Technician Summary'!$G$7:$BK$372,18,FALSE),"") -> 2 | T20: 0.1333 | U20: =IFERROR(VLOOKUP($G20,'Technician Summary'!$G$7:$BK$372,20,FALSE),"") -> 48 | V20: =IFERROR(VLOOKUP($G20,'Technician Summary'!$G$7:$BK$372,21,FALSE),"") -> 6 | W20: 0.125 | X20: =IF($G20="","",SUMIF('SQT Data'!$K:$K,$G20,'SQT Data'!$R:$R)) -> 46 | Y20: =IF($G20="","",SUMIF('SQT Data'!$K:$K,$G20,'SQT Data'!$S:$S)) -> 28 | Z20: 0.6087 | AA20: =IF($G20="","",SUMIF('SQT Data'!$K:$K,$G20,'SQT Data'!$U:$U)) -> 203 | AB20: =IF($G20="","",SUMIF('SQT Data'!$K:$K,$G20,'SQT Data'!$V:$V)) -> 178 | AC20: 0.8768 | AE20: =IFERROR(SUM(AD20/#REF!),"") ->  | AF20: =IFERROR(VLOOKUP($G20,'Technician Summary'!$G$7:$BK$372,7,FALSE),"") -> 27 | AG20: =IFERROR(VLOOKUP($G20,'Technician Summary'!$G$7:$BK$372,8,FALSE),"") -> 4 | AH20: 0.8519 | AI20: =IFERROR(VLOOKUP($G20,'Technician Summary'!$G$7:$BK$372,34,FALSE),"") -> 15 | AJ20: =IFERROR(VLOOKUP($G20,'Technician Summary'!$G$7:$BK$372,35,FALSE),"") -> 1 | AK20: 0.9333 | AL20: =IFERROR(VLOOKUP($G20,'Technician Summary'!$G$7:$BK$372,37,FALSE),"") -> 70 | AM20: =IFERROR(VLOOKUP($G20,'Technician Summary'!$G$7:$BK$372,38,FALSE),"") -> 63 | AN20: 0.9 | AO20: =COUNTIFS('Drop Validation'!$P:$P,$G20,'Drop Validation'!$F:$F,"In Scope") -> 4 | AP20: =COUNTIFS('Drop Validation'!$P:$P,$G20,'Drop Validation'!$AA:$AA,"Compliant",'Drop Validation'!$F:$F,"In Scope") -> 0 | AQ20: 0
B21: Oklahoma City | F21: Nate Newman | G21: 85683 | H21: 6.25 | I21: =IFERROR(VLOOKUP($G21,'Technician Summary'!$G$7:$BB$372,2,FALSE),"") -> 7 | J21: =IFERROR(VLOOKUP($G21,'Technician Summary'!$G$7:$BN$372,60,FALSE),"") -> 1.0003 | K21: 0.8571 | L21: =IF(G21="","",COUNTIFS('SMS tNPS'!DE:DE,G21,'SMS tNPS'!HB:HB,"Yes")) -> 24 | M21: =IFERROR(IF(G21="","",COUNTIFS('SMS tNPS'!DE:DE,G21,'SMS tNPS'!HB:HB,"Yes"))+COUNTIFS('SMS tNPS'!DE:DE,G21,'SMS tNPS'!HB:HB,"No"),"") -> 24 | N21: 1 | O21: =IFERROR(VLOOKUP($G21,'Technician Summary'!$G$7:$BK$372,14,FALSE),"") -> 95 | P21: =IFERROR(VLOOKUP($G21,'Technician Summary'!$G$7:$BK$372,15,FALSE),"") -> 2 | Q21: 0.0211 | R21: =IFERROR(VLOOKUP($G21,'Technician Summary'!$G$7:$BK$372,17,FALSE),"") -> 55 | S21: =IFERROR(VLOOKUP($G21,'Technician Summary'!$G$7:$BK$372,18,FALSE),"") -> 1 | T21: 0.0182 | U21: =IFERROR(VLOOKUP($G21,'Technician Summary'!$G$7:$BK$372,20,FALSE),"") -> 40 | V21: =IFERROR(VLOOKUP($G21,'Technician Summary'!$G$7:$BK$372,21,FALSE),"") -> 1 | W21: 0.025 | X21: =IF($G21="","",SUMIF('SQT Data'!$K:$K,$G21,'SQT Data'!$R:$R)) -> 38 | Y21: =IF($G21="","",SUMIF('SQT Data'!$K:$K,$G21,'SQT Data'!$S:$S)) -> 25 | Z21: 0.6579 | AA21: =IF($G21="","",SUMIF('SQT Data'!$K:$K,$G21,'SQT Data'!$U:$U)) -> 197 | AB21: =IF($G21="","",SUMIF('SQT Data'!$K:$K,$G21,'SQT Data'!$V:$V)) -> 174 | AC21: 0.8832 | AE21: =IFERROR(SUM(AD21/#REF!),"") ->  | AF21: =IFERROR(VLOOKUP($G21,'Technician Summary'!$G$7:$BK$372,7,FALSE),"") -> 69 | AG21: =IFERROR(VLOOKUP($G21,'Technician Summary'!$G$7:$BK$372,8,FALSE),"") -> 1 | AH21: 0.9855 | AI21: =IFERROR(VLOOKUP($G21,'Technician Summary'!$G$7:$BK$372,34,FALSE),"") -> 50 | AJ21: =IFERROR(VLOOKUP($G21,'Technician Summary'!$G$7:$BK$372,35,FALSE),"") -> 5 | AK21: 0.9 | AL21: =IFERROR(VLOOKUP($G21,'Technician Summary'!$G$7:$BK$372,37,FALSE),"") -> 107 | AM21: =IFERROR(VLOOKUP($G21,'Technician Summary'!$G$7:$BK$372,38,FALSE),"") -> 94 | AN21: 0.8785 | AO21: =COUNTIFS('Drop Validation'!$P:$P,$G21,'Drop Validation'!$F:$F,"In Scope") -> 2 | AP21: =COUNTIFS('Drop Validation'!$P:$P,$G21,'Drop Validation'!$AA:$AA,"Compliant",'Drop Validation'!$F:$F,"In Scope") -> 2 | AQ21: 1
B22: Tech Rankings | F22: Trevor Byers | G22: 11922 | H22: 10 | I22: =IFERROR(VLOOKUP($G22,'Technician Summary'!$G$7:$BB$372,2,FALSE),"") -> 13 | J22: =IFERROR(VLOOKUP($G22,'Technician Summary'!$G$7:$BN$372,60,FALSE),"") -> 0.9997 | K22: 0.9231 | L22: =IF(G22="","",COUNTIFS('SMS tNPS'!DE:DE,G22,'SMS tNPS'!HB:HB,"Yes")) -> 27 | M22: =IFERROR(IF(G22="","",COUNTIFS('SMS tNPS'!DE:DE,G22,'SMS tNPS'!HB:HB,"Yes"))+COUNTIFS('SMS tNPS'!DE:DE,G22,'SMS tNPS'!HB:HB,"No"),"") -> 29 | N22: 0.931 | O22: =IFERROR(VLOOKUP($G22,'Technician Summary'!$G$7:$BK$372,14,FALSE),"") -> 100 | P22: =IFERROR(VLOOKUP($G22,'Technician Summary'!$G$7:$BK$372,15,FALSE),"") -> 3 | Q22: 0.03 | R22: =IFERROR(VLOOKUP($G22,'Technician Summary'!$G$7:$BK$372,17,FALSE),"") -> 34 | S22: =IFERROR(VLOOKUP($G22,'Technician Summary'!$G$7:$BK$372,18,FALSE),"") -> 1 | T22: 0.0294 | U22: =IFERROR(VLOOKUP($G22,'Technician Summary'!$G$7:$BK$372,20,FALSE),"") -> 66 | V22: =IFERROR(VLOOKUP($G22,'Technician Summary'!$G$7:$BK$372,21,FALSE),"") -> 2 | W22: 0.0303 | X22: =IF($G22="","",SUMIF('SQT Data'!$K:$K,$G22,'SQT Data'!$R:$R)) -> 44 | Y22: =IF($G22="","",SUMIF('SQT Data'!$K:$K,$G22,'SQT Data'!$S:$S)) -> 42 | Z22: 0.9545 | AA22: =IF($G22="","",SUMIF('SQT Data'!$K:$K,$G22,'SQT Data'!$U:$U)) -> 329 | AB22: =IF($G22="","",SUMIF('SQT Data'!$K:$K,$G22,'SQT Data'!$V:$V)) -> 302 | AC22: 0.9179 | AE22: =IFERROR(SUM(AD22/#REF!),"") ->  | AF22: =IFERROR(VLOOKUP($G22,'Technician Summary'!$G$7:$BK$372,7,FALSE),"") -> 51 | AG22: =IFERROR(VLOOKUP($G22,'Technician Summary'!$G$7:$BK$372,8,FALSE),"") -> 2 | AH22: 0.9608 | AI22: =IFERROR(VLOOKUP($G22,'Technician Summary'!$G$7:$BK$372,34,FALSE),"") -> 32 | AJ22: =IFERROR(VLOOKUP($G22,'Technician Summary'!$G$7:$BK$372,35,FALSE),"") -> 0 | AK22: 1 | AL22: =IFERROR(VLOOKUP($G22,'Technician Summary'!$G$7:$BK$372,37,FALSE),"") -> 113 | AM22: =IFERROR(VLOOKUP($G22,'Technician Summary'!$G$7:$BK$372,38,FALSE),"") -> 97 | AN22: 0.8584 | AO22: =COUNTIFS('Drop Validation'!$P:$P,$G22,'Drop Validation'!$F:$F,"In Scope") -> 8 | AP22: =COUNTIFS('Drop Validation'!$P:$P,$G22,'Drop Validation'!$AA:$AA,"Compliant",'Drop Validation'!$F:$F,"In Scope") -> 0 | AQ22: 0
B23: SMS Rankings | I23: =IFERROR(VLOOKUP($G23,'Technician Summary'!$G$7:$BB$372,2,FALSE),"") ->  | J23: =IFERROR(VLOOKUP($G23,'Technician Summary'!$G$7:$BN$372,60,FALSE),"") ->  | L23: =IF(G23="","",COUNTIFS('SMS tNPS'!DE:DE,G23,'SMS tNPS'!HB:HB,"Yes")) ->  | M23: =IFERROR(IF(G23="","",COUNTIFS('SMS tNPS'!DE:DE,G23,'SMS tNPS'!HB:HB,"Yes"))+COUNTIFS('SMS tNPS'!DE:DE,G23,'SMS tNPS'!HB:HB,"No"),"") ->  | O23: =IFERROR(VLOOKUP($G23,'Technician Summary'!$G$7:$BK$372,14,FALSE),"") ->  | P23: =IFERROR(VLOOKUP($G23,'Technician Summary'!$G$7:$BK$372,15,FALSE),"") ->  | R23: =IFERROR(VLOOKUP($G23,'Technician Summary'!$G$7:$BK$372,17,FALSE),"") ->  | S23: =IFERROR(VLOOKUP($G23,'Technician Summary'!$G$7:$BK$372,18,FALSE),"") ->  | U23: =IFERROR(VLOOKUP($G23,'Technician Summary'!$G$7:$BK$372,20,FALSE),"") ->  | V23: =IFERROR(VLOOKUP($G23,'Technician Summary'!$G$7:$BK$372,21,FALSE),"") ->  | X23: =IF($G23="","",SUMIF('SQT Data'!$K:$K,$G23,'SQT Data'!$R:$R)) ->  | Y23: =IF($G23="","",SUMIF('SQT Data'!$K:$K,$G23,'SQT Data'!$S:$S)) ->  | AA23: =IF($G23="","",SUMIF('SQT Data'!$K:$K,$G23,'SQT Data'!$U:$U)) ->  | AB23: =IF($G23="","",SUMIF('SQT Data'!$K:$K,$G23,'SQT Data'!$V:$V)) ->  | AE23: =IFERROR(SUM(AD23/#REF!),"") ->  | AF23: =IFERROR(VLOOKUP($G23,'Technician Summary'!$G$7:$BK$372,7,FALSE),"") ->  | AG23: =IFERROR(VLOOKUP($G23,'Technician Summary'!$G$7:$BK$372,8,FALSE),"") ->  | AI23: =IFERROR(VLOOKUP($G23,'Technician Summary'!$G$7:$BK$372,34,FALSE),"") ->  | AJ23: =IFERROR(VLOOKUP($G23,'Technician Summary'!$G$7:$BK$372,35,FALSE),"") ->  | AL23: =IFERROR(VLOOKUP($G23,'Technician Summary'!$G$7:$BK$372,37,FALSE),"") ->  | AM23: =IFERROR(VLOOKUP($G23,'Technician Summary'!$G$7:$BK$372,38,FALSE),"") ->  | AO23: =COUNTIFS('Drop Validation'!$P:$P,$G23,'Drop Validation'!$F:$F,"In Scope") -> 0 | AP23: =COUNTIFS('Drop Validation'!$P:$P,$G23,'Drop Validation'!$AA:$AA,"Compliant",'Drop Validation'!$F:$F,"In Scope") -> 0
B24: SQT Rankings | I24: =IFERROR(VLOOKUP($G24,'Technician Summary'!$G$7:$BB$372,2,FALSE),"") ->  | J24: =IFERROR(VLOOKUP($G24,'Technician Summary'!$G$7:$BN$372,60,FALSE),"") ->  | L24: =IF(G24="","",COUNTIFS('SMS tNPS'!DE:DE,G24,'SMS tNPS'!HB:HB,"Yes")) ->  | M24: =IFERROR(IF(G24="","",COUNTIFS('SMS tNPS'!DE:DE,G24,'SMS tNPS'!HB:HB,"Yes"))+COUNTIFS('SMS tNPS'!DE:DE,G24,'SMS tNPS'!HB:HB,"No"),"") ->  | O24: =IFERROR(VLOOKUP($G24,'Technician Summary'!$G$7:$BK$372,14,FALSE),"") ->  | P24: =IFERROR(VLOOKUP($G24,'Technician Summary'!$G$7:$BK$372,15,FALSE),"") ->  | R24: =IFERROR(VLOOKUP($G24,'Technician Summary'!$G$7:$BK$372,17,FALSE),"") ->  | S24: =IFERROR(VLOOKUP($G24,'Technician Summary'!$G$7:$BK$372,18,FALSE),"") ->  | U24: =IFERROR(VLOOKUP($G24,'Technician Summary'!$G$7:$BK$372,20,FALSE),"") ->  | V24: =IFERROR(VLOOKUP($G24,'Technician Summary'!$G$7:$BK$372,21,FALSE),"") ->  | X24: =IF($G24="","",SUMIF('SQT Data'!$K:$K,$G24,'SQT Data'!$R:$R)) ->  | Y24: =IF($G24="","",SUMIF('SQT Data'!$K:$K,$G24,'SQT Data'!$S:$S)) ->  | AA24: =IF($G24="","",SUMIF('SQT Data'!$K:$K,$G24,'SQT Data'!$U:$U)) ->  | AB24: =IF($G24="","",SUMIF('SQT Data'!$K:$K,$G24,'SQT Data'!$V:$V)) ->  | AE24: =IFERROR(SUM(AD24/#REF!),"") ->  | AF24: =IFERROR(VLOOKUP($G24,'Technician Summary'!$G$7:$BK$372,7,FALSE),"") ->  | AG24: =IFERROR(VLOOKUP($G24,'Technician Summary'!$G$7:$BK$372,8,FALSE),"") ->  | AI24: =IFERROR(VLOOKUP($G24,'Technician Summary'!$G$7:$BK$372,34,FALSE),"") ->  | AJ24: =IFERROR(VLOOKUP($G24,'Technician Summary'!$G$7:$BK$372,35,FALSE),"") ->  | AL24: =IFERROR(VLOOKUP($G24,'Technician Summary'!$G$7:$BK$372,37,FALSE),"") ->  | AM24: =IFERROR(VLOOKUP($G24,'Technician Summary'!$G$7:$BK$372,38,FALSE),"") ->  | AO24: =COUNTIFS('Drop Validation'!$P:$P,$G24,'Drop Validation'!$F:$F,"In Scope") -> 0 | AP24: =COUNTIFS('Drop Validation'!$P:$P,$G24,'Drop Validation'!$AA:$AA,"Compliant",'Drop Validation'!$F:$F,"In Scope") -> 0
B25: Repeat Rankings | I25: =IFERROR(VLOOKUP($G25,'Technician Summary'!$G$7:$BB$372,2,FALSE),"") ->  | J25: =IFERROR(VLOOKUP($G25,'Technician Summary'!$G$7:$BN$372,60,FALSE),"") ->  | L25: =IF(G25="","",COUNTIFS('SMS tNPS'!DE:DE,G25,'SMS tNPS'!HB:HB,"Yes")) ->  | M25: =IFERROR(IF(G25="","",COUNTIFS('SMS tNPS'!DE:DE,G25,'SMS tNPS'!HB:HB,"Yes"))+COUNTIFS('SMS tNPS'!DE:DE,G25,'SMS tNPS'!HB:HB,"No"),"") ->  | O25: =IFERROR(VLOOKUP($G25,'Technician Summary'!$G$7:$BK$372,14,FALSE),"") ->  | P25: =IFERROR(VLOOKUP($G25,'Technician Summary'!$G$7:$BK$372,15,FALSE),"") ->  | R25: =IFERROR(VLOOKUP($G25,'Technician Summary'!$G$7:$BK$372,17,FALSE),"") ->  | S25: =IFERROR(VLOOKUP($G25,'Technician Summary'!$G$7:$BK$372,18,FALSE),"") ->  | U25: =IFERROR(VLOOKUP($G25,'Technician Summary'!$G$7:$BK$372,20,FALSE),"") ->  | V25: =IFERROR(VLOOKUP($G25,'Technician Summary'!$G$7:$BK$372,21,FALSE),"") ->  | X25: =IF($G25="","",SUMIF('SQT Data'!$K:$K,$G25,'SQT Data'!$R:$R)) ->  | Y25: =IF($G25="","",SUMIF('SQT Data'!$K:$K,$G25,'SQT Data'!$S:$S)) ->  | AA25: =IF($G25="","",SUMIF('SQT Data'!$K:$K,$G25,'SQT Data'!$U:$U)) ->  | AB25: =IF($G25="","",SUMIF('SQT Data'!$K:$K,$G25,'SQT Data'!$V:$V)) ->  | AE25: =IFERROR(SUM(AD25/#REF!),"") ->  | AF25: =IFERROR(VLOOKUP($G25,'Technician Summary'!$G$7:$BK$372,7,FALSE),"") ->  | AG25: =IFERROR(VLOOKUP($G25,'Technician Summary'!$G$7:$BK$372,8,FALSE),"") ->  | AI25: =IFERROR(VLOOKUP($G25,'Technician Summary'!$G$7:$BK$372,34,FALSE),"") ->  | AJ25: =IFERROR(VLOOKUP($G25,'Technician Summary'!$G$7:$BK$372,35,FALSE),"") ->  | AL25: =IFERROR(VLOOKUP($G25,'Technician Summary'!$G$7:$BK$372,37,FALSE),"") ->  | AM25: =IFERROR(VLOOKUP($G25,'Technician Summary'!$G$7:$BK$372,38,FALSE),"") ->  | AO25: =COUNTIFS('Drop Validation'!$P:$P,$G25,'Drop Validation'!$F:$F,"In Scope") -> 0 | AP25: =COUNTIFS('Drop Validation'!$P:$P,$G25,'Drop Validation'!$AA:$AA,"Compliant",'Drop Validation'!$F:$F,"In Scope") -> 0
I26: =IFERROR(VLOOKUP($G26,'Technician Summary'!$G$7:$BB$372,2,FALSE),"") ->  | J26: =IFERROR(VLOOKUP($G26,'Technician Summary'!$G$7:$BN$372,60,FALSE),"") ->  | L26: =IF(G26="","",COUNTIFS('SMS tNPS'!DE:DE,G26,'SMS tNPS'!HB:HB,"Yes")) ->  | M26: =IFERROR(IF(G26="","",COUNTIFS('SMS tNPS'!DE:DE,G26,'SMS tNPS'!HB:HB,"Yes"))+COUNTIFS('SMS tNPS'!DE:DE,G26,'SMS tNPS'!HB:HB,"No"),"") ->  | O26: =IFERROR(VLOOKUP($G26,'Technician Summary'!$G$7:$BK$372,14,FALSE),"") ->  | P26: =IFERROR(VLOOKUP($G26,'Technician Summary'!$G$7:$BK$372,15,FALSE),"") ->  | R26: =IFERROR(VLOOKUP($G26,'Technician Summary'!$G$7:$BK$372,17,FALSE),"") ->  | S26: =IFERROR(VLOOKUP($G26,'Technician Summary'!$G$7:$BK$372,18,FALSE),"") ->  | U26: =IFERROR(VLOOKUP($G26,'Technician Summary'!$G$7:$BK$372,20,FALSE),"") ->  | V26: =IFERROR(VLOOKUP($G26,'Technician Summary'!$G$7:$BK$372,21,FALSE),"") ->  | X26: =IF($G26="","",SUMIF('SQT Data'!$K:$K,$G26,'SQT Data'!$R:$R)) ->  | Y26: =IF($G26="","",SUMIF('SQT Data'!$K:$K,$G26,'SQT Data'!$S:$S)) ->  | AA26: =IF($G26="","",SUMIF('SQT Data'!$K:$K,$G26,'SQT Data'!$U:$U)) ->  | AB26: =IF($G26="","",SUMIF('SQT Data'!$K:$K,$G26,'SQT Data'!$V:$V)) ->  | AE26: =IFERROR(SUM(AD26/#REF!),"") ->  | AF26: =IFERROR(VLOOKUP($G26,'Technician Summary'!$G$7:$BK$372,7,FALSE),"") ->  | AG26: =IFERROR(VLOOKUP($G26,'Technician Summary'!$G$7:$BK$372,8,FALSE),"") ->  | AI26: =IFERROR(VLOOKUP($G26,'Technician Summary'!$G$7:$BK$372,34,FALSE),"") ->  | AJ26: =IFERROR(VLOOKUP($G26,'Technician Summary'!$G$7:$BK$372,35,FALSE),"") ->  | AL26: =IFERROR(VLOOKUP($G26,'Technician Summary'!$G$7:$BK$372,37,FALSE),"") ->  | AM26: =IFERROR(VLOOKUP($G26,'Technician Summary'!$G$7:$BK$372,38,FALSE),"") ->  | AO26: =COUNTIFS('Drop Validation'!$P:$P,$G26,'Drop Validation'!$F:$F,"In Scope") -> 0 | AP26: =COUNTIFS('Drop Validation'!$P:$P,$G26,'Drop Validation'!$AA:$AA,"Compliant",'Drop Validation'!$F:$F,"In Scope") -> 0
B27: Raw Data | I27: =IFERROR(VLOOKUP($G27,'Technician Summary'!$G$7:$BB$372,2,FALSE),"") ->  | J27: =IFERROR(VLOOKUP($G27,'Technician Summary'!$G$7:$BN$372,60,FALSE),"") ->  | L27: =IF(G27="","",COUNTIFS('SMS tNPS'!DE:DE,G27,'SMS tNPS'!HB:HB,"Yes")) ->  | M27: =IFERROR(IF(G27="","",COUNTIFS('SMS tNPS'!DE:DE,G27,'SMS tNPS'!HB:HB,"Yes"))+COUNTIFS('SMS tNPS'!DE:DE,G27,'SMS tNPS'!HB:HB,"No"),"") ->  | O27: =IFERROR(VLOOKUP($G27,'Technician Summary'!$G$7:$BK$372,14,FALSE),"") ->  | P27: =IFERROR(VLOOKUP($G27,'Technician Summary'!$G$7:$BK$372,15,FALSE),"") ->  | R27: =IFERROR(VLOOKUP($G27,'Technician Summary'!$G$7:$BK$372,17,FALSE),"") ->  | S27: =IFERROR(VLOOKUP($G27,'Technician Summary'!$G$7:$BK$372,18,FALSE),"") ->  | U27: =IFERROR(VLOOKUP($G27,'Technician Summary'!$G$7:$BK$372,20,FALSE),"") ->  | V27: =IFERROR(VLOOKUP($G27,'Technician Summary'!$G$7:$BK$372,21,FALSE),"") ->  | X27: =IF($G27="","",SUMIF('SQT Data'!$K:$K,$G27,'SQT Data'!$R:$R)) ->  | Y27: =IF($G27="","",SUMIF('SQT Data'!$K:$K,$G27,'SQT Data'!$S:$S)) ->  | AA27: =IF($G27="","",SUMIF('SQT Data'!$K:$K,$G27,'SQT Data'!$U:$U)) ->  | AB27: =IF($G27="","",SUMIF('SQT Data'!$K:$K,$G27,'SQT Data'!$V:$V)) ->  | AE27: =IFERROR(SUM(AD27/#REF!),"") ->  | AF27: =IFERROR(VLOOKUP($G27,'Technician Summary'!$G$7:$BK$372,7,FALSE),"") ->  | AG27: =IFERROR(VLOOKUP($G27,'Technician Summary'!$G$7:$BK$372,8,FALSE),"") ->  | AI27: =IFERROR(VLOOKUP($G27,'Technician Summary'!$G$7:$BK$372,34,FALSE),"") ->  | AJ27: =IFERROR(VLOOKUP($G27,'Technician Summary'!$G$7:$BK$372,35,FALSE),"") ->  | AL27: =IFERROR(VLOOKUP($G27,'Technician Summary'!$G$7:$BK$372,37,FALSE),"") ->  | AM27: =IFERROR(VLOOKUP($G27,'Technician Summary'!$G$7:$BK$372,38,FALSE),"") ->  | AO27: =COUNTIFS('Drop Validation'!$P:$P,$G27,'Drop Validation'!$F:$F,"In Scope") -> 0 | AP27: =COUNTIFS('Drop Validation'!$P:$P,$G27,'Drop Validation'!$AA:$AA,"Compliant",'Drop Validation'!$F:$F,"In Scope") -> 0
I28: =IFERROR(VLOOKUP($G28,'Technician Summary'!$G$7:$BB$372,2,FALSE),"") ->  | J28: =IFERROR(VLOOKUP($G28,'Technician Summary'!$G$7:$BN$372,60,FALSE),"") ->  | L28: =IF(G28="","",COUNTIFS('SMS tNPS'!DE:DE,G28,'SMS tNPS'!HB:HB,"Yes")) ->  | M28: =IFERROR(IF(G28="","",COUNTIFS('SMS tNPS'!DE:DE,G28,'SMS tNPS'!HB:HB,"Yes"))+COUNTIFS('SMS tNPS'!DE:DE,G28,'SMS tNPS'!HB:HB,"No"),"") ->  | O28: =IFERROR(VLOOKUP($G28,'Technician Summary'!$G$7:$BK$372,14,FALSE),"") ->  | P28: =IFERROR(VLOOKUP($G28,'Technician Summary'!$G$7:$BK$372,15,FALSE),"") ->  | R28: =IFERROR(VLOOKUP($G28,'Technician Summary'!$G$7:$BK$372,17,FALSE),"") ->  | S28: =IFERROR(VLOOKUP($G28,'Technician Summary'!$G$7:$BK$372,18,FALSE),"") ->  | U28: =IFERROR(VLOOKUP($G28,'Technician Summary'!$G$7:$BK$372,20,FALSE),"") ->  | V28: =IFERROR(VLOOKUP($G28,'Technician Summary'!$G$7:$BK$372,21,FALSE),"") ->  | X28: =IF($G28="","",SUMIF('SQT Data'!$K:$K,$G28,'SQT Data'!$R:$R)) ->  | Y28: =IF($G28="","",SUMIF('SQT Data'!$K:$K,$G28,'SQT Data'!$S:$S)) ->  | AA28: =IF($G28="","",SUMIF('SQT Data'!$K:$K,$G28,'SQT Data'!$U:$U)) ->  | AB28: =IF($G28="","",SUMIF('SQT Data'!$K:$K,$G28,'SQT Data'!$V:$V)) ->  | AE28: =IFERROR(SUM(AD28/#REF!),"") ->  | AF28: =IFERROR(VLOOKUP($G28,'Technician Summary'!$G$7:$BK$372,7,FALSE),"") ->  | AG28: =IFERROR(VLOOKUP($G28,'Technician Summary'!$G$7:$BK$372,8,FALSE),"") ->  | AI28: =IFERROR(VLOOKUP($G28,'Technician Summary'!$G$7:$BK$372,34,FALSE),"") ->  | AJ28: =IFERROR(VLOOKUP($G28,'Technician Summary'!$G$7:$BK$372,35,FALSE),"") ->  | AL28: =IFERROR(VLOOKUP($G28,'Technician Summary'!$G$7:$BK$372,37,FALSE),"") ->  | AM28: =IFERROR(VLOOKUP($G28,'Technician Summary'!$G$7:$BK$372,38,FALSE),"") ->  | AO28: =COUNTIFS('Drop Validation'!$P:$P,$G28,'Drop Validation'!$F:$F,"In Scope") -> 0 | AP28: =COUNTIFS('Drop Validation'!$P:$P,$G28,'Drop Validation'!$AA:$AA,"Compliant",'Drop Validation'!$F:$F,"In Scope") -> 0
I29: =IFERROR(VLOOKUP($G29,'Technician Summary'!$G$7:$BB$372,2,FALSE),"") ->  | J29: =IFERROR(VLOOKUP($G29,'Technician Summary'!$G$7:$BN$372,60,FALSE),"") ->  | L29: =IF(G29="","",COUNTIFS('SMS tNPS'!DE:DE,G29,'SMS tNPS'!HB:HB,"Yes")) ->  | M29: =IFERROR(IF(G29="","",COUNTIFS('SMS tNPS'!DE:DE,G29,'SMS tNPS'!HB:HB,"Yes"))+COUNTIFS('SMS tNPS'!DE:DE,G29,'SMS tNPS'!HB:HB,"No"),"") ->  | O29: =IFERROR(VLOOKUP($G29,'Technician Summary'!$G$7:$BK$372,14,FALSE),"") ->  | P29: =IFERROR(VLOOKUP($G29,'Technician Summary'!$G$7:$BK$372,15,FALSE),"") ->  | R29: =IFERROR(VLOOKUP($G29,'Technician Summary'!$G$7:$BK$372,17,FALSE),"") ->  | S29: =IFERROR(VLOOKUP($G29,'Technician Summary'!$G$7:$BK$372,18,FALSE),"") ->  | U29: =IFERROR(VLOOKUP($G29,'Technician Summary'!$G$7:$BK$372,20,FALSE),"") ->  | V29: =IFERROR(VLOOKUP($G29,'Technician Summary'!$G$7:$BK$372,21,FALSE),"") ->  | X29: =IF($G29="","",SUMIF('SQT Data'!$K:$K,$G29,'SQT Data'!$R:$R)) ->  | Y29: =IF($G29="","",SUMIF('SQT Data'!$K:$K,$G29,'SQT Data'!$S:$S)) ->  | AA29: =IF($G29="","",SUMIF('SQT Data'!$K:$K,$G29,'SQT Data'!$U:$U)) ->  | AB29: =IF($G29="","",SUMIF('SQT Data'!$K:$K,$G29,'SQT Data'!$V:$V)) ->  | AE29: =IFERROR(SUM(AD29/#REF!),"") ->  | AF29: =IFERROR(VLOOKUP($G29,'Technician Summary'!$G$7:$BK$372,7,FALSE),"") ->  | AG29: =IFERROR(VLOOKUP($G29,'Technician Summary'!$G$7:$BK$372,8,FALSE),"") ->  | AI29: =IFERROR(VLOOKUP($G29,'Technician Summary'!$G$7:$BK$372,34,FALSE),"") ->  | AJ29: =IFERROR(VLOOKUP($G29,'Technician Summary'!$G$7:$BK$372,35,FALSE),"") ->  | AL29: =IFERROR(VLOOKUP($G29,'Technician Summary'!$G$7:$BK$372,37,FALSE),"") ->  | AM29: =IFERROR(VLOOKUP($G29,'Technician Summary'!$G$7:$BK$372,38,FALSE),"") ->  | AO29: =COUNTIFS('Drop Validation'!$P:$P,$G29,'Drop Validation'!$F:$F,"In Scope") -> 0 | AP29: =COUNTIFS('Drop Validation'!$P:$P,$G29,'Drop Validation'!$AA:$AA,"Compliant",'Drop Validation'!$F:$F,"In Scope") -> 0
I30: =IFERROR(VLOOKUP($G30,'Technician Summary'!$G$7:$BB$372,2,FALSE),"") ->  | J30: =IFERROR(VLOOKUP($G30,'Technician Summary'!$G$7:$BN$372,60,FALSE),"") ->  | L30: =IF(G30="","",COUNTIFS('SMS tNPS'!DE:DE,G30,'SMS tNPS'!HB:HB,"Yes")) ->  | M30: =IFERROR(IF(G30="","",COUNTIFS('SMS tNPS'!DE:DE,G30,'SMS tNPS'!HB:HB,"Yes"))+COUNTIFS('SMS tNPS'!DE:DE,G30,'SMS tNPS'!HB:HB,"No"),"") ->  | O30: =IFERROR(VLOOKUP($G30,'Technician Summary'!$G$7:$BK$372,14,FALSE),"") ->  | P30: =IFERROR(VLOOKUP($G30,'Technician Summary'!$G$7:$BK$372,15,FALSE),"") ->  | R30: =IFERROR(VLOOKUP($G30,'Technician Summary'!$G$7:$BK$372,17,FALSE),"") ->  | S30: =IFERROR(VLOOKUP($G30,'Technician Summary'!$G$7:$BK$372,18,FALSE),"") ->  | U30: =IFERROR(VLOOKUP($G30,'Technician Summary'!$G$7:$BK$372,20,FALSE),"") ->  | V30: =IFERROR(VLOOKUP($G30,'Technician Summary'!$G$7:$BK$372,21,FALSE),"") ->  | X30: =IF($G30="","",SUMIF('SQT Data'!$K:$K,$G30,'SQT Data'!$R:$R)) ->  | Y30: =IF($G30="","",SUMIF('SQT Data'!$K:$K,$G30,'SQT Data'!$S:$S)) ->  | AA30: =IF($G30="","",SUMIF('SQT Data'!$K:$K,$G30,'SQT Data'!$U:$U)) ->  | AB30: =IF($G30="","",SUMIF('SQT Data'!$K:$K,$G30,'SQT Data'!$V:$V)) ->  | AE30: =IFERROR(SUM(AD30/#REF!),"") ->  | AF30: =IFERROR(VLOOKUP($G30,'Technician Summary'!$G$7:$BK$372,7,FALSE),"") ->  | AG30: =IFERROR(VLOOKUP($G30,'Technician Summary'!$G$7:$BK$372,8,FALSE),"") ->  | AI30: =IFERROR(VLOOKUP($G30,'Technician Summary'!$G$7:$BK$372,34,FALSE),"") ->  | AJ30: =IFERROR(VLOOKUP($G30,'Technician Summary'!$G$7:$BK$372,35,FALSE),"") ->  | AL30: =IFERROR(VLOOKUP($G30,'Technician Summary'!$G$7:$BK$372,37,FALSE),"") ->  | AM30: =IFERROR(VLOOKUP($G30,'Technician Summary'!$G$7:$BK$372,38,FALSE),"") ->  | AO30: =COUNTIFS('Drop Validation'!$P:$P,$G30,'Drop Validation'!$F:$F,"In Scope") -> 0 | AP30: =COUNTIFS('Drop Validation'!$P:$P,$G30,'Drop Validation'!$AA:$AA,"Compliant",'Drop Validation'!$F:$F,"In Scope") -> 0
I31: =IFERROR(VLOOKUP($G31,'Technician Summary'!$G$7:$BB$372,2,FALSE),"") ->  | J31: =IFERROR(VLOOKUP($G31,'Technician Summary'!$G$7:$BN$372,60,FALSE),"") ->  | L31: =IF(G31="","",COUNTIFS('SMS tNPS'!DE:DE,G31,'SMS tNPS'!HB:HB,"Yes")) ->  | M31: =IFERROR(IF(G31="","",COUNTIFS('SMS tNPS'!DE:DE,G31,'SMS tNPS'!HB:HB,"Yes"))+COUNTIFS('SMS tNPS'!DE:DE,G31,'SMS tNPS'!HB:HB,"No"),"") ->  | O31: =IFERROR(VLOOKUP($G31,'Technician Summary'!$G$7:$BK$372,14,FALSE),"") ->  | P31: =IFERROR(VLOOKUP($G31,'Technician Summary'!$G$7:$BK$372,15,FALSE),"") ->  | R31: =IFERROR(VLOOKUP($G31,'Technician Summary'!$G$7:$BK$372,17,FALSE),"") ->  | S31: =IFERROR(VLOOKUP($G31,'Technician Summary'!$G$7:$BK$372,18,FALSE),"") ->  | U31: =IFERROR(VLOOKUP($G31,'Technician Summary'!$G$7:$BK$372,20,FALSE),"") ->  | V31: =IFERROR(VLOOKUP($G31,'Technician Summary'!$G$7:$BK$372,21,FALSE),"") ->  | X31: =IF($G31="","",SUMIF('SQT Data'!$K:$K,$G31,'SQT Data'!$R:$R)) ->  | Y31: =IF($G31="","",SUMIF('SQT Data'!$K:$K,$G31,'SQT Data'!$S:$S)) ->  | AA31: =IF($G31="","",SUMIF('SQT Data'!$K:$K,$G31,'SQT Data'!$U:$U)) ->  | AB31: =IF($G31="","",SUMIF('SQT Data'!$K:$K,$G31,'SQT Data'!$V:$V)) ->  | AE31: =IFERROR(SUM(AD31/#REF!),"") ->  | AF31: =IFERROR(VLOOKUP($G31,'Technician Summary'!$G$7:$BK$372,7,FALSE),"") ->  | AG31: =IFERROR(VLOOKUP($G31,'Technician Summary'!$G$7:$BK$372,8,FALSE),"") ->  | AI31: =IFERROR(VLOOKUP($G31,'Technician Summary'!$G$7:$BK$372,34,FALSE),"") ->  | AJ31: =IFERROR(VLOOKUP($G31,'Technician Summary'!$G$7:$BK$372,35,FALSE),"") ->  | AL31: =IFERROR(VLOOKUP($G31,'Technician Summary'!$G$7:$BK$372,37,FALSE),"") ->  | AM31: =IFERROR(VLOOKUP($G31,'Technician Summary'!$G$7:$BK$372,38,FALSE),"") ->  | AO31: =COUNTIFS('Drop Validation'!$P:$P,$G31,'Drop Validation'!$F:$F,"In Scope") -> 0 | AP31: =COUNTIFS('Drop Validation'!$P:$P,$G31,'Drop Validation'!$AA:$AA,"Compliant",'Drop Validation'!$F:$F,"In Scope") -> 0
I32: # NPS WO's | J32: # Failures | K32: NPS | L32: SMS Promoter Count | M32: SMS Count | N32: SMS tNPS | O32: Total Repeatable WO | P32: Total Repeats | Q32: Repeats | R32: Total Repeatable WO | S32: Repeat IN | T32: IN Repeat % | U32: Total Repeatable WO | V32: Repeat TC | W32: Repeat TC % | X32: Jobs | Y32: Test Run | Z32: SQT Compliance | AB32: Test Fail | AC32: SQT Pass | AD32: Test Passed | AE32: Ingress Test Pass | AF32: FCR WO | AG32: FCR Failures | AH32: FCR | AI32: Jobs | AJ32: Jobs Late | AK32: OTA | AL32: Jobs | AM32: Completed Jobs | AN32: Completion % | AO32: Total Jobs | AP32: Total Valid | AQ32: Drop Validation
I33: =SUMIF(I7:I31,">0") -> 83 | J33: =SUMIF(J7:J31,">0") -> 37
K34: =IFERROR(1-(J33/I33),"") -> 0.5542 | L34: =SUM(L7:L31) -> 256 | M34: =SUM(M7:M31) -> 282 | N34: =IFERROR(SUM(L34/M34),"") -> 0.9078 | O34: =SUM(O7:O31) -> 1217 | P34: =SUM(P7:P31) -> 57 | Q34: =IFERROR(SUM(P34/O34),"") -> 0.0468 | R34: =SUM(R7:R31) -> 502 | S34: =SUM(S7:S31) -> 19 | T34: =IFERROR(SUM(S34/R34),"") -> 0.0378 | U34: =SUM(U7:U31) -> 715 | V34: =SUM(V7:V31) -> 38 | W34: =IFERROR(SUM(V34/U34),"") -> 0.0531 | X34: =SUMIF(X7:X31,">0") -> 762 | Y34: =SUMIF(Y7:Y31,">0") -> 689 | Z34: =IFERROR(SUM(Y34/X34),"") -> 0.9042 | AA34: =SUM(AA7:AA31) -> 5465 | AB34: =SUM(AB7:AB31) -> 4709 | AC34: =IFERROR(SUM(AB34/AA34),"") -> 0.8617 | AD34: =SUM(AD7:AD31) -> 0 | AE34: =IFERROR(SUM(AD34/#REF!),"") ->  | AF34: =SUM(AF7:AF31) -> 640 | AG34: =SUM(AG7:AG31) -> 21 | AH34: =IFERROR(1-AG34/AF34,"") -> 0.9672 | AI34: =SUM(AI7:AI31) -> 453 | AJ34: =SUM(AJ7:AJ31) -> 40 | AK34: =IFERROR(1-AJ34/AI34,"") -> 0.9117 | AL34: =SUM(AL7:AL31) -> 1332 | AM34: =SUM(AM7:AM31) -> 1180 | AN34: =IFERROR(AM34/AL34,"") -> 0.8859 | AO34: =SUM(AO7:AO31) -> 36 | AP34: =SUM(AP7:AP31) -> 15 | AQ34: =IFERROR(1-AP34/AO34,"") -> 0.5833

Sheet Baton Rouge
F3: Paul Cook
F5: Tech Name | G5: Tech ID | H5: Score | I5: # NPS WO's | J5: # Failures | K5: NPS | L5: SMS Promoter Count | M5: SMS Count | N5: SMS tNPS | O5: Total Repeatable WO | P5: Total Repeats | Q5: Repeats | R5: Total Repeatable WO | S5: Repeat IN | T5: IN Repeat % | U5: Total Repeatable WO | V5: Repeat TC | W5: Repeat TC % | X5: Jobs | Y5: Test Run | Z5: SQT Compliance | AA5: Parameters Tested | AB5: Parameters Passing | AC5: SQT Pass | AD5: Test Passed | AE5: Ingress Test Pass | AF5: FCR WO | AG5: FCR Failures | AH5: FCR | AI5: Jobs | AJ5: Jobs Late | AK5: OTA | AL5: Jobs | AM5: Completed Jobs | AN5: Completion % | AO5: Total Jobs | AP5: Total Valid | AQ5: Drop Validation
F7: Carlos Tejeda | G7: 42764 | H7: =IF(Z7="","",IFERROR(IF(K7>=68.26%,1.25,0)+IF(Q7<=5.04%,2.5,0)+IF(Z7>=90%,2.5,0)+IF(AK7>=96%,1.25,0)+IF(N7>=90%,2.5,0),"")) -> 6.25 | I7: =IFERROR(VLOOKUP($G7,'Technician Summary'!$G$7:$BB$372,2,FALSE),"") -> 3 | J7: =IFERROR(VLOOKUP($G7,'Technician Summary'!$G$7:$BN$372,60,FALSE),"") -> 0 | K7: =IFERROR(1-(J7/I7),"") -> 1 | L7: =IF(G7="","",COUNTIFS('SMS tNPS'!DE:DE,G7,'SMS tNPS'!HB:HB,"Yes")) -> 17 | M7: =IFERROR(IF(G7="","",COUNTIFS('SMS tNPS'!DE:DE,G7,'SMS tNPS'!HB:HB,"Yes"))+COUNTIFS('SMS tNPS'!DE:DE,G7,'SMS tNPS'!HB:HB,"No"),"") -> 20 | N7: =IFERROR(SUM(L7/M7),"") -> 0.85 | O7: =IFERROR(VLOOKUP($G7,'Technician Summary'!$G$7:$BK$372,14,FALSE),"") -> 72 | P7: =IFERROR(VLOOKUP($G7,'Technician Summary'!$G$7:$BK$372,15,FALSE),"") -> 1 | Q7: =IFERROR(SUM(P7/O7),"") -> 0.0139 | R7: =IFERROR(VLOOKUP($G7,'Technician Summary'!$G$7:$BK$372,17,FALSE),"") -> 32 | S7: =IFERROR(VLOOKUP($G7,'Technician Summary'!$G$7:$BK$372,18,FALSE),"") -> 0 | T7: =IFERROR(SUM(S7/R7),"") -> 0 | U7: =IFERROR(VLOOKUP($G7,'Technician Summary'!$G$7:$BK$372,20,FALSE),"") -> 40 | V7: =IFERROR(VLOOKUP($G7,'Technician Summary'!$G$7:$BK$372,21,FALSE),"") -> 1 | W7: =IFERROR(SUM(V7/U7),"") -> 0.025 | X7: =IF($G7="","",SUMIF('SQT Data'!$K:$K,$G7,'SQT Data'!$R:$R)) -> 32 | Y7: =IF($G7="","",SUMIF('SQT Data'!$K:$K,$G7,'SQT Data'!$S:$S)) -> 29 | Z7: =IFERROR(SUM(Y7/X7),"") -> 0.9063 | AA7: =IF($G7="","",SUMIF('SQT Data'!$K:$K,$G7,'SQT Data'!$U:$U)) -> 232 | AB7: =IF($G7="","",SUMIF('SQT Data'!$K:$K,$G7,'SQT Data'!$V:$V)) -> 211 | AC7: =IFERROR(SUM(AB7/AA7),"") -> 0.9095 | AE7: =IFERROR(SUM(AD7/#REF!),"") ->  | AF7: =IFERROR(VLOOKUP($G7,'Technician Summary'!$G$7:$BK$372,7,FALSE),"") -> 44 | AG7: =IFERROR(VLOOKUP($G7,'Technician Summary'!$G$7:$BK$372,8,FALSE),"") -> 0 | AH7: =IFERROR(1-AG7/AF7,"") -> 1 | AI7: =IFERROR(VLOOKUP($G7,'Technician Summary'!$G$7:$BK$372,34,FALSE),"") -> 29 | AJ7: =IFERROR(VLOOKUP($G7,'Technician Summary'!$G$7:$BK$372,35,FALSE),"") -> 2 | AK7: =IFERROR(1-AJ7/AI7,"") -> 0.931 | AL7: =IFERROR(VLOOKUP($G7,'Technician Summary'!$G$7:$BK$372,37,FALSE),"") -> 81 | AM7: =IFERROR(VLOOKUP($G7,'Technician Summary'!$G$7:$BK$372,38,FALSE),"") -> 72 | AN7: =IFERROR(AM7/AL7,"") -> 0.8889 | AO7: =COUNTIFS('Drop Validation'!$P:$P,$G7,'Drop Validation'!$F:$F,"In Scope") -> 2 | AP7: =COUNTIFS('Drop Validation'!$P:$P,$G7,'Drop Validation'!$AA:$AA,"Compliant",'Drop Validation'!$F:$F,"In Scope") -> 0 | AQ7: =IFERROR(AP7/AO7,"") -> 0
F8: Kirk Holder | G8: 31441 | H8: 5 | I8: =IFERROR(VLOOKUP($G8,'Technician Summary'!$G$7:$BB$372,2,FALSE),"") -> 2 | J8: =IFERROR(VLOOKUP($G8,'Technician Summary'!$G$7:$BN$372,60,FALSE),"") -> 1 | K8: =IFERROR(1-(J8/I8),"") -> 0.5 | L8: =IF(G8="","",COUNTIFS('SMS tNPS'!DE:DE,G8,'SMS tNPS'!HB:HB,"Yes")) -> 11 | M8: =IFERROR(IF(G8="","",COUNTIFS('SMS tNPS'!DE:DE,G8,'SMS tNPS'!HB:HB,"Yes"))+COUNTIFS('SMS tNPS'!DE:DE,G8,'SMS tNPS'!HB:HB,"No"),"") -> 12 | N8: =IFERROR(SUM(L8/M8),"") -> 0.9167 | O8: =IFERROR(VLOOKUP($G8,'Technician Summary'!$G$7:$BK$372,14,FALSE),"") -> 58 | P8: =IFERROR(VLOOKUP($G8,'Technician Summary'!$G$7:$BK$372,15,FALSE),"") -> 3 | Q8: =IFERROR(SUM(P8/O8),"") -> 0.0517 | R8: =IFERROR(VLOOKUP($G8,'Technician Summary'!$G$7:$BK$372,17,FALSE),"") -> 20 | S8: =IFERROR(VLOOKUP($G8,'Technician Summary'!$G$7:$BK$372,18,FALSE),"") -> 0 | T8: =IFERROR(SUM(S8/R8),"") -> 0 | U8: =IFERROR(VLOOKUP($G8,'Technician Summary'!$G$7:$BK$372,20,FALSE),"") -> 38 | V8: =IFERROR(VLOOKUP($G8,'Technician Summary'!$G$7:$BK$372,21,FALSE),"") -> 3 | W8: =IFERROR(SUM(V8/U8),"") -> 0.0789 | X8: =IF($G8="","",SUMIF('SQT Data'!$K:$K,$G8,'SQT Data'!$R:$R)) -> 29 | Y8: =IF($G8="","",SUMIF('SQT Data'!$K:$K,$G8,'SQT Data'!$S:$S)) -> 28 | Z8: =IFERROR(SUM(Y8/X8),"") -> 0.9655 | AA8: =IF($G8="","",SUMIF('SQT Data'!$K:$K,$G8,'SQT Data'!$U:$U)) -> 219 | AB8: =IF($G8="","",SUMIF('SQT Data'!$K:$K,$G8,'SQT Data'!$V:$V)) -> 217 | AC8: =IFERROR(SUM(AB8/AA8),"") -> 0.9909 | AE8: =IFERROR(SUM(AD8/#REF!),"") ->  | AF8: =IFERROR(VLOOKUP($G8,'Technician Summary'!$G$7:$BK$372,7,FALSE),"") -> 27 | AG8: =IFERROR(VLOOKUP($G8,'Technician Summary'!$G$7:$BK$372,8,FALSE),"") -> 1 | AH8: =IFERROR(1-AG8/AF8,"") -> 0.963 | AI8: =IFERROR(VLOOKUP($G8,'Technician Summary'!$G$7:$BK$372,34,FALSE),"") -> 20 | AJ8: =IFERROR(VLOOKUP($G8,'Technician Summary'!$G$7:$BK$372,35,FALSE),"") -> 3 | AK8: =IFERROR(1-AJ8/AI8,"") -> 0.85 | AL8: =IFERROR(VLOOKUP($G8,'Technician Summary'!$G$7:$BK$372,37,FALSE),"") -> 64 | AM8: =IFERROR(VLOOKUP($G8,'Technician Summary'!$G$7:$BK$372,38,FALSE),"") -> 58 | AN8: =IFERROR(AM8/AL8,"") -> 0.9063 | AO8: =COUNTIFS('Drop Validation'!$P:$P,$G8,'Drop Validation'!$F:$F,"In Scope") -> 0 | AP8: =COUNTIFS('Drop Validation'!$P:$P,$G8,'Drop Validation'!$AA:$AA,"Compliant",'Drop Validation'!$F:$F,"In Scope") -> 0 | AQ8: =IFERROR(AP8/AO8,"") -> 
F9: Thurston Golston | G9: 34150 | H9: 7.5 | I9: =IFERROR(VLOOKUP($G9,'Technician Summary'!$G$7:$BB$372,2,FALSE),"") -> 0 | J9: =IFERROR(VLOOKUP($G9,'Technician Summary'!$G$7:$BN$372,60,FALSE),"") ->  | L9: =IF(G9="","",COUNTIFS('SMS tNPS'!DE:DE,G9,'SMS tNPS'!HB:HB,"Yes")) -> 0 | M9: =IFERROR(IF(G9="","",COUNTIFS('SMS tNPS'!DE:DE,G9,'SMS tNPS'!HB:HB,"Yes"))+COUNTIFS('SMS tNPS'!DE:DE,G9,'SMS tNPS'!HB:HB,"No"),"") -> 1 | N9: 0 | O9: =IFERROR(VLOOKUP($G9,'Technician Summary'!$G$7:$BK$372,14,FALSE),"") -> 2 | P9: =IFERROR(VLOOKUP($G9,'Technician Summary'!$G$7:$BK$372,15,FALSE),"") -> 0 | Q9: 0 | R9: =IFERROR(VLOOKUP($G9,'Technician Summary'!$G$7:$BK$372,17,FALSE),"") -> 0 | S9: =IFERROR(VLOOKUP($G9,'Technician Summary'!$G$7:$BK$372,18,FALSE),"") -> 0 | U9: =IFERROR(VLOOKUP($G9,'Technician Summary'!$G$7:$BK$372,20,FALSE),"") -> 2 | V9: =IFERROR(VLOOKUP($G9,'Technician Summary'!$G$7:$BK$372,21,FALSE),"") -> 0 | W9: 0 | X9: =IF($G9="","",SUMIF('SQT Data'!$K:$K,$G9,'SQT Data'!$R:$R)) -> 2 | Y9: =IF($G9="","",SUMIF('SQT Data'!$K:$K,$G9,'SQT Data'!$S:$S)) -> 2 | Z9: 1 | AA9: =IF($G9="","",SUMIF('SQT Data'!$K:$K,$G9,'SQT Data'!$U:$U)) -> 16 | AB9: =IF($G9="","",SUMIF('SQT Data'!$K:$K,$G9,'SQT Data'!$V:$V)) -> 12 | AC9: 0.75 | AE9: =IFERROR(SUM(AD9/#REF!),"") ->  | AF9: =IFERROR(VLOOKUP($G9,'Technician Summary'!$G$7:$BK$372,7,FALSE),"") -> 1 | AG9: =IFERROR(VLOOKUP($G9,'Technician Summary'!$G$7:$BK$372,8,FALSE),"") -> 0 | AH9: 1 | AI9: =IFERROR(VLOOKUP($G9,'Technician Summary'!$G$7:$BK$372,34,FALSE),"") -> 0 | AJ9: =IFERROR(VLOOKUP($G9,'Technician Summary'!$G$7:$BK$372,35,FALSE),"") -> 0 | AL9: =IFERROR(VLOOKUP($G9,'Technician Summary'!$G$7:$BK$372,37,FALSE),"") -> 4 | AM9: =IFERROR(VLOOKUP($G9,'Technician Summary'!$G$7:$BK$372,38,FALSE),"") -> 2 | AN9: 0.5 | AO9: =COUNTIFS('Drop Validation'!$P:$P,$G9,'Drop Validation'!$F:$F,"In Scope") -> 0 | AP9: =COUNTIFS('Drop Validation'!$P:$P,$G9,'Drop Validation'!$AA:$AA,"Compliant",'Drop Validation'!$F:$F,"In Scope") -> 0
F10: Stephen Sylvester | G10: 97732 | H10: 10 | I10: =IFERROR(VLOOKUP($G10,'Technician Summary'!$G$7:$BB$372,2,FALSE),"") -> 0 | J10: =IFERROR(VLOOKUP($G10,'Technician Summary'!$G$7:$BN$372,60,FALSE),"") ->  | L10: =IF(G10="","",COUNTIFS('SMS tNPS'!DE:DE,G10,'SMS tNPS'!HB:HB,"Yes")) -> 3 | M10: =IFERROR(IF(G10="","",COUNTIFS('SMS tNPS'!DE:DE,G10,'SMS tNPS'!HB:HB,"Yes"))+COUNTIFS('SMS tNPS'!DE:DE,G10,'SMS tNPS'!HB:HB,"No"),"") -> 3 | N10: 1 | O10: =IFERROR(VLOOKUP($G10,'Technician Summary'!$G$7:$BK$372,14,FALSE),"") -> 18 | P10: =IFERROR(VLOOKUP($G10,'Technician Summary'!$G$7:$BK$372,15,FALSE),"") -> 0 | Q10: 0 | R10: =IFERROR(VLOOKUP($G10,'Technician Summary'!$G$7:$BK$372,17,FALSE),"") -> 11 | S10: =IFERROR(VLOOKUP($G10,'Technician Summary'!$G$7:$BK$372,18,FALSE),"") -> 0 | T10: 0 | U10: =IFERROR(VLOOKUP($G10,'Technician Summary'!$G$7:$BK$372,20,FALSE),"") -> 7 | V10: =IFERROR(VLOOKUP($G10,'Technician Summary'!$G$7:$BK$372,21,FALSE),"") -> 0 | W10: 0 | X10: =IF($G10="","",SUMIF('SQT Data'!$K:$K,$G10,'SQT Data'!$R:$R)) -> 4 | Y10: =IF($G10="","",SUMIF('SQT Data'!$K:$K,$G10,'SQT Data'!$S:$S)) -> 4 | Z10: 1 | AA10: =IF($G10="","",SUMIF('SQT Data'!$K:$K,$G10,'SQT Data'!$U:$U)) -> 32 | AB10: =IF($G10="","",SUMIF('SQT Data'!$K:$K,$G10,'SQT Data'!$V:$V)) -> 28 | AC10: 0.875 | AE10: =IFERROR(SUM(AD10/#REF!),"") ->  | AF10: =IFERROR(VLOOKUP($G10,'Technician Summary'!$G$7:$BK$372,7,FALSE),"") -> 10 | AG10: =IFERROR(VLOOKUP($G10,'Technician Summary'!$G$7:$BK$372,8,FALSE),"") -> 0 | AH10: 1 | AI10: =IFERROR(VLOOKUP($G10,'Technician Summary'!$G$7:$BK$372,34,FALSE),"") -> 11 | AJ10: =IFERROR(VLOOKUP($G10,'Technician Summary'!$G$7:$BK$372,35,FALSE),"") -> 0 | AK10: 1 | AL10: =IFERROR(VLOOKUP($G10,'Technician Summary'!$G$7:$BK$372,37,FALSE),"") -> 24 | AM10: =IFERROR(VLOOKUP($G10,'Technician Summary'!$G$7:$BK$372,38,FALSE),"") -> 18 | AN10: 0.75 | AO10: =COUNTIFS('Drop Validation'!$P:$P,$G10,'Drop Validation'!$F:$F,"In Scope") -> 0 | AP10: =COUNTIFS('Drop Validation'!$P:$P,$G10,'Drop Validation'!$AA:$AA,"Compliant",'Drop Validation'!$F:$F,"In Scope") -> 0
B11: Home | F11: Paul Cook | G11: 31939 | I11: =IFERROR(VLOOKUP($G11,'Technician Summary'!$G$7:$BB$372,2,FALSE),"") ->  | J11: =IFERROR(VLOOKUP($G11,'Technician Summary'!$G$7:$BN$372,60,FALSE),"") ->  | L11: =IF(G11="","",COUNTIFS('SMS tNPS'!DE:DE,G11,'SMS tNPS'!HB:HB,"Yes")) -> 0 | M11: =IFERROR(IF(G11="","",COUNTIFS('SMS tNPS'!DE:DE,G11,'SMS tNPS'!HB:HB,"Yes"))+COUNTIFS('SMS tNPS'!DE:DE,G11,'SMS tNPS'!HB:HB,"No"),"") -> 0 | O11: =IFERROR(VLOOKUP($G11,'Technician Summary'!$G$7:$BK$372,14,FALSE),"") ->  | P11: =IFERROR(VLOOKUP($G11,'Technician Summary'!$G$7:$BK$372,15,FALSE),"") ->  | R11: =IFERROR(VLOOKUP($G11,'Technician Summary'!$G$7:$BK$372,17,FALSE),"") ->  | S11: =IFERROR(VLOOKUP($G11,'Technician Summary'!$G$7:$BK$372,18,FALSE),"") ->  | U11: =IFERROR(VLOOKUP($G11,'Technician Summary'!$G$7:$BK$372,20,FALSE),"") ->  | V11: =IFERROR(VLOOKUP($G11,'Technician Summary'!$G$7:$BK$372,21,FALSE),"") ->  | X11: =IF($G11="","",SUMIF('SQT Data'!$K:$K,$G11,'SQT Data'!$R:$R)) -> 0 | Y11: =IF($G11="","",SUMIF('SQT Data'!$K:$K,$G11,'SQT Data'!$S:$S)) -> 0 | AA11: =IF($G11="","",SUMIF('SQT Data'!$K:$K,$G11,'SQT Data'!$U:$U)) -> 0 | AB11: =IF($G11="","",SUMIF('SQT Data'!$K:$K,$G11,'SQT Data'!$V:$V)) -> 0 | AE11: =IFERROR(SUM(AD11/#REF!),"") ->  | AF11: =IFERROR(VLOOKUP($G11,'Technician Summary'!$G$7:$BK$372,7,FALSE),"") ->  | AG11: =IFERROR(VLOOKUP($G11,'Technician Summary'!$G$7:$BK$372,8,FALSE),"") ->  | AI11: =IFERROR(VLOOKUP($G11,'Technician Summary'!$G$7:$BK$372,34,FALSE),"") ->  | AJ11: =IFERROR(VLOOKUP($G11,'Technician Summary'!$G$7:$BK$372,35,FALSE),"") ->  | AL11: =IFERROR(VLOOKUP($G11,'Technician Summary'!$G$7:$BK$372,37,FALSE),"") ->  | AM11: =IFERROR(VLOOKUP($G11,'Technician Summary'!$G$7:$BK$372,38,FALSE),"") ->  | AO11: =COUNTIFS('Drop Validation'!$P:$P,$G11,'Drop Validation'!$F:$F,"In Scope") -> 0 | AP11: =COUNTIFS('Drop Validation'!$P:$P,$G11,'Drop Validation'!$AA:$AA,"Compliant",'Drop Validation'!$F:$F,"In Scope") -> 0
F12: Ibrahim Razzaq | G12: 52693 | H12: 8.75 | I12: =IFERROR(VLOOKUP($G12,'Technician Summary'!$G$7:$BB$372,2,FALSE),"") -> 0 | J12: =IFERROR(VLOOKUP($G12,'Technician Summary'!$G$7:$BN$372,60,FALSE),"") ->  | L12: =IF(G12="","",COUNTIFS('SMS tNPS'!DE:DE,G12,'SMS tNPS'!HB:HB,"Yes")) -> 3 | M12: =IFERROR(IF(G12="","",COUNTIFS('SMS tNPS'!DE:DE,G12,'SMS tNPS'!HB:HB,"Yes"))+COUNTIFS('SMS tNPS'!DE:DE,G12,'SMS tNPS'!HB:HB,"No"),"") -> 3 | N12: 1 | O12: =IFERROR(VLOOKUP($G12,'Technician Summary'!$G$7:$BK$372,14,FALSE),"") -> 9 | P12: =IFERROR(VLOOKUP($G12,'Technician Summary'!$G$7:$BK$372,15,FALSE),"") -> 0 | Q12: 0 | R12: =IFERROR(VLOOKUP($G12,'Technician Summary'!$G$7:$BK$372,17,FALSE),"") -> 4 | S12: =IFERROR(VLOOKUP($G12,'Technician Summary'!$G$7:$BK$372,18,FALSE),"") -> 0 | T12: 0 | U12: =IFERROR(VLOOKUP($G12,'Technician Summary'!$G$7:$BK$372,20,FALSE),"") -> 5 | V12: =IFERROR(VLOOKUP($G12,'Technician Summary'!$G$7:$BK$372,21,FALSE),"") -> 0 | W12: 0 | X12: =IF($G12="","",SUMIF('SQT Data'!$K:$K,$G12,'SQT Data'!$R:$R)) -> 5 | Y12: =IF($G12="","",SUMIF('SQT Data'!$K:$K,$G12,'SQT Data'!$S:$S)) -> 5 | Z12: 1 | AA12: =IF($G12="","",SUMIF('SQT Data'!$K:$K,$G12,'SQT Data'!$U:$U)) -> 40 | AB12: =IF($G12="","",SUMIF('SQT Data'!$K:$K,$G12,'SQT Data'!$V:$V)) -> 36 | AC12: 0.9 | AE12: =IFERROR(SUM(AD12/#REF!),"") ->  | AF12: =IFERROR(VLOOKUP($G12,'Technician Summary'!$G$7:$BK$372,7,FALSE),"") -> 5 | AG12: =IFERROR(VLOOKUP($G12,'Technician Summary'!$G$7:$BK$372,8,FALSE),"") -> 0 | AH12: 1 | AI12: =IFERROR(VLOOKUP($G12,'Technician Summary'!$G$7:$BK$372,34,FALSE),"") -> 4 | AJ12: =IFERROR(VLOOKUP($G12,'Technician Summary'!$G$7:$BK$372,35,FALSE),"") -> 1 | AK12: 0.75 | AL12: =IFERROR(VLOOKUP($G12,'Technician Summary'!$G$7:$BK$372,37,FALSE),"") -> 11 | AM12: =IFERROR(VLOOKUP($G12,'Technician Summary'!$G$7:$BK$372,38,FALSE),"") -> 9 | AN12: 0.8182 | AO12: =COUNTIFS('Drop Validation'!$P:$P,$G12,'Drop Validation'!$F:$F,"In Scope") -> 0 | AP12: =COUNTIFS('Drop Validation'!$P:$P,$G12,'Drop Validation'!$AA:$AA,"Compliant",'Drop Validation'!$F:$F,"In Scope") -> 0
B13: Performance Metrics | F13: Robert Gibson | G13: 1046 | H13: 5 | I13: =IFERROR(VLOOKUP($G13,'Technician Summary'!$G$7:$BB$372,2,FALSE),"") -> 4 | J13: =IFERROR(VLOOKUP($G13,'Technician Summary'!$G$7:$BN$372,60,FALSE),"") -> 2 | K13: 0.5 | L13: =IF(G13="","",COUNTIFS('SMS tNPS'!DE:DE,G13,'SMS tNPS'!HB:HB,"Yes")) -> 13 | M13: =IFERROR(IF(G13="","",COUNTIFS('SMS tNPS'!DE:DE,G13,'SMS tNPS'!HB:HB,"Yes"))+COUNTIFS('SMS tNPS'!DE:DE,G13,'SMS tNPS'!HB:HB,"No"),"") -> 13 | N13: 1 | O13: =IFERROR(VLOOKUP($G13,'Technician Summary'!$G$7:$BK$372,14,FALSE),"") -> 131 | P13: =IFERROR(VLOOKUP($G13,'Technician Summary'!$G$7:$BK$372,15,FALSE),"") -> 11 | Q13: 0.084 | R13: =IFERROR(VLOOKUP($G13,'Technician Summary'!$G$7:$BK$372,17,FALSE),"") -> 40 | S13: =IFERROR(VLOOKUP($G13,'Technician Summary'!$G$7:$BK$372,18,FALSE),"") -> 3 | T13: 0.075 | U13: =IFERROR(VLOOKUP($G13,'Technician Summary'!$G$7:$BK$372,20,FALSE),"") -> 91 | V13: =IFERROR(VLOOKUP($G13,'Technician Summary'!$G$7:$BK$372,21,FALSE),"") -> 8 | W13: 0.0879 | X13: =IF($G13="","",SUMIF('SQT Data'!$K:$K,$G13,'SQT Data'!$R:$R)) -> 74 | Y13: =IF($G13="","",SUMIF('SQT Data'!$K:$K,$G13,'SQT Data'!$S:$S)) -> 67 | Z13: 0.9054 | AA13: =IF($G13="","",SUMIF('SQT Data'!$K:$K,$G13,'SQT Data'!$U:$U)) -> 531 | AB13: =IF($G13="","",SUMIF('SQT Data'!$K:$K,$G13,'SQT Data'!$V:$V)) -> 496 | AC13: 0.9341 | AE13: =IFERROR(SUM(AD13/#REF!),"") ->  | AF13: =IFERROR(VLOOKUP($G13,'Technician Summary'!$G$7:$BK$372,7,FALSE),"") -> 63 | AG13: =IFERROR(VLOOKUP($G13,'Technician Summary'!$G$7:$BK$372,8,FALSE),"") -> 3 | AH13: 0.9524 | AI13: =IFERROR(VLOOKUP($G13,'Technician Summary'!$G$7:$BK$372,34,FALSE),"") -> 37 | AJ13: =IFERROR(VLOOKUP($G13,'Technician Summary'!$G$7:$BK$372,35,FALSE),"") -> 7 | AK13: 0.8108 | AL13: =IFERROR(VLOOKUP($G13,'Technician Summary'!$G$7:$BK$372,37,FALSE),"") -> 149 | AM13: =IFERROR(VLOOKUP($G13,'Technician Summary'!$G$7:$BK$372,38,FALSE),"") -> 131 | AN13: 0.8792 | AO13: =COUNTIFS('Drop Validation'!$P:$P,$G13,'Drop Validation'!$F:$F,"In Scope") -> 5 | AP13: =COUNTIFS('Drop Validation'!$P:$P,$G13,'Drop Validation'!$AA:$AA,"Compliant",'Drop Validation'!$F:$F,"In Scope") -> 0 | AQ13: 0
B14: Gainesville | F14: Danny Perez | G14: 97017 | H14: 6.25 | I14: =IFERROR(VLOOKUP($G14,'Technician Summary'!$G$7:$BB$372,2,FALSE),"") -> 3 | J14: =IFERROR(VLOOKUP($G14,'Technician Summary'!$G$7:$BN$372,60,FALSE),"") -> 2.0001 | K14: 0.3333 | L14: =IF(G14="","",COUNTIFS('SMS tNPS'!DE:DE,G14,'SMS tNPS'!HB:HB,"Yes")) -> 12 | M14: =IFERROR(IF(G14="","",COUNTIFS('SMS tNPS'!DE:DE,G14,'SMS tNPS'!HB:HB,"Yes"))+COUNTIFS('SMS tNPS'!DE:DE,G14,'SMS tNPS'!HB:HB,"No"),"") -> 18 | N14: 0.6667 | O14: =IFERROR(VLOOKUP($G14,'Technician Summary'!$G$7:$BK$372,14,FALSE),"") -> 67 | P14: =IFERROR(VLOOKUP($G14,'Technician Summary'!$G$7:$BK$372,15,FALSE),"") -> 3 | Q14: 0.0448 | R14: =IFERROR(VLOOKUP($G14,'Technician Summary'!$G$7:$BK$372,17,FALSE),"") -> 19 | S14: =IFERROR(VLOOKUP($G14,'Technician Summary'!$G$7:$BK$372,18,FALSE),"") -> 2 | T14: 0.1053 | U14: =IFERROR(VLOOKUP($G14,'Technician Summary'!$G$7:$BK$372,20,FALSE),"") -> 48 | V14: =IFERROR(VLOOKUP($G14,'Technician Summary'!$G$7:$BK$372,21,FALSE),"") -> 1 | W14: 0.0208 | X14: =IF($G14="","",SUMIF('SQT Data'!$K:$K,$G14,'SQT Data'!$R:$R)) -> 49 | Y14: =IF($G14="","",SUMIF('SQT Data'!$K:$K,$G14,'SQT Data'!$S:$S)) -> 48 | Z14: 0.9796 | AA14: =IF($G14="","",SUMIF('SQT Data'!$K:$K,$G14,'SQT Data'!$U:$U)) -> 379 | AB14: =IF($G14="","",SUMIF('SQT Data'!$K:$K,$G14,'SQT Data'!$V:$V)) -> 312 | AC14: 0.8232 | AE14: =IFERROR(SUM(AD14/#REF!),"") ->  | AF14: =IFERROR(VLOOKUP($G14,'Technician Summary'!$G$7:$BK$372,7,FALSE),"") -> 28 | AG14: =IFERROR(VLOOKUP($G14,'Technician Summary'!$G$7:$BK$372,8,FALSE),"") -> 2 | AH14: 0.9286 | AI14: =IFERROR(VLOOKUP($G14,'Technician Summary'!$G$7:$BK$372,34,FALSE),"") -> 19 | AJ14: =IFERROR(VLOOKUP($G14,'Technician Summary'!$G$7:$BK$372,35,FALSE),"") -> 0 | AK14: 1 | AL14: =IFERROR(VLOOKUP($G14,'Technician Summary'!$G$7:$BK$372,37,FALSE),"") -> 68 | AM14: =IFERROR(VLOOKUP($G14,'Technician Summary'!$G$7:$BK$372,38,FALSE),"") -> 67 | AN14: 0.9853 | AO14: =COUNTIFS('Drop Validation'!$P:$P,$G14,'Drop Validation'!$F:$F,"In Scope") -> 0 | AP14: =COUNTIFS('Drop Validation'!$P:$P,$G14,'Drop Validation'!$AA:$AA,"Compliant",'Drop Validation'!$F:$F,"In Scope") -> 0
B15: Macon | F15: Derik Silva Velezquez | G15: 29183 | H15: 5 | I15: =IFERROR(VLOOKUP($G15,'Technician Summary'!$G$7:$BB$372,2,FALSE),"") -> 5 | J15: =IFERROR(VLOOKUP($G15,'Technician Summary'!$G$7:$BN$372,60,FALSE),"") -> 2 | K15: 0.6 | L15: =IF(G15="","",COUNTIFS('SMS tNPS'!DE:DE,G15,'SMS tNPS'!HB:HB,"Yes")) -> 22 | M15: =IFERROR(IF(G15="","",COUNTIFS('SMS tNPS'!DE:DE,G15,'SMS tNPS'!HB:HB,"Yes"))+COUNTIFS('SMS tNPS'!DE:DE,G15,'SMS tNPS'!HB:HB,"No"),"") -> 25 | N15: 0.88 | O15: =IFERROR(VLOOKUP($G15,'Technician Summary'!$G$7:$BK$372,14,FALSE),"") -> 112 | P15: =IFERROR(VLOOKUP($G15,'Technician Summary'!$G$7:$BK$372,15,FALSE),"") -> 5 | Q15: 0.0446 | R15: =IFERROR(VLOOKUP($G15,'Technician Summary'!$G$7:$BK$372,17,FALSE),"") -> 40 | S15: =IFERROR(VLOOKUP($G15,'Technician Summary'!$G$7:$BK$372,18,FALSE),"") -> 1 | T15: 0.025 | U15: =IFERROR(VLOOKUP($G15,'Technician Summary'!$G$7:$BK$372,20,FALSE),"") -> 72 | V15: =IFERROR(VLOOKUP($G15,'Technician Summary'!$G$7:$BK$372,21,FALSE),"") -> 4 | W15: 0.0556 | X15: =IF($G15="","",SUMIF('SQT Data'!$K:$K,$G15,'SQT Data'!$R:$R)) -> 74 | Y15: =IF($G15="","",SUMIF('SQT Data'!$K:$K,$G15,'SQT Data'!$S:$S)) -> 74 | Z15: 1 | AA15: =IF($G15="","",SUMIF('SQT Data'!$K:$K,$G15,'SQT Data'!$U:$U)) -> 590 | AB15: =IF($G15="","",SUMIF('SQT Data'!$K:$K,$G15,'SQT Data'!$V:$V)) -> 524 | AC15: 0.8881 | AE15: =IFERROR(SUM(AD15/#REF!),"") ->  | AF15: =IFERROR(VLOOKUP($G15,'Technician Summary'!$G$7:$BK$372,7,FALSE),"") -> 59 | AG15: =IFERROR(VLOOKUP($G15,'Technician Summary'!$G$7:$BK$372,8,FALSE),"") -> 1 | AH15: 0.9831 | AI15: =IFERROR(VLOOKUP($G15,'Technician Summary'!$G$7:$BK$372,34,FALSE),"") -> 38 | AJ15: =IFERROR(VLOOKUP($G15,'Technician Summary'!$G$7:$BK$372,35,FALSE),"") -> 3 | AK15: 0.9211 | AL15: =IFERROR(VLOOKUP($G15,'Technician Summary'!$G$7:$BK$372,37,FALSE),"") -> 129 | AM15: =IFERROR(VLOOKUP($G15,'Technician Summary'!$G$7:$BK$372,38,FALSE),"") -> 111 | AN15: 0.8605 | AO15: =COUNTIFS('Drop Validation'!$P:$P,$G15,'Drop Validation'!$F:$F,"In Scope") -> 1 | AP15: =COUNTIFS('Drop Validation'!$P:$P,$G15,'Drop Validation'!$AA:$AA,"Compliant",'Drop Validation'!$F:$F,"In Scope") -> 1 | AQ15: 1
B16: New Orleans | F16: Michael Hagmann | G16: 95993 | H16: 7.5 | I16: =IFERROR(VLOOKUP($G16,'Technician Summary'!$G$7:$BB$372,2,FALSE),"") -> 3 | J16: =IFERROR(VLOOKUP($G16,'Technician Summary'!$G$7:$BN$372,60,FALSE),"") -> 0 | K16: 1 | L16: =IF(G16="","",COUNTIFS('SMS tNPS'!DE:DE,G16,'SMS tNPS'!HB:HB,"Yes")) -> 18 | M16: =IFERROR(IF(G16="","",COUNTIFS('SMS tNPS'!DE:DE,G16,'SMS tNPS'!HB:HB,"Yes"))+COUNTIFS('SMS tNPS'!DE:DE,G16,'SMS tNPS'!HB:HB,"No"),"") -> 20 | N16: 0.9 | O16: =IFERROR(VLOOKUP($G16,'Technician Summary'!$G$7:$BK$372,14,FALSE),"") -> 138 | P16: =IFERROR(VLOOKUP($G16,'Technician Summary'!$G$7:$BK$372,15,FALSE),"") -> 8 | Q16: 0.058 | R16: =IFERROR(VLOOKUP($G16,'Technician Summary'!$G$7:$BK$372,17,FALSE),"") -> 44 | S16: =IFERROR(VLOOKUP($G16,'Technician Summary'!$G$7:$BK$372,18,FALSE),"") -> 1 | T16: 0.0227 | U16: =IFERROR(VLOOKUP($G16,'Technician Summary'!$G$7:$BK$372,20,FALSE),"") -> 94 | V16: =IFERROR(VLOOKUP($G16,'Technician Summary'!$G$7:$BK$372,21,FALSE),"") -> 7 | W16: 0.0745 | X16: =IF($G16="","",SUMIF('SQT Data'!$K:$K,$G16,'SQT Data'!$R:$R)) -> 71 | Y16: =IF($G16="","",SUMIF('SQT Data'!$K:$K,$G16,'SQT Data'!$S:$S)) -> 71 | Z16: 1 | AA16: =IF($G16="","",SUMIF('SQT Data'!$K:$K,$G16,'SQT Data'!$U:$U)) -> 563 | AB16: =IF($G16="","",SUMIF('SQT Data'!$K:$K,$G16,'SQT Data'!$V:$V)) -> 525 | AC16: 0.9325 | AE16: =IFERROR(SUM(AD16/#REF!),"") ->  | AF16: =IFERROR(VLOOKUP($G16,'Technician Summary'!$G$7:$BK$372,7,FALSE),"") -> 66 | AG16: =IFERROR(VLOOKUP($G16,'Technician Summary'!$G$7:$BK$372,8,FALSE),"") -> 5 | AH16: 0.9242 | AI16: =IFERROR(VLOOKUP($G16,'Technician Summary'!$G$7:$BK$372,34,FALSE),"") -> 40 | AJ16: =IFERROR(VLOOKUP($G16,'Technician Summary'!$G$7:$BK$372,35,FALSE),"") -> 0 | AK16: 1 | AL16: =IFERROR(VLOOKUP($G16,'Technician Summary'!$G$7:$BK$372,37,FALSE),"") -> 145 | AM16: =IFERROR(VLOOKUP($G16,'Technician Summary'!$G$7:$BK$372,38,FALSE),"") -> 136 | AN16: 0.9379 | AO16: =COUNTIFS('Drop Validation'!$P:$P,$G16,'Drop Validation'!$F:$F,"In Scope") -> 14 | AP16: =COUNTIFS('Drop Validation'!$P:$P,$G16,'Drop Validation'!$AA:$AA,"Compliant",'Drop Validation'!$F:$F,"In Scope") -> 10 | AQ16: 0.7143
B17: Hampton Roads | F17: Yan Carlos Guerrero | G17: 43084 | I17: =IFERROR(VLOOKUP($G17,'Technician Summary'!$G$7:$BB$372,2,FALSE),"") ->  | J17: =IFERROR(VLOOKUP($G17,'Technician Summary'!$G$7:$BN$372,60,FALSE),"") ->  | L17: =IF(G17="","",COUNTIFS('SMS tNPS'!DE:DE,G17,'SMS tNPS'!HB:HB,"Yes")) -> 0 | M17: =IFERROR(IF(G17="","",COUNTIFS('SMS tNPS'!DE:DE,G17,'SMS tNPS'!HB:HB,"Yes"))+COUNTIFS('SMS tNPS'!DE:DE,G17,'SMS tNPS'!HB:HB,"No"),"") -> 0 | O17: =IFERROR(VLOOKUP($G17,'Technician Summary'!$G$7:$BK$372,14,FALSE),"") ->  | P17: =IFERROR(VLOOKUP($G17,'Technician Summary'!$G$7:$BK$372,15,FALSE),"") ->  | R17: =IFERROR(VLOOKUP($G17,'Technician Summary'!$G$7:$BK$372,17,FALSE),"") ->  | S17: =IFERROR(VLOOKUP($G17,'Technician Summary'!$G$7:$BK$372,18,FALSE),"") ->  | U17: =IFERROR(VLOOKUP($G17,'Technician Summary'!$G$7:$BK$372,20,FALSE),"") ->  | V17: =IFERROR(VLOOKUP($G17,'Technician Summary'!$G$7:$BK$372,21,FALSE),"") ->  | X17: =IF($G17="","",SUMIF('SQT Data'!$K:$K,$G17,'SQT Data'!$R:$R)) -> 0 | Y17: =IF($G17="","",SUMIF('SQT Data'!$K:$K,$G17,'SQT Data'!$S:$S)) -> 0 | AA17: =IF($G17="","",SUMIF('SQT Data'!$K:$K,$G17,'SQT Data'!$U:$U)) -> 0 | AB17: =IF($G17="","",SUMIF('SQT Data'!$K:$K,$G17,'SQT Data'!$V:$V)) -> 0 | AE17: =IFERROR(SUM(AD17/#REF!),"") ->  | AF17: =IFERROR(VLOOKUP($G17,'Technician Summary'!$G$7:$BK$372,7,FALSE),"") ->  | AG17: =IFERROR(VLOOKUP($G17,'Technician Summary'!$G$7:$BK$372,8,FALSE),"") ->  | AI17: =IFERROR(VLOOKUP($G17,'Technician Summary'!$G$7:$BK$372,34,FALSE),"") ->  | AJ17: =IFERROR(VLOOKUP($G17,'Technician Summary'!$G$7:$BK$372,35,FALSE),"") ->  | AL17: =IFERROR(VLOOKUP($G17,'Technician Summary'!$G$7:$BK$372,37,FALSE),"") ->  | AM17: =IFERROR(VLOOKUP($G17,'Technician Summary'!$G$7:$BK$372,38,FALSE),"") ->  | AO17: =COUNTIFS('Drop Validation'!$P:$P,$G17,'Drop Validation'!$F:$F,"In Scope") -> 0 | AP17: =COUNTIFS('Drop Validation'!$P:$P,$G17,'Drop Validation'!$AA:$AA,"Compliant",'Drop Validation'!$F:$F,"In Scope") -> 0
B18: Baton Rouge | I18: =IFERROR(VLOOKUP($G18,'Technician Summary'!$G$7:$BB$372,2,FALSE),"") ->  | J18: =IFERROR(VLOOKUP($G18,'Technician Summary'!$G$7:$BN$372,60,FALSE),"") ->  | L18: =IF(G18="","",COUNTIFS('SMS tNPS'!DE:DE,G18,'SMS tNPS'!HB:HB,"Yes")) ->  | M18: =IFERROR(IF(G18="","",COUNTIFS('SMS tNPS'!DE:DE,G18,'SMS tNPS'!HB:HB,"Yes"))+COUNTIFS('SMS tNPS'!DE:DE,G18,'SMS tNPS'!HB:HB,"No"),"") ->  | O18: =IFERROR(VLOOKUP($G18,'Technician Summary'!$G$7:$BK$372,14,FALSE),"") ->  | P18: =IFERROR(VLOOKUP($G18,'Technician Summary'!$G$7:$BK$372,15,FALSE),"") ->  | R18: =IFERROR(VLOOKUP($G18,'Technician Summary'!$G$7:$BK$372,17,FALSE),"") ->  | S18: =IFERROR(VLOOKUP($G18,'Technician Summary'!$G$7:$BK$372,18,FALSE),"") ->  | U18: =IFERROR(VLOOKUP($G18,'Technician Summary'!$G$7:$BK$372,20,FALSE),"") ->  | V18: =IFERROR(VLOOKUP($G18,'Technician Summary'!$G$7:$BK$372,21,FALSE),"") ->  | X18: =IF($G18="","",SUMIF('SQT Data'!$K:$K,$G18,'SQT Data'!$R:$R)) ->  | Y18: =IF($G18="","",SUMIF('SQT Data'!$K:$K,$G18,'SQT Data'!$S:$S)) ->  | AA18: =IF($G18="","",SUMIF('SQT Data'!$K:$K,$G18,'SQT Data'!$U:$U)) ->  | AB18: =IF($G18="","",SUMIF('SQT Data'!$K:$K,$G18,'SQT Data'!$V:$V)) ->  | AE18: =IFERROR(SUM(AD18/#REF!),"") ->  | AF18: =IFERROR(VLOOKUP($G18,'Technician Summary'!$G$7:$BK$372,7,FALSE),"") ->  | AG18: =IFERROR(VLOOKUP($G18,'Technician Summary'!$G$7:$BK$372,8,FALSE),"") ->  | AI18: =IFERROR(VLOOKUP($G18,'Technician Summary'!$G$7:$BK$372,34,FALSE),"") ->  | AJ18: =IFERROR(VLOOKUP($G18,'Technician Summary'!$G$7:$BK$372,35,FALSE),"") ->  | AL18: =IFERROR(VLOOKUP($G18,'Technician Summary'!$G$7:$BK$372,37,FALSE),"") ->  | AM18: =IFERROR(VLOOKUP($G18,'Technician Summary'!$G$7:$BK$372,38,FALSE),"") ->  | AO18: =COUNTIFS('Drop Validation'!$P:$P,$G18,'Drop Validation'!$F:$F,"In Scope") -> 0 | AP18: =COUNTIFS('Drop Validation'!$P:$P,$G18,'Drop Validation'!$AA:$AA,"Compliant",'Drop Validation'!$F:$F,"In Scope") -> 0
B19: Roanoke | I19: =IFERROR(VLOOKUP($G19,'Technician Summary'!$G$7:$BB$372,2,FALSE),"") ->  | J19: =IFERROR(VLOOKUP($G19,'Technician Summary'!$G$7:$BN$372,60,FALSE),"") ->  | L19: =IF(G19="","",COUNTIFS('SMS tNPS'!DE:DE,G19,'SMS tNPS'!HB:HB,"Yes")) ->  | M19: =IFERROR(IF(G19="","",COUNTIFS('SMS tNPS'!DE:DE,G19,'SMS tNPS'!HB:HB,"Yes"))+COUNTIFS('SMS tNPS'!DE:DE,G19,'SMS tNPS'!HB:HB,"No"),"") ->  | O19: =IFERROR(VLOOKUP($G19,'Technician Summary'!$G$7:$BK$372,14,FALSE),"") ->  | P19: =IFERROR(VLOOKUP($G19,'Technician Summary'!$G$7:$BK$372,15,FALSE),"") ->  | R19: =IFERROR(VLOOKUP($G19,'Technician Summary'!$G$7:$BK$372,17,FALSE),"") ->  | S19: =IFERROR(VLOOKUP($G19,'Technician Summary'!$G$7:$BK$372,18,FALSE),"") ->  | U19: =IFERROR(VLOOKUP($G19,'Technician Summary'!$G$7:$BK$372,20,FALSE),"") ->  | V19: =IFERROR(VLOOKUP($G19,'Technician Summary'!$G$7:$BK$372,21,FALSE),"") ->  | X19: =IF($G19="","",SUMIF('SQT Data'!$K:$K,$G19,'SQT Data'!$R:$R)) ->  | Y19: =IF($G19="","",SUMIF('SQT Data'!$K:$K,$G19,'SQT Data'!$S:$S)) ->  | AA19: =IF($G19="","",SUMIF('SQT Data'!$K:$K,$G19,'SQT Data'!$U:$U)) ->  | AB19: =IF($G19="","",SUMIF('SQT Data'!$K:$K,$G19,'SQT Data'!$V:$V)) ->  | AE19: =IFERROR(SUM(AD19/#REF!),"") ->  | AF19: =IFERROR(VLOOKUP($G19,'Technician Summary'!$G$7:$BK$372,7,FALSE),"") ->  | AG19: =IFERROR(VLOOKUP($G19,'Technician Summary'!$G$7:$BK$372,8,FALSE),"") ->  | AI19: =IFERROR(VLOOKUP($G19,'Technician Summary'!$G$7:$BK$372,34,FALSE),"") ->  | AJ19: =IFERROR(VLOOKUP($G19,'Technician Summary'!$G$7:$BK$372,35,FALSE),"") ->  | AL19: =IFERROR(VLOOKUP($G19,'Technician Summary'!$G$7:$BK$372,37,FALSE),"") ->  | AM19: =IFERROR(VLOOKUP($G19,'Technician Summary'!$G$7:$BK$372,38,FALSE),"") ->  | AO19: =COUNTIFS('Drop Validation'!$P:$P,$G19,'Drop Validation'!$F:$F,"In Scope") -> 0 | AP19: =COUNTIFS('Drop Validation'!$P:$P,$G19,'Drop Validation'!$AA:$AA,"Compliant",'Drop Validation'!$F:$F,"In Scope") -> 0
B20: Gulf Coast | I20: =IFERROR(VLOOKUP($G20,'Technician Summary'!$G$7:$BB$372,2,FALSE),"") ->  | J20: =IFERROR(VLOOKUP($G20,'Technician Summary'!$G$7:$BN$372,60,FALSE),"") ->  | L20: =IF(G20="","",COUNTIFS('SMS tNPS'!DE:DE,G20,'SMS tNPS'!HB:HB,"Yes")) ->  | M20: =IFERROR(IF(G20="","",COUNTIFS('SMS tNPS'!DE:DE,G20,'SMS tNPS'!HB:HB,"Yes"))+COUNTIFS('SMS tNPS'!DE:DE,G20,'SMS tNPS'!HB:HB,"No"),"") ->  | O20: =IFERROR(VLOOKUP($G20,'Technician Summary'!$G$7:$BK$372,14,FALSE),"") ->  | P20: =IFERROR(VLOOKUP($G20,'Technician Summary'!$G$7:$BK$372,15,FALSE),"") ->  | R20: =IFERROR(VLOOKUP($G20,'Technician Summary'!$G$7:$BK$372,17,FALSE),"") ->  | S20: =IFERROR(VLOOKUP($G20,'Technician Summary'!$G$7:$BK$372,18,FALSE),"") ->  | U20: =IFERROR(VLOOKUP($G20,'Technician Summary'!$G$7:$BK$372,20,FALSE),"") ->  | V20: =IFERROR(VLOOKUP($G20,'Technician Summary'!$G$7:$BK$372,21,FALSE),"") ->  | X20: =IF($G20="","",SUMIF('SQT Data'!$K:$K,$G20,'SQT Data'!$R:$R)) ->  | Y20: =IF($G20="","",SUMIF('SQT Data'!$K:$K,$G20,'SQT Data'!$S:$S)) ->  | AA20: =IF($G20="","",SUMIF('SQT Data'!$K:$K,$G20,'SQT Data'!$U:$U)) ->  | AB20: =IF($G20="","",SUMIF('SQT Data'!$K:$K,$G20,'SQT Data'!$V:$V)) ->  | AE20: =IFERROR(SUM(AD20/#REF!),"") ->  | AF20: =IFERROR(VLOOKUP($G20,'Technician Summary'!$G$7:$BK$372,7,FALSE),"") ->  | AG20: =IFERROR(VLOOKUP($G20,'Technician Summary'!$G$7:$BK$372,8,FALSE),"") ->  | AI20: =IFERROR(VLOOKUP($G20,'Technician Summary'!$G$7:$BK$372,34,FALSE),"") ->  | AJ20: =IFERROR(VLOOKUP($G20,'Technician Summary'!$G$7:$BK$372,35,FALSE),"") ->  | AL20: =IFERROR(VLOOKUP($G20,'Technician Summary'!$G$7:$BK$372,37,FALSE),"") ->  | AM20: =IFERROR(VLOOKUP($G20,'Technician Summary'!$G$7:$BK$372,38,FALSE),"") ->  | AO20: =COUNTIFS('Drop Validation'!$P:$P,$G20,'Drop Validation'!$F:$F,"In Scope") -> 0 | AP20: =COUNTIFS('Drop Validation'!$P:$P,$G20,'Drop Validation'!$AA:$AA,"Compliant",'Drop Validation'!$F:$F,"In Scope") -> 0
B21: Oklahoma City | I21: =IFERROR(VLOOKUP($G21,'Technician Summary'!$G$7:$BB$372,2,FALSE),"") ->  | J21: =IFERROR(VLOOKUP($G21,'Technician Summary'!$G$7:$BN$372,60,FALSE),"") ->  | L21: =IF(G21="","",COUNTIFS('SMS tNPS'!DE:DE,G21,'SMS tNPS'!HB:HB,"Yes")) ->  | M21: =IFERROR(IF(G21="","",COUNTIFS('SMS tNPS'!DE:DE,G21,'SMS tNPS'!HB:HB,"Yes"))+COUNTIFS('SMS tNPS'!DE:DE,G21,'SMS tNPS'!HB:HB,"No"),"") ->  | O21: =IFERROR(VLOOKUP($G21,'Technician Summary'!$G$7:$BK$372,14,FALSE),"") ->  | P21: =IFERROR(VLOOKUP($G21,'Technician Summary'!$G$7:$BK$372,15,FALSE),"") ->  | R21: =IFERROR(VLOOKUP($G21,'Technician Summary'!$G$7:$BK$372,17,FALSE),"") ->  | S21: =IFERROR(VLOOKUP($G21,'Technician Summary'!$G$7:$BK$372,18,FALSE),"") ->  | U21: =IFERROR(VLOOKUP($G21,'Technician Summary'!$G$7:$BK$372,20,FALSE),"") ->  | V21: =IFERROR(VLOOKUP($G21,'Technician Summary'!$G$7:$BK$372,21,FALSE),"") ->  | X21: =IF($G21="","",SUMIF('SQT Data'!$K:$K,$G21,'SQT Data'!$R:$R)) ->  | Y21: =IF($G21="","",SUMIF('SQT Data'!$K:$K,$G21,'SQT Data'!$S:$S)) ->  | AA21: =IF($G21="","",SUMIF('SQT Data'!$K:$K,$G21,'SQT Data'!$U:$U)) ->  | AB21: =IF($G21="","",SUMIF('SQT Data'!$K:$K,$G21,'SQT Data'!$V:$V)) ->  | AE21: =IFERROR(SUM(AD21/#REF!),"") ->  | AF21: =IFERROR(VLOOKUP($G21,'Technician Summary'!$G$7:$BK$372,7,FALSE),"") ->  | AG21: =IFERROR(VLOOKUP($G21,'Technician Summary'!$G$7:$BK$372,8,FALSE),"") ->  | AI21: =IFERROR(VLOOKUP($G21,'Technician Summary'!$G$7:$BK$372,34,FALSE),"") ->  | AJ21: =IFERROR(VLOOKUP($G21,'Technician Summary'!$G$7:$BK$372,35,FALSE),"") ->  | AL21: =IFERROR(VLOOKUP($G21,'Technician Summary'!$G$7:$BK$372,37,FALSE),"") ->  | AM21: =IFERROR(VLOOKUP($G21,'Technician Summary'!$G$7:$BK$372,38,FALSE),"") ->  | AO21: =COUNTIFS('Drop Validation'!$P:$P,$G21,'Drop Validation'!$F:$F,"In Scope") -> 0 | AP21: =COUNTIFS('Drop Validation'!$P:$P,$G21,'Drop Validation'!$AA:$AA,"Compliant",'Drop Validation'!$F:$F,"In Scope") -> 0
B22: Tech Rankings | I22: =IFERROR(VLOOKUP($G22,'Technician Summary'!$G$7:$BB$372,2,FALSE),"") ->  | J22: =IFERROR(VLOOKUP($G22,'Technician Summary'!$G$7:$BN$372,60,FALSE),"") ->  | L22: =IF(G22="","",COUNTIFS('SMS tNPS'!DE:DE,G22,'SMS tNPS'!HB:HB,"Yes")) ->  | M22: =IFERROR(IF(G22="","",COUNTIFS('SMS tNPS'!DE:DE,G22,'SMS tNPS'!HB:HB,"Yes"))+COUNTIFS('SMS tNPS'!DE:DE,G22,'SMS tNPS'!HB:HB,"No"),"") ->  | O22: =IFERROR(VLOOKUP($G22,'Technician Summary'!$G$7:$BK$372,14,FALSE),"") ->  | P22: =IFERROR(VLOOKUP($G22,'Technician Summary'!$G$7:$BK$372,15,FALSE),"") ->  | R22: =IFERROR(VLOOKUP($G22,'Technician Summary'!$G$7:$BK$372,17,FALSE),"") ->  | S22: =IFERROR(VLOOKUP($G22,'Technician Summary'!$G$7:$BK$372,18,FALSE),"") ->  | U22: =IFERROR(VLOOKUP($G22,'Technician Summary'!$G$7:$BK$372,20,FALSE),"") ->  | V22: =IFERROR(VLOOKUP($G22,'Technician Summary'!$G$7:$BK$372,21,FALSE),"") ->  | X22: =IF($G22="","",SUMIF('SQT Data'!$K:$K,$G22,'SQT Data'!$R:$R)) ->  | Y22: =IF($G22="","",SUMIF('SQT Data'!$K:$K,$G22,'SQT Data'!$S:$S)) ->  | AA22: =IF($G22="","",SUMIF('SQT Data'!$K:$K,$G22,'SQT Data'!$U:$U)) ->  | AB22: =IF($G22="","",SUMIF('SQT Data'!$K:$K,$G22,'SQT Data'!$V:$V)) ->  | AE22: =IFERROR(SUM(AD22/#REF!),"") ->  | AF22: =IFERROR(VLOOKUP($G22,'Technician Summary'!$G$7:$BK$372,7,FALSE),"") ->  | AG22: =IFERROR(VLOOKUP($G22,'Technician Summary'!$G$7:$BK$372,8,FALSE),"") ->  | AI22: =IFERROR(VLOOKUP($G22,'Technician Summary'!$G$7:$BK$372,34,FALSE),"") ->  | AJ22: =IFERROR(VLOOKUP($G22,'Technician Summary'!$G$7:$BK$372,35,FALSE),"") ->  | AL22: =IFERROR(VLOOKUP($G22,'Technician Summary'!$G$7:$BK$372,37,FALSE),"") ->  | AM22: =IFERROR(VLOOKUP($G22,'Technician Summary'!$G$7:$BK$372,38,FALSE),"") ->  | AO22: =COUNTIFS('Drop Validation'!$P:$P,$G22,'Drop Validation'!$F:$F,"In Scope") -> 0 | AP22: =COUNTIFS('Drop Validation'!$P:$P,$G22,'Drop Validation'!$AA:$AA,"Compliant",'Drop Validation'!$F:$F,"In Scope") -> 0
B23: SMS Rankings | I23: =IFERROR(VLOOKUP($G23,'Technician Summary'!$G$7:$BB$372,2,FALSE),"") ->  | J23: =IFERROR(VLOOKUP($G23,'Technician Summary'!$G$7:$BN$372,60,FALSE),"") ->  | L23: =IF(G23="","",COUNTIFS('SMS tNPS'!DE:DE,G23,'SMS tNPS'!HB:HB,"Yes")) ->  | M23: =IFERROR(IF(G23="","",COUNTIFS('SMS tNPS'!DE:DE,G23,'SMS tNPS'!HB:HB,"Yes"))+COUNTIFS('SMS tNPS'!DE:DE,G23,'SMS tNPS'!HB:HB,"No"),"") ->  | O23: =IFERROR(VLOOKUP($G23,'Technician Summary'!$G$7:$BK$372,14,FALSE),"") ->  | P23: =IFERROR(VLOOKUP($G23,'Technician Summary'!$G$7:$BK$372,15,FALSE),"") ->  | R23: =IFERROR(VLOOKUP($G23,'Technician Summary'!$G$7:$BK$372,17,FALSE),"") ->  | S23: =IFERROR(VLOOKUP($G23,'Technician Summary'!$G$7:$BK$372,18,FALSE),"") ->  | U23: =IFERROR(VLOOKUP($G23,'Technician Summary'!$G$7:$BK$372,20,FALSE),"") ->  | V23: =IFERROR(VLOOKUP($G23,'Technician Summary'!$G$7:$BK$372,21,FALSE),"") ->  | X23: =IF($G23="","",SUMIF('SQT Data'!$K:$K,$G23,'SQT Data'!$R:$R)) ->  | Y23: =IF($G23="","",SUMIF('SQT Data'!$K:$K,$G23,'SQT Data'!$S:$S)) ->  | AA23: =IF($G23="","",SUMIF('SQT Data'!$K:$K,$G23,'SQT Data'!$U:$U)) ->  | AB23: =IF($G23="","",SUMIF('SQT Data'!$K:$K,$G23,'SQT Data'!$V:$V)) ->  | AE23: =IFERROR(SUM(AD23/#REF!),"") ->  | AF23: =IFERROR(VLOOKUP($G23,'Technician Summary'!$G$7:$BK$372,7,FALSE),"") ->  | AG23: =IFERROR(VLOOKUP($G23,'Technician Summary'!$G$7:$BK$372,8,FALSE),"") ->  | AI23: =IFERROR(VLOOKUP($G23,'Technician Summary'!$G$7:$BK$372,34,FALSE),"") ->  | AJ23: =IFERROR(VLOOKUP($G23,'Technician Summary'!$G$7:$BK$372,35,FALSE),"") ->  | AL23: =IFERROR(VLOOKUP($G23,'Technician Summary'!$G$7:$BK$372,37,FALSE),"") ->  | AM23: =IFERROR(VLOOKUP($G23,'Technician Summary'!$G$7:$BK$372,38,FALSE),"") ->  | AO23: =COUNTIFS('Drop Validation'!$P:$P,$G23,'Drop Validation'!$F:$F,"In Scope") -> 0 | AP23: =COUNTIFS('Drop Validation'!$P:$P,$G23,'Drop Validation'!$AA:$AA,"Compliant",'Drop Validation'!$F:$F,"In Scope") -> 0
B24: SQT Rankings | I24: =IFERROR(VLOOKUP($G24,'Technician Summary'!$G$7:$BB$372,2,FALSE),"") ->  | J24: =IFERROR(VLOOKUP($G24,'Technician Summary'!$G$7:$BN$372,60,FALSE),"") ->  | L24: =IF(G24="","",COUNTIFS('SMS tNPS'!DE:DE,G24,'SMS tNPS'!HB:HB,"Yes")) ->  | M24: =IFERROR(IF(G24="","",COUNTIFS('SMS tNPS'!DE:DE,G24,'SMS tNPS'!HB:HB,"Yes"))+COUNTIFS('SMS tNPS'!DE:DE,G24,'SMS tNPS'!HB:HB,"No"),"") ->  | O24: =IFERROR(VLOOKUP($G24,'Technician Summary'!$G$7:$BK$372,14,FALSE),"") ->  | P24: =IFERROR(VLOOKUP($G24,'Technician Summary'!$G$7:$BK$372,15,FALSE),"") ->  | R24: =IFERROR(VLOOKUP($G24,'Technician Summary'!$G$7:$BK$372,17,FALSE),"") ->  | S24: =IFERROR(VLOOKUP($G24,'Technician Summary'!$G$7:$BK$372,18,FALSE),"") ->  | U24: =IFERROR(VLOOKUP($G24,'Technician Summary'!$G$7:$BK$372,20,FALSE),"") ->  | V24: =IFERROR(VLOOKUP($G24,'Technician Summary'!$G$7:$BK$372,21,FALSE),"") ->  | X24: =IF($G24="","",SUMIF('SQT Data'!$K:$K,$G24,'SQT Data'!$R:$R)) ->  | Y24: =IF($G24="","",SUMIF('SQT Data'!$K:$K,$G24,'SQT Data'!$S:$S)) ->  | AA24: =IF($G24="","",SUMIF('SQT Data'!$K:$K,$G24,'SQT Data'!$U:$U)) ->  | AB24: =IF($G24="","",SUMIF('SQT Data'!$K:$K,$G24,'SQT Data'!$V:$V)) ->  | AE24: =IFERROR(SUM(AD24/#REF!),"") ->  | AF24: =IFERROR(VLOOKUP($G24,'Technician Summary'!$G$7:$BK$372,7,FALSE),"") ->  | AG24: =IFERROR(VLOOKUP($G24,'Technician Summary'!$G$7:$BK$372,8,FALSE),"") ->  | AI24: =IFERROR(VLOOKUP($G24,'Technician Summary'!$G$7:$BK$372,34,FALSE),"") ->  | AJ24: =IFERROR(VLOOKUP($G24,'Technician Summary'!$G$7:$BK$372,35,FALSE),"") ->  | AL24: =IFERROR(VLOOKUP($G24,'Technician Summary'!$G$7:$BK$372,37,FALSE),"") ->  | AM24: =IFERROR(VLOOKUP($G24,'Technician Summary'!$G$7:$BK$372,38,FALSE),"") ->  | AO24: =COUNTIFS('Drop Validation'!$P:$P,$G24,'Drop Validation'!$F:$F,"In Scope") -> 0 | AP24: =COUNTIFS('Drop Validation'!$P:$P,$G24,'Drop Validation'!$AA:$AA,"Compliant",'Drop Validation'!$F:$F,"In Scope") -> 0
B25: Repeat Rankings | I25: =IFERROR(VLOOKUP($G25,'Technician Summary'!$G$7:$BB$372,2,FALSE),"") ->  | J25: =IFERROR(VLOOKUP($G25,'Technician Summary'!$G$7:$BN$372,60,FALSE),"") ->  | L25: =IF(G25="","",COUNTIFS('SMS tNPS'!DE:DE,G25,'SMS tNPS'!HB:HB,"Yes")) ->  | M25: =IFERROR(IF(G25="","",COUNTIFS('SMS tNPS'!DE:DE,G25,'SMS tNPS'!HB:HB,"Yes"))+COUNTIFS('SMS tNPS'!DE:DE,G25,'SMS tNPS'!HB:HB,"No"),"") ->  | O25: =IFERROR(VLOOKUP($G25,'Technician Summary'!$G$7:$BK$372,14,FALSE),"") ->  | P25: =IFERROR(VLOOKUP($G25,'Technician Summary'!$G$7:$BK$372,15,FALSE),"") ->  | R25: =IFERROR(VLOOKUP($G25,'Technician Summary'!$G$7:$BK$372,17,FALSE),"") ->  | S25: =IFERROR(VLOOKUP($G25,'Technician Summary'!$G$7:$BK$372,18,FALSE),"") ->  | U25: =IFERROR(VLOOKUP($G25,'Technician Summary'!$G$7:$BK$372,20,FALSE),"") ->  | V25: =IFERROR(VLOOKUP($G25,'Technician Summary'!$G$7:$BK$372,21,FALSE),"") ->  | X25: =IF($G25="","",SUMIF('SQT Data'!$K:$K,$G25,'SQT Data'!$R:$R)) ->  | Y25: =IF($G25="","",SUMIF('SQT Data'!$K:$K,$G25,'SQT Data'!$S:$S)) ->  | AA25: =IF($G25="","",SUMIF('SQT Data'!$K:$K,$G25,'SQT Data'!$U:$U)) ->  | AB25: =IF($G25="","",SUMIF('SQT Data'!$K:$K,$G25,'SQT Data'!$V:$V)) ->  | AE25: =IFERROR(SUM(AD25/#REF!),"") ->  | AF25: =IFERROR(VLOOKUP($G25,'Technician Summary'!$G$7:$BK$372,7,FALSE),"") ->  | AG25: =IFERROR(VLOOKUP($G25,'Technician Summary'!$G$7:$BK$372,8,FALSE),"") ->  | AI25: =IFERROR(VLOOKUP($G25,'Technician Summary'!$G$7:$BK$372,34,FALSE),"") ->  | AJ25: =IFERROR(VLOOKUP($G25,'Technician Summary'!$G$7:$BK$372,35,FALSE),"") ->  | AL25: =IFERROR(VLOOKUP($G25,'Technician Summary'!$G$7:$BK$372,37,FALSE),"") ->  | AM25: =IFERROR(VLOOKUP($G25,'Technician Summary'!$G$7:$BK$372,38,FALSE),"") ->  | AO25: =COUNTIFS('Drop Validation'!$P:$P,$G25,'Drop Validation'!$F:$F,"In Scope") -> 0 | AP25: =COUNTIFS('Drop Validation'!$P:$P,$G25,'Drop Validation'!$AA:$AA,"Compliant",'Drop Validation'!$F:$F,"In Scope") -> 0
I26: =IFERROR(VLOOKUP($G26,'Technician Summary'!$G$7:$BB$372,2,FALSE),"") ->  | J26: =IFERROR(VLOOKUP($G26,'Technician Summary'!$G$7:$BN$372,60,FALSE),"") ->  | L26: =IF(G26="","",COUNTIFS('SMS tNPS'!DE:DE,G26,'SMS tNPS'!HB:HB,"Yes")) ->  | M26: =IFERROR(IF(G26="","",COUNTIFS('SMS tNPS'!DE:DE,G26,'SMS tNPS'!HB:HB,"Yes"))+COUNTIFS('SMS tNPS'!DE:DE,G26,'SMS tNPS'!HB:HB,"No"),"") ->  | O26: =IFERROR(VLOOKUP($G26,'Technician Summary'!$G$7:$BK$372,14,FALSE),"") ->  | P26: =IFERROR(VLOOKUP($G26,'Technician Summary'!$G$7:$BK$372,15,FALSE),"") ->  | R26: =IFERROR(VLOOKUP($G26,'Technician Summary'!$G$7:$BK$372,17,FALSE),"") ->  | S26: =IFERROR(VLOOKUP($G26,'Technician Summary'!$G$7:$BK$372,18,FALSE),"") ->  | U26: =IFERROR(VLOOKUP($G26,'Technician Summary'!$G$7:$BK$372,20,FALSE),"") ->  | V26: =IFERROR(VLOOKUP($G26,'Technician Summary'!$G$7:$BK$372,21,FALSE),"") ->  | X26: =IF($G26="","",SUMIF('SQT Data'!$K:$K,$G26,'SQT Data'!$R:$R)) ->  | Y26: =IF($G26="","",SUMIF('SQT Data'!$K:$K,$G26,'SQT Data'!$S:$S)) ->  | AA26: =IF($G26="","",SUMIF('SQT Data'!$K:$K,$G26,'SQT Data'!$U:$U)) ->  | AB26: =IF($G26="","",SUMIF('SQT Data'!$K:$K,$G26,'SQT Data'!$V:$V)) ->  | AE26: =IFERROR(SUM(AD26/#REF!),"") ->  | AF26: =IFERROR(VLOOKUP($G26,'Technician Summary'!$G$7:$BK$372,7,FALSE),"") ->  | AG26: =IFERROR(VLOOKUP($G26,'Technician Summary'!$G$7:$BK$372,8,FALSE),"") ->  | AI26: =IFERROR(VLOOKUP($G26,'Technician Summary'!$G$7:$BK$372,34,FALSE),"") ->  | AJ26: =IFERROR(VLOOKUP($G26,'Technician Summary'!$G$7:$BK$372,35,FALSE),"") ->  | AL26: =IFERROR(VLOOKUP($G26,'Technician Summary'!$G$7:$BK$372,37,FALSE),"") ->  | AM26: =IFERROR(VLOOKUP($G26,'Technician Summary'!$G$7:$BK$372,38,FALSE),"") ->  | AO26: =COUNTIFS('Drop Validation'!$P:$P,$G26,'Drop Validation'!$F:$F,"In Scope") -> 0 | AP26: =COUNTIFS('Drop Validation'!$P:$P,$G26,'Drop Validation'!$AA:$AA,"Compliant",'Drop Validation'!$F:$F,"In Scope") -> 0
B27: Raw Data | I27: =IFERROR(VLOOKUP($G27,'Technician Summary'!$G$7:$BB$372,2,FALSE),"") ->  | J27: =IFERROR(VLOOKUP($G27,'Technician Summary'!$G$7:$BN$372,60,FALSE),"") ->  | L27: =IF(G27="","",COUNTIFS('SMS tNPS'!DE:DE,G27,'SMS tNPS'!HB:HB,"Yes")) ->  | M27: =IFERROR(IF(G27="","",COUNTIFS('SMS tNPS'!DE:DE,G27,'SMS tNPS'!HB:HB,"Yes"))+COUNTIFS('SMS tNPS'!DE:DE,G27,'SMS tNPS'!HB:HB,"No"),"") ->  | O27: =IFERROR(VLOOKUP($G27,'Technician Summary'!$G$7:$BK$372,14,FALSE),"") ->  | P27: =IFERROR(VLOOKUP($G27,'Technician Summary'!$G$7:$BK$372,15,FALSE),"") ->  | R27: =IFERROR(VLOOKUP($G27,'Technician Summary'!$G$7:$BK$372,17,FALSE),"") ->  | S27: =IFERROR(VLOOKUP($G27,'Technician Summary'!$G$7:$BK$372,18,FALSE),"") ->  | U27: =IFERROR(VLOOKUP($G27,'Technician Summary'!$G$7:$BK$372,20,FALSE),"") ->  | V27: =IFERROR(VLOOKUP($G27,'Technician Summary'!$G$7:$BK$372,21,FALSE),"") ->  | X27: =IF($G27="","",SUMIF('SQT Data'!$K:$K,$G27,'SQT Data'!$R:$R)) ->  | Y27: =IF($G27="","",SUMIF('SQT Data'!$K:$K,$G27,'SQT Data'!$S:$S)) ->  | AA27: =IF($G27="","",SUMIF('SQT Data'!$K:$K,$G27,'SQT Data'!$U:$U)) ->  | AB27: =IF($G27="","",SUMIF('SQT Data'!$K:$K,$G27,'SQT Data'!$V:$V)) ->  | AE27: =IFERROR(SUM(AD27/#REF!),"") ->  | AF27: =IFERROR(VLOOKUP($G27,'Technician Summary'!$G$7:$BK$372,7,FALSE),"") ->  | AG27: =IFERROR(VLOOKUP($G27,'Technician Summary'!$G$7:$BK$372,8,FALSE),"") ->  | AI27: =IFERROR(VLOOKUP($G27,'Technician Summary'!$G$7:$BK$372,34,FALSE),"") ->  | AJ27: =IFERROR(VLOOKUP($G27,'Technician Summary'!$G$7:$BK$372,35,FALSE),"") ->  | AL27: =IFERROR(VLOOKUP($G27,'Technician Summary'!$G$7:$BK$372,37,FALSE),"") ->  | AM27: =IFERROR(VLOOKUP($G27,'Technician Summary'!$G$7:$BK$372,38,FALSE),"") ->  | AO27: =COUNTIFS('Drop Validation'!$P:$P,$G27,'Drop Validation'!$F:$F,"In Scope") -> 0 | AP27: =COUNTIFS('Drop Validation'!$P:$P,$G27,'Drop Validation'!$AA:$AA,"Compliant",'Drop Validation'!$F:$F,"In Scope") -> 0
I28: =IFERROR(VLOOKUP($G28,'Technician Summary'!$G$7:$BB$372,2,FALSE),"") ->  | J28: =IFERROR(VLOOKUP($G28,'Technician Summary'!$G$7:$BN$372,60,FALSE),"") ->  | L28: =IF(G28="","",COUNTIFS('SMS tNPS'!DE:DE,G28,'SMS tNPS'!HB:HB,"Yes")) ->  | M28: =IFERROR(IF(G28="","",COUNTIFS('SMS tNPS'!DE:DE,G28,'SMS tNPS'!HB:HB,"Yes"))+COUNTIFS('SMS tNPS'!DE:DE,G28,'SMS tNPS'!HB:HB,"No"),"") ->  | O28: =IFERROR(VLOOKUP($G28,'Technician Summary'!$G$7:$BK$372,14,FALSE),"") ->  | P28: =IFERROR(VLOOKUP($G28,'Technician Summary'!$G$7:$BK$372,15,FALSE),"") ->  | R28: =IFERROR(VLOOKUP($G28,'Technician Summary'!$G$7:$BK$372,17,FALSE),"") ->  | S28: =IFERROR(VLOOKUP($G28,'Technician Summary'!$G$7:$BK$372,18,FALSE),"") ->  | U28: =IFERROR(VLOOKUP($G28,'Technician Summary'!$G$7:$BK$372,20,FALSE),"") ->  | V28: =IFERROR(VLOOKUP($G28,'Technician Summary'!$G$7:$BK$372,21,FALSE),"") ->  | X28: =IF($G28="","",SUMIF('SQT Data'!$K:$K,$G28,'SQT Data'!$R:$R)) ->  | Y28: =IF($G28="","",SUMIF('SQT Data'!$K:$K,$G28,'SQT Data'!$S:$S)) ->  | AA28: =IF($G28="","",SUMIF('SQT Data'!$K:$K,$G28,'SQT Data'!$U:$U)) ->  | AB28: =IF($G28="","",SUMIF('SQT Data'!$K:$K,$G28,'SQT Data'!$V:$V)) ->  | AE28: =IFERROR(SUM(AD28/#REF!),"") ->  | AF28: =IFERROR(VLOOKUP($G28,'Technician Summary'!$G$7:$BK$372,7,FALSE),"") ->  | AG28: =IFERROR(VLOOKUP($G28,'Technician Summary'!$G$7:$BK$372,8,FALSE),"") ->  | AI28: =IFERROR(VLOOKUP($G28,'Technician Summary'!$G$7:$BK$372,34,FALSE),"") ->  | AJ28: =IFERROR(VLOOKUP($G28,'Technician Summary'!$G$7:$BK$372,35,FALSE),"") ->  | AL28: =IFERROR(VLOOKUP($G28,'Technician Summary'!$G$7:$BK$372,37,FALSE),"") ->  | AM28: =IFERROR(VLOOKUP($G28,'Technician Summary'!$G$7:$BK$372,38,FALSE),"") ->  | AO28: =COUNTIFS('Drop Validation'!$P:$P,$G28,'Drop Validation'!$F:$F,"In Scope") -> 0 | AP28: =COUNTIFS('Drop Validation'!$P:$P,$G28,'Drop Validation'!$AA:$AA,"Compliant",'Drop Validation'!$F:$F,"In Scope") -> 0
I29: =IFERROR(VLOOKUP($G29,'Technician Summary'!$G$7:$BB$372,2,FALSE),"") ->  | J29: =IFERROR(VLOOKUP($G29,'Technician Summary'!$G$7:$BN$372,60,FALSE),"") ->  | L29: =IF(G29="","",COUNTIFS('SMS tNPS'!DE:DE,G29,'SMS tNPS'!HB:HB,"Yes")) ->  | M29: =IFERROR(IF(G29="","",COUNTIFS('SMS tNPS'!DE:DE,G29,'SMS tNPS'!HB:HB,"Yes"))+COUNTIFS('SMS tNPS'!DE:DE,G29,'SMS tNPS'!HB:HB,"No"),"") ->  | O29: =IFERROR(VLOOKUP($G29,'Technician Summary'!$G$7:$BK$372,14,FALSE),"") ->  | P29: =IFERROR(VLOOKUP($G29,'Technician Summary'!$G$7:$BK$372,15,FALSE),"") ->  | R29: =IFERROR(VLOOKUP($G29,'Technician Summary'!$G$7:$BK$372,17,FALSE),"") ->  | S29: =IFERROR(VLOOKUP($G29,'Technician Summary'!$G$7:$BK$372,18,FALSE),"") ->  | U29: =IFERROR(VLOOKUP($G29,'Technician Summary'!$G$7:$BK$372,20,FALSE),"") ->  | V29: =IFERROR(VLOOKUP($G29,'Technician Summary'!$G$7:$BK$372,21,FALSE),"") ->  | X29: =IF($G29="","",SUMIF('SQT Data'!$K:$K,$G29,'SQT Data'!$R:$R)) ->  | Y29: =IF($G29="","",SUMIF('SQT Data'!$K:$K,$G29,'SQT Data'!$S:$S)) ->  | AA29: =IF($G29="","",SUMIF('SQT Data'!$K:$K,$G29,'SQT Data'!$U:$U)) ->  | AB29: =IF($G29="","",SUMIF('SQT Data'!$K:$K,$G29,'SQT Data'!$V:$V)) ->  | AE29: =IFERROR(SUM(AD29/#REF!),"") ->  | AF29: =IFERROR(VLOOKUP($G29,'Technician Summary'!$G$7:$BK$372,7,FALSE),"") ->  | AG29: =IFERROR(VLOOKUP($G29,'Technician Summary'!$G$7:$BK$372,8,FALSE),"") ->  | AI29: =IFERROR(VLOOKUP($G29,'Technician Summary'!$G$7:$BK$372,34,FALSE),"") ->  | AJ29: =IFERROR(VLOOKUP($G29,'Technician Summary'!$G$7:$BK$372,35,FALSE),"") ->  | AL29: =IFERROR(VLOOKUP($G29,'Technician Summary'!$G$7:$BK$372,37,FALSE),"") ->  | AM29: =IFERROR(VLOOKUP($G29,'Technician Summary'!$G$7:$BK$372,38,FALSE),"") ->  | AO29: =COUNTIFS('Drop Validation'!$P:$P,$G29,'Drop Validation'!$F:$F,"In Scope") -> 0 | AP29: =COUNTIFS('Drop Validation'!$P:$P,$G29,'Drop Validation'!$AA:$AA,"Compliant",'Drop Validation'!$F:$F,"In Scope") -> 0
I30: =IFERROR(VLOOKUP($G30,'Technician Summary'!$G$7:$BB$372,2,FALSE),"") ->  | J30: =IFERROR(VLOOKUP($G30,'Technician Summary'!$G$7:$BN$372,60,FALSE),"") ->  | L30: =IF(G30="","",COUNTIFS('SMS tNPS'!DE:DE,G30,'SMS tNPS'!HB:HB,"Yes")) ->  | M30: =IFERROR(IF(G30="","",COUNTIFS('SMS tNPS'!DE:DE,G30,'SMS tNPS'!HB:HB,"Yes"))+COUNTIFS('SMS tNPS'!DE:DE,G30,'SMS tNPS'!HB:HB,"No"),"") ->  | O30: =IFERROR(VLOOKUP($G30,'Technician Summary'!$G$7:$BK$372,14,FALSE),"") ->  | P30: =IFERROR(VLOOKUP($G30,'Technician Summary'!$G$7:$BK$372,15,FALSE),"") ->  | R30: =IFERROR(VLOOKUP($G30,'Technician Summary'!$G$7:$BK$372,17,FALSE),"") ->  | S30: =IFERROR(VLOOKUP($G30,'Technician Summary'!$G$7:$BK$372,18,FALSE),"") ->  | U30: =IFERROR(VLOOKUP($G30,'Technician Summary'!$G$7:$BK$372,20,FALSE),"") ->  | V30: =IFERROR(VLOOKUP($G30,'Technician Summary'!$G$7:$BK$372,21,FALSE),"") ->  | X30: =IF($G30="","",SUMIF('SQT Data'!$K:$K,$G30,'SQT Data'!$R:$R)) ->  | Y30: =IF($G30="","",SUMIF('SQT Data'!$K:$K,$G30,'SQT Data'!$S:$S)) ->  | AA30: =IF($G30="","",SUMIF('SQT Data'!$K:$K,$G30,'SQT Data'!$U:$U)) ->  | AB30: =IF($G30="","",SUMIF('SQT Data'!$K:$K,$G30,'SQT Data'!$V:$V)) ->  | AE30: =IFERROR(SUM(AD30/#REF!),"") ->  | AF30: =IFERROR(VLOOKUP($G30,'Technician Summary'!$G$7:$BK$372,7,FALSE),"") ->  | AG30: =IFERROR(VLOOKUP($G30,'Technician Summary'!$G$7:$BK$372,8,FALSE),"") ->  | AI30: =IFERROR(VLOOKUP($G30,'Technician Summary'!$G$7:$BK$372,34,FALSE),"") ->  | AJ30: =IFERROR(VLOOKUP($G30,'Technician Summary'!$G$7:$BK$372,35,FALSE),"") ->  | AL30: =IFERROR(VLOOKUP($G30,'Technician Summary'!$G$7:$BK$372,37,FALSE),"") ->  | AM30: =IFERROR(VLOOKUP($G30,'Technician Summary'!$G$7:$BK$372,38,FALSE),"") ->  | AO30: =COUNTIFS('Drop Validation'!$P:$P,$G30,'Drop Validation'!$F:$F,"In Scope") -> 0 | AP30: =COUNTIFS('Drop Validation'!$P:$P,$G30,'Drop Validation'!$AA:$AA,"Compliant",'Drop Validation'!$F:$F,"In Scope") -> 0
I31: =IFERROR(VLOOKUP($G31,'Technician Summary'!$G$7:$BB$372,2,FALSE),"") ->  | J31: =IFERROR(VLOOKUP($G31,'Technician Summary'!$G$7:$BN$372,60,FALSE),"") ->  | L31: =IF(G31="","",COUNTIFS('SMS tNPS'!DE:DE,G31,'SMS tNPS'!HB:HB,"Yes")) ->  | M31: =IFERROR(IF(G31="","",COUNTIFS('SMS tNPS'!DE:DE,G31,'SMS tNPS'!HB:HB,"Yes"))+COUNTIFS('SMS tNPS'!DE:DE,G31,'SMS tNPS'!HB:HB,"No"),"") ->  | O31: =IFERROR(VLOOKUP($G31,'Technician Summary'!$G$7:$BK$372,14,FALSE),"") ->  | P31: =IFERROR(VLOOKUP($G31,'Technician Summary'!$G$7:$BK$372,15,FALSE),"") ->  | R31: =IFERROR(VLOOKUP($G31,'Technician Summary'!$G$7:$BK$372,17,FALSE),"") ->  | S31: =IFERROR(VLOOKUP($G31,'Technician Summary'!$G$7:$BK$372,18,FALSE),"") ->  | U31: =IFERROR(VLOOKUP($G31,'Technician Summary'!$G$7:$BK$372,20,FALSE),"") ->  | V31: =IFERROR(VLOOKUP($G31,'Technician Summary'!$G$7:$BK$372,21,FALSE),"") ->  | X31: =IF($G31="","",SUMIF('SQT Data'!$K:$K,$G31,'SQT Data'!$R:$R)) ->  | Y31: =IF($G31="","",SUMIF('SQT Data'!$K:$K,$G31,'SQT Data'!$S:$S)) ->  | AA31: =IF($G31="","",SUMIF('SQT Data'!$K:$K,$G31,'SQT Data'!$U:$U)) ->  | AB31: =IF($G31="","",SUMIF('SQT Data'!$K:$K,$G31,'SQT Data'!$V:$V)) ->  | AE31: =IFERROR(SUM(AD31/#REF!),"") ->  | AF31: =IFERROR(VLOOKUP($G31,'Technician Summary'!$G$7:$BK$372,7,FALSE),"") ->  | AG31: =IFERROR(VLOOKUP($G31,'Technician Summary'!$G$7:$BK$372,8,FALSE),"") ->  | AI31: =IFERROR(VLOOKUP($G31,'Technician Summary'!$G$7:$BK$372,34,FALSE),"") ->  | AJ31: =IFERROR(VLOOKUP($G31,'Technician Summary'!$G$7:$BK$372,35,FALSE),"") ->  | AL31: =IFERROR(VLOOKUP($G31,'Technician Summary'!$G$7:$BK$372,37,FALSE),"") ->  | AM31: =IFERROR(VLOOKUP($G31,'Technician Summary'!$G$7:$BK$372,38,FALSE),"") ->  | AO31: =COUNTIFS('Drop Validation'!$P:$P,$G31,'Drop Validation'!$F:$F,"In Scope") -> 0 | AP31: =COUNTIFS('Drop Validation'!$P:$P,$G31,'Drop Validation'!$AA:$AA,"Compliant",'Drop Validation'!$F:$F,"In Scope") -> 0
I32: # NPS WO's | J32: # Failures | K32: NPS | L32: SMS Promoter Count | M32: SMS Count | N32: SMS tNPS | O32: Total Repeatable WO | P32: Total Repeats | Q32: Repeats | R32: Total Repeatable WO | S32: Repeat IN | T32: IN Repeat % | U32: Total Repeatable WO | V32: Repeat TC | W32: Repeat TC % | X32: Jobs | Y32: Test Run | Z32: SQT Compliance | AB32: Test Fail | AC32: SQT Pass | AD32: Test Passed | AE32: Ingress Test Pass | AF32: FCR WO | AG32: FCR Failures | AH32: FCR | AI32: Jobs | AJ32: Jobs Late | AK32: OTA | AL32: Jobs | AM32: Completed Jobs | AN32: Completion % | AO32: Total Jobs | AP32: Total Valid | AQ32: Drop Validation
I33: =SUMIF(I7:I31,">0") -> 20 | J33: =SUMIF(J7:J31,">0") -> 7.0001
K34: =IFERROR(1-(J33/I33),"") -> 0.65 | L34: =SUM(L7:L31) -> 99 | M34: =SUM(M7:M31) -> 115 | N34: =IFERROR(SUM(L34/M34),"") -> 0.8609 | O34: =SUM(O7:O31) -> 607 | P34: =SUM(P7:P31) -> 31 | Q34: =IFERROR(SUM(P34/O34),"") -> 0.0511 | R34: =SUM(R7:R31) -> 210 | S34: =SUM(S7:S31) -> 7 | T34: =IFERROR(SUM(S34/R34),"") -> 0.0333 | U34: =SUM(U7:U31) -> 397 | V34: =SUM(V7:V31) -> 24 | W34: =IFERROR(SUM(V34/U34),"") -> 0.0605 | X34: =SUMIF(X7:X31,">0") -> 340 | Y34: =SUMIF(Y7:Y31,">0") -> 328 | Z34: =IFERROR(SUM(Y34/X34),"") -> 0.9647 | AA34: =SUM(AA7:AA31) -> 2602 | AB34: =SUM(AB7:AB31) -> 2361 | AC34: =IFERROR(SUM(AB34/AA34),"") -> 0.9074 | AD34: =SUM(AD7:AD31) -> 0 | AE34: =IFERROR(SUM(AD34/#REF!),"") ->  | AF34: =SUM(AF7:AF31) -> 303 | AG34: =SUM(AG7:AG31) -> 12 | AH34: =IFERROR(1-AG34/AF34,"") -> 0.9604 | AI34: =SUM(AI7:AI31) -> 198 | AJ34: =SUM(AJ7:AJ31) -> 16 | AK34: =IFERROR(1-AJ34/AI34,"") -> 0.9192 | AL34: =SUM(AL7:AL31) -> 675 | AM34: =SUM(AM7:AM31) -> 604 | AN34: =IFERROR(AM34/AL34,"") -> 0.8948 | AO34: =SUM(AO7:AO31) -> 22 | AP34: =SUM(AP7:AP31) -> 11 | AQ34: =IFERROR(1-AP34/AO34,"") -> 0.5

Sheet Hampton Roads
F3: Jervar Gayle
F5: Tech Name | G5: Tech ID | H5: Score | I5: # NPS WO's | J5: # Failures | K5: NPS | L5: SMS Promoter Count | M5: SMS Count | N5: SMS tNPS | O5: Total Repeatable WO | P5: Total Repeats | Q5: Repeats | R5: Total Repeatable WO | S5: Repeat IN | T5: IN Repeat % | U5: Total Repeatable WO | V5: Repeat TC | W5: Repeat TC % | X5: Jobs | Y5: Test Run | Z5: SQT Compliance | AB5: Test Fail | AC5: SQT Pass | AD5: Test Passed | AE5: Ingress Test Pass | AF5: FCR WO | AG5: FCR Failures | AH5: FCR | AI5: Jobs | AJ5: Jobs Late | AK5: OTA | AL5: Jobs | AM5: Completed Jobs | AN5: Completion % | AO5: Total Jobs | AP5: Total Valid | AQ5: Drop Validation
F7: Reginald Lewis | G7: 26091 | H7: =IF(Z7="","",IFERROR(IF(K7>=68.26%,1.25,0)+IF(Q7<=5.04%,2.5,0)+IF(Z7>=90%,2.5,0)+IF(AK7>=96%,1.25,0)+IF(N7>=90%,2.5,0),"")) ->  | I7: =IFERROR(VLOOKUP($G7,'Technician Summary'!$G$7:$BB$372,2,FALSE),"") -> 0 | J7: =IFERROR(VLOOKUP($G7,'Technician Summary'!$G$7:$BN$372,60,FALSE),"") ->  | K7: =IFERROR(1-(J7/I7),"") ->  | L7: =IF(G7="","",COUNTIFS('SMS tNPS'!DE:DE,G7,'SMS tNPS'!HB:HB,"Yes")) -> 0 | M7: =IFERROR(IF(G7="","",COUNTIFS('SMS tNPS'!DE:DE,G7,'SMS tNPS'!HB:HB,"Yes"))+COUNTIFS('SMS tNPS'!DE:DE,G7,'SMS tNPS'!HB:HB,"No"),"") -> 0 | N7: =IFERROR(SUM(L7/M7),"") ->  | O7: =IFERROR(VLOOKUP($G7,'Technician Summary'!$G$7:$BK$372,14,FALSE),"") -> 7 | P7: =IFERROR(VLOOKUP($G7,'Technician Summary'!$G$7:$BK$372,15,FALSE),"") -> 0 | Q7: =IFERROR(SUM(P7/O7),"") -> 0 | R7: =IFERROR(VLOOKUP($G7,'Technician Summary'!$G$7:$BK$372,17,FALSE),"") -> 3 | S7: =IFERROR(VLOOKUP($G7,'Technician Summary'!$G$7:$BK$372,18,FALSE),"") -> 0 | T7: =IFERROR(SUM(S7/R7),"") -> 0 | U7: =IFERROR(VLOOKUP($G7,'Technician Summary'!$G$7:$BK$372,20,FALSE),"") -> 4 | V7: =IFERROR(VLOOKUP($G7,'Technician Summary'!$G$7:$BK$372,21,FALSE),"") -> 0 | W7: =IFERROR(SUM(V7/U7),"") -> 0 | X7: =IF($G7="","",SUMIF('SQT Data'!$K:$K,$G7,'SQT Data'!$R:$R)) -> 0 | Y7: =IF($G7="","",SUMIF('SQT Data'!$K:$K,$G7,'SQT Data'!$S:$S)) -> 0 | Z7: =IFERROR(SUM(Y7/X7),"") ->  | AA7: =IF($G7="","",SUMIF('SQT Data'!$K:$K,$G7,'SQT Data'!$U:$U)) -> 0 | AB7: =IF($G7="","",SUMIF('SQT Data'!$K:$K,$G7,'SQT Data'!$V:$V)) -> 0 | AC7: =IFERROR(SUM(AB7/AA7),"") ->  | AE7: =IFERROR(SUM(AD7/#REF!),"") ->  | AF7: =IFERROR(VLOOKUP($G7,'Technician Summary'!$G$7:$BK$372,7,FALSE),"") -> 5 | AG7: =IFERROR(VLOOKUP($G7,'Technician Summary'!$G$7:$BK$372,8,FALSE),"") -> 0 | AH7: =IFERROR(1-AG7/AF7,"") -> 1 | AI7: =IFERROR(VLOOKUP($G7,'Technician Summary'!$G$7:$BK$372,34,FALSE),"") -> 0 | AJ7: =IFERROR(VLOOKUP($G7,'Technician Summary'!$G$7:$BK$372,35,FALSE),"") -> 0 | AK7: =IFERROR(1-AJ7/AI7,"") ->  | AL7: =IFERROR(VLOOKUP($G7,'Technician Summary'!$G$7:$BK$372,37,FALSE),"") -> 6 | AM7: =IFERROR(VLOOKUP($G7,'Technician Summary'!$G$7:$BK$372,38,FALSE),"") -> 6 | AN7: =IFERROR(AM7/AL7,"") -> 1 | AO7: =COUNTIFS('Drop Validation'!$P:$P,$G7,'Drop Validation'!$F:$F,"In Scope") -> 0 | AP7: =COUNTIFS('Drop Validation'!$P:$P,$G7,'Drop Validation'!$AA:$AA,"Compliant",'Drop Validation'!$F:$F,"In Scope") -> 0 | AQ7: =IFERROR(AP7/AO7,"") -> 
F8: Gary Wendland | G8: 11622 | I8: =IFERROR(VLOOKUP($G8,'Technician Summary'!$G$7:$BB$372,2,FALSE),"") -> 10 | J8: =IFERROR(VLOOKUP($G8,'Technician Summary'!$G$7:$BN$372,60,FALSE),"") -> 6 | K8: =IFERROR(1-(J8/I8),"") -> 0.4 | L8: =IF(G8="","",COUNTIFS('SMS tNPS'!DE:DE,G8,'SMS tNPS'!HB:HB,"Yes")) -> 0 | M8: =IFERROR(IF(G8="","",COUNTIFS('SMS tNPS'!DE:DE,G8,'SMS tNPS'!HB:HB,"Yes"))+COUNTIFS('SMS tNPS'!DE:DE,G8,'SMS tNPS'!HB:HB,"No"),"") -> 0 | N8: =IFERROR(SUM(L8/M8),"") ->  | O8: =IFERROR(VLOOKUP($G8,'Technician Summary'!$G$7:$BK$372,14,FALSE),"") -> 83 | P8: =IFERROR(VLOOKUP($G8,'Technician Summary'!$G$7:$BK$372,15,FALSE),"") -> 4 | Q8: =IFERROR(SUM(P8/O8),"") -> 0.0482 | R8: =IFERROR(VLOOKUP($G8,'Technician Summary'!$G$7:$BK$372,17,FALSE),"") -> 29 | S8: =IFERROR(VLOOKUP($G8,'Technician Summary'!$G$7:$BK$372,18,FALSE),"") -> 1 | T8: =IFERROR(SUM(S8/R8),"") -> 0.0345 | U8: =IFERROR(VLOOKUP($G8,'Technician Summary'!$G$7:$BK$372,20,FALSE),"") -> 54 | V8: =IFERROR(VLOOKUP($G8,'Technician Summary'!$G$7:$BK$372,21,FALSE),"") -> 3 | W8: =IFERROR(SUM(V8/U8),"") -> 0.0556 | X8: =IF($G8="","",SUMIF('SQT Data'!$K:$K,$G8,'SQT Data'!$R:$R)) -> 0 | Y8: =IF($G8="","",SUMIF('SQT Data'!$K:$K,$G8,'SQT Data'!$S:$S)) -> 0 | Z8: =IFERROR(SUM(Y8/X8),"") ->  | AA8: =IF($G8="","",SUMIF('SQT Data'!$K:$K,$G8,'SQT Data'!$U:$U)) -> 0 | AB8: =IF($G8="","",SUMIF('SQT Data'!$K:$K,$G8,'SQT Data'!$V:$V)) -> 0 | AC8: =IFERROR(SUM(AB8/AA8),"") ->  | AE8: =IFERROR(SUM(AD8/#REF!),"") ->  | AF8: =IFERROR(VLOOKUP($G8,'Technician Summary'!$G$7:$BK$372,7,FALSE),"") -> 35 | AG8: =IFERROR(VLOOKUP($G8,'Technician Summary'!$G$7:$BK$372,8,FALSE),"") -> 2 | AH8: =IFERROR(1-AG8/AF8,"") -> 0.9429 | AI8: =IFERROR(VLOOKUP($G8,'Technician Summary'!$G$7:$BK$372,34,FALSE),"") -> 24 | AJ8: =IFERROR(VLOOKUP($G8,'Technician Summary'!$G$7:$BK$372,35,FALSE),"") -> 1 | AK8: =IFERROR(1-AJ8/AI8,"") -> 0.9583 | AL8: =IFERROR(VLOOKUP($G8,'Technician Summary'!$G$7:$BK$372,37,FALSE),"") -> 88 | AM8: =IFERROR(VLOOKUP($G8,'Technician Summary'!$G$7:$BK$372,38,FALSE),"") -> 79 | AN8: =IFERROR(AM8/AL8,"") -> 0.8977 | AO8: =COUNTIFS('Drop Validation'!$P:$P,$G8,'Drop Validation'!$F:$F,"In Scope") -> 0 | AP8: =COUNTIFS('Drop Validation'!$P:$P,$G8,'Drop Validation'!$AA:$AA,"Compliant",'Drop Validation'!$F:$F,"In Scope") -> 0 | AQ8: =IFERROR(AP8/AO8,"") -> 
